{"text_format":"1","workbook":"xlsx","n_sheets":5,"sheets":["Setup","Kassenbuch","Filter & Druck","Bestände","HL"],"not_rendered":{"charts":0,"images":1,"macros":1,"external_links":0,"defined_names":8,"comments":0,"pivot_tables":0},"unopened":[],"bounds":{"document_bytes":16777216,"sheet_cells":100000,"rows_first":2000,"rows_last":500,"rows_between":2000,"halvings":0,"cell_chars":16384,"cell_head_chars":4096},"cells_cut":0,"cells_raw":0,"read":"whole","date_system":"1900"}

{"sheet":"Setup","index":0,"n_rows":39,"n_cols":11,"rows_kept":39,"cut":false,"hidden":false,"merged":[]}
[]
[null,"Einstellungen"]
[null,null,null,"Computer und Natel Kosten"]
[null,null,"Allgemeines",null,null,null,null,"Listen"]
[]
[null,null,null,"Datum der Eröffnung des Kassenbuchs:","2024-01-01",null,null,"Steuer","Jahr","Monat","#"]
[null,null,null,"Betrag bei Eröffnung:",1E-4]
[null,null,null,{"$f":"\"Aktueller Stand per \"&TEXT(NOW(),\"TT.MM.JJJJ\")","v":"Aktueller Stand per 28.12.2025"},{"$f":"Kassenbuch!I3","v":9.9999999999766942E-5},null,null,0.19,{"$f":"IF($E$6=\"\",\"Eröffnungsdatum eintragen\",YEAR($E$6))","v":2024},"komplettes Jahr"]
[null,null,null,{"$f":"IF(E8>=E7,\"Gewinn\",\"Verlust\")","v":"Verlust"},{"$f":"E8-E7","v":-2.3306280950291525E-16}]
[null,null,null,null,null,null,null,7.0000000000000007E-2,{"$f":"IF($E$6=\"\",\"-\",I8+1)","v":2025},"Januar",1]
[null,null,null,"Firma und / oder Name:","Name",null,null,0,{"$f":"IF($E$6=\"\",\"-\",I10+1)","v":2026},"Februar",2]
[null,null,null,null,"Geschäft",null,null,0.16,2027,"März",3]
[null,null,null,"Adresse:","Strasse",null,null,0.05,2028,"April",4]
[null,null,null,"PLZ & Ort:","PLZ Ort",null,null,null,2029,"Mai",5]
[null,null,null,null,null,null,null,null,2030,"Juni",6]
[null,null,null,null,null,null,null,null,2031,"Juli",7]
[null,null,null,null,null,null,null,null,2032,"August",8]
[null,null,null,null,null,null,null,null,2033,"September",9]
[null,null,null,null,null,null,null,null,2034,"Oktober",10]
[null,null,null,null,null,null,null,null,2035,"November",11]
[null,null,null,null,null,null,null,null,2036,"Dezember",12]
[null,null,null,null,null,null,null,null,2037]
[null,null,null,null,null,null,null,null,2038]
[null,null,null,null,null,null,null,null,2039]
[null,null,null,null,null,null,null,null,2040]
[null,null,null,null,null,null,null,null,2041]
[null,null,null,null,null,null,null,null,2042]
[null,null,null,null,null,null,null,null,2043]
[null,null,null,null,null,null,null,null,2044]
[null,null,null,null,null,null,null,null,2045]
[null,null,null,null,null,null,null,null,2046]
[null,null,null,null,null,null,null,null,2047]
[null,null,null,null,null,null,null,null,2048]
[null,null,null,null,null,null,null,null,2049]
[null,null,null,null,null,null,null,null,2050]
[null,null,null,null,null,null,null,null,2051]
[null,null,null,null,null,null,null,null,2052]
[null,null,null,null,null,null,null,null,2053]
[null,null,null,null,null,null,null,null,2054]

{"sheet":"Kassenbuch","index":1,"n_rows":19983,"n_cols":12,"rows_kept":4500,"cut":true,"hidden":false,"merged":[],"bounds":{"rows_first":2000,"rows_last":500,"rows_between":2000,"halvings":0}}
[]
[null,"Kassenbuch",null,null,null,null,{"$f":"\"Anfangsbestand vom \"&IF(Setup!$E$6=\"\",\">Datum siehe Setup<\",TEXT(Setup!$E$6,\"TT.MM.JJJJ\"))&\":\"","v":"Anfangsbestand vom 01.01.2024:"},null,{"$f":"IF(Setup!$E$7=\"\",0,Setup!$E$7)","v":1E-4}]
[null,null,null,null,{"$f":"IF(E4>F4,E4-F4,\"\")","v":""},{"$f":"IF(F4>E4,(E4-F4),\"\")","v":""},"aktueller Bestand:",null,{"$f":"$I$2+E4-F4","v":9.9999999999766942E-5}]
[null,null,{"$f":"NOW()","v":"2025-12-28T19:42:00.240"},null,{"$f":"SUBTOTAL(9,DB[Einnahme])","v":22},{"$f":"SUBTOTAL(9,DB[Ausgabe])","v":22}]
[null,null,null,null,null,null,null,null,{"$f":"COUNTA(DB[Datum])","v":1}]
[null,null,"Datum","Name Vorname","Einnahme","Ausgabe","Kategorie","Steuer","Anmerkungen",null,"Jahr","Monat"]
[null,null,"2025-01-27","Muster Karl",22,22,"PC Zubehör",0,"An und Verkauf",null,{"$f":"IF($C7=\"\",\"\",YEAR($C7))","v":2025},{"$f":"IF($C7=\"\",\"\",TEXT($C7,\"MMMM\"))","v":"Januar"}]
[null,null,null,null,null,null,null,null,null,null,{"$f":"IF($C8=\"\",\"\",YEAR($C8))","v":""},{"$f":"IF($C8=\"\",\"\",TEXT($C8,\"MMMM\"))","v":""}]
[null,null,null,null,null,null,null,null,null,null,"",""]
[null,null,null,null,null,null,null,null,null,null,"",""]
[null,null,null,null,null,null,null,null,null,null,"",""]
[null,null,null,null,null,null,null,null,null,null,"",""]
[null,null,null,null,null,null,null,null,null,null,"",""]
[null,null,null,null,null,null,null,null,null,null,"",""]
[null,null,null,null,null,null,null,null,null,null,"",""]
[null,null,null,null,null,null,null,null,null,null,"",""]
[null,null,null,null,null,null,null,null,null,null,"",""]
[null,null,null,null,null,null,null,null,null,null,"",""]
[null,null,null,null,null,null,null,null,null,null,"",""]
[null,null,null,null,null,null,null,null,null,null,"",""]
[null,null,null,null,null,null,null,null,null,null,"",""]
[null,null,null,null,null,null,null,null,null,null,"",""]
[null,null,null,null,null,null,null,null,null,null,"",""]
[null,null,null,null,null,null,null,null,null,null,"",""]
[null,null,null,null,null,null,null,null,null,null,"",""]
[null,null,null,null,null,null,null,null,null,null,"",""]
[null,null,null,null,null,null,null,null,null,null,"",""]
[null,null,null,null,null,null,null,null,null,null,"",""]
[null,null,null,null,null,null,null,null,null,null,"",""]
[null,null,null,null,null,null,null,null,null,null,"",""]
[null,null,null,null,null,null,null,null,null,null,"",""]
[null,null,null,null,null,null,null,null,null,null,"",""]
[null,null,null,null,null,null,null,null,null,null,"",""]
[null,null,null,null,null,null,null,null,null,null,"",""]
[null,null,null,null,null,null,null,null,null,null,"",""]
[null,null,null,null,null,null,null,null,null,null,"",""]
[null,null,null,null,null,null,null,null,null,null,"",""]
[null,null,null,null,null,null,null,null,null,null,"",""]
[null,null,null,null,null,null,null,null,null,null,"",""]
[null,null,null,null,null,null,null,null,null,null,"",""]
[null,null,null,null,null,null,null,null,null,null,"",""]
[null,null,null,null,null,null,null,null,null,null,"",""]
[null,null,null,null,null,null,null,null,null,null,"",""]
[null,null,null,null,null,null,null,null,null,null,"",""]
[null,null,null,null,null,null,null,null,null,null,"",""]
[null,null,null,null,null,null,null,null,null,null,"",""]
[null,null,null,null,null,null,null,null,null,null,"",""]
[null,null,null,null,null,null,null,null,null,null,"",""]
[null,null,null,null,null,null,null,null,null,null,"",""]
[null,null,null,null,null,null,null,null,null,null,"",""]
[null,null,null,null,null,null,null,null,null,null,"",""]
[null,null,null,null,null,null,null,null,null,null,"",""]
[null,null,null,null,null,null,null,null,null,null,"",""]
[null,null,null,null,null,null,null,null,null,null,"",""]
[null,null,null,null,null,null,null,null,null,null,{"$f":"IF($C55=\"\",\"\",YEAR($C55))","v":""},{"$f":"IF($C55=\"\",\"\",TEXT($C55,\"MMMM\"))","v":""}]
[null,null,null,null,null,null,null,null,null,null,"",""]
[null,null,null,null,null,null,null,null,null,null,"",""]
[null,null,null,null,null,null,null,null,null,null,"",""]
[null,null,null,null,null,null,null,null,null,null,"",""]
[null,null,null,null,null,null,null,null,null,null,"",""]
[null,null,null,null,null,null,null,null,null,null,"",""]
[null,null,null,null,null,null,null,null,null,null,"",""]
[null,null,null,null,null,null,null,null,null,null,"",""]
[null,null,null,null,null,null,null,null,null,null,"",""]
[null,null,null,null,null,null,null,null,null,null,"",""]
[null,null,null,null,null,null,null,null,null,null,"",""]
[null,null,null,null,null,null,null,null,null,null,"",""]
[null,null,null,null,null,null,null,null,null,null,"",""]
[null,null,null,null,null,null,null,null,null,null,"",""]
[null,null,null,null,null,null,null,null,null,null,"",""]
[null,null,null,null,null,null,null,null,null,null,"",""]
[null,null,null,null,null,null,null,null,null,null,"",""]
[null,null,null,null,null,null,null,null,null,null,"",""]
[null,null,null,null,null,null,null,null,null,null,"",""]
[null,null,null,null,null,null,null,null,null,null,"",""]
[null,null,null,null,null,null,null,null,null,null,"",""]
[null,null,null,null,null,null,null,null,null,null,"",""]
[null,null,null,null,null,null,null,null,null,null,"",""]
[null,null,null,null,null,null,null,null,null,null,"",""]
[null,null,null,null,null,null,null,null,null,null,"",""]
[null,null,null,null,null,null,null,null,null,null,"",""]
[null,null,null,null,null,null,null,null,null,null,"",""]
[null,null,null,null,null,null,null,null,null,null,"",""]
[null,null,null,null,null,null,null,null,null,null,"",""]
[null,null,null,null,null,null,null,null,null,null,"",""]
[null,null,null,null,null,null,null,null,null,null,"",""]
[null,null,null,null,null,null,null,null,null,null,"",""]
[null,null,null,null,null,null,null,null,null,null,"",""]
[null,null,null,null,null,null,null,null,null,null,"",""]
[null,null,null,null,null,null,null,null,null,null,"",""]
[null,null,null,null,null,null,null,null,null,null,"",""]
[null,null,null,null,null,null,null,null,null,null,"",""]
[null,null,null,null,null,null,null,null,null,null,"",""]
[null,null,null,null,null,null,null,null,null,null,"",""]
[null,null,null,null,null,null,null,null,null,null,"",""]
[null,null,null,null,null,null,null,null,null,null,"",""]
[null,null,null,null,null,null,null,null,null,null,"",""]
[null,null,null,null,null,null,null,null,null,null,"",""]
[null,null,null,null,null,null,null,null,null,null,"",""]
[null,null,null,null,null,null,null,null,null,null,"",""]
[null,null,null,null,null,null,null,null,null,null,"",""]
[null,null,null,null,null,null,null,null,null,null,"",""]
[null,null,null,null,null,null,null,null,null,null,"",""]
[null,null,null,null,null,null,null,null,null,null,"",""]
[null,null,null,null,null,null,null,null,null,null,"",""]
[null,null,null,null,null,null,null,null,null,null,"",""]
[null,null,null,null,null,null,null,null,null,null,"",""]
[null,null,null,null,null,null,null,null,null,null,"",""]
[null,null,null,null,null,null,null,null,null,null,"",""]
[null,null,null,null,null,null,null,null,null,null,"",""]
[null,null,null,null,null,null,null,null,null,null,"",""]
[null,null,null,null,null,null,null,null,null,null,"",""]
[null,null,null,null,null,null,null,null,null,null,"",""]
[null,null,null,null,null,null,null,null,null,null,"",""]
[null,null,null,null,null,null,null,null,null,null,"",""]
[null,null,null,null,null,null,null,null,null,null,"",""]
[null,null,null,null,null,null,null,null,null,null,"",""]
[null,null,null,null,null,null,null,null,null,null,"",""]
[null,null,null,null,null,null,null,null,null,null,{"$f":"IF($C119=\"\",\"\",YEAR($C119))","v":""},{"$f":"IF($C119=\"\",\"\",TEXT($C119,\"MMMM\"))","v":""}]
[null,null,null,null,null,null,null,null,null,null,"",""]
[null,null,null,null,null,null,null,null,null,null,"",""]
[null,null,null,null,null,null,null,null,null,null,"",""]
[null,null,null,null,null,null,null,null,null,null,"",""]
[null,null,null,null,null,null,null,null,null,null,"",""]
[null,null,null,null,null,null,null,null,null,null,"",""]
[null,null,null,null,null,null,null,null,null,null,"",""]
[null,null,null,null,null,null,null,null,null,null,"",""]
[null,null,null,null,null,null,null,null,null,null,"",""]
[null,null,null,null,null,null,null,null,null,null,"",""]
[null,null,null,null,null,null,null,null,null,null,"",""]
[null,null,null,null,null,null,null,null,null,null,"",""]
[null,null,null,null,null,null,null,null,null,null,"",""]
[null,null,null,null,null,null,null,null,null,null,"",""]
[null,null,null,null,null,null,null,null,null,null,"",""]
[null,null,null,null,null,null,null,null,null,null,"",""]
[null,null,null,null,null,null,null,null,null,null,"",""]
[null,null,null,null,null,null,null,null,null,null,"",""]
[null,null,null,null,null,null,null,null,null,null,"",""]
[null,null,null,null,null,null,null,null,null,null,"",""]
[null,null,null,null,null,null,null,null,null,null,"",""]
[null,null,null,null,null,null,null,null,null,null,"",""]
[null,null,null,null,null,null,null,null,null,null,"",""]
[null,null,null,null,null,null,null,null,null,null,"",""]
[null,null,null,null,null,null,null,null,null,null,"",""]
[null,null,null,null,null,null,null,null,null,null,"",""]
[null,null,null,null,null,null,null,null,null,null,"",""]
[null,null,null,null,null,null,null,null,null,null,"",""]
[null,null,null,null,null,null,null,null,null,null,"",""]
[null,null,null,null,null,null,null,null,null,null,"",""]
[null,null,null,null,null,null,null,null,null,null,"",""]
[null,null,null,null,null,null,null,null,null,null,"",""]
[null,null,null,null,null,null,null,null,null,null,"",""]
[null,null,null,null,null,null,null,null,null,null,"",""]
[null,null,null,null,null,null,null,null,null,null,"",""]
[null,null,null,null,null,null,null,null,null,null,"",""]
[null,null,null,null,null,null,null,null,null,null,"",""]
[null,null,null,null,null,null,null,null,null,null,"",""]
[null,null,null,null,null,null,null,null,null,null,"",""]
[null,null,null,null,null,null,null,null,null,null,"",""]
[null,null,null,null,null,null,null,null,null,null,"",""]
[null,null,null,null,null,null,null,null,null,null,"",""]
[null,null,null,null,null,null,null,null,null,null,"",""]
[null,null,null,null,null,null,null,null,null,null,"",""]
[null,null,null,null,null,null,null,null,null,null,"",""]
[null,null,null,null,null,null,null,null,null,null,"",""]
[null,null,null,null,null,null,null,null,null,null,"",""]
[null,null,null,null,null,null,null,null,null,null,"",""]
[null,null,null,null,null,null,null,null,null,null,"",""]
[null,null,null,null,null,null,null,null,null,null,"",""]
[null,null,null,null,null,null,null,null,null,null,"",""]
[null,null,null,null,null,null,null,null,null,null,"",""]
[null,null,null,null,null,null,null,null,null,null,"",""]
[null,null,null,null,null,null,null,null,null,null,"",""]
[null,null,null,null,null,null,null,null,null,null,"",""]
[null,null,null,null,null,null,null,null,null,null,"",""]
[null,null,null,null,null,null,null,null,null,null,"",""]
[null,null,null,null,null,null,null,null,null,null,"",""]
[null,null,null,null,null,null,null,null,null,null,"",""]
[null,null,null,null,null,null,null,null,null,null,"",""]
[null,null,null,null,null,null,null,null,null,null,"",""]
[null,null,null,null,null,null,null,null,null,null,"",""]
[null,null,null,null,null,null,null,null,null,null,"",""]
[null,null,null,null,null,null,null,null,null,null,{"$f":"IF($C183=\"\",\"\",YEAR($C183))","v":""},{"$f":"IF($C183=\"\",\"\",TEXT($C183,\"MMMM\"))","v":""}]
[null,null,null,null,null,null,null,null,null,null,"",""]
[null,null,null,null,null,null,null,null,null,null,"",""]
[null,null,null,null,null,null,null,null,null,null,"",""]
[null,null,null,null,null,null,null,null,null,null,"",""]
[null,null,null,null,null,null,null,null,null,null,"",""]
[null,null,null,null,null,null,null,null,null,null,"",""]
[null,null,null,null,null,null,null,null,null,null,"",""]
[null,null,null,null,null,null,null,null,null,null,"",""]
[null,null,null,null,null,null,null,null,null,null,"",""]
[null,null,null,null,null,null,null,null,null,null,"",""]
[null,null,null,null,null,null,null,null,null,null,"",""]
[null,null,null,null,null,null,null,null,null,null,"",""]
[null,null,null,null,null,null,null,null,null,null,"",""]
[null,null,null,null,null,null,null,null,null,null,"",""]
[null,null,null,null,null,null,null,null,null,null,"",""]
[null,null,null,null,null,null,null,null,null,null,"",""]
[null,null,null,null,null,null,null,null,null,null,"",""]
[null,null,null,null,null,null,null,null,null,null,"",""]
[null,null,null,null,null,null,null,null,null,null,"",""]
[null,null,null,null,null,null,null,null,null,null,"",""]
[null,null,null,null,null,null,null,null,null,null,"",""]
[null,null,null,null,null,null,null,null,null,null,"",""]
[null,null,null,null,null,null,null,null,null,null,"",""]
[null,null,null,null,null,null,null,null,null,null,"",""]
[null,null,null,null,null,null,null,null,null,null,"",""]
[null,null,null,null,null,null,null,null,null,null,"",""]
[null,null,null,null,null,null,null,null,null,null,"",""]
[null,null,null,null,null,null,null,null,null,null,"",""]
[null,null,null,null,null,null,null,null,null,null,"",""]
[null,null,null,null,null,null,null,null,null,null,"",""]
[null,null,null,null,null,null,null,null,null,null,"",""]
[null,null,null,null,null,null,null,null,null,null,"",""]
[null,null,null,null,null,null,null,null,null,null,"",""]
[null,null,null,null,null,null,null,null,null,null,"",""]
[null,null,null,null,null,null,null,null,null,null,"",""]
[null,null,null,null,null,null,null,null,null,null,"",""]
[null,null,null,null,null,null,null,null,null,null,"",""]
[null,null,null,null,null,null,null,null,null,null,"",""]
[null,null,null,null,null,null,null,null,null,null,"",""]
[null,null,null,null,null,null,null,null,null,null,"",""]
[null,null,null,null,null,null,null,null,null,null,"",""]
[null,null,null,null,null,null,null,null,null,null,"",""]
[null,null,null,null,null,null,null,null,null,null,"",""]
[null,null,null,null,null,null,null,null,null,null,"",""]
[null,null,null,null,null,null,null,null,null,null,"",""]
[null,null,null,null,null,null,null,null,null,null,"",""]
[null,null,null,null,null,null,null,null,null,null,"",""]
[null,null,null,null,null,null,null,null,null,null,"",""]
[null,null,null,null,null,null,null,null,null,null,"",""]
[null,null,null,null,null,null,null,null,null,null,"",""]
[null,null,null,null,null,null,null,null,null,null,"",""]
[null,null,null,null,null,null,null,null,null,null,"",""]
[null,null,null,null,null,null,null,null,null,null,"",""]
[null,null,null,null,null,null,null,null,null,null,"",""]
[null,null,null,null,null,null,null,null,null,null,"",""]
[null,null,null,null,null,null,null,null,null,null,"",""]
[null,null,null,null,null,null,null,null,null,null,"",""]
[null,null,null,null,null,null,null,null,null,null,"",""]
[null,null,null,null,null,null,null,null,null,null,"",""]
[null,null,null,null,null,null,null,null,null,null,"",""]
[null,null,null,null,null,null,null,null,null,null,"",""]
[null,null,null,null,null,null,null,null,null,null,"",""]
[null,null,null,null,null,null,null,null,null,null,"",""]
[null,null,null,null,null,null,null,null,null,null,{"$f":"IF($C247=\"\",\"\",YEAR($C247))","v":""},{"$f":"IF($C247=\"\",\"\",TEXT($C247,\"MMMM\"))","v":""}]
[null,null,null,null,null,null,null,null,null,null,"",""]
[null,null,null,null,null,null,null,null,null,null,"",""]
[null,null,null,null,null,null,null,null,null,null,"",""]
[null,null,null,null,null,null,null,null,null,null,"",""]
[null,null,null,null,null,null,null,null,null,null,"",""]
[null,null,null,null,null,null,null,null,null,null,"",""]
[null,null,null,null,null,null,null,null,null,null,"",""]
[null,null,null,null,null,null,null,null,null,null,"",""]
[null,null,null,null,null,null,null,null,null,null,"",""]
[null,null,null,null,null,null,null,null,null,null,"",""]
[null,null,null,null,null,null,null,null,null,null,"",""]
[null,null,null,null,null,null,null,null,null,null,"",""]
[null,null,null,null,null,null,null,null,null,null,"",""]
[null,null,null,null,null,null,null,null,null,null,"",""]
[null,null,null,null,null,null,null,null,null,null,"",""]
[null,null,null,null,null,null,null,null,null,null,"",""]
[null,null,null,null,null,null,null,null,null,null,"",""]
[null,null,null,null,null,null,null,null,null,null,"",""]
[null,null,null,null,null,null,null,null,null,null,"",""]
[null,null,null,null,null,null,null,null,null,null,"",""]
[null,null,null,null,null,null,null,null,null,null,"",""]
[null,null,null,null,null,null,null,null,null,null,"",""]
[null,null,null,null,null,null,null,null,null,null,"",""]
[null,null,null,null,null,null,null,null,null,null,"",""]
[null,null,null,null,null,null,null,null,null,null,"",""]
[null,null,null,null,null,null,null,null,null,null,"",""]
[null,null,null,null,null,null,null,null,null,null,"",""]
[null,null,null,null,null,null,null,null,null,null,"",""]
[null,null,null,null,null,null,null,null,null,null,"",""]
[null,null,null,null,null,null,null,null,null,null,"",""]
[null,null,null,null,null,null,null,null,null,null,"",""]
[null,null,null,null,null,null,null,null,null,null,"",""]
[null,null,null,null,null,null,null,null,null,null,"",""]
[null,null,null,null,null,null,null,null,null,null,"",""]
[null,null,null,null,null,null,null,null,null,null,"",""]
[null,null,null,null,null,null,null,null,null,null,"",""]
[null,null,null,null,null,null,null,null,null,null,"",""]
[null,null,null,null,null,null,null,null,null,null,"",""]
[null,null,null,null,null,null,null,null,null,null,"",""]
[null,null,null,null,null,null,null,null,null,null,"",""]
[null,null,null,null,null,null,null,null,null,null,"",""]
[null,null,null,null,null,null,null,null,null,null,"",""]
[null,null,null,null,null,null,null,null,null,null,"",""]
[null,null,null,null,null,null,null,null,null,null,"",""]
[null,null,null,null,null,null,null,null,null,null,"",""]
[null,null,null,null,null,null,null,null,null,null,"",""]
[null,null,null,null,null,null,null,null,null,null,"",""]
[null,null,null,null,null,null,null,null,null,null,"",""]
[null,null,null,null,null,null,null,null,null,null,"",""]
[null,null,null,null,null,null,null,null,null,null,"",""]
[null,null,null,null,null,null,null,null,null,null,"",""]
[null,null,null,null,null,null,null,null,null,null,"",""]
[null,null,null,null,null,null,null,null,null,null,"",""]
[null,null,null,null,null,null,null,null,null,null,"",""]
[null,null,null,null,null,null,null,null,null,null,"",""]
[null,null,null,null,null,null,null,null,null,null,"",""]
[null,null,null,null,null,null,null,null,null,null,"",""]
[null,null,null,null,null,null,null,null,null,null,"",""]
[null,null,null,null,null,null,null,null,null,null,"",""]
[null,null,null,null,null,null,null,null,null,null,"",""]
[null,null,null,null,null,null,null,null,null,null,"",""]
[null,null,null,null,null,null,null,null,null,null,"",""]
[null,null,null,null,null,null,null,null,null,null,"",""]
[null,null,null,null,null,null,null,null,null,null,{"$f":"IF($C311=\"\",\"\",YEAR($C311))","v":""},{"$f":"IF($C311=\"\",\"\",TEXT($C311,\"MMMM\"))","v":""}]
[null,null,null,null,null,null,null,null,null,null,"",""]
[null,null,null,null,null,null,null,null,null,null,"",""]
[null,null,null,null,null,null,null,null,null,null,"",""]
[null,null,null,null,null,null,null,null,null,null,"",""]
[null,null,null,null,null,null,null,null,null,null,"",""]
[null,null,null,null,null,null,null,null,null,null,"",""]
[null,null,null,null,null,null,null,null,null,null,"",""]
[null,null,null,null,null,null,null,null,null,null,"",""]
[null,null,null,null,null,null,null,null,null,null,"",""]
[null,null,null,null,null,null,null,null,null,null,"",""]
[null,null,null,null,null,null,null,null,null,null,"",""]
[null,null,null,null,null,null,null,null,null,null,"",""]
[null,null,null,null,null,null,null,null,null,null,"",""]
[null,null,null,null,null,null,null,null,null,null,"",""]
[null,null,null,null,null,null,null,null,null,null,"",""]
[null,null,null,null,null,null,null,null,null,null,"",""]
[null,null,null,null,null,null,null,null,null,null,"",""]
[null,null,null,null,null,null,null,null,null,null,"",""]
[null,null,null,null,null,null,null,null,null,null,"",""]
[null,null,null,null,null,null,null,null,null,null,"",""]
[null,null,null,null,null,null,null,null,null,null,"",""]
[null,null,null,null,null,null,null,null,null,null,"",""]
[null,null,null,null,null,null,null,null,null,null,"",""]
[null,null,null,null,null,null,null,null,null,null,"",""]
[null,null,null,null,null,null,null,null,null,null,"",""]
[null,null,null,null,null,null,null,null,null,null,"",""]
[null,null,null,null,null,null,null,null,null,null,"",""]
[null,null,null,null,null,null,null,null,null,null,"",""]
[null,null,null,null,null,null,null,null,null,null,"",""]
[null,null,null,null,null,null,null,null,null,null,"",""]
[null,null,null,null,null,null,null,null,null,null,"",""]
[null,null,null,null,null,null,null,null,null,null,"",""]
[null,null,null,null,null,null,null,null,null,null,"",""]
[null,null,null,null,null,null,null,null,null,null,"",""]
[null,null,null,null,null,null,null,null,null,null,"",""]
[null,null,null,null,null,null,null,null,null,null,"",""]
[null,null,null,null,null,null,null,null,null,null,"",""]
[null,null,null,null,null,null,null,null,null,null,"",""]
[null,null,null,null,null,null,null,null,null,null,"",""]
[null,null,null,null,null,null,null,null,null,null,"",""]
[null,null,null,null,null,null,null,null,null,null,"",""]
[null,null,null,null,null,null,null,null,null,null,"",""]
[null,null,null,null,null,null,null,null,null,null,"",""]
[null,null,null,null,null,null,null,null,null,null,"",""]
[null,null,null,null,null,null,null,null,null,null,"",""]
[null,null,null,null,null,null,null,null,null,null,"",""]
[null,null,null,null,null,null,null,null,null,null,"",""]
[null,null,null,null,null,null,null,null,null,null,"",""]
[null,null,null,null,null,null,null,null,null,null,"",""]
[null,null,null,null,null,null,null,null,null,null,"",""]
[null,null,null,null,null,null,null,null,null,null,"",""]
[null,null,null,null,null,null,null,null,null,null,"",""]
[null,null,null,null,null,null,null,null,null,null,"",""]
[null,null,null,null,null,null,null,null,null,null,"",""]
[null,null,null,null,null,null,null,null,null,null,"",""]
[null,null,null,null,null,null,null,null,null,null,"",""]
[null,null,null,null,null,null,null,null,null,null,"",""]
[null,null,null,null,null,null,null,null,null,null,"",""]
[null,null,null,null,null,null,null,null,null,null,"",""]
[null,null,null,null,null,null,null,null,null,null,"",""]
[null,null,null,null,null,null,null,null,null,null,"",""]
[null,null,null,null,null,null,null,null,null,null,"",""]
[null,null,null,null,null,null,null,null,null,null,"",""]
[null,null,null,null,null,null,null,null,null,null,{"$f":"IF($C375=\"\",\"\",YEAR($C375))","v":""},{"$f":"IF($C375=\"\",\"\",TEXT($C375,\"MMMM\"))","v":""}]
[null,null,null,null,null,null,null,null,null,null,"",""]
[null,null,null,null,null,null,null,null,null,null,"",""]
[null,null,null,null,null,null,null,null,null,null,"",""]
[null,null,null,null,null,null,null,null,null,null,"",""]
[null,null,null,null,null,null,null,null,null,null,"",""]
[null,null,null,null,null,null,null,null,null,null,"",""]
[null,null,null,null,null,null,null,null,null,null,"",""]
[null,null,null,null,null,null,null,null,null,null,"",""]
[null,null,null,null,null,null,null,null,null,null,"",""]
[null,null,null,null,null,null,null,null,null,null,"",""]
[null,null,null,null,null,null,null,null,null,null,"",""]
[null,null,null,null,null,null,null,null,null,null,"",""]
[null,null,null,null,null,null,null,null,null,null,"",""]
[null,null,null,null,null,null,null,null,null,null,"",""]
[null,null,null,null,null,null,null,null,null,null,"",""]
[null,null,null,null,null,null,null,null,null,null,"",""]
[null,null,null,null,null,null,null,null,null,null,"",""]
[null,null,null,null,null,null,null,null,null,null,"",""]
[null,null,null,null,null,null,null,null,null,null,"",""]
[null,null,null,null,null,null,null,null,null,null,"",""]
[null,null,null,null,null,null,null,null,null,null,"",""]
[null,null,null,null,null,null,null,null,null,null,"",""]
[null,null,null,null,null,null,null,null,null,null,"",""]
[null,null,null,null,null,null,null,null,null,null,"",""]
[null,null,null,null,null,null,null,null,null,null,"",""]
[null,null,null,null,null,null,null,null,null,null,"",""]
[null,null,null,null,null,null,null,null,null,null,"",""]
[null,null,null,null,null,null,null,null,null,null,"",""]
[null,null,null,null,null,null,null,null,null,null,"",""]
[null,null,null,null,null,null,null,null,null,null,"",""]
[null,null,null,null,null,null,null,null,null,null,"",""]
[null,null,null,null,null,null,null,null,null,null,"",""]
[null,null,null,null,null,null,null,null,null,null,"",""]
[null,null,null,null,null,null,null,null,null,null,"",""]
[null,null,null,null,null,null,null,null,null,null,"",""]
[null,null,null,null,null,null,null,null,null,null,"",""]
[null,null,null,null,null,null,null,null,null,null,"",""]
[null,null,null,null,null,null,null,null,null,null,"",""]
[null,null,null,null,null,null,null,null,null,null,"",""]
[null,null,null,null,null,null,null,null,null,null,"",""]
[null,null,null,null,null,null,null,null,null,null,"",""]
[null,null,null,null,null,null,null,null,null,null,"",""]
[null,null,null,null,null,null,null,null,null,null,"",""]
[null,null,null,null,null,null,null,null,null,null,"",""]
[null,null,null,null,null,null,null,null,null,null,"",""]
[null,null,null,null,null,null,null,null,null,null,"",""]
[null,null,null,null,null,null,null,null,null,null,"",""]
[null,null,null,null,null,null,null,null,null,null,"",""]
[null,null,null,null,null,null,null,null,null,null,"",""]
[null,null,null,null,null,null,null,null,null,null,"",""]
[null,null,null,null,null,null,null,null,null,null,"",""]
[null,null,null,null,null,null,null,null,null,null,"",""]
[null,null,null,null,null,null,null,null,null,null,"",""]
[null,null,null,null,null,null,null,null,null,null,"",""]
[null,null,null,null,null,null,null,null,null,null,"",""]
[null,null,null,null,null,null,null,null,null,null,"",""]
[null,null,null,null,null,null,null,null,null,null,"",""]
[null,null,null,null,null,null,null,null,null,null,"",""]
[null,null,null,null,null,null,null,null,null,null,"",""]
[null,null,null,null,null,null,null,null,null,null,"",""]
[null,null,null,null,null,null,null,null,null,null,"",""]
[null,null,null,null,null,null,null,null,null,null,"",""]
[null,null,null,null,null,null,null,null,null,null,"",""]
[null,null,null,null,null,null,null,null,null,null,{"$f":"IF($C439=\"\",\"\",YEAR($C439))","v":""},{"$f":"IF($C439=\"\",\"\",TEXT($C439,\"MMMM\"))","v":""}]
[null,null,null,null,null,null,null,null,null,null,"",""]
[null,null,null,null,null,null,null,null,null,null,"",""]
[null,null,null,null,null,null,null,null,null,null,"",""]
[null,null,null,null,null,null,null,null,null,null,"",""]
[null,null,null,null,null,null,null,null,null,null,"",""]
[null,null,null,null,null,null,null,null,null,null,"",""]
[null,null,null,null,null,null,null,null,null,null,"",""]
[null,null,null,null,null,null,null,null,null,null,"",""]
[null,null,null,null,null,null,null,null,null,null,"",""]
[null,null,null,null,null,null,null,null,null,null,"",""]
[null,null,null,null,null,null,null,null,null,null,"",""]
[null,null,null,null,null,null,null,null,null,null,"",""]
[null,null,null,null,null,null,null,null,null,null,"",""]
[null,null,null,null,null,null,null,null,null,null,"",""]
[null,null,null,null,null,null,null,null,null,null,"",""]
[null,null,null,null,null,null,null,null,null,null,"",""]
[null,null,null,null,null,null,null,null,null,null,"",""]
[null,null,null,null,null,null,null,null,null,null,"",""]
[null,null,null,null,null,null,null,null,null,null,"",""]
[null,null,null,null,null,null,null,null,null,null,"",""]
[null,null,null,null,null,null,null,null,null,null,"",""]
[null,null,null,null,null,null,null,null,null,null,"",""]
[null,null,null,null,null,null,null,null,null,null,"",""]
[null,null,null,null,null,null,null,null,null,null,"",""]
[null,null,null,null,null,null,null,null,null,null,"",""]
[null,null,null,null,null,null,null,null,null,null,"",""]
[null,null,null,null,null,null,null,null,null,null,"",""]
[null,null,null,null,null,null,null,null,null,null,"",""]
[null,null,null,null,null,null,null,null,null,null,"",""]
[null,null,null,null,null,null,null,null,null,null,"",""]
[null,null,null,null,null,null,null,null,null,null,"",""]
[null,null,null,null,null,null,null,null,null,null,"",""]
[null,null,null,null,null,null,null,null,null,null,"",""]
[null,null,null,null,null,null,null,null,null,null,"",""]
[null,null,null,null,null,null,null,null,null,null,"",""]
[null,null,null,null,null,null,null,null,null,null,"",""]
[null,null,null,null,null,null,null,null,null,null,"",""]
[null,null,null,null,null,null,null,null,null,null,"",""]
[null,null,null,null,null,null,null,null,null,null,"",""]
[null,null,null,null,null,null,null,null,null,null,"",""]
[null,null,null,null,null,null,null,null,null,null,"",""]
[null,null,null,null,null,null,null,null,null,null,"",""]
[null,null,null,null,null,null,null,null,null,null,"",""]
[null,null,null,null,null,null,null,null,null,null,"",""]
[null,null,null,null,null,null,null,null,null,null,"",""]
[null,null,null,null,null,null,null,null,null,null,"",""]
[null,null,null,null,null,null,null,null,null,null,"",""]
[null,null,null,null,null,null,null,null,null,null,"",""]
[null,null,null,null,null,null,null,null,null,null,"",""]
[null,null,null,null,null,null,null,null,null,null,"",""]
[null,null,null,null,null,null,null,null,null,null,"",""]
[null,null,null,null,null,null,null,null,null,null,"",""]
[null,null,null,null,null,null,null,null,null,null,"",""]
[null,null,null,null,null,null,null,null,null,null,"",""]
[null,null,null,null,null,null,null,null,null,null,"",""]
[null,null,null,null,null,null,null,null,null,null,"",""]
[null,null,null,null,null,null,null,null,null,null,"",""]
[null,null,null,null,null,null,null,null,null,null,"",""]
[null,null,null,null,null,null,null,null,null,null,"",""]
[null,null,null,null,null,null,null,null,null,null,"",""]
[null,null,null,null,null,null,null,null,null,null,"",""]
[null,null,null,null,null,null,null,null,null,null,"",""]
[null,null,null,null,null,null,null,null,null,null,"",""]
[null,null,null,null,null,null,null,null,null,null,{"$f":"IF($C503=\"\",\"\",YEAR($C503))","v":""},{"$f":"IF($C503=\"\",\"\",TEXT($C503,\"MMMM\"))","v":""}]
[null,null,null,null,null,null,null,null,null,null,"",""]
[null,null,null,null,null,null,null,null,null,null,"",""]
[null,null,null,null,null,null,null,null,null,null,"",""]
[null,null,null,null,null,null,null,null,null,null,"",""]
[null,null,null,null,null,null,null,null,null,null,"",""]
[null,null,null,null,null,null,null,null,null,null,"",""]
[null,null,null,null,null,null,null,null,null,null,"",""]
[null,null,null,null,null,null,null,null,null,null,"",""]
[null,null,null,null,null,null,null,null,null,null,"",""]
[null,null,null,null,null,null,null,null,null,null,"",""]
[null,null,null,null,null,null,null,null,null,null,"",""]
[null,null,null,null,null,null,null,null,null,null,"",""]
[null,null,null,null,null,null,null,null,null,null,"",""]
[null,null,null,null,null,null,null,null,null,null,"",""]
[null,null,null,null,null,null,null,null,null,null,"",""]
[null,null,null,null,null,null,null,null,null,null,"",""]
[null,null,null,null,null,null,null,null,null,null,"",""]
[null,null,null,null,null,null,null,null,null,null,"",""]
[null,null,null,null,null,null,null,null,null,null,"",""]
[null,null,null,null,null,null,null,null,null,null,"",""]
[null,null,null,null,null,null,null,null,null,null,"",""]
[null,null,null,null,null,null,null,null,null,null,"",""]
[null,null,null,null,null,null,null,null,null,null,"",""]
[null,null,null,null,null,null,null,null,null,null,"",""]
[null,null,null,null,null,null,null,null,null,null,"",""]
[null,null,null,null,null,null,null,null,null,null,"",""]
[null,null,null,null,null,null,null,null,null,null,"",""]
[null,null,null,null,null,null,null,null,null,null,"",""]
[null,null,null,null,null,null,null,null,null,null,"",""]
[null,null,null,null,null,null,null,null,null,null,"",""]
[null,null,null,null,null,null,null,null,null,null,"",""]
[null,null,null,null,null,null,null,null,null,null,"",""]
[null,null,null,null,null,null,null,null,null,null,"",""]
[null,null,null,null,null,null,null,null,null,null,"",""]
[null,null,null,null,null,null,null,null,null,null,"",""]
[null,null,null,null,null,null,null,null,null,null,"",""]
[null,null,null,null,null,null,null,null,null,null,"",""]
[null,null,null,null,null,null,null,null,null,null,"",""]
[null,null,null,null,null,null,null,null,null,null,"",""]
[null,null,null,null,null,null,null,null,null,null,"",""]
[null,null,null,null,null,null,null,null,null,null,"",""]
[null,null,null,null,null,null,null,null,null,null,"",""]
[null,null,null,null,null,null,null,null,null,null,"",""]
[null,null,null,null,null,null,null,null,null,null,"",""]
[null,null,null,null,null,null,null,null,null,null,"",""]
[null,null,null,null,null,null,null,null,null,null,"",""]
[null,null,null,null,null,null,null,null,null,null,"",""]
[null,null,null,null,null,null,null,null,null,null,"",""]
[null,null,null,null,null,null,null,null,null,null,"",""]
[null,null,null,null,null,null,null,null,null,null,"",""]
[null,null,null,null,null,null,null,null,null,null,"",""]
[null,null,null,null,null,null,null,null,null,null,"",""]
[null,null,null,null,null,null,null,null,null,null,"",""]
[null,null,null,null,null,null,null,null,null,null,"",""]
[null,null,null,null,null,null,null,null,null,null,"",""]
[null,null,null,null,null,null,null,null,null,null,"",""]
[null,null,null,null,null,null,null,null,null,null,"",""]
[null,null,null,null,null,null,null,null,null,null,"",""]
[null,null,null,null,null,null,null,null,null,null,"",""]
[null,null,null,null,null,null,null,null,null,null,"",""]
[null,null,null,null,null,null,null,null,null,null,"",""]
[null,null,null,null,null,null,null,null,null,null,"",""]
[null,null,null,null,null,null,null,null,null,null,"",""]
[null,null,null,null,null,null,null,null,null,null,{"$f":"IF($C567=\"\",\"\",YEAR($C567))","v":""},{"$f":"IF($C567=\"\",\"\",TEXT($C567,\"MMMM\"))","v":""}]
[null,null,null,null,null,null,null,null,null,null,"",""]
[null,null,null,null,null,null,null,null,null,null,"",""]
[null,null,null,null,null,null,null,null,null,null,"",""]
[null,null,null,null,null,null,null,null,null,null,"",""]
[null,null,null,null,null,null,null,null,null,null,"",""]
[null,null,null,null,null,null,null,null,null,null,"",""]
[null,null,null,null,null,null,null,null,null,null,"",""]
[null,null,null,null,null,null,null,null,null,null,"",""]
[null,null,null,null,null,null,null,null,null,null,"",""]
[null,null,null,null,null,null,null,null,null,null,"",""]
[null,null,null,null,null,null,null,null,null,null,"",""]
[null,null,null,null,null,null,null,null,null,null,"",""]
[null,null,null,null,null,null,null,null,null,null,"",""]
[null,null,null,null,null,null,null,null,null,null,"",""]
[null,null,null,null,null,null,null,null,null,null,"",""]
[null,null,null,null,null,null,null,null,null,null,"",""]
[null,null,null,null,null,null,null,null,null,null,"",""]
[null,null,null,null,null,null,null,null,null,null,"",""]
[null,null,null,null,null,null,null,null,null,null,"",""]
[null,null,null,null,null,null,null,null,null,null,"",""]
[null,null,null,null,null,null,null,null,null,null,"",""]
[null,null,null,null,null,null,null,null,null,null,"",""]
[null,null,null,null,null,null,null,null,null,null,"",""]
[null,null,null,null,null,null,null,null,null,null,"",""]
[null,null,null,null,null,null,null,null,null,null,"",""]
[null,null,null,null,null,null,null,null,null,null,"",""]
[null,null,null,null,null,null,null,null,null,null,"",""]
[null,null,null,null,null,null,null,null,null,null,"",""]
[null,null,null,null,null,null,null,null,null,null,"",""]
[null,null,null,null,null,null,null,null,null,null,"",""]
[null,null,null,null,null,null,null,null,null,null,"",""]
[null,null,null,null,null,null,null,null,null,null,"",""]
[null,null,null,null,null,null,null,null,null,null,"",""]
[null,null,null,null,null,null,null,null,null,null,"",""]
[null,null,null,null,null,null,null,null,null,null,"",""]
[null,null,null,null,null,null,null,null,null,null,"",""]
[null,null,null,null,null,null,null,null,null,null,"",""]
[null,null,null,null,null,null,null,null,null,null,"",""]
[null,null,null,null,null,null,null,null,null,null,"",""]
[null,null,null,null,null,null,null,null,null,null,"",""]
[null,null,null,null,null,null,null,null,null,null,"",""]
[null,null,null,null,null,null,null,null,null,null,"",""]
[null,null,null,null,null,null,null,null,null,null,"",""]
[null,null,null,null,null,null,null,null,null,null,"",""]
[null,null,null,null,null,null,null,null,null,null,"",""]
[null,null,null,null,null,null,null,null,null,null,"",""]
[null,null,null,null,null,null,null,null,null,null,"",""]
[null,null,null,null,null,null,null,null,null,null,"",""]
[null,null,null,null,null,null,null,null,null,null,"",""]
[null,null,null,null,null,null,null,null,null,null,"",""]
[null,null,null,null,null,null,null,null,null,null,"",""]
[null,null,null,null,null,null,null,null,null,null,"",""]
[null,null,null,null,null,null,null,null,null,null,"",""]
[null,null,null,null,null,null,null,null,null,null,"",""]
[null,null,null,null,null,null,null,null,null,null,"",""]
[null,null,null,null,null,null,null,null,null,null,"",""]
[null,null,null,null,null,null,null,null,null,null,"",""]
[null,null,null,null,null,null,null,null,null,null,"",""]
[null,null,null,null,null,null,null,null,null,null,"",""]
[null,null,null,null,null,null,null,null,null,null,"",""]
[null,null,null,null,null,null,null,null,null,null,"",""]
[null,null,null,null,null,null,null,null,null,null,"",""]
[null,null,null,null,null,null,null,null,null,null,"",""]
[null,null,null,null,null,null,null,null,null,null,{"$f":"IF($C631=\"\",\"\",YEAR($C631))","v":""},{"$f":"IF($C631=\"\",\"\",TEXT($C631,\"MMMM\"))","v":""}]
[null,null,null,null,null,null,null,null,null,null,"",""]
[null,null,null,null,null,null,null,null,null,null,"",""]
[null,null,null,null,null,null,null,null,null,null,"",""]
[null,null,null,null,null,null,null,null,null,null,"",""]
[null,null,null,null,null,null,null,null,null,null,"",""]
[null,null,null,null,null,null,null,null,null,null,"",""]
[null,null,null,null,null,null,null,null,null,null,"",""]
[null,null,null,null,null,null,null,null,null,null,"",""]
[null,null,null,null,null,null,null,null,null,null,"",""]
[null,null,null,null,null,null,null,null,null,null,"",""]
[null,null,null,null,null,null,null,null,null,null,"",""]
[null,null,null,null,null,null,null,null,null,null,"",""]
[null,null,null,null,null,null,null,null,null,null,"",""]
[null,null,null,null,null,null,null,null,null,null,"",""]
[null,null,null,null,null,null,null,null,null,null,"",""]
[null,null,null,null,null,null,null,null,null,null,"",""]
[null,null,null,null,null,null,null,null,null,null,"",""]
[null,null,null,null,null,null,null,null,null,null,"",""]
[null,null,null,null,null,null,null,null,null,null,"",""]
[null,null,null,null,null,null,null,null,null,null,"",""]
[null,null,null,null,null,null,null,null,null,null,"",""]
[null,null,null,null,null,null,null,null,null,null,"",""]
[null,null,null,null,null,null,null,null,null,null,"",""]
[null,null,null,null,null,null,null,null,null,null,"",""]
[null,null,null,null,null,null,null,null,null,null,"",""]
[null,null,null,null,null,null,null,null,null,null,"",""]
[null,null,null,null,null,null,null,null,null,null,"",""]
[null,null,null,null,null,null,null,null,null,null,"",""]
[null,null,null,null,null,null,null,null,null,null,"",""]
[null,null,null,null,null,null,null,null,null,null,"",""]
[null,null,null,null,null,null,null,null,null,null,"",""]
[null,null,null,null,null,null,null,null,null,null,"",""]
[null,null,null,null,null,null,null,null,null,null,"",""]
[null,null,null,null,null,null,null,null,null,null,"",""]
[null,null,null,null,null,null,null,null,null,null,"",""]
[null,null,null,null,null,null,null,null,null,null,"",""]
[null,null,null,null,null,null,null,null,null,null,"",""]
[null,null,null,null,null,null,null,null,null,null,"",""]
[null,null,null,null,null,null,null,null,null,null,"",""]
[null,null,null,null,null,null,null,null,null,null,"",""]
[null,null,null,null,null,null,null,null,null,null,"",""]
[null,null,null,null,null,null,null,null,null,null,"",""]
[null,null,null,null,null,null,null,null,null,null,"",""]
[null,null,null,null,null,null,null,null,null,null,"",""]
[null,null,null,null,null,null,null,null,null,null,"",""]
[null,null,null,null,null,null,null,null,null,null,"",""]
[null,null,null,null,null,null,null,null,null,null,"",""]
[null,null,null,null,null,null,null,null,null,null,"",""]
[null,null,null,null,null,null,null,null,null,null,"",""]
[null,null,null,null,null,null,null,null,null,null,"",""]
[null,null,null,null,null,null,null,null,null,null,"",""]
[null,null,null,null,null,null,null,null,null,null,"",""]
[null,null,null,null,null,null,null,null,null,null,"",""]
[null,null,null,null,null,null,null,null,null,null,"",""]
[null,null,null,null,null,null,null,null,null,null,"",""]
[null,null,null,null,null,null,null,null,null,null,"",""]
[null,null,null,null,null,null,null,null,null,null,"",""]
[null,null,null,null,null,null,null,null,null,null,"",""]
[null,null,null,null,null,null,null,null,null,null,"",""]
[null,null,null,null,null,null,null,null,null,null,"",""]
[null,null,null,null,null,null,null,null,null,null,"",""]
[null,null,null,null,null,null,null,null,null,null,"",""]
[null,null,null,null,null,null,null,null,null,null,"",""]
[null,null,null,null,null,null,null,null,null,null,{"$f":"IF($C695=\"\",\"\",YEAR($C695))","v":""},{"$f":"IF($C695=\"\",\"\",TEXT($C695,\"MMMM\"))","v":""}]
[null,null,null,null,null,null,null,null,null,null,"",""]
[null,null,null,null,null,null,null,null,null,null,"",""]
[null,null,null,null,null,null,null,null,null,null,"",""]
[null,null,null,null,null,null,null,null,null,null,"",""]
[null,null,null,null,null,null,null,null,null,null,"",""]
[null,null,null,null,null,null,null,null,null,null,"",""]
[null,null,null,null,null,null,null,null,null,null,"",""]
[null,null,null,null,null,null,null,null,null,null,"",""]
[null,null,null,null,null,null,null,null,null,null,"",""]
[null,null,null,null,null,null,null,null,null,null,"",""]
[null,null,null,null,null,null,null,null,null,null,"",""]
[null,null,null,null,null,null,null,null,null,null,"",""]
[null,null,null,null,null,null,null,null,null,null,"",""]
[null,null,null,null,null,null,null,null,null,null,"",""]
[null,null,null,null,null,null,null,null,null,null,"",""]
[null,null,null,null,null,null,null,null,null,null,"",""]
[null,null,null,null,null,null,null,null,null,null,"",""]
[null,null,null,null,null,null,null,null,null,null,"",""]
[null,null,null,null,null,null,null,null,null,null,"",""]
[null,null,null,null,null,null,null,null,null,null,"",""]
[null,null,null,null,null,null,null,null,null,null,"",""]
[null,null,null,null,null,null,null,null,null,null,"",""]
[null,null,null,null,null,null,null,null,null,null,"",""]
[null,null,null,null,null,null,null,null,null,null,"",""]
[null,null,null,null,null,null,null,null,null,null,"",""]
[null,null,null,null,null,null,null,null,null,null,"",""]
[null,null,null,null,null,null,null,null,null,null,"",""]
[null,null,null,null,null,null,null,null,null,null,"",""]
[null,null,null,null,null,null,null,null,null,null,"",""]
[null,null,null,null,null,null,null,null,null,null,"",""]
[null,null,null,null,null,null,null,null,null,null,"",""]
[null,null,null,null,null,null,null,null,null,null,"",""]
[null,null,null,null,null,null,null,null,null,null,"",""]
[null,null,null,null,null,null,null,null,null,null,"",""]
[null,null,null,null,null,null,null,null,null,null,"",""]
[null,null,null,null,null,null,null,null,null,null,"",""]
[null,null,null,null,null,null,null,null,null,null,"",""]
[null,null,null,null,null,null,null,null,null,null,"",""]
[null,null,null,null,null,null,null,null,null,null,"",""]
[null,null,null,null,null,null,null,null,null,null,"",""]
[null,null,null,null,null,null,null,null,null,null,"",""]
[null,null,null,null,null,null,null,null,null,null,"",""]
[null,null,null,null,null,null,null,null,null,null,"",""]
[null,null,null,null,null,null,null,null,null,null,"",""]
[null,null,null,null,null,null,null,null,null,null,"",""]
[null,null,null,null,null,null,null,null,null,null,"",""]
[null,null,null,null,null,null,null,null,null,null,"",""]
[null,null,null,null,null,null,null,null,null,null,"",""]
[null,null,null,null,null,null,null,null,null,null,"",""]
[null,null,null,null,null,null,null,null,null,null,"",""]
[null,null,null,null,null,null,null,null,null,null,"",""]
[null,null,null,null,null,null,null,null,null,null,"",""]
[null,null,null,null,null,null,null,null,null,null,"",""]
[null,null,null,null,null,null,null,null,null,null,"",""]
[null,null,null,null,null,null,null,null,null,null,"",""]
[null,null,null,null,null,null,null,null,null,null,"",""]
[null,null,null,null,null,null,null,null,null,null,"",""]
[null,null,null,null,null,null,null,null,null,null,"",""]
[null,null,null,null,null,null,null,null,null,null,"",""]
[null,null,null,null,null,null,null,null,null,null,"",""]
[null,null,null,null,null,null,null,null,null,null,"",""]
[null,null,null,null,null,null,null,null,null,null,"",""]
[null,null,null,null,null,null,null,null,null,null,"",""]
[null,null,null,null,null,null,null,null,null,null,{"$f":"IF($C759=\"\",\"\",YEAR($C759))","v":""},{"$f":"IF($C759=\"\",\"\",TEXT($C759,\"MMMM\"))","v":""}]
[null,null,null,null,null,null,null,null,null,null,"",""]
[null,null,null,null,null,null,null,null,null,null,"",""]
[null,null,null,null,null,null,null,null,null,null,"",""]
[null,null,null,null,null,null,null,null,null,null,"",""]
[null,null,null,null,null,null,null,null,null,null,"",""]
[null,null,null,null,null,null,null,null,null,null,"",""]
[null,null,null,null,null,null,null,null,null,null,"",""]
[null,null,null,null,null,null,null,null,null,null,"",""]
[null,null,null,null,null,null,null,null,null,null,"",""]
[null,null,null,null,null,null,null,null,null,null,"",""]
[null,null,null,null,null,null,null,null,null,null,"",""]
[null,null,null,null,null,null,null,null,null,null,"",""]
[null,null,null,null,null,null,null,null,null,null,"",""]
[null,null,null,null,null,null,null,null,null,null,"",""]
[null,null,null,null,null,null,null,null,null,null,"",""]
[null,null,null,null,null,null,null,null,null,null,"",""]
[null,null,null,null,null,null,null,null,null,null,"",""]
[null,null,null,null,null,null,null,null,null,null,"",""]
[null,null,null,null,null,null,null,null,null,null,"",""]
[null,null,null,null,null,null,null,null,null,null,"",""]
[null,null,null,null,null,null,null,null,null,null,"",""]
[null,null,null,null,null,null,null,null,null,null,"",""]
[null,null,null,null,null,null,null,null,null,null,"",""]
[null,null,null,null,null,null,null,null,null,null,"",""]
[null,null,null,null,null,null,null,null,null,null,"",""]
[null,null,null,null,null,null,null,null,null,null,"",""]
[null,null,null,null,null,null,null,null,null,null,"",""]
[null,null,null,null,null,null,null,null,null,null,"",""]
[null,null,null,null,null,null,null,null,null,null,"",""]
[null,null,null,null,null,null,null,null,null,null,"",""]
[null,null,null,null,null,null,null,null,null,null,"",""]
[null,null,null,null,null,null,null,null,null,null,"",""]
[null,null,null,null,null,null,null,null,null,null,"",""]
[null,null,null,null,null,null,null,null,null,null,"",""]
[null,null,null,null,null,null,null,null,null,null,"",""]
[null,null,null,null,null,null,null,null,null,null,"",""]
[null,null,null,null,null,null,null,null,null,null,"",""]
[null,null,null,null,null,null,null,null,null,null,"",""]
[null,null,null,null,null,null,null,null,null,null,"",""]
[null,null,null,null,null,null,null,null,null,null,"",""]
[null,null,null,null,null,null,null,null,null,null,"",""]
[null,null,null,null,null,null,null,null,null,null,"",""]
[null,null,null,null,null,null,null,null,null,null,"",""]
[null,null,null,null,null,null,null,null,null,null,"",""]
[null,null,null,null,null,null,null,null,null,null,"",""]
[null,null,null,null,null,null,null,null,null,null,"",""]
[null,null,null,null,null,null,null,null,null,null,"",""]
[null,null,null,null,null,null,null,null,null,null,"",""]
[null,null,null,null,null,null,null,null,null,null,"",""]
[null,null,null,null,null,null,null,null,null,null,"",""]
[null,null,null,null,null,null,null,null,null,null,"",""]
[null,null,null,null,null,null,null,null,null,null,"",""]
[null,null,null,null,null,null,null,null,null,null,"",""]
[null,null,null,null,null,null,null,null,null,null,"",""]
[null,null,null,null,null,null,null,null,null,null,"",""]
[null,null,null,null,null,null,null,null,null,null,"",""]
[null,null,null,null,null,null,null,null,null,null,"",""]
[null,null,null,null,null,null,null,null,null,null,"",""]
[null,null,null,null,null,null,null,null,null,null,"",""]
[null,null,null,null,null,null,null,null,null,null,"",""]
[null,null,null,null,null,null,null,null,null,null,"",""]
[null,null,null,null,null,null,null,null,null,null,"",""]
[null,null,null,null,null,null,null,null,null,null,"",""]
[null,null,null,null,null,null,null,null,null,null,{"$f":"IF($C823=\"\",\"\",YEAR($C823))","v":""},{"$f":"IF($C823=\"\",\"\",TEXT($C823,\"MMMM\"))","v":""}]
[null,null,null,null,null,null,null,null,null,null,"",""]
[null,null,null,null,null,null,null,null,null,null,"",""]
[null,null,null,null,null,null,null,null,null,null,"",""]
[null,null,null,null,null,null,null,null,null,null,"",""]
[null,null,null,null,null,null,null,null,null,null,"",""]
[null,null,null,null,null,null,null,null,null,null,"",""]
[null,null,null,null,null,null,null,null,null,null,"",""]
[null,null,null,null,null,null,null,null,null,null,"",""]
[null,null,null,null,null,null,null,null,null,null,"",""]
[null,null,null,null,null,null,null,null,null,null,"",""]
[null,null,null,null,null,null,null,null,null,null,"",""]
[null,null,null,null,null,null,null,null,null,null,"",""]
[null,null,null,null,null,null,null,null,null,null,"",""]
[null,null,null,null,null,null,null,null,null,null,"",""]
[null,null,null,null,null,null,null,null,null,null,"",""]
[null,null,null,null,null,null,null,null,null,null,"",""]
[null,null,null,null,null,null,null,null,null,null,"",""]
[null,null,null,null,null,null,null,null,null,null,"",""]
[null,null,null,null,null,null,null,null,null,null,"",""]
[null,null,null,null,null,null,null,null,null,null,"",""]
[null,null,null,null,null,null,null,null,null,null,"",""]
[null,null,null,null,null,null,null,null,null,null,"",""]
[null,null,null,null,null,null,null,null,null,null,"",""]
[null,null,null,null,null,null,null,null,null,null,"",""]
[null,null,null,null,null,null,null,null,null,null,"",""]
[null,null,null,null,null,null,null,null,null,null,"",""]
[null,null,null,null,null,null,null,null,null,null,"",""]
[null,null,null,null,null,null,null,null,null,null,"",""]
[null,null,null,null,null,null,null,null,null,null,"",""]
[null,null,null,null,null,null,null,null,null,null,"",""]
[null,null,null,null,null,null,null,null,null,null,"",""]
[null,null,null,null,null,null,null,null,null,null,"",""]
[null,null,null,null,null,null,null,null,null,null,"",""]
[null,null,null,null,null,null,null,null,null,null,"",""]
[null,null,null,null,null,null,null,null,null,null,"",""]
[null,null,null,null,null,null,null,null,null,null,"",""]
[null,null,null,null,null,null,null,null,null,null,"",""]
[null,null,null,null,null,null,null,null,null,null,"",""]
[null,null,null,null,null,null,null,null,null,null,"",""]
[null,null,null,null,null,null,null,null,null,null,"",""]
[null,null,null,null,null,null,null,null,null,null,"",""]
[null,null,null,null,null,null,null,null,null,null,"",""]
[null,null,null,null,null,null,null,null,null,null,"",""]
[null,null,null,null,null,null,null,null,null,null,"",""]
[null,null,null,null,null,null,null,null,null,null,"",""]
[null,null,null,null,null,null,null,null,null,null,"",""]
[null,null,null,null,null,null,null,null,null,null,"",""]
[null,null,null,null,null,null,null,null,null,null,"",""]
[null,null,null,null,null,null,null,null,null,null,"",""]
[null,null,null,null,null,null,null,null,null,null,"",""]
[null,null,null,null,null,null,null,null,null,null,"",""]
[null,null,null,null,null,null,null,null,null,null,"",""]
[null,null,null,null,null,null,null,null,null,null,"",""]
[null,null,null,null,null,null,null,null,null,null,"",""]
[null,null,null,null,null,null,null,null,null,null,"",""]
[null,null,null,null,null,null,null,null,null,null,"",""]
[null,null,null,null,null,null,null,null,null,null,"",""]
[null,null,null,null,null,null,null,null,null,null,"",""]
[null,null,null,null,null,null,null,null,null,null,"",""]
[null,null,null,null,null,null,null,null,null,null,"",""]
[null,null,null,null,null,null,null,null,null,null,"",""]
[null,null,null,null,null,null,null,null,null,null,"",""]
[null,null,null,null,null,null,null,null,null,null,"",""]
[null,null,null,null,null,null,null,null,null,null,{"$f":"IF($C887=\"\",\"\",YEAR($C887))","v":""},{"$f":"IF($C887=\"\",\"\",TEXT($C887,\"MMMM\"))","v":""}]
[null,null,null,null,null,null,null,null,null,null,"",""]
[null,null,null,null,null,null,null,null,null,null,"",""]
[null,null,null,null,null,null,null,null,null,null,"",""]
[null,null,null,null,null,null,null,null,null,null,"",""]
[null,null,null,null,null,null,null,null,null,null,"",""]
[null,null,null,null,null,null,null,null,null,null,"",""]
[null,null,null,null,null,null,null,null,null,null,"",""]
[null,null,null,null,null,null,null,null,null,null,"",""]
[null,null,null,null,null,null,null,null,null,null,"",""]
[null,null,null,null,null,null,null,null,null,null,"",""]
[null,null,null,null,null,null,null,null,null,null,"",""]
[null,null,null,null,null,null,null,null,null,null,"",""]
[null,null,null,null,null,null,null,null,null,null,"",""]
[null,null,null,null,null,null,null,null,null,null,"",""]
[null,null,null,null,null,null,null,null,null,null,"",""]
[null,null,null,null,null,null,null,null,null,null,"",""]
[null,null,null,null,null,null,null,null,null,null,"",""]
[null,null,null,null,null,null,null,null,null,null,"",""]
[null,null,null,null,null,null,null,null,null,null,"",""]
[null,null,null,null,null,null,null,null,null,null,"",""]
[null,null,null,null,null,null,null,null,null,null,"",""]
[null,null,null,null,null,null,null,null,null,null,"",""]
[null,null,null,null,null,null,null,null,null,null,"",""]
[null,null,null,null,null,null,null,null,null,null,"",""]
[null,null,null,null,null,null,null,null,null,null,"",""]
[null,null,null,null,null,null,null,null,null,null,"",""]
[null,null,null,null,null,null,null,null,null,null,"",""]
[null,null,null,null,null,null,null,null,null,null,"",""]
[null,null,null,null,null,null,null,null,null,null,"",""]
[null,null,null,null,null,null,null,null,null,null,"",""]
[null,null,null,null,null,null,null,null,null,null,"",""]
[null,null,null,null,null,null,null,null,null,null,"",""]
[null,null,null,null,null,null,null,null,null,null,"",""]
[null,null,null,null,null,null,null,null,null,null,"",""]
[null,null,null,null,null,null,null,null,null,null,"",""]
[null,null,null,null,null,null,null,null,null,null,"",""]
[null,null,null,null,null,null,null,null,null,null,"",""]
[null,null,null,null,null,null,null,null,null,null,"",""]
[null,null,null,null,null,null,null,null,null,null,"",""]
[null,null,null,null,null,null,null,null,null,null,"",""]
[null,null,null,null,null,null,null,null,null,null,"",""]
[null,null,null,null,null,null,null,null,null,null,"",""]
[null,null,null,null,null,null,null,null,null,null,"",""]
[null,null,null,null,null,null,null,null,null,null,"",""]
[null,null,null,null,null,null,null,null,null,null,"",""]
[null,null,null,null,null,null,null,null,null,null,"",""]
[null,null,null,null,null,null,null,null,null,null,"",""]
[null,null,null,null,null,null,null,null,null,null,"",""]
[null,null,null,null,null,null,null,null,null,null,"",""]
[null,null,null,null,null,null,null,null,null,null,"",""]
[null,null,null,null,null,null,null,null,null,null,"",""]
[null,null,null,null,null,null,null,null,null,null,"",""]
[null,null,null,null,null,null,null,null,null,null,"",""]
[null,null,null,null,null,null,null,null,null,null,"",""]
[null,null,null,null,null,null,null,null,null,null,"",""]
[null,null,null,null,null,null,null,null,null,null,"",""]
[null,null,null,null,null,null,null,null,null,null,"",""]
[null,null,null,null,null,null,null,null,null,null,"",""]
[null,null,null,null,null,null,null,null,null,null,"",""]
[null,null,null,null,null,null,null,null,null,null,"",""]
[null,null,null,null,null,null,null,null,null,null,"",""]
[null,null,null,null,null,null,null,null,null,null,"",""]
[null,null,null,null,null,null,null,null,null,null,"",""]
[null,null,null,null,null,null,null,null,null,null,{"$f":"IF($C951=\"\",\"\",YEAR($C951))","v":""},{"$f":"IF($C951=\"\",\"\",TEXT($C951,\"MMMM\"))","v":""}]
[null,null,null,null,null,null,null,null,null,null,"",""]
[null,null,null,null,null,null,null,null,null,null,"",""]
[null,null,null,null,null,null,null,null,null,null,"",""]
[null,null,null,null,null,null,null,null,null,null,"",""]
[null,null,null,null,null,null,null,null,null,null,"",""]
[null,null,null,null,null,null,null,null,null,null,"",""]
[null,null,null,null,null,null,null,null,null,null,"",""]
[null,null,null,null,null,null,null,null,null,null,"",""]
[null,null,null,null,null,null,null,null,null,null,"",""]
[null,null,null,null,null,null,null,null,null,null,"",""]
[null,null,null,null,null,null,null,null,null,null,"",""]
[null,null,null,null,null,null,null,null,null,null,"",""]
[null,null,null,null,null,null,null,null,null,null,"",""]
[null,null,null,null,null,null,null,null,null,null,"",""]
[null,null,null,null,null,null,null,null,null,null,"",""]
[null,null,null,null,null,null,null,null,null,null,"",""]
[null,null,null,null,null,null,null,null,null,null,"",""]
[null,null,null,null,null,null,null,null,null,null,"",""]
[null,null,null,null,null,null,null,null,null,null,"",""]
[null,null,null,null,null,null,null,null,null,null,"",""]
[null,null,null,null,null,null,null,null,null,null,"",""]
[null,null,null,null,null,null,null,null,null,null,"",""]
[null,null,null,null,null,null,null,null,null,null,"",""]
[null,null,null,null,null,null,null,null,null,null,"",""]
[null,null,null,null,null,null,null,null,null,null,"",""]
[null,null,null,null,null,null,null,null,null,null,"",""]
[null,null,null,null,null,null,null,null,null,null,"",""]
[null,null,null,null,null,null,null,null,null,null,"",""]
[null,null,null,null,null,null,null,null,null,null,"",""]
[null,null,null,null,null,null,null,null,null,null,"",""]
[null,null,null,null,null,null,null,null,null,null,"",""]
[null,null,null,null,null,null,null,null,null,null,"",""]
[null,null,null,null,null,null,null,null,null,null,"",""]
[null,null,null,null,null,null,null,null,null,null,"",""]
[null,null,null,null,null,null,null,null,null,null,"",""]
[null,null,null,null,null,null,null,null,null,null,"",""]
[null,null,null,null,null,null,null,null,null,null,"",""]
[null,null,null,null,null,null,null,null,null,null,"",""]
[null,null,null,null,null,null,null,null,null,null,"",""]
[null,null,null,null,null,null,null,null,null,null,"",""]
[null,null,null,null,null,null,null,null,null,null,"",""]
[null,null,null,null,null,null,null,null,null,null,"",""]
[null,null,null,null,null,null,null,null,null,null,"",""]
[null,null,null,null,null,null,null,null,null,null,"",""]
[null,null,null,null,null,null,null,null,null,null,"",""]
[null,null,null,null,null,null,null,null,null,null,"",""]
[null,null,null,null,null,null,null,null,null,null,"",""]
[null,null,null,null,null,null,null,null,null,null,"",""]
[null,null,null,null,null,null,null,null,null,null,"",""]
[null,null,null,null,null,null,null,null,null,null,"",""]
[null,null,null,null,null,null,null,null,null,null,"",""]
[null,null,null,null,null,null,null,null,null,null,"",""]
[null,null,null,null,null,null,null,null,null,null,"",""]
[null,null,null,null,null,null,null,null,null,null,"",""]
[null,null,null,null,null,null,null,null,null,null,"",""]
[null,null,null,null,null,null,null,null,null,null,"",""]
[null,null,null,null,null,null,null,null,null,null,"",""]
[null,null,null,null,null,null,null,null,null,null,"",""]
[null,null,null,null,null,null,null,null,null,null,"",""]
[null,null,null,null,null,null,null,null,null,null,"",""]
[null,null,null,null,null,null,null,null,null,null,"",""]
[null,null,null,null,null,null,null,null,null,null,"",""]
[null,null,null,null,null,null,null,null,null,null,"",""]
[null,null,null,null,null,null,null,null,null,null,{"$f":"IF($C1015=\"\",\"\",YEAR($C1015))","v":""},{"$f":"IF($C1015=\"\",\"\",TEXT($C1015,\"MMMM\"))","v":""}]
[null,null,null,null,null,null,null,null,null,null,"",""]
[null,null,null,null,null,null,null,null,null,null,"",""]
[null,null,null,null,null,null,null,null,null,null,"",""]
[null,null,null,null,null,null,null,null,null,null,"",""]
[null,null,null,null,null,null,null,null,null,null,"",""]
[null,null,null,null,null,null,null,null,null,null,"",""]
[null,null,null,null,null,null,null,null,null,null,"",""]
[null,null,null,null,null,null,null,null,null,null,"",""]
[null,null,null,null,null,null,null,null,null,null,"",""]
[null,null,null,null,null,null,null,null,null,null,"",""]
[null,null,null,null,null,null,null,null,null,null,"",""]
[null,null,null,null,null,null,null,null,null,null,"",""]
[null,null,null,null,null,null,null,null,null,null,"",""]
[null,null,null,null,null,null,null,null,null,null,"",""]
[null,null,null,null,null,null,null,null,null,null,"",""]
[null,null,null,null,null,null,null,null,null,null,"",""]
[null,null,null,null,null,null,null,null,null,null,"",""]
[null,null,null,null,null,null,null,null,null,null,"",""]
[null,null,null,null,null,null,null,null,null,null,"",""]
[null,null,null,null,null,null,null,null,null,null,"",""]
[null,null,null,null,null,null,null,null,null,null,"",""]
[null,null,null,null,null,null,null,null,null,null,"",""]
[null,null,null,null,null,null,null,null,null,null,"",""]
[null,null,null,null,null,null,null,null,null,null,"",""]
[null,null,null,null,null,null,null,null,null,null,"",""]
[null,null,null,null,null,null,null,null,null,null,"",""]
[null,null,null,null,null,null,null,null,null,null,"",""]
[null,null,null,null,null,null,null,null,null,null,"",""]
[null,null,null,null,null,null,null,null,null,null,"",""]
[null,null,null,null,null,null,null,null,null,null,"",""]
[null,null,null,null,null,null,null,null,null,null,"",""]
[null,null,null,null,null,null,null,null,null,null,"",""]
[null,null,null,null,null,null,null,null,null,null,"",""]
[null,null,null,null,null,null,null,null,null,null,"",""]
[null,null,null,null,null,null,null,null,null,null,"",""]
[null,null,null,null,null,null,null,null,null,null,"",""]
[null,null,null,null,null,null,null,null,null,null,"",""]
[null,null,null,null,null,null,null,null,null,null,"",""]
[null,null,null,null,null,null,null,null,null,null,"",""]
[null,null,null,null,null,null,null,null,null,null,"",""]
[null,null,null,null,null,null,null,null,null,null,"",""]
[null,null,null,null,null,null,null,null,null,null,"",""]
[null,null,null,null,null,null,null,null,null,null,"",""]
[null,null,null,null,null,null,null,null,null,null,"",""]
[null,null,null,null,null,null,null,null,null,null,"",""]
[null,null,null,null,null,null,null,null,null,null,"",""]
[null,null,null,null,null,null,null,null,null,null,"",""]
[null,null,null,null,null,null,null,null,null,null,"",""]
[null,null,null,null,null,null,null,null,null,null,"",""]
[null,null,null,null,null,null,null,null,null,null,"",""]
[null,null,null,null,null,null,null,null,null,null,"",""]
[null,null,null,null,null,null,null,null,null,null,"",""]
[null,null,null,null,null,null,null,null,null,null,"",""]
[null,null,null,null,null,null,null,null,null,null,"",""]
[null,null,null,null,null,null,null,null,null,null,"",""]
[null,null,null,null,null,null,null,null,null,null,"",""]
[null,null,null,null,null,null,null,null,null,null,"",""]
[null,null,null,null,null,null,null,null,null,null,"",""]
[null,null,null,null,null,null,null,null,null,null,"",""]
[null,null,null,null,null,null,null,null,null,null,"",""]
[null,null,null,null,null,null,null,null,null,null,"",""]
[null,null,null,null,null,null,null,null,null,null,"",""]
[null,null,null,null,null,null,null,null,null,null,"",""]
[null,null,null,null,null,null,null,null,null,null,{"$f":"IF($C1079=\"\",\"\",YEAR($C1079))","v":""},{"$f":"IF($C1079=\"\",\"\",TEXT($C1079,\"MMMM\"))","v":""}]
[null,null,null,null,null,null,null,null,null,null,"",""]
[null,null,null,null,null,null,null,null,null,null,"",""]
[null,null,null,null,null,null,null,null,null,null,"",""]
[null,null,null,null,null,null,null,null,null,null,"",""]
[null,null,null,null,null,null,null,null,null,null,"",""]
[null,null,null,null,null,null,null,null,null,null,"",""]
[null,null,null,null,null,null,null,null,null,null,"",""]
[null,null,null,null,null,null,null,null,null,null,"",""]
[null,null,null,null,null,null,null,null,null,null,"",""]
[null,null,null,null,null,null,null,null,null,null,"",""]
[null,null,null,null,null,null,null,null,null,null,"",""]
[null,null,null,null,null,null,null,null,null,null,"",""]
[null,null,null,null,null,null,null,null,null,null,"",""]
[null,null,null,null,null,null,null,null,null,null,"",""]
[null,null,null,null,null,null,null,null,null,null,"",""]
[null,null,null,null,null,null,null,null,null,null,"",""]
[null,null,null,null,null,null,null,null,null,null,"",""]
[null,null,null,null,null,null,null,null,null,null,"",""]
[null,null,null,null,null,null,null,null,null,null,"",""]
[null,null,null,null,null,null,null,null,null,null,"",""]
[null,null,null,null,null,null,null,null,null,null,"",""]
[null,null,null,null,null,null,null,null,null,null,"",""]
[null,null,null,null,null,null,null,null,null,null,"",""]
[null,null,null,null,null,null,null,null,null,null,"",""]
[null,null,null,null,null,null,null,null,null,null,"",""]
[null,null,null,null,null,null,null,null,null,null,"",""]
[null,null,null,null,null,null,null,null,null,null,"",""]
[null,null,null,null,null,null,null,null,null,null,"",""]
[null,null,null,null,null,null,null,null,null,null,"",""]
[null,null,null,null,null,null,null,null,null,null,"",""]
[null,null,null,null,null,null,null,null,null,null,"",""]
[null,null,null,null,null,null,null,null,null,null,"",""]
[null,null,null,null,null,null,null,null,null,null,"",""]
[null,null,null,null,null,null,null,null,null,null,"",""]
[null,null,null,null,null,null,null,null,null,null,"",""]
[null,null,null,null,null,null,null,null,null,null,"",""]
[null,null,null,null,null,null,null,null,null,null,"",""]
[null,null,null,null,null,null,null,null,null,null,"",""]
[null,null,null,null,null,null,null,null,null,null,"",""]
[null,null,null,null,null,null,null,null,null,null,"",""]
[null,null,null,null,null,null,null,null,null,null,"",""]
[null,null,null,null,null,null,null,null,null,null,"",""]
[null,null,null,null,null,null,null,null,null,null,"",""]
[null,null,null,null,null,null,null,null,null,null,"",""]
[null,null,null,null,null,null,null,null,null,null,"",""]
[null,null,null,null,null,null,null,null,null,null,"",""]
[null,null,null,null,null,null,null,null,null,null,"",""]
[null,null,null,null,null,null,null,null,null,null,"",""]
[null,null,null,null,null,null,null,null,null,null,"",""]
[null,null,null,null,null,null,null,null,null,null,"",""]
[null,null,null,null,null,null,null,null,null,null,"",""]
[null,null,null,null,null,null,null,null,null,null,"",""]
[null,null,null,null,null,null,null,null,null,null,"",""]
[null,null,null,null,null,null,null,null,null,null,"",""]
[null,null,null,null,null,null,null,null,null,null,"",""]
[null,null,null,null,null,null,null,null,null,null,"",""]
[null,null,null,null,null,null,null,null,null,null,"",""]
[null,null,null,null,null,null,null,null,null,null,"",""]
[null,null,null,null,null,null,null,null,null,null,"",""]
[null,null,null,null,null,null,null,null,null,null,"",""]
[null,null,null,null,null,null,null,null,null,null,"",""]
[null,null,null,null,null,null,null,null,null,null,"",""]
[null,null,null,null,null,null,null,null,null,null,"",""]
[null,null,null,null,null,null,null,null,null,null,{"$f":"IF($C1143=\"\",\"\",YEAR($C1143))","v":""},{"$f":"IF($C1143=\"\",\"\",TEXT($C1143,\"MMMM\"))","v":""}]
[null,null,null,null,null,null,null,null,null,null,"",""]
[null,null,null,null,null,null,null,null,null,null,"",""]
[null,null,null,null,null,null,null,null,null,null,"",""]
[null,null,null,null,null,null,null,null,null,null,"",""]
[null,null,null,null,null,null,null,null,null,null,"",""]
[null,null,null,null,null,null,null,null,null,null,"",""]
[null,null,null,null,null,null,null,null,null,null,"",""]
[null,null,null,null,null,null,null,null,null,null,"",""]
[null,null,null,null,null,null,null,null,null,null,"",""]
[null,null,null,null,null,null,null,null,null,null,"",""]
[null,null,null,null,null,null,null,null,null,null,"",""]
[null,null,null,null,null,null,null,null,null,null,"",""]
[null,null,null,null,null,null,null,null,null,null,"",""]
[null,null,null,null,null,null,null,null,null,null,"",""]
[null,null,null,null,null,null,null,null,null,null,"",""]
[null,null,null,null,null,null,null,null,null,null,"",""]
[null,null,null,null,null,null,null,null,null,null,"",""]
[null,null,null,null,null,null,null,null,null,null,"",""]
[null,null,null,null,null,null,null,null,null,null,"",""]
[null,null,null,null,null,null,null,null,null,null,"",""]
[null,null,null,null,null,null,null,null,null,null,"",""]
[null,null,null,null,null,null,null,null,null,null,"",""]
[null,null,null,null,null,null,null,null,null,null,"",""]
[null,null,null,null,null,null,null,null,null,null,"",""]
[null,null,null,null,null,null,null,null,null,null,"",""]
[null,null,null,null,null,null,null,null,null,null,"",""]
[null,null,null,null,null,null,null,null,null,null,"",""]
[null,null,null,null,null,null,null,null,null,null,"",""]
[null,null,null,null,null,null,null,null,null,null,"",""]
[null,null,null,null,null,null,null,null,null,null,"",""]
[null,null,null,null,null,null,null,null,null,null,"",""]
[null,null,null,null,null,null,null,null,null,null,"",""]
[null,null,null,null,null,null,null,null,null,null,"",""]
[null,null,null,null,null,null,null,null,null,null,"",""]
[null,null,null,null,null,null,null,null,null,null,"",""]
[null,null,null,null,null,null,null,null,null,null,"",""]
[null,null,null,null,null,null,null,null,null,null,"",""]
[null,null,null,null,null,null,null,null,null,null,"",""]
[null,null,null,null,null,null,null,null,null,null,"",""]
[null,null,null,null,null,null,null,null,null,null,"",""]
[null,null,null,null,null,null,null,null,null,null,"",""]
[null,null,null,null,null,null,null,null,null,null,"",""]
[null,null,null,null,null,null,null,null,null,null,"",""]
[null,null,null,null,null,null,null,null,null,null,"",""]
[null,null,null,null,null,null,null,null,null,null,"",""]
[null,null,null,null,null,null,null,null,null,null,"",""]
[null,null,null,null,null,null,null,null,null,null,"",""]
[null,null,null,null,null,null,null,null,null,null,"",""]
[null,null,null,null,null,null,null,null,null,null,"",""]
[null,null,null,null,null,null,null,null,null,null,"",""]
[null,null,null,null,null,null,null,null,null,null,"",""]
[null,null,null,null,null,null,null,null,null,null,"",""]
[null,null,null,null,null,null,null,null,null,null,"",""]
[null,null,null,null,null,null,null,null,null,null,"",""]
[null,null,null,null,null,null,null,null,null,null,"",""]
[null,null,null,null,null,null,null,null,null,null,"",""]
[null,null,null,null,null,null,null,null,null,null,"",""]
[null,null,null,null,null,null,null,null,null,null,"",""]
[null,null,null,null,null,null,null,null,null,null,"",""]
[null,null,null,null,null,null,null,null,null,null,"",""]
[null,null,null,null,null,null,null,null,null,null,"",""]
[null,null,null,null,null,null,null,null,null,null,"",""]
[null,null,null,null,null,null,null,null,null,null,"",""]
[null,null,null,null,null,null,null,null,null,null,{"$f":"IF($C1207=\"\",\"\",YEAR($C1207))","v":""},{"$f":"IF($C1207=\"\",\"\",TEXT($C1207,\"MMMM\"))","v":""}]
[null,null,null,null,null,null,null,null,null,null,"",""]
[null,null,null,null,null,null,null,null,null,null,"",""]
[null,null,null,null,null,null,null,null,null,null,"",""]
[null,null,null,null,null,null,null,null,null,null,"",""]
[null,null,null,null,null,null,null,null,null,null,"",""]
[null,null,null,null,null,null,null,null,null,null,"",""]
[null,null,null,null,null,null,null,null,null,null,"",""]
[null,null,null,null,null,null,null,null,null,null,"",""]
[null,null,null,null,null,null,null,null,null,null,"",""]
[null,null,null,null,null,null,null,null,null,null,"",""]
[null,null,null,null,null,null,null,null,null,null,"",""]
[null,null,null,null,null,null,null,null,null,null,"",""]
[null,null,null,null,null,null,null,null,null,null,"",""]
[null,null,null,null,null,null,null,null,null,null,"",""]
[null,null,null,null,null,null,null,null,null,null,"",""]
[null,null,null,null,null,null,null,null,null,null,"",""]
[null,null,null,null,null,null,null,null,null,null,"",""]
[null,null,null,null,null,null,null,null,null,null,"",""]
[null,null,null,null,null,null,null,null,null,null,"",""]
[null,null,null,null,null,null,null,null,null,null,"",""]
[null,null,null,null,null,null,null,null,null,null,"",""]
[null,null,null,null,null,null,null,null,null,null,"",""]
[null,null,null,null,null,null,null,null,null,null,"",""]
[null,null,null,null,null,null,null,null,null,null,"",""]
[null,null,null,null,null,null,null,null,null,null,"",""]
[null,null,null,null,null,null,null,null,null,null,"",""]
[null,null,null,null,null,null,null,null,null,null,"",""]
[null,null,null,null,null,null,null,null,null,null,"",""]
[null,null,null,null,null,null,null,null,null,null,"",""]
[null,null,null,null,null,null,null,null,null,null,"",""]
[null,null,null,null,null,null,null,null,null,null,"",""]
[null,null,null,null,null,null,null,null,null,null,"",""]
[null,null,null,null,null,null,null,null,null,null,"",""]
[null,null,null,null,null,null,null,null,null,null,"",""]
[null,null,null,null,null,null,null,null,null,null,"",""]
[null,null,null,null,null,null,null,null,null,null,"",""]
[null,null,null,null,null,null,null,null,null,null,"",""]
[null,null,null,null,null,null,null,null,null,null,"",""]
[null,null,null,null,null,null,null,null,null,null,"",""]
[null,null,null,null,null,null,null,null,null,null,"",""]
[null,null,null,null,null,null,null,null,null,null,"",""]
[null,null,null,null,null,null,null,null,null,null,"",""]
[null,null,null,null,null,null,null,null,null,null,"",""]
[null,null,null,null,null,null,null,null,null,null,"",""]
[null,null,null,null,null,null,null,null,null,null,"",""]
[null,null,null,null,null,null,null,null,null,null,"",""]
[null,null,null,null,null,null,null,null,null,null,"",""]
[null,null,null,null,null,null,null,null,null,null,"",""]
[null,null,null,null,null,null,null,null,null,null,"",""]
[null,null,null,null,null,null,null,null,null,null,"",""]
[null,null,null,null,null,null,null,null,null,null,"",""]
[null,null,null,null,null,null,null,null,null,null,"",""]
[null,null,null,null,null,null,null,null,null,null,"",""]
[null,null,null,null,null,null,null,null,null,null,"",""]
[null,null,null,null,null,null,null,null,null,null,"",""]
[null,null,null,null,null,null,null,null,null,null,"",""]
[null,null,null,null,null,null,null,null,null,null,"",""]
[null,null,null,null,null,null,null,null,null,null,"",""]
[null,null,null,null,null,null,null,null,null,null,"",""]
[null,null,null,null,null,null,null,null,null,null,"",""]
[null,null,null,null,null,null,null,null,null,null,"",""]
[null,null,null,null,null,null,null,null,null,null,"",""]
[null,null,null,null,null,null,null,null,null,null,"",""]
[null,null,null,null,null,null,null,null,null,null,{"$f":"IF($C1271=\"\",\"\",YEAR($C1271))","v":""},{"$f":"IF($C1271=\"\",\"\",TEXT($C1271,\"MMMM\"))","v":""}]
[null,null,null,null,null,null,null,null,null,null,"",""]
[null,null,null,null,null,null,null,null,null,null,"",""]
[null,null,null,null,null,null,null,null,null,null,"",""]
[null,null,null,null,null,null,null,null,null,null,"",""]
[null,null,null,null,null,null,null,null,null,null,"",""]
[null,null,null,null,null,null,null,null,null,null,"",""]
[null,null,null,null,null,null,null,null,null,null,"",""]
[null,null,null,null,null,null,null,null,null,null,"",""]
[null,null,null,null,null,null,null,null,null,null,"",""]
[null,null,null,null,null,null,null,null,null,null,"",""]
[null,null,null,null,null,null,null,null,null,null,"",""]
[null,null,null,null,null,null,null,null,null,null,"",""]
[null,null,null,null,null,null,null,null,null,null,"",""]
[null,null,null,null,null,null,null,null,null,null,"",""]
[null,null,null,null,null,null,null,null,null,null,"",""]
[null,null,null,null,null,null,null,null,null,null,"",""]
[null,null,null,null,null,null,null,null,null,null,"",""]
[null,null,null,null,null,null,null,null,null,null,"",""]
[null,null,null,null,null,null,null,null,null,null,"",""]
[null,null,null,null,null,null,null,null,null,null,"",""]
[null,null,null,null,null,null,null,null,null,null,"",""]
[null,null,null,null,null,null,null,null,null,null,"",""]
[null,null,null,null,null,null,null,null,null,null,"",""]
[null,null,null,null,null,null,null,null,null,null,"",""]
[null,null,null,null,null,null,null,null,null,null,"",""]
[null,null,null,null,null,null,null,null,null,null,"",""]
[null,null,null,null,null,null,null,null,null,null,"",""]
[null,null,null,null,null,null,null,null,null,null,"",""]
[null,null,null,null,null,null,null,null,null,null,"",""]
[null,null,null,null,null,null,null,null,null,null,"",""]
[null,null,null,null,null,null,null,null,null,null,"",""]
[null,null,null,null,null,null,null,null,null,null,"",""]
[null,null,null,null,null,null,null,null,null,null,"",""]
[null,null,null,null,null,null,null,null,null,null,"",""]
[null,null,null,null,null,null,null,null,null,null,"",""]
[null,null,null,null,null,null,null,null,null,null,"",""]
[null,null,null,null,null,null,null,null,null,null,"",""]
[null,null,null,null,null,null,null,null,null,null,"",""]
[null,null,null,null,null,null,null,null,null,null,"",""]
[null,null,null,null,null,null,null,null,null,null,"",""]
[null,null,null,null,null,null,null,null,null,null,"",""]
[null,null,null,null,null,null,null,null,null,null,"",""]
[null,null,null,null,null,null,null,null,null,null,"",""]
[null,null,null,null,null,null,null,null,null,null,"",""]
[null,null,null,null,null,null,null,null,null,null,"",""]
[null,null,null,null,null,null,null,null,null,null,"",""]
[null,null,null,null,null,null,null,null,null,null,"",""]
[null,null,null,null,null,null,null,null,null,null,"",""]
[null,null,null,null,null,null,null,null,null,null,"",""]
[null,null,null,null,null,null,null,null,null,null,"",""]
[null,null,null,null,null,null,null,null,null,null,"",""]
[null,null,null,null,null,null,null,null,null,null,"",""]
[null,null,null,null,null,null,null,null,null,null,"",""]
[null,null,null,null,null,null,null,null,null,null,"",""]
[null,null,null,null,null,null,null,null,null,null,"",""]
[null,null,null,null,null,null,null,null,null,null,"",""]
[null,null,null,null,null,null,null,null,null,null,"",""]
[null,null,null,null,null,null,null,null,null,null,"",""]
[null,null,null,null,null,null,null,null,null,null,"",""]
[null,null,null,null,null,null,null,null,null,null,"",""]
[null,null,null,null,null,null,null,null,null,null,"",""]
[null,null,null,null,null,null,null,null,null,null,"",""]
[null,null,null,null,null,null,null,null,null,null,"",""]
[null,null,null,null,null,null,null,null,null,null,{"$f":"IF($C1335=\"\",\"\",YEAR($C1335))","v":""},{"$f":"IF($C1335=\"\",\"\",TEXT($C1335,\"MMMM\"))","v":""}]
[null,null,null,null,null,null,null,null,null,null,"",""]
[null,null,null,null,null,null,null,null,null,null,"",""]
[null,null,null,null,null,null,null,null,null,null,"",""]
[null,null,null,null,null,null,null,null,null,null,"",""]
[null,null,null,null,null,null,null,null,null,null,"",""]
[null,null,null,null,null,null,null,null,null,null,"",""]
[null,null,null,null,null,null,null,null,null,null,"",""]
[null,null,null,null,null,null,null,null,null,null,"",""]
[null,null,null,null,null,null,null,null,null,null,"",""]
[null,null,null,null,null,null,null,null,null,null,"",""]
[null,null,null,null,null,null,null,null,null,null,"",""]
[null,null,null,null,null,null,null,null,null,null,"",""]
[null,null,null,null,null,null,null,null,null,null,"",""]
[null,null,null,null,null,null,null,null,null,null,"",""]
[null,null,null,null,null,null,null,null,null,null,"",""]
[null,null,null,null,null,null,null,null,null,null,"",""]
[null,null,null,null,null,null,null,null,null,null,"",""]
[null,null,null,null,null,null,null,null,null,null,"",""]
[null,null,null,null,null,null,null,null,null,null,"",""]
[null,null,null,null,null,null,null,null,null,null,"",""]
[null,null,null,null,null,null,null,null,null,null,"",""]
[null,null,null,null,null,null,null,null,null,null,"",""]
[null,null,null,null,null,null,null,null,null,null,"",""]
[null,null,null,null,null,null,null,null,null,null,"",""]
[null,null,null,null,null,null,null,null,null,null,"",""]
[null,null,null,null,null,null,null,null,null,null,"",""]
[null,null,null,null,null,null,null,null,null,null,"",""]
[null,null,null,null,null,null,null,null,null,null,"",""]
[null,null,null,null,null,null,null,null,null,null,"",""]
[null,null,null,null,null,null,null,null,null,null,"",""]
[null,null,null,null,null,null,null,null,null,null,"",""]
[null,null,null,null,null,null,null,null,null,null,"",""]
[null,null,null,null,null,null,null,null,null,null,"",""]
[null,null,null,null,null,null,null,null,null,null,"",""]
[null,null,null,null,null,null,null,null,null,null,"",""]
[null,null,null,null,null,null,null,null,null,null,"",""]
[null,null,null,null,null,null,null,null,null,null,"",""]
[null,null,null,null,null,null,null,null,null,null,"",""]
[null,null,null,null,null,null,null,null,null,null,"",""]
[null,null,null,null,null,null,null,null,null,null,"",""]
[null,null,null,null,null,null,null,null,null,null,"",""]
[null,null,null,null,null,null,null,null,null,null,"",""]
[null,null,null,null,null,null,null,null,null,null,"",""]
[null,null,null,null,null,null,null,null,null,null,"",""]
[null,null,null,null,null,null,null,null,null,null,"",""]
[null,null,null,null,null,null,null,null,null,null,"",""]
[null,null,null,null,null,null,null,null,null,null,"",""]
[null,null,null,null,null,null,null,null,null,null,"",""]
[null,null,null,null,null,null,null,null,null,null,"",""]
[null,null,null,null,null,null,null,null,null,null,"",""]
[null,null,null,null,null,null,null,null,null,null,"",""]
[null,null,null,null,null,null,null,null,null,null,"",""]
[null,null,null,null,null,null,null,null,null,null,"",""]
[null,null,null,null,null,null,null,null,null,null,"",""]
[null,null,null,null,null,null,null,null,null,null,"",""]
[null,null,null,null,null,null,null,null,null,null,"",""]
[null,null,null,null,null,null,null,null,null,null,"",""]
[null,null,null,null,null,null,null,null,null,null,"",""]
[null,null,null,null,null,null,null,null,null,null,"",""]
[null,null,null,null,null,null,null,null,null,null,"",""]
[null,null,null,null,null,null,null,null,null,null,"",""]
[null,null,null,null,null,null,null,null,null,null,"",""]
[null,null,null,null,null,null,null,null,null,null,"",""]
[null,null,null,null,null,null,null,null,null,null,{"$f":"IF($C1399=\"\",\"\",YEAR($C1399))","v":""},{"$f":"IF($C1399=\"\",\"\",TEXT($C1399,\"MMMM\"))","v":""}]
[null,null,null,null,null,null,null,null,null,null,"",""]
[null,null,null,null,null,null,null,null,null,null,"",""]
[null,null,null,null,null,null,null,null,null,null,"",""]
[null,null,null,null,null,null,null,null,null,null,"",""]
[null,null,null,null,null,null,null,null,null,null,"",""]
[null,null,null,null,null,null,null,null,null,null,"",""]
[null,null,null,null,null,null,null,null,null,null,"",""]
[null,null,null,null,null,null,null,null,null,null,"",""]
[null,null,null,null,null,null,null,null,null,null,"",""]
[null,null,null,null,null,null,null,null,null,null,"",""]
[null,null,null,null,null,null,null,null,null,null,"",""]
[null,null,null,null,null,null,null,null,null,null,"",""]
[null,null,null,null,null,null,null,null,null,null,"",""]
[null,null,null,null,null,null,null,null,null,null,"",""]
[null,null,null,null,null,null,null,null,null,null,"",""]
[null,null,null,null,null,null,null,null,null,null,"",""]
[null,null,null,null,null,null,null,null,null,null,"",""]
[null,null,null,null,null,null,null,null,null,null,"",""]
[null,null,null,null,null,null,null,null,null,null,"",""]
[null,null,null,null,null,null,null,null,null,null,"",""]
[null,null,null,null,null,null,null,null,null,null,"",""]
[null,null,null,null,null,null,null,null,null,null,"",""]
[null,null,null,null,null,null,null,null,null,null,"",""]
[null,null,null,null,null,null,null,null,null,null,"",""]
[null,null,null,null,null,null,null,null,null,null,"",""]
[null,null,null,null,null,null,null,null,null,null,"",""]
[null,null,null,null,null,null,null,null,null,null,"",""]
[null,null,null,null,null,null,null,null,null,null,"",""]
[null,null,null,null,null,null,null,null,null,null,"",""]
[null,null,null,null,null,null,null,null,null,null,"",""]
[null,null,null,null,null,null,null,null,null,null,"",""]
[null,null,null,null,null,null,null,null,null,null,"",""]
[null,null,null,null,null,null,null,null,null,null,"",""]
[null,null,null,null,null,null,null,null,null,null,"",""]
[null,null,null,null,null,null,null,null,null,null,"",""]
[null,null,null,null,null,null,null,null,null,null,"",""]
[null,null,null,null,null,null,null,null,null,null,"",""]
[null,null,null,null,null,null,null,null,null,null,"",""]
[null,null,null,null,null,null,null,null,null,null,"",""]
[null,null,null,null,null,null,null,null,null,null,"",""]
[null,null,null,null,null,null,null,null,null,null,"",""]
[null,null,null,null,null,null,null,null,null,null,"",""]
[null,null,null,null,null,null,null,null,null,null,"",""]
[null,null,null,null,null,null,null,null,null,null,"",""]
[null,null,null,null,null,null,null,null,null,null,"",""]
[null,null,null,null,null,null,null,null,null,null,"",""]
[null,null,null,null,null,null,null,null,null,null,"",""]
[null,null,null,null,null,null,null,null,null,null,"",""]
[null,null,null,null,null,null,null,null,null,null,"",""]
[null,null,null,null,null,null,null,null,null,null,"",""]
[null,null,null,null,null,null,null,null,null,null,"",""]
[null,null,null,null,null,null,null,null,null,null,"",""]
[null,null,null,null,null,null,null,null,null,null,"",""]
[null,null,null,null,null,null,null,null,null,null,"",""]
[null,null,null,null,null,null,null,null,null,null,"",""]
[null,null,null,null,null,null,null,null,null,null,"",""]
[null,null,null,null,null,null,null,null,null,null,"",""]
[null,null,null,null,null,null,null,null,null,null,"",""]
[null,null,null,null,null,null,null,null,null,null,"",""]
[null,null,null,null,null,null,null,null,null,null,"",""]
[null,null,null,null,null,null,null,null,null,null,"",""]
[null,null,null,null,null,null,null,null,null,null,"",""]
[null,null,null,null,null,null,null,null,null,null,"",""]
[null,null,null,null,null,null,null,null,null,null,{"$f":"IF($C1463=\"\",\"\",YEAR($C1463))","v":""},{"$f":"IF($C1463=\"\",\"\",TEXT($C1463,\"MMMM\"))","v":""}]
[null,null,null,null,null,null,null,null,null,null,"",""]
[null,null,null,null,null,null,null,null,null,null,"",""]
[null,null,null,null,null,null,null,null,null,null,"",""]
[null,null,null,null,null,null,null,null,null,null,"",""]
[null,null,null,null,null,null,null,null,null,null,"",""]
[null,null,null,null,null,null,null,null,null,null,"",""]
[null,null,null,null,null,null,null,null,null,null,"",""]
[null,null,null,null,null,null,null,null,null,null,"",""]
[null,null,null,null,null,null,null,null,null,null,"",""]
[null,null,null,null,null,null,null,null,null,null,"",""]
[null,null,null,null,null,null,null,null,null,null,"",""]
[null,null,null,null,null,null,null,null,null,null,"",""]
[null,null,null,null,null,null,null,null,null,null,"",""]
[null,null,null,null,null,null,null,null,null,null,"",""]
[null,null,null,null,null,null,null,null,null,null,"",""]
[null,null,null,null,null,null,null,null,null,null,"",""]
[null,null,null,null,null,null,null,null,null,null,"",""]
[null,null,null,null,null,null,null,null,null,null,"",""]
[null,null,null,null,null,null,null,null,null,null,"",""]
[null,null,null,null,null,null,null,null,null,null,"",""]
[null,null,null,null,null,null,null,null,null,null,"",""]
[null,null,null,null,null,null,null,null,null,null,"",""]
[null,null,null,null,null,null,null,null,null,null,"",""]
[null,null,null,null,null,null,null,null,null,null,"",""]
[null,null,null,null,null,null,null,null,null,null,"",""]
[null,null,null,null,null,null,null,null,null,null,"",""]
[null,null,null,null,null,null,null,null,null,null,"",""]
[null,null,null,null,null,null,null,null,null,null,"",""]
[null,null,null,null,null,null,null,null,null,null,"",""]
[null,null,null,null,null,null,null,null,null,null,"",""]
[null,null,null,null,null,null,null,null,null,null,"",""]
[null,null,null,null,null,null,null,null,null,null,"",""]
[null,null,null,null,null,null,null,null,null,null,"",""]
[null,null,null,null,null,null,null,null,null,null,"",""]
[null,null,null,null,null,null,null,null,null,null,"",""]
[null,null,null,null,null,null,null,null,null,null,"",""]
[null,null,null,null,null,null,null,null,null,null,"",""]
[null,null,null,null,null,null,null,null,null,null,"",""]
[null,null,null,null,null,null,null,null,null,null,"",""]
[null,null,null,null,null,null,null,null,null,null,"",""]
[null,null,null,null,null,null,null,null,null,null,"",""]
[null,null,null,null,null,null,null,null,null,null,"",""]
[null,null,null,null,null,null,null,null,null,null,"",""]
[null,null,null,null,null,null,null,null,null,null,"",""]
[null,null,null,null,null,null,null,null,null,null,"",""]
[null,null,null,null,null,null,null,null,null,null,"",""]
[null,null,null,null,null,null,null,null,null,null,"",""]
[null,null,null,null,null,null,null,null,null,null,"",""]
[null,null,null,null,null,null,null,null,null,null,"",""]
[null,null,null,null,null,null,null,null,null,null,"",""]
[null,null,null,null,null,null,null,null,null,null,"",""]
[null,null,null,null,null,null,null,null,null,null,"",""]
[null,null,null,null,null,null,null,null,null,null,"",""]
[null,null,null,null,null,null,null,null,null,null,"",""]
[null,null,null,null,null,null,null,null,null,null,"",""]
[null,null,null,null,null,null,null,null,null,null,"",""]
[null,null,null,null,null,null,null,null,null,null,"",""]
[null,null,null,null,null,null,null,null,null,null,"",""]
[null,null,null,null,null,null,null,null,null,null,"",""]
[null,null,null,null,null,null,null,null,null,null,"",""]
[null,null,null,null,null,null,null,null,null,null,"",""]
[null,null,null,null,null,null,null,null,null,null,"",""]
[null,null,null,null,null,null,null,null,null,null,"",""]
[null,null,null,null,null,null,null,null,null,null,{"$f":"IF($C1527=\"\",\"\",YEAR($C1527))","v":""},{"$f":"IF($C1527=\"\",\"\",TEXT($C1527,\"MMMM\"))","v":""}]
[null,null,null,null,null,null,null,null,null,null,"",""]
[null,null,null,null,null,null,null,null,null,null,"",""]
[null,null,null,null,null,null,null,null,null,null,"",""]
[null,null,null,null,null,null,null,null,null,null,"",""]
[null,null,null,null,null,null,null,null,null,null,"",""]
[null,null,null,null,null,null,null,null,null,null,"",""]
[null,null,null,null,null,null,null,null,null,null,"",""]
[null,null,null,null,null,null,null,null,null,null,"",""]
[null,null,null,null,null,null,null,null,null,null,"",""]
[null,null,null,null,null,null,null,null,null,null,"",""]
[null,null,null,null,null,null,null,null,null,null,"",""]
[null,null,null,null,null,null,null,null,null,null,"",""]
[null,null,null,null,null,null,null,null,null,null,"",""]
[null,null,null,null,null,null,null,null,null,null,"",""]
[null,null,null,null,null,null,null,null,null,null,"",""]
[null,null,null,null,null,null,null,null,null,null,"",""]
[null,null,null,null,null,null,null,null,null,null,"",""]
[null,null,null,null,null,null,null,null,null,null,"",""]
[null,null,null,null,null,null,null,null,null,null,"",""]
[null,null,null,null,null,null,null,null,null,null,"",""]
[null,null,null,null,null,null,null,null,null,null,"",""]
[null,null,null,null,null,null,null,null,null,null,"",""]
[null,null,null,null,null,null,null,null,null,null,"",""]
[null,null,null,null,null,null,null,null,null,null,"",""]
[null,null,null,null,null,null,null,null,null,null,"",""]
[null,null,null,null,null,null,null,null,null,null,"",""]
[null,null,null,null,null,null,null,null,null,null,"",""]
[null,null,null,null,null,null,null,null,null,null,"",""]
[null,null,null,null,null,null,null,null,null,null,"",""]
[null,null,null,null,null,null,null,null,null,null,"",""]
[null,null,null,null,null,null,null,null,null,null,"",""]
[null,null,null,null,null,null,null,null,null,null,"",""]
[null,null,null,null,null,null,null,null,null,null,"",""]
[null,null,null,null,null,null,null,null,null,null,"",""]
[null,null,null,null,null,null,null,null,null,null,"",""]
[null,null,null,null,null,null,null,null,null,null,"",""]
[null,null,null,null,null,null,null,null,null,null,"",""]
[null,null,null,null,null,null,null,null,null,null,"",""]
[null,null,null,null,null,null,null,null,null,null,"",""]
[null,null,null,null,null,null,null,null,null,null,"",""]
[null,null,null,null,null,null,null,null,null,null,"",""]
[null,null,null,null,null,null,null,null,null,null,"",""]
[null,null,null,null,null,null,null,null,null,null,"",""]
[null,null,null,null,null,null,null,null,null,null,"",""]
[null,null,null,null,null,null,null,null,null,null,"",""]
[null,null,null,null,null,null,null,null,null,null,"",""]
[null,null,null,null,null,null,null,null,null,null,"",""]
[null,null,null,null,null,null,null,null,null,null,"",""]
[null,null,null,null,null,null,null,null,null,null,"",""]
[null,null,null,null,null,null,null,null,null,null,"",""]
[null,null,null,null,null,null,null,null,null,null,"",""]
[null,null,null,null,null,null,null,null,null,null,"",""]
[null,null,null,null,null,null,null,null,null,null,"",""]
[null,null,null,null,null,null,null,null,null,null,"",""]
[null,null,null,null,null,null,null,null,null,null,"",""]
[null,null,null,null,null,null,null,null,null,null,"",""]
[null,null,null,null,null,null,null,null,null,null,"",""]
[null,null,null,null,null,null,null,null,null,null,"",""]
[null,null,null,null,null,null,null,null,null,null,"",""]
[null,null,null,null,null,null,null,null,null,null,"",""]
[null,null,null,null,null,null,null,null,null,null,"",""]
[null,null,null,null,null,null,null,null,null,null,"",""]
[null,null,null,null,null,null,null,null,null,null,"",""]
[null,null,null,null,null,null,null,null,null,null,{"$f":"IF($C1591=\"\",\"\",YEAR($C1591))","v":""},{"$f":"IF($C1591=\"\",\"\",TEXT($C1591,\"MMMM\"))","v":""}]
[null,null,null,null,null,null,null,null,null,null,"",""]
[null,null,null,null,null,null,null,null,null,null,"",""]
[null,null,null,null,null,null,null,null,null,null,"",""]
[null,null,null,null,null,null,null,null,null,null,"",""]
[null,null,null,null,null,null,null,null,null,null,"",""]
[null,null,null,null,null,null,null,null,null,null,"",""]
[null,null,null,null,null,null,null,null,null,null,"",""]
[null,null,null,null,null,null,null,null,null,null,"",""]
[null,null,null,null,null,null,null,null,null,null,"",""]
[null,null,null,null,null,null,null,null,null,null,"",""]
[null,null,null,null,null,null,null,null,null,null,"",""]
[null,null,null,null,null,null,null,null,null,null,"",""]
[null,null,null,null,null,null,null,null,null,null,"",""]
[null,null,null,null,null,null,null,null,null,null,"",""]
[null,null,null,null,null,null,null,null,null,null,"",""]
[null,null,null,null,null,null,null,null,null,null,"",""]
[null,null,null,null,null,null,null,null,null,null,"",""]
[null,null,null,null,null,null,null,null,null,null,"",""]
[null,null,null,null,null,null,null,null,null,null,"",""]
[null,null,null,null,null,null,null,null,null,null,"",""]
[null,null,null,null,null,null,null,null,null,null,"",""]
[null,null,null,null,null,null,null,null,null,null,"",""]
[null,null,null,null,null,null,null,null,null,null,"",""]
[null,null,null,null,null,null,null,null,null,null,"",""]
[null,null,null,null,null,null,null,null,null,null,"",""]
[null,null,null,null,null,null,null,null,null,null,"",""]
[null,null,null,null,null,null,null,null,null,null,"",""]
[null,null,null,null,null,null,null,null,null,null,"",""]
[null,null,null,null,null,null,null,null,null,null,"",""]
[null,null,null,null,null,null,null,null,null,null,"",""]
[null,null,null,null,null,null,null,null,null,null,"",""]
[null,null,null,null,null,null,null,null,null,null,"",""]
[null,null,null,null,null,null,null,null,null,null,"",""]
[null,null,null,null,null,null,null,null,null,null,"",""]
[null,null,null,null,null,null,null,null,null,null,"",""]
[null,null,null,null,null,null,null,null,null,null,"",""]
[null,null,null,null,null,null,null,null,null,null,"",""]
[null,null,null,null,null,null,null,null,null,null,"",""]
[null,null,null,null,null,null,null,null,null,null,"",""]
[null,null,null,null,null,null,null,null,null,null,"",""]
[null,null,null,null,null,null,null,null,null,null,"",""]
[null,null,null,null,null,null,null,null,null,null,"",""]
[null,null,null,null,null,null,null,null,null,null,"",""]
[null,null,null,null,null,null,null,null,null,null,"",""]
[null,null,null,null,null,null,null,null,null,null,"",""]
[null,null,null,null,null,null,null,null,null,null,"",""]
[null,null,null,null,null,null,null,null,null,null,"",""]
[null,null,null,null,null,null,null,null,null,null,"",""]
[null,null,null,null,null,null,null,null,null,null,"",""]
[null,null,null,null,null,null,null,null,null,null,"",""]
[null,null,null,null,null,null,null,null,null,null,"",""]
[null,null,null,null,null,null,null,null,null,null,"",""]
[null,null,null,null,null,null,null,null,null,null,"",""]
[null,null,null,null,null,null,null,null,null,null,"",""]
[null,null,null,null,null,null,null,null,null,null,"",""]
[null,null,null,null,null,null,null,null,null,null,"",""]
[null,null,null,null,null,null,null,null,null,null,"",""]
[null,null,null,null,null,null,null,null,null,null,"",""]
[null,null,null,null,null,null,null,null,null,null,"",""]
[null,null,null,null,null,null,null,null,null,null,"",""]
[null,null,null,null,null,null,null,null,null,null,"",""]
[null,null,null,null,null,null,null,null,null,null,"",""]
[null,null,null,null,null,null,null,null,null,null,"",""]
[null,null,null,null,null,null,null,null,null,null,{"$f":"IF($C1655=\"\",\"\",YEAR($C1655))","v":""},{"$f":"IF($C1655=\"\",\"\",TEXT($C1655,\"MMMM\"))","v":""}]
[null,null,null,null,null,null,null,null,null,null,"",""]
[null,null,null,null,null,null,null,null,null,null,"",""]
[null,null,null,null,null,null,null,null,null,null,"",""]
[null,null,null,null,null,null,null,null,null,null,"",""]
[null,null,null,null,null,null,null,null,null,null,"",""]
[null,null,null,null,null,null,null,null,null,null,"",""]
[null,null,null,null,null,null,null,null,null,null,"",""]
[null,null,null,null,null,null,null,null,null,null,"",""]
[null,null,null,null,null,null,null,null,null,null,"",""]
[null,null,null,null,null,null,null,null,null,null,"",""]
[null,null,null,null,null,null,null,null,null,null,"",""]
[null,null,null,null,null,null,null,null,null,null,"",""]
[null,null,null,null,null,null,null,null,null,null,"",""]
[null,null,null,null,null,null,null,null,null,null,"",""]
[null,null,null,null,null,null,null,null,null,null,"",""]
[null,null,null,null,null,null,null,null,null,null,"",""]
[null,null,null,null,null,null,null,null,null,null,"",""]
[null,null,null,null,null,null,null,null,null,null,"",""]
[null,null,null,null,null,null,null,null,null,null,"",""]
[null,null,null,null,null,null,null,null,null,null,"",""]
[null,null,null,null,null,null,null,null,null,null,"",""]
[null,null,null,null,null,null,null,null,null,null,"",""]
[null,null,null,null,null,null,null,null,null,null,"",""]
[null,null,null,null,null,null,null,null,null,null,"",""]
[null,null,null,null,null,null,null,null,null,null,"",""]
[null,null,null,null,null,null,null,null,null,null,"",""]
[null,null,null,null,null,null,null,null,null,null,"",""]
[null,null,null,null,null,null,null,null,null,null,"",""]
[null,null,null,null,null,null,null,null,null,null,"",""]
[null,null,null,null,null,null,null,null,null,null,"",""]
[null,null,null,null,null,null,null,null,null,null,"",""]
[null,null,null,null,null,null,null,null,null,null,"",""]
[null,null,null,null,null,null,null,null,null,null,"",""]
[null,null,null,null,null,null,null,null,null,null,"",""]
[null,null,null,null,null,null,null,null,null,null,"",""]
[null,null,null,null,null,null,null,null,null,null,"",""]
[null,null,null,null,null,null,null,null,null,null,"",""]
[null,null,null,null,null,null,null,null,null,null,"",""]
[null,null,null,null,null,null,null,null,null,null,"",""]
[null,null,null,null,null,null,null,null,null,null,"",""]
[null,null,null,null,null,null,null,null,null,null,"",""]
[null,null,null,null,null,null,null,null,null,null,"",""]
[null,null,null,null,null,null,null,null,null,null,"",""]
[null,null,null,null,null,null,null,null,null,null,"",""]
[null,null,null,null,null,null,null,null,null,null,"",""]
[null,null,null,null,null,null,null,null,null,null,"",""]
[null,null,null,null,null,null,null,null,null,null,"",""]
[null,null,null,null,null,null,null,null,null,null,"",""]
[null,null,null,null,null,null,null,null,null,null,"",""]
[null,null,null,null,null,null,null,null,null,null,"",""]
[null,null,null,null,null,null,null,null,null,null,"",""]
[null,null,null,null,null,null,null,null,null,null,"",""]
[null,null,null,null,null,null,null,null,null,null,"",""]
[null,null,null,null,null,null,null,null,null,null,"",""]
[null,null,null,null,null,null,null,null,null,null,"",""]
[null,null,null,null,null,null,null,null,null,null,"",""]
[null,null,null,null,null,null,null,null,null,null,"",""]
[null,null,null,null,null,null,null,null,null,null,"",""]
[null,null,null,null,null,null,null,null,null,null,"",""]
[null,null,null,null,null,null,null,null,null,null,"",""]
[null,null,null,null,null,null,null,null,null,null,"",""]
[null,null,null,null,null,null,null,null,null,null,"",""]
[null,null,null,null,null,null,null,null,null,null,"",""]
[null,null,null,null,null,null,null,null,null,null,{"$f":"IF($C1719=\"\",\"\",YEAR($C1719))","v":""},{"$f":"IF($C1719=\"\",\"\",TEXT($C1719,\"MMMM\"))","v":""}]
[null,null,null,null,null,null,null,null,null,null,"",""]
[null,null,null,null,null,null,null,null,null,null,"",""]
[null,null,null,null,null,null,null,null,null,null,"",""]
[null,null,null,null,null,null,null,null,null,null,"",""]
[null,null,null,null,null,null,null,null,null,null,"",""]
[null,null,null,null,null,null,null,null,null,null,"",""]
[null,null,null,null,null,null,null,null,null,null,"",""]
[null,null,null,null,null,null,null,null,null,null,"",""]
[null,null,null,null,null,null,null,null,null,null,"",""]
[null,null,null,null,null,null,null,null,null,null,"",""]
[null,null,null,null,null,null,null,null,null,null,"",""]
[null,null,null,null,null,null,null,null,null,null,"",""]
[null,null,null,null,null,null,null,null,null,null,"",""]
[null,null,null,null,null,null,null,null,null,null,"",""]
[null,null,null,null,null,null,null,null,null,null,"",""]
[null,null,null,null,null,null,null,null,null,null,"",""]
[null,null,null,null,null,null,null,null,null,null,"",""]
[null,null,null,null,null,null,null,null,null,null,"",""]
[null,null,null,null,null,null,null,null,null,null,"",""]
[null,null,null,null,null,null,null,null,null,null,"",""]
[null,null,null,null,null,null,null,null,null,null,"",""]
[null,null,null,null,null,null,null,null,null,null,"",""]
[null,null,null,null,null,null,null,null,null,null,"",""]
[null,null,null,null,null,null,null,null,null,null,"",""]
[null,null,null,null,null,null,null,null,null,null,"",""]
[null,null,null,null,null,null,null,null,null,null,"",""]
[null,null,null,null,null,null,null,null,null,null,"",""]
[null,null,null,null,null,null,null,null,null,null,"",""]
[null,null,null,null,null,null,null,null,null,null,"",""]
[null,null,null,null,null,null,null,null,null,null,"",""]
[null,null,null,null,null,null,null,null,null,null,"",""]
[null,null,null,null,null,null,null,null,null,null,"",""]
[null,null,null,null,null,null,null,null,null,null,"",""]
[null,null,null,null,null,null,null,null,null,null,"",""]
[null,null,null,null,null,null,null,null,null,null,"",""]
[null,null,null,null,null,null,null,null,null,null,"",""]
[null,null,null,null,null,null,null,null,null,null,"",""]
[null,null,null,null,null,null,null,null,null,null,"",""]
[null,null,null,null,null,null,null,null,null,null,"",""]
[null,null,null,null,null,null,null,null,null,null,"",""]
[null,null,null,null,null,null,null,null,null,null,"",""]
[null,null,null,null,null,null,null,null,null,null,"",""]
[null,null,null,null,null,null,null,null,null,null,"",""]
[null,null,null,null,null,null,null,null,null,null,"",""]
[null,null,null,null,null,null,null,null,null,null,"",""]
[null,null,null,null,null,null,null,null,null,null,"",""]
[null,null,null,null,null,null,null,null,null,null,"",""]
[null,null,null,null,null,null,null,null,null,null,"",""]
[null,null,null,null,null,null,null,null,null,null,"",""]
[null,null,null,null,null,null,null,null,null,null,"",""]
[null,null,null,null,null,null,null,null,null,null,"",""]
[null,null,null,null,null,null,null,null,null,null,"",""]
[null,null,null,null,null,null,null,null,null,null,"",""]
[null,null,null,null,null,null,null,null,null,null,"",""]
[null,null,null,null,null,null,null,null,null,null,"",""]
[null,null,null,null,null,null,null,null,null,null,"",""]
[null,null,null,null,null,null,null,null,null,null,"",""]
[null,null,null,null,null,null,null,null,null,null,"",""]
[null,null,null,null,null,null,null,null,null,null,"",""]
[null,null,null,null,null,null,null,null,null,null,"",""]
[null,null,null,null,null,null,null,null,null,null,"",""]
[null,null,null,null,null,null,null,null,null,null,"",""]
[null,null,null,null,null,null,null,null,null,null,"",""]
[null,null,null,null,null,null,null,null,null,null,{"$f":"IF($C1783=\"\",\"\",YEAR($C1783))","v":""},{"$f":"IF($C1783=\"\",\"\",TEXT($C1783,\"MMMM\"))","v":""}]
[null,null,null,null,null,null,null,null,null,null,"",""]
[null,null,null,null,null,null,null,null,null,null,"",""]
[null,null,null,null,null,null,null,null,null,null,"",""]
[null,null,null,null,null,null,null,null,null,null,"",""]
[null,null,null,null,null,null,null,null,null,null,"",""]
[null,null,null,null,null,null,null,null,null,null,"",""]
[null,null,null,null,null,null,null,null,null,null,"",""]
[null,null,null,null,null,null,null,null,null,null,"",""]
[null,null,null,null,null,null,null,null,null,null,"",""]
[null,null,null,null,null,null,null,null,null,null,"",""]
[null,null,null,null,null,null,null,null,null,null,"",""]
[null,null,null,null,null,null,null,null,null,null,"",""]
[null,null,null,null,null,null,null,null,null,null,"",""]
[null,null,null,null,null,null,null,null,null,null,"",""]
[null,null,null,null,null,null,null,null,null,null,"",""]
[null,null,null,null,null,null,null,null,null,null,"",""]
[null,null,null,null,null,null,null,null,null,null,"",""]
[null,null,null,null,null,null,null,null,null,null,"",""]
[null,null,null,null,null,null,null,null,null,null,"",""]
[null,null,null,null,null,null,null,null,null,null,"",""]
[null,null,null,null,null,null,null,null,null,null,"",""]
[null,null,null,null,null,null,null,null,null,null,"",""]
[null,null,null,null,null,null,null,null,null,null,"",""]
[null,null,null,null,null,null,null,null,null,null,"",""]
[null,null,null,null,null,null,null,null,null,null,"",""]
[null,null,null,null,null,null,null,null,null,null,"",""]
[null,null,null,null,null,null,null,null,null,null,"",""]
[null,null,null,null,null,null,null,null,null,null,"",""]
[null,null,null,null,null,null,null,null,null,null,"",""]
[null,null,null,null,null,null,null,null,null,null,"",""]
[null,null,null,null,null,null,null,null,null,null,"",""]
[null,null,null,null,null,null,null,null,null,null,"",""]
[null,null,null,null,null,null,null,null,null,null,"",""]
[null,null,null,null,null,null,null,null,null,null,"",""]
[null,null,null,null,null,null,null,null,null,null,"",""]
[null,null,null,null,null,null,null,null,null,null,"",""]
[null,null,null,null,null,null,null,null,null,null,"",""]
[null,null,null,null,null,null,null,null,null,null,"",""]
[null,null,null,null,null,null,null,null,null,null,"",""]
[null,null,null,null,null,null,null,null,null,null,"",""]
[null,null,null,null,null,null,null,null,null,null,"",""]
[null,null,null,null,null,null,null,null,null,null,"",""]
[null,null,null,null,null,null,null,null,null,null,"",""]
[null,null,null,null,null,null,null,null,null,null,"",""]
[null,null,null,null,null,null,null,null,null,null,"",""]
[null,null,null,null,null,null,null,null,null,null,"",""]
[null,null,null,null,null,null,null,null,null,null,"",""]
[null,null,null,null,null,null,null,null,null,null,"",""]
[null,null,null,null,null,null,null,null,null,null,"",""]
[null,null,null,null,null,null,null,null,null,null,"",""]
[null,null,null,null,null,null,null,null,null,null,"",""]
[null,null,null,null,null,null,null,null,null,null,"",""]
[null,null,null,null,null,null,null,null,null,null,"",""]
[null,null,null,null,null,null,null,null,null,null,"",""]
[null,null,null,null,null,null,null,null,null,null,"",""]
[null,null,null,null,null,null,null,null,null,null,"",""]
[null,null,null,null,null,null,null,null,null,null,"",""]
[null,null,null,null,null,null,null,null,null,null,"",""]
[null,null,null,null,null,null,null,null,null,null,"",""]
[null,null,null,null,null,null,null,null,null,null,"",""]
[null,null,null,null,null,null,null,null,null,null,"",""]
[null,null,null,null,null,null,null,null,null,null,"",""]
[null,null,null,null,null,null,null,null,null,null,"",""]
[null,null,null,null,null,null,null,null,null,null,{"$f":"IF($C1847=\"\",\"\",YEAR($C1847))","v":""},{"$f":"IF($C1847=\"\",\"\",TEXT($C1847,\"MMMM\"))","v":""}]
[null,null,null,null,null,null,null,null,null,null,"",""]
[null,null,null,null,null,null,null,null,null,null,"",""]
[null,null,null,null,null,null,null,null,null,null,"",""]
[null,null,null,null,null,null,null,null,null,null,"",""]
[null,null,null,null,null,null,null,null,null,null,"",""]
[null,null,null,null,null,null,null,null,null,null,"",""]
[null,null,null,null,null,null,null,null,null,null,"",""]
[null,null,null,null,null,null,null,null,null,null,"",""]
[null,null,null,null,null,null,null,null,null,null,"",""]
[null,null,null,null,null,null,null,null,null,null,"",""]
[null,null,null,null,null,null,null,null,null,null,"",""]
[null,null,null,null,null,null,null,null,null,null,"",""]
[null,null,null,null,null,null,null,null,null,null,"",""]
[null,null,null,null,null,null,null,null,null,null,"",""]
[null,null,null,null,null,null,null,null,null,null,"",""]
[null,null,null,null,null,null,null,null,null,null,"",""]
[null,null,null,null,null,null,null,null,null,null,"",""]
[null,null,null,null,null,null,null,null,null,null,"",""]
[null,null,null,null,null,null,null,null,null,null,"",""]
[null,null,null,null,null,null,null,null,null,null,"",""]
[null,null,null,null,null,null,null,null,null,null,"",""]
[null,null,null,null,null,null,null,null,null,null,"",""]
[null,null,null,null,null,null,null,null,null,null,"",""]
[null,null,null,null,null,null,null,null,null,null,"",""]
[null,null,null,null,null,null,null,null,null,null,"",""]
[null,null,null,null,null,null,null,null,null,null,"",""]
[null,null,null,null,null,null,null,null,null,null,"",""]
[null,null,null,null,null,null,null,null,null,null,"",""]
[null,null,null,null,null,null,null,null,null,null,"",""]
[null,null,null,null,null,null,null,null,null,null,"",""]
[null,null,null,null,null,null,null,null,null,null,"",""]
[null,null,null,null,null,null,null,null,null,null,"",""]
[null,null,null,null,null,null,null,null,null,null,"",""]
[null,null,null,null,null,null,null,null,null,null,"",""]
[null,null,null,null,null,null,null,null,null,null,"",""]
[null,null,null,null,null,null,null,null,null,null,"",""]
[null,null,null,null,null,null,null,null,null,null,"",""]
[null,null,null,null,null,null,null,null,null,null,"",""]
[null,null,null,null,null,null,null,null,null,null,"",""]
[null,null,null,null,null,null,null,null,null,null,"",""]
[null,null,null,null,null,null,null,null,null,null,"",""]
[null,null,null,null,null,null,null,null,null,null,"",""]
[null,null,null,null,null,null,null,null,null,null,"",""]
[null,null,null,null,null,null,null,null,null,null,"",""]
[null,null,null,null,null,null,null,null,null,null,"",""]
[null,null,null,null,null,null,null,null,null,null,"",""]
[null,null,null,null,null,null,null,null,null,null,"",""]
[null,null,null,null,null,null,null,null,null,null,"",""]
[null,null,null,null,null,null,null,null,null,null,"",""]
[null,null,null,null,null,null,null,null,null,null,"",""]
[null,null,null,null,null,null,null,null,null,null,"",""]
[null,null,null,null,null,null,null,null,null,null,"",""]
[null,null,null,null,null,null,null,null,null,null,"",""]
[null,null,null,null,null,null,null,null,null,null,"",""]
[null,null,null,null,null,null,null,null,null,null,"",""]
[null,null,null,null,null,null,null,null,null,null,"",""]
[null,null,null,null,null,null,null,null,null,null,"",""]
[null,null,null,null,null,null,null,null,null,null,"",""]
[null,null,null,null,null,null,null,null,null,null,"",""]
[null,null,null,null,null,null,null,null,null,null,"",""]
[null,null,null,null,null,null,null,null,null,null,"",""]
[null,null,null,null,null,null,null,null,null,null,"",""]
[null,null,null,null,null,null,null,null,null,null,"",""]
[null,null,null,null,null,null,null,null,null,null,{"$f":"IF($C1911=\"\",\"\",YEAR($C1911))","v":""},{"$f":"IF($C1911=\"\",\"\",TEXT($C1911,\"MMMM\"))","v":""}]
[null,null,null,null,null,null,null,null,null,null,"",""]
[null,null,null,null,null,null,null,null,null,null,"",""]
[null,null,null,null,null,null,null,null,null,null,"",""]
[null,null,null,null,null,null,null,null,null,null,"",""]
[null,null,null,null,null,null,null,null,null,null,"",""]
[null,null,null,null,null,null,null,null,null,null,"",""]
[null,null,null,null,null,null,null,null,null,null,"",""]
[null,null,null,null,null,null,null,null,null,null,"",""]
[null,null,null,null,null,null,null,null,null,null,"",""]
[null,null,null,null,null,null,null,null,null,null,"",""]
[null,null,null,null,null,null,null,null,null,null,"",""]
[null,null,null,null,null,null,null,null,null,null,"",""]
[null,null,null,null,null,null,null,null,null,null,"",""]
[null,null,null,null,null,null,null,null,null,null,"",""]
[null,null,null,null,null,null,null,null,null,null,"",""]
[null,null,null,null,null,null,null,null,null,null,"",""]
[null,null,null,null,null,null,null,null,null,null,"",""]
[null,null,null,null,null,null,null,null,null,null,"",""]
[null,null,null,null,null,null,null,null,null,null,"",""]
[null,null,null,null,null,null,null,null,null,null,"",""]
[null,null,null,null,null,null,null,null,null,null,"",""]
[null,null,null,null,null,null,null,null,null,null,"",""]
[null,null,null,null,null,null,null,null,null,null,"",""]
[null,null,null,null,null,null,null,null,null,null,"",""]
[null,null,null,null,null,null,null,null,null,null,"",""]
[null,null,null,null,null,null,null,null,null,null,"",""]
[null,null,null,null,null,null,null,null,null,null,"",""]
[null,null,null,null,null,null,null,null,null,null,"",""]
[null,null,null,null,null,null,null,null,null,null,"",""]
[null,null,null,null,null,null,null,null,null,null,"",""]
[null,null,null,null,null,null,null,null,null,null,"",""]
[null,null,null,null,null,null,null,null,null,null,"",""]
[null,null,null,null,null,null,null,null,null,null,"",""]
[null,null,null,null,null,null,null,null,null,null,"",""]
[null,null,null,null,null,null,null,null,null,null,"",""]
[null,null,null,null,null,null,null,null,null,null,"",""]
[null,null,null,null,null,null,null,null,null,null,"",""]
[null,null,null,null,null,null,null,null,null,null,"",""]
[null,null,null,null,null,null,null,null,null,null,"",""]
[null,null,null,null,null,null,null,null,null,null,"",""]
[null,null,null,null,null,null,null,null,null,null,"",""]
[null,null,null,null,null,null,null,null,null,null,"",""]
[null,null,null,null,null,null,null,null,null,null,"",""]
[null,null,null,null,null,null,null,null,null,null,"",""]
[null,null,null,null,null,null,null,null,null,null,"",""]
[null,null,null,null,null,null,null,null,null,null,"",""]
[null,null,null,null,null,null,null,null,null,null,"",""]
[null,null,null,null,null,null,null,null,null,null,"",""]
[null,null,null,null,null,null,null,null,null,null,"",""]
[null,null,null,null,null,null,null,null,null,null,"",""]
[null,null,null,null,null,null,null,null,null,null,"",""]
[null,null,null,null,null,null,null,null,null,null,"",""]
[null,null,null,null,null,null,null,null,null,null,"",""]
[null,null,null,null,null,null,null,null,null,null,"",""]
[null,null,null,null,null,null,null,null,null,null,"",""]
[null,null,null,null,null,null,null,null,null,null,"",""]
[null,null,null,null,null,null,null,null,null,null,"",""]
[null,null,null,null,null,null,null,null,null,null,"",""]
[null,null,null,null,null,null,null,null,null,null,"",""]
[null,null,null,null,null,null,null,null,null,null,"",""]
[null,null,null,null,null,null,null,null,null,null,"",""]
[null,null,null,null,null,null,null,null,null,null,"",""]
[null,null,null,null,null,null,null,null,null,null,"",""]
[null,null,null,null,null,null,null,null,null,null,{"$f":"IF($C1975=\"\",\"\",YEAR($C1975))","v":""},{"$f":"IF($C1975=\"\",\"\",TEXT($C1975,\"MMMM\"))","v":""}]
[null,null,null,null,null,null,null,null,null,null,"",""]
[null,null,null,null,null,null,null,null,null,null,"",""]
[null,null,null,null,null,null,null,null,null,null,"",""]
[null,null,null,null,null,null,null,null,null,null,"",""]
[null,null,null,null,null,null,null,null,null,null,"",""]
[null,null,null,null,null,null,null,null,null,null,"",""]
[null,null,null,null,null,null,null,null,null,null,"",""]
[null,null,null,null,null,null,null,null,null,null,"",""]
[null,null,null,null,null,null,null,null,null,null,"",""]
[null,null,null,null,null,null,null,null,null,null,"",""]
[null,null,null,null,null,null,null,null,null,null,"",""]
[null,null,null,null,null,null,null,null,null,null,"",""]
[null,null,null,null,null,null,null,null,null,null,"",""]
[null,null,null,null,null,null,null,null,null,null,"",""]
[null,null,null,null,null,null,null,null,null,null,"",""]
[null,null,null,null,null,null,null,null,null,null,"",""]
[null,null,null,null,null,null,null,null,null,null,"",""]
[null,null,null,null,null,null,null,null,null,null,"",""]
[null,null,null,null,null,null,null,null,null,null,"",""]
[null,null,null,null,null,null,null,null,null,null,"",""]
[null,null,null,null,null,null,null,null,null,null,"",""]
[null,null,null,null,null,null,null,null,null,null,"",""]
[null,null,null,null,null,null,null,null,null,null,"",""]
[null,null,null,null,null,null,null,null,null,null,"",""]
[null,null,null,null,null,null,null,null,null,null,"",""]
[null,null,null,null,null,null,null,null,null,null,"",""]
[null,null,null,null,null,null,null,null,null,null,"",""]
[null,null,null,null,null,null,null,null,null,null,"",""]
[null,null,null,null,null,null,null,null,null,null,"",""]
[null,null,null,null,null,null,null,null,null,null,"",""]
[null,null,null,null,null,null,null,null,null,null,"",""]
[null,null,null,null,null,null,null,null,null,null,"",""]
[null,null,null,null,null,null,null,null,null,null,"",""]
[null,null,null,null,null,null,null,null,null,null,"",""]
[null,null,null,null,null,null,null,null,null,null,"",""]
[null,null,null,null,null,null,null,null,null,null,"",""]
[null,null,null,null,null,null,null,null,null,null,"",""]
[null,null,null,null,null,null,null,null,null,null,"",""]
[null,null,null,null,null,null,null,null,null,null,"",""]
[null,null,null,null,null,null,null,null,null,null,"",""]
[null,null,null,null,null,null,null,null,null,null,"",""]
[null,null,null,null,null,null,null,null,null,null,"",""]
[null,null,null,null,null,null,null,null,null,null,"",""]
[null,null,null,null,null,null,null,null,null,null,"",""]
[null,null,null,null,null,null,null,null,null,null,"",""]
[null,null,null,null,null,null,null,null,null,null,"",""]
[null,null,null,null,null,null,null,null,null,null,"",""]
[null,null,null,null,null,null,null,null,null,null,"",""]
[null,null,null,null,null,null,null,null,null,null,"",""]
[null,null,null,null,null,null,null,null,null,null,"",""]
[null,null,null,null,null,null,null,null,null,null,"",""]
[null,null,null,null,null,null,null,null,null,null,"",""]
[null,null,null,null,null,null,null,null,null,null,"",""]
[null,null,null,null,null,null,null,null,null,null,"",""]
[null,null,null,null,null,null,null,null,null,null,"",""]
[null,null,null,null,null,null,null,null,null,null,"",""]
[null,null,null,null,null,null,null,null,null,null,"",""]
[null,null,null,null,null,null,null,null,null,null,"",""]
[null,null,null,null,null,null,null,null,null,null,"",""]
[null,null,null,null,null,null,null,null,null,null,"",""]
[null,null,null,null,null,null,null,null,null,null,"",""]
[null,null,null,null,null,null,null,null,null,null,"",""]
[null,null,null,null,null,null,null,null,null,null,"",""]
[null,null,null,null,null,null,null,null,null,null,"",""]
[null,null,null,null,null,null,null,null,null,null,"",""]
[null,null,null,null,null,null,null,null,null,null,"",""]
[null,null,null,null,null,null,null,null,null,null,"",""]
[null,null,null,null,null,null,null,null,null,null,"",""]
[null,null,null,null,null,null,null,null,null,null,"",""]
[null,null,null,null,null,null,null,null,null,null,"",""]
[null,null,null,null,null,null,null,null,null,null,"",""]
[null,null,null,null,null,null,null,null,null,null,"",""]
[null,null,null,null,null,null,null,null,null,null,"",""]
[null,null,null,null,null,null,null,null,null,null,"",""]
[null,null,null,null,null,null,null,null,null,null,"",""]
[null,null,null,null,null,null,null,null,null,null,"",""]
[null,null,null,null,null,null,null,null,null,null,"",""]
[null,null,null,null,null,null,null,null,null,null,"",""]
[null,null,null,null,null,null,null,null,null,null,"",""]
[null,null,null,null,null,null,null,null,null,null,"",""]
[null,null,null,null,null,null,null,null,null,null,"",""]
[null,null,null,null,null,null,null,null,null,null,"",""]
[null,null,null,null,null,null,null,null,null,null,"",""]
[null,null,null,null,null,null,null,null,null,null,"",""]
[null,null,null,null,null,null,null,null,null,null,"",""]
[null,null,null,null,null,null,null,null,null,null,"",""]
[null,null,null,null,null,null,null,null,null,null,"",""]
[null,null,null,null,null,null,null,null,null,null,"",""]
[null,null,null,null,null,null,null,null,null,null,"",""]
[null,null,null,null,null,null,null,null,null,null,"",""]
[null,null,null,null,null,null,null,null,null,null,"",""]
[null,null,null,null,null,null,null,null,null,null,"",""]
[null,null,null,null,null,null,null,null,null,null,"",""]
[null,null,null,null,null,null,null,null,null,null,"",""]
[null,null,null,null,null,null,null,null,null,null,"",""]
[null,null,null,null,null,null,null,null,null,null,"",""]
[null,null,null,null,null,null,null,null,null,null,"",""]
[null,null,null,null,null,null,null,null,null,null,"",""]
[null,null,null,null,null,null,null,null,null,null,"",""]
[null,null,null,null,null,null,null,null,null,null,"",""]
[null,null,null,null,null,null,null,null,null,null,"",""]
[null,null,null,null,null,null,null,null,null,null,"",""]
[null,null,null,null,null,null,null,null,null,null,"",""]
[null,null,null,null,null,null,null,null,null,null,"",""]
[null,null,null,null,null,null,null,null,null,null,"",""]
[null,null,null,null,null,null,null,null,null,null,"",""]
[null,null,null,null,null,null,null,null,null,null,"",""]
[null,null,null,null,null,null,null,null,null,null,"",""]
[null,null,null,null,null,null,null,null,null,null,"",""]
[null,null,null,null,null,null,null,null,null,null,"",""]
[null,null,null,null,null,null,null,null,null,null,"",""]
[null,null,null,null,null,null,null,null,null,null,"",""]
[null,null,null,null,null,null,null,null,null,null,"",""]
[null,null,null,null,null,null,null,null,null,null,"",""]
[null,null,null,null,null,null,null,null,null,null,"",""]
[null,null,null,null,null,null,null,null,null,null,"",""]
[null,null,null,null,null,null,null,null,null,null,"",""]
[null,null,null,null,null,null,null,null,null,null,"",""]
[null,null,null,null,null,null,null,null,null,null,"",""]
[null,null,null,null,null,null,null,null,null,null,"",""]
[null,null,null,null,null,null,null,null,null,null,"",""]
[null,null,null,null,null,null,null,null,null,null,"",""]
[null,null,null,null,null,null,null,null,null,null,"",""]
[null,null,null,null,null,null,null,null,null,null,"",""]
[null,null,null,null,null,null,null,null,null,null,{"$f":"IF($C2871=\"\",\"\",YEAR($C2871))","v":""},{"$f":"IF($C2871=\"\",\"\",TEXT($C2871,\"MMMM\"))","v":""}]
[null,null,null,null,null,null,null,null,null,null,"",""]
[null,null,null,null,null,null,null,null,null,null,"",""]
[null,null,null,null,null,null,null,null,null,null,"",""]
[null,null,null,null,null,null,null,null,null,null,"",""]
[null,null,null,null,null,null,null,null,null,null,"",""]
[null,null,null,null,null,null,null,null,null,null,"",""]
[null,null,null,null,null,null,null,null,null,null,"",""]
[null,null,null,null,null,null,null,null,null,null,"",""]
[null,null,null,null,null,null,null,null,null,null,"",""]
[null,null,null,null,null,null,null,null,null,null,"",""]
[null,null,null,null,null,null,null,null,null,null,"",""]
[null,null,null,null,null,null,null,null,null,null,"",""]
[null,null,null,null,null,null,null,null,null,null,"",""]
[null,null,null,null,null,null,null,null,null,null,"",""]
[null,null,null,null,null,null,null,null,null,null,{"$f":"IF($C2999=\"\",\"\",YEAR($C2999))","v":""},{"$f":"IF($C2999=\"\",\"\",TEXT($C2999,\"MMMM\"))","v":""}]
[null,null,null,null,null,null,null,null,null,null,"",""]
[null,null,null,null,null,null,null,null,null,null,"",""]
[null,null,null,null,null,null,null,null,null,null,"",""]
[null,null,null,null,null,null,null,null,null,null,"",""]
[null,null,null,null,null,null,null,null,null,null,"",""]
[null,null,null,null,null,null,null,null,null,null,"",""]
[null,null,null,null,null,null,null,null,null,null,"",""]
[null,null,null,null,null,null,null,null,null,null,"",""]
[null,null,null,null,null,null,null,null,null,null,"",""]
[null,null,null,null,null,null,null,null,null,null,"",""]
[null,null,null,null,null,null,null,null,null,null,"",""]
[null,null,null,null,null,null,null,null,null,null,"",""]
[null,null,null,null,null,null,null,null,null,null,"",""]
[null,null,null,null,null,null,null,null,null,null,"",""]
[null,null,null,null,null,null,null,null,null,null,"",""]
[null,null,null,null,null,null,null,null,null,null,"",""]
[null,null,null,null,null,null,null,null,null,null,"",""]
[null,null,null,null,null,null,null,null,null,null,"",""]
[null,null,null,null,null,null,null,null,null,null,"",""]
[null,null,null,null,null,null,null,null,null,null,"",""]
[null,null,null,null,null,null,null,null,null,null,"",""]
[null,null,null,null,null,null,null,null,null,null,"",""]
[null,null,null,null,null,null,null,null,null,null,"",""]
[null,null,null,null,null,null,null,null,null,null,"",""]
[null,null,null,null,null,null,null,null,null,null,"",""]
[null,null,null,null,null,null,null,null,null,null,"",""]
[null,null,null,null,null,null,null,null,null,null,"",""]
[null,null,null,null,null,null,null,null,null,null,"",""]
[null,null,null,null,null,null,null,null,null,null,"",""]
[null,null,null,null,null,null,null,null,null,null,"",""]
[null,null,null,null,null,null,null,null,null,null,"",""]
[null,null,null,null,null,null,null,null,null,null,"",""]
[null,null,null,null,null,null,null,null,null,null,"",""]
[null,null,null,null,null,null,null,null,null,null,"",""]
[null,null,null,null,null,null,null,null,null,null,"",""]
[null,null,null,null,null,null,null,null,null,null,{"$f":"IF($C3319=\"\",\"\",YEAR($C3319))","v":""},{"$f":"IF($C3319=\"\",\"\",TEXT($C3319,\"MMMM\"))","v":""}]
[null,null,null,null,null,null,null,null,null,null,"",""]
[null,null,null,null,null,null,null,null,null,null,"",""]
[null,null,null,null,null,null,null,null,null,null,"",""]
[null,null,null,null,null,null,null,null,null,null,"",""]
[null,null,null,null,null,null,null,null,null,null,"",""]
[null,null,null,null,null,null,null,null,null,null,"",""]
[null,null,null,null,null,null,null,null,null,null,"",""]
[null,null,null,null,null,null,null,null,null,null,"",""]
[null,null,null,null,null,null,null,null,null,null,"",""]
[null,null,null,null,null,null,null,null,null,null,"",""]
[null,null,null,null,null,null,null,null,null,null,"",""]
[null,null,null,null,null,null,null,null,null,null,"",""]
[null,null,null,null,null,null,null,null,null,null,"",""]
[null,null,null,null,null,null,null,null,null,null,"",""]
[null,null,null,null,null,null,null,null,null,null,"",""]
[null,null,null,null,null,null,null,null,null,null,"",""]
[null,null,null,null,null,null,null,null,null,null,"",""]
[null,null,null,null,null,null,null,null,null,null,"",""]
[null,null,null,null,null,null,null,null,null,null,"",""]
[null,null,null,null,null,null,null,null,null,null,"",""]
[null,null,null,null,null,null,null,null,null,null,"",""]
[null,null,null,null,null,null,null,null,null,null,"",""]
[null,null,null,null,null,null,null,null,null,null,"",""]
[null,null,null,null,null,null,null,null,null,null,"",""]
[null,null,null,null,null,null,null,null,null,null,"",""]
[null,null,null,null,null,null,null,null,null,null,"",""]
[null,null,null,null,null,null,null,null,null,null,"",""]
[null,null,null,null,null,null,null,null,null,null,"",""]
[null,null,null,null,null,null,null,null,null,null,"",""]
[null,null,null,null,null,null,null,null,null,null,"",""]
[null,null,null,null,null,null,null,null,null,null,"",""]
[null,null,null,null,null,null,null,null,null,null,"",""]
[null,null,null,null,null,null,null,null,null,null,"",""]
[null,null,null,null,null,null,null,null,null,null,"",""]
[null,null,null,null,null,null,null,null,null,null,"",""]
[null,null,null,null,null,null,null,null,null,null,"",""]
[null,null,null,null,null,null,null,null,null,null,"",""]
[null,null,null,null,null,null,null,null,null,null,"",""]
[null,null,null,null,null,null,null,null,null,null,"",""]
[null,null,null,null,null,null,null,null,null,null,"",""]
[null,null,null,null,null,null,null,null,null,null,"",""]
[null,null,null,null,null,null,null,null,null,null,"",""]
[null,null,null,null,null,null,null,null,null,null,"",""]
[null,null,null,null,null,null,null,null,null,null,"",""]
[null,null,null,null,null,null,null,null,null,null,"",""]
[null,null,null,null,null,null,null,null,null,null,"",""]
[null,null,null,null,null,null,null,null,null,null,"",""]
[null,null,null,null,null,null,null,null,null,null,"",""]
[null,null,null,null,null,null,null,null,null,null,"",""]
[null,null,null,null,null,null,null,null,null,null,"",""]
[null,null,null,null,null,null,null,null,null,null,"",""]
[null,null,null,null,null,null,null,null,null,null,"",""]
[null,null,null,null,null,null,null,null,null,null,"",""]
[null,null,null,null,null,null,null,null,null,null,"",""]
[null,null,null,null,null,null,null,null,null,null,"",""]
[null,null,null,null,null,null,null,null,null,null,"",""]
[null,null,null,null,null,null,null,null,null,null,"",""]
[null,null,null,null,null,null,null,null,null,null,"",""]
[null,null,null,null,null,null,null,null,null,null,"",""]
[null,null,null,null,null,null,null,null,null,null,"",""]
[null,null,null,null,null,null,null,null,null,null,"",""]
[null,null,null,null,null,null,null,null,null,null,"",""]
[null,null,null,null,null,null,null,null,null,null,"",""]
[null,null,null,null,null,null,null,null,null,null,"",""]
[null,null,null,null,null,null,null,null,null,null,"",""]
[null,null,null,null,null,null,null,null,null,null,"",""]
[null,null,null,null,null,null,null,null,null,null,"",""]
[null,null,null,null,null,null,null,null,null,null,"",""]
[null,null,null,null,null,null,null,null,null,null,"",""]
[null,null,null,null,null,null,null,null,null,null,"",""]
[null,null,null,null,null,null,null,null,null,null,"",""]
[null,null,null,null,null,null,null,null,null,null,"",""]
[null,null,null,null,null,null,null,null,null,null,"",""]
[null,null,null,null,null,null,null,null,null,null,"",""]
[null,null,null,null,null,null,null,null,null,null,"",""]
[null,null,null,null,null,null,null,null,null,null,"",""]
[null,null,null,null,null,null,null,null,null,null,"",""]
[null,null,null,null,null,null,null,null,null,null,"",""]
[null,null,null,null,null,null,null,null,null,null,"",""]
[null,null,null,null,null,null,null,null,null,null,"",""]
[null,null,null,null,null,null,null,null,null,null,"",""]
[null,null,null,null,null,null,null,null,null,null,"",""]
[null,null,null,null,null,null,null,null,null,null,"",""]
[null,null,null,null,null,null,null,null,null,null,"",""]
[null,null,null,null,null,null,null,null,null,null,"",""]
[null,null,null,null,null,null,null,null,null,null,"",""]
[null,null,null,null,null,null,null,null,null,null,"",""]
[null,null,null,null,null,null,null,null,null,null,"",""]
[null,null,null,null,null,null,null,null,null,null,"",""]
[null,null,null,null,null,null,null,null,null,null,"",""]
[null,null,null,null,null,null,null,null,null,null,"",""]
[null,null,null,null,null,null,null,null,null,null,"",""]
[null,null,null,null,null,null,null,null,null,null,"",""]
[null,null,null,null,null,null,null,null,null,null,"",""]
[null,null,null,null,null,null,null,null,null,null,"",""]
[null,null,null,null,null,null,null,null,null,null,"",""]
[null,null,null,null,null,null,null,null,null,null,"",""]
[null,null,null,null,null,null,null,null,null,null,"",""]
[null,null,null,null,null,null,null,null,null,null,"",""]
[null,null,null,null,null,null,null,null,null,null,"",""]
[null,null,null,null,null,null,null,null,null,null,"",""]
[null,null,null,null,null,null,null,null,null,null,"",""]
[null,null,null,null,null,null,null,null,null,null,"",""]
[null,null,null,null,null,null,null,null,null,null,"",""]
[null,null,null,null,null,null,null,null,null,null,"",""]
[null,null,null,null,null,null,null,null,null,null,"",""]
[null,null,null,null,null,null,null,null,null,null,"",""]
[null,null,null,null,null,null,null,null,null,null,"",""]
[null,null,null,null,null,null,null,null,null,null,"",""]
[null,null,null,null,null,null,null,null,null,null,"",""]
[null,null,null,null,null,null,null,null,null,null,"",""]
[null,null,null,null,null,null,null,null,null,null,"",""]
[null,null,null,null,null,null,null,null,null,null,"",""]
[null,null,null,null,null,null,null,null,null,null,"",""]
[null,null,null,null,null,null,null,null,null,null,"",""]
[null,null,null,null,null,null,null,null,null,null,"",""]
[null,null,null,null,null,null,null,null,null,null,"",""]
[null,null,null,null,null,null,null,null,null,null,"",""]
[null,null,null,null,null,null,null,null,null,null,"",""]
[null,null,null,null,null,null,null,null,null,null,"",""]
[null,null,null,null,null,null,null,null,null,null,"",""]
[null,null,null,null,null,null,null,null,null,null,"",""]
[null,null,null,null,null,null,null,null,null,null,"",""]
[null,null,null,null,null,null,null,null,null,null,"",""]
[null,null,null,null,null,null,null,null,null,null,"",""]
[null,null,null,null,null,null,null,null,null,null,"",""]
[null,null,null,null,null,null,null,null,null,null,"",""]
[null,null,null,null,null,null,null,null,null,null,"",""]
[null,null,null,null,null,null,null,null,null,null,"",""]
[null,null,null,null,null,null,null,null,null,null,"",""]
[null,null,null,null,null,null,null,null,null,null,"",""]
[null,null,null,null,null,null,null,null,null,null,"",""]
[null,null,null,null,null,null,null,null,null,null,"",""]
[null,null,null,null,null,null,null,null,null,null,"",""]
[null,null,null,null,null,null,null,null,null,null,"",""]
[null,null,null,null,null,null,null,null,null,null,"",""]
[null,null,null,null,null,null,null,null,null,null,"",""]
[null,null,null,null,null,null,null,null,null,null,"",""]
[null,null,null,null,null,null,null,null,null,null,"",""]
[null,null,null,null,null,null,null,null,null,null,"",""]
[null,null,null,null,null,null,null,null,null,null,"",""]
[null,null,null,null,null,null,null,null,null,null,"",""]
[null,null,null,null,null,null,null,null,null,null,"",""]
[null,null,null,null,null,null,null,null,null,null,"",""]
[null,null,null,null,null,null,null,null,null,null,"",""]
[null,null,null,null,null,null,null,null,null,null,"",""]
[null,null,null,null,null,null,null,null,null,null,{"$f":"IF($C4599=\"\",\"\",YEAR($C4599))","v":""},{"$f":"IF($C4599=\"\",\"\",TEXT($C4599,\"MMMM\"))","v":""}]
[null,null,null,null,null,null,null,null,null,null,"",""]
[null,null,null,null,null,null,null,null,null,null,"",""]
[null,null,null,null,null,null,null,null,null,null,"",""]
[null,null,null,null,null,null,null,null,null,null,"",""]
[null,null,null,null,null,null,null,null,null,null,"",""]
[null,null,null,null,null,null,null,null,null,null,"",""]
[null,null,null,null,null,null,null,null,null,null,"",""]
[null,null,null,null,null,null,null,null,null,null,"",""]
[null,null,null,null,null,null,null,null,null,null,"",""]
[null,null,null,null,null,null,null,null,null,null,"",""]
[null,null,null,null,null,null,null,null,null,null,"",""]
[null,null,null,null,null,null,null,null,null,null,"",""]
[null,null,null,null,null,null,null,null,null,null,"",""]
[null,null,null,null,null,null,null,null,null,null,"",""]
[null,null,null,null,null,null,null,null,null,null,"",""]
[null,null,null,null,null,null,null,null,null,null,"",""]
[null,null,null,null,null,null,null,null,null,null,"",""]
[null,null,null,null,null,null,null,null,null,null,"",""]
[null,null,null,null,null,null,null,null,null,null,"",""]
[null,null,null,null,null,null,null,null,null,null,"",""]
[null,null,null,null,null,null,null,null,null,null,"",""]
[null,null,null,null,null,null,null,null,null,null,{"$f":"IF($C4791=\"\",\"\",YEAR($C4791))","v":""},{"$f":"IF($C4791=\"\",\"\",TEXT($C4791,\"MMMM\"))","v":""}]
[null,null,null,null,null,null,null,null,null,null,"",""]
[null,null,null,null,null,null,null,null,null,null,"",""]
[null,null,null,null,null,null,null,null,null,null,"",""]
[null,null,null,null,null,null,null,null,null,null,"",""]
[null,null,null,null,null,null,null,null,null,null,"",""]
[null,null,null,null,null,null,null,null,null,null,"",""]
[null,null,null,null,null,null,null,null,null,null,"",""]
[null,null,null,null,null,null,null,null,null,null,"",""]
[null,null,null,null,null,null,null,null,null,null,"",""]
[null,null,null,null,null,null,null,null,null,null,"",""]
[null,null,null,null,null,null,null,null,null,null,"",""]
[null,null,null,null,null,null,null,null,null,null,"",""]
[null,null,null,null,null,null,null,null,null,null,"",""]
[null,null,null,null,null,null,null,null,null,null,"",""]
[null,null,null,null,null,null,null,null,null,null,"",""]
[null,null,null,null,null,null,null,null,null,null,"",""]
[null,null,null,null,null,null,null,null,null,null,"",""]
[null,null,null,null,null,null,null,null,null,null,"",""]
[null,null,null,null,null,null,null,null,null,null,"",""]
[null,null,null,null,null,null,null,null,null,null,"",""]
[null,null,null,null,null,null,null,null,null,null,"",""]
[null,null,null,null,null,null,null,null,null,null,"",""]
[null,null,null,null,null,null,null,null,null,null,"",""]
[null,null,null,null,null,null,null,null,null,null,"",""]
[null,null,null,null,null,null,null,null,null,null,"",""]
[null,null,null,null,null,null,null,null,null,null,"",""]
[null,null,null,null,null,null,null,null,null,null,"",""]
[null,null,null,null,null,null,null,null,null,null,"",""]
[null,null,null,null,null,null,null,null,null,null,"",""]
[null,null,null,null,null,null,null,null,null,null,"",""]
[null,null,null,null,null,null,null,null,null,null,"",""]
[null,null,null,null,null,null,null,null,null,null,"",""]
[null,null,null,null,null,null,null,null,null,null,"",""]
[null,null,null,null,null,null,null,null,null,null,"",""]
[null,null,null,null,null,null,null,null,null,null,"",""]
[null,null,null,null,null,null,null,null,null,null,"",""]
[null,null,null,null,null,null,null,null,null,null,"",""]
[null,null,null,null,null,null,null,null,null,null,"",""]
[null,null,null,null,null,null,null,null,null,null,"",""]
[null,null,null,null,null,null,null,null,null,null,"",""]
[null,null,null,null,null,null,null,null,null,null,"",""]
[null,null,null,null,null,null,null,null,null,null,"",""]
[null,null,null,null,null,null,null,null,null,null,"",""]
[null,null,null,null,null,null,null,null,null,null,"",""]
[null,null,null,null,null,null,null,null,null,null,"",""]
[null,null,null,null,null,null,null,null,null,null,"",""]
[null,null,null,null,null,null,null,null,null,null,"",""]
[null,null,null,null,null,null,null,null,null,null,"",""]
[null,null,null,null,null,null,null,null,null,null,"",""]
[null,null,null,null,null,null,null,null,null,null,"",""]
[null,null,null,null,null,null,null,null,null,null,"",""]
[null,null,null,null,null,null,null,null,null,null,"",""]
[null,null,null,null,null,null,null,null,null,null,"",""]
[null,null,null,null,null,null,null,null,null,null,"",""]
[null,null,null,null,null,null,null,null,null,null,"",""]
[null,null,null,null,null,null,null,null,null,null,"",""]
[null,null,null,null,null,null,null,null,null,null,"",""]
[null,null,null,null,null,null,null,null,null,null,{"$f":"IF($C5303=\"\",\"\",YEAR($C5303))","v":""},{"$f":"IF($C5303=\"\",\"\",TEXT($C5303,\"MMMM\"))","v":""}]
[null,null,null,null,null,null,null,null,null,null,"",""]
[null,null,null,null,null,null,null,null,null,null,"",""]
[null,null,null,null,null,null,null,null,null,null,"",""]
[null,null,null,null,null,null,null,null,null,null,"",""]
[null,null,null,null,null,null,null,null,null,null,"",""]
[null,null,null,null,null,null,null,null,null,null,"",""]
[null,null,null,null,null,null,null,null,null,null,"",""]
[null,null,null,null,null,null,null,null,null,null,"",""]
[null,null,null,null,null,null,null,null,null,null,"",""]
[null,null,null,null,null,null,null,null,null,null,"",""]
[null,null,null,null,null,null,null,null,null,null,"",""]
[null,null,null,null,null,null,null,null,null,null,"",""]
[null,null,null,null,null,null,null,null,null,null,"",""]
[null,null,null,null,null,null,null,null,null,null,"",""]
[null,null,null,null,null,null,null,null,null,null,"",""]
[null,null,null,null,null,null,null,null,null,null,"",""]
[null,null,null,null,null,null,null,null,null,null,"",""]
[null,null,null,null,null,null,null,null,null,null,"",""]
[null,null,null,null,null,null,null,null,null,null,"",""]
[null,null,null,null,null,null,null,null,null,null,"",""]
[null,null,null,null,null,null,null,null,null,null,"",""]
[null,null,null,null,null,null,null,null,null,null,"",""]
[null,null,null,null,null,null,null,null,null,null,"",""]
[null,null,null,null,null,null,null,null,null,null,"",""]
[null,null,null,null,null,null,null,null,null,null,"",""]
[null,null,null,null,null,null,null,null,null,null,"",""]
[null,null,null,null,null,null,null,null,null,null,"",""]
[null,null,null,null,null,null,null,null,null,null,"",""]
[null,null,null,null,null,null,null,null,null,null,"",""]
[null,null,null,null,null,null,null,null,null,null,"",""]
[null,null,null,null,null,null,null,null,null,null,"",""]
[null,null,null,null,null,null,null,null,null,null,"",""]
[null,null,null,null,null,null,null,null,null,null,"",""]
[null,null,null,null,null,null,null,null,null,null,"",""]
[null,null,null,null,null,null,null,null,null,null,"",""]
[null,null,null,null,null,null,null,null,null,null,"",""]
[null,null,null,null,null,null,null,null,null,null,"",""]
[null,null,null,null,null,null,null,null,null,null,"",""]
[null,null,null,null,null,null,null,null,null,null,"",""]
[null,null,null,null,null,null,null,null,null,null,"",""]
[null,null,null,null,null,null,null,null,null,null,"",""]
[null,null,null,null,null,null,null,null,null,null,"",""]
[null,null,null,null,null,null,null,null,null,null,"",""]
[null,null,null,null,null,null,null,null,null,null,{"$f":"IF($C5687=\"\",\"\",YEAR($C5687))","v":""},{"$f":"IF($C5687=\"\",\"\",TEXT($C5687,\"MMMM\"))","v":""}]
[null,null,null,null,null,null,null,null,null,null,"",""]
[null,null,null,null,null,null,null,null,null,null,"",""]
[null,null,null,null,null,null,null,null,null,null,"",""]
[null,null,null,null,null,null,null,null,null,null,"",""]
[null,null,null,null,null,null,null,null,null,null,"",""]
[null,null,null,null,null,null,null,null,null,null,"",""]
[null,null,null,null,null,null,null,null,null,null,"",""]
[null,null,null,null,null,null,null,null,null,null,"",""]
[null,null,null,null,null,null,null,null,null,null,"",""]
[null,null,null,null,null,null,null,null,null,null,"",""]
[null,null,null,null,null,null,null,null,null,null,"",""]
[null,null,null,null,null,null,null,null,null,null,"",""]
[null,null,null,null,null,null,null,null,null,null,"",""]
[null,null,null,null,null,null,null,null,null,null,"",""]
[null,null,null,null,null,null,null,null,null,null,"",""]
[null,null,null,null,null,null,null,null,null,null,"",""]
[null,null,null,null,null,null,null,null,null,null,"",""]
[null,null,null,null,null,null,null,null,null,null,"",""]
[null,null,null,null,null,null,null,null,null,null,"",""]
[null,null,null,null,null,null,null,null,null,null,"",""]
[null,null,null,null,null,null,null,null,null,null,"",""]
[null,null,null,null,null,null,null,null,null,null,"",""]
[null,null,null,null,null,null,null,null,null,null,"",""]
[null,null,null,null,null,null,null,null,null,null,"",""]
[null,null,null,null,null,null,null,null,null,null,"",""]
[null,null,null,null,null,null,null,null,null,null,"",""]
[null,null,null,null,null,null,null,null,null,null,"",""]
[null,null,null,null,null,null,null,null,null,null,"",""]
[null,null,null,null,null,null,null,null,null,null,"",""]
[null,null,null,null,null,null,null,null,null,null,"",""]
[null,null,null,null,null,null,null,null,null,null,"",""]
[null,null,null,null,null,null,null,null,null,null,"",""]
[null,null,null,null,null,null,null,null,null,null,"",""]
[null,null,null,null,null,null,null,null,null,null,"",""]
[null,null,null,null,null,null,null,null,null,null,"",""]
[null,null,null,null,null,null,null,null,null,null,"",""]
[null,null,null,null,null,null,null,null,null,null,"",""]
[null,null,null,null,null,null,null,null,null,null,"",""]
[null,null,null,null,null,null,null,null,null,null,"",""]
[null,null,null,null,null,null,null,null,null,null,"",""]
[null,null,null,null,null,null,null,null,null,null,"",""]
[null,null,null,null,null,null,null,null,null,null,"",""]
[null,null,null,null,null,null,null,null,null,null,"",""]
[null,null,null,null,null,null,null,null,null,null,"",""]
[null,null,null,null,null,null,null,null,null,null,"",""]
[null,null,null,null,null,null,null,null,null,null,"",""]
[null,null,null,null,null,null,null,null,null,null,"",""]
[null,null,null,null,null,null,null,null,null,null,"",""]
[null,null,null,null,null,null,null,null,null,null,"",""]
[null,null,null,null,null,null,null,null,null,null,"",""]
[null,null,null,null,null,null,null,null,null,null,"",""]
[null,null,null,null,null,null,null,null,null,null,"",""]
[null,null,null,null,null,null,null,null,null,null,"",""]
[null,null,null,null,null,null,null,null,null,null,"",""]
[null,null,null,null,null,null,null,null,null,null,"",""]
[null,null,null,null,null,null,null,null,null,null,"",""]
[null,null,null,null,null,null,null,null,null,null,"",""]
[null,null,null,null,null,null,null,null,null,null,"",""]
[null,null,null,null,null,null,null,null,null,null,"",""]
[null,null,null,null,null,null,null,null,null,null,"",""]
[null,null,null,null,null,null,null,null,null,null,"",""]
[null,null,null,null,null,null,null,null,null,null,"",""]
[null,null,null,null,null,null,null,null,null,null,"",""]
[null,null,null,null,null,null,null,null,null,null,"",""]
[null,null,null,null,null,null,null,null,null,null,"",""]
[null,null,null,null,null,null,null,null,null,null,"",""]
[null,null,null,null,null,null,null,null,null,null,"",""]
[null,null,null,null,null,null,null,null,null,null,"",""]
[null,null,null,null,null,null,null,null,null,null,"",""]
[null,null,null,null,null,null,null,null,null,null,"",""]
[null,null,null,null,null,null,null,null,null,null,"",""]
[null,null,null,null,null,null,null,null,null,null,"",""]
[null,null,null,null,null,null,null,null,null,null,"",""]
[null,null,null,null,null,null,null,null,null,null,"",""]
[null,null,null,null,null,null,null,null,null,null,"",""]
[null,null,null,null,null,null,null,null,null,null,"",""]
[null,null,null,null,null,null,null,null,null,null,"",""]
[null,null,null,null,null,null,null,null,null,null,"",""]
[null,null,null,null,null,null,null,null,null,null,"",""]
[null,null,null,null,null,null,null,null,null,null,"",""]
[null,null,null,null,null,null,null,null,null,null,"",""]
[null,null,null,null,null,null,null,null,null,null,"",""]
[null,null,null,null,null,null,null,null,null,null,"",""]
[null,null,null,null,null,null,null,null,null,null,"",""]
[null,null,null,null,null,null,null,null,null,null,"",""]
[null,null,null,null,null,null,null,null,null,null,"",""]
[null,null,null,null,null,null,null,null,null,null,"",""]
[null,null,null,null,null,null,null,null,null,null,"",""]
[null,null,null,null,null,null,null,null,null,null,"",""]
[null,null,null,null,null,null,null,null,null,null,"",""]
[null,null,null,null,null,null,null,null,null,null,"",""]
[null,null,null,null,null,null,null,null,null,null,"",""]
[null,null,null,null,null,null,null,null,null,null,"",""]
[null,null,null,null,null,null,null,null,null,null,"",""]
[null,null,null,null,null,null,null,null,null,null,"",""]
[null,null,null,null,null,null,null,null,null,null,"",""]
[null,null,null,null,null,null,null,null,null,null,"",""]
[null,null,null,null,null,null,null,null,null,null,"",""]
[null,null,null,null,null,null,null,null,null,null,"",""]
[null,null,null,null,null,null,null,null,null,null,"",""]
[null,null,null,null,null,null,null,null,null,null,"",""]
[null,null,null,null,null,null,null,null,null,null,"",""]
[null,null,null,null,null,null,null,null,null,null,"",""]
[null,null,null,null,null,null,null,null,null,null,"",""]
[null,null,null,null,null,null,null,null,null,null,"",""]
[null,null,null,null,null,null,null,null,null,null,"",""]
[null,null,null,null,null,null,null,null,null,null,"",""]
[null,null,null,null,null,null,null,null,null,null,"",""]
[null,null,null,null,null,null,null,null,null,null,"",""]
[null,null,null,null,null,null,null,null,null,null,"",""]
[null,null,null,null,null,null,null,null,null,null,"",""]
[null,null,null,null,null,null,null,null,null,null,"",""]
[null,null,null,null,null,null,null,null,null,null,"",""]
[null,null,null,null,null,null,null,null,null,null,"",""]
[null,null,null,null,null,null,null,null,null,null,"",""]
[null,null,null,null,null,null,null,null,null,null,"",""]
[null,null,null,null,null,null,null,null,null,null,"",""]
[null,null,null,null,null,null,null,null,null,null,"",""]
[null,null,null,null,null,null,null,null,null,null,"",""]
[null,null,null,null,null,null,null,null,null,null,"",""]
[null,null,null,null,null,null,null,null,null,null,"",""]
[null,null,null,null,null,null,null,null,null,null,"",""]
[null,null,null,null,null,null,null,null,null,null,"",""]
[null,null,null,null,null,null,null,null,null,null,"",""]
[null,null,null,null,null,null,null,null,null,null,"",""]
[null,null,null,null,null,null,null,null,null,null,"",""]
[null,null,null,null,null,null,null,null,null,null,"",""]
[null,null,null,null,null,null,null,null,null,null,"",""]
[null,null,null,null,null,null,null,null,null,null,"",""]
[null,null,null,null,null,null,null,null,null,null,"",""]
[null,null,null,null,null,null,null,null,null,null,"",""]
[null,null,null,null,null,null,null,null,null,null,"",""]
[null,null,null,null,null,null,null,null,null,null,"",""]
[null,null,null,null,null,null,null,null,null,null,"",""]
[null,null,null,null,null,null,null,null,null,null,"",""]
[null,null,null,null,null,null,null,null,null,null,"",""]
[null,null,null,null,null,null,null,null,null,null,"",""]
[null,null,null,null,null,null,null,null,null,null,"",""]
[null,null,null,null,null,null,null,null,null,null,"",""]
[null,null,null,null,null,null,null,null,null,null,"",""]
[null,null,null,null,null,null,null,null,null,null,"",""]
[null,null,null,null,null,null,null,null,null,null,"",""]
[null,null,null,null,null,null,null,null,null,null,"",""]
[null,null,null,null,null,null,null,null,null,null,"",""]
[null,null,null,null,null,null,null,null,null,null,"",""]
[null,null,null,null,null,null,null,null,null,null,"",""]
[null,null,null,null,null,null,null,null,null,null,{"$f":"IF($C6967=\"\",\"\",YEAR($C6967))","v":""},{"$f":"IF($C6967=\"\",\"\",TEXT($C6967,\"MMMM\"))","v":""}]
[null,null,null,null,null,null,null,null,null,null,"",""]
[null,null,null,null,null,null,null,null,null,null,"",""]
[null,null,null,null,null,null,null,null,null,null,"",""]
[null,null,null,null,null,null,null,null,null,null,"",""]
[null,null,null,null,null,null,null,null,null,null,"",""]
[null,null,null,null,null,null,null,null,null,null,"",""]
[null,null,null,null,null,null,null,null,null,null,"",""]
[null,null,null,null,null,null,null,null,null,null,"",""]
[null,null,null,null,null,null,null,null,null,null,"",""]
[null,null,null,null,null,null,null,null,null,null,"",""]
[null,null,null,null,null,null,null,null,null,null,"",""]
[null,null,null,null,null,null,null,null,null,null,"",""]
[null,null,null,null,null,null,null,null,null,null,"",""]
[null,null,null,null,null,null,null,null,null,null,{"$f":"IF($C7095=\"\",\"\",YEAR($C7095))","v":""},{"$f":"IF($C7095=\"\",\"\",TEXT($C7095,\"MMMM\"))","v":""}]
[null,null,null,null,null,null,null,null,null,null,"",""]
[null,null,null,null,null,null,null,null,null,null,"",""]
[null,null,null,null,null,null,null,null,null,null,"",""]
[null,null,null,null,null,null,null,null,null,null,"",""]
[null,null,null,null,null,null,null,null,null,null,"",""]
[null,null,null,null,null,null,null,null,null,null,"",""]
[null,null,null,null,null,null,null,null,null,null,"",""]
[null,null,null,null,null,null,null,null,null,null,"",""]
[null,null,null,null,null,null,null,null,null,null,"",""]
[null,null,null,null,null,null,null,null,null,null,"",""]
[null,null,null,null,null,null,null,null,null,null,"",""]
[null,null,null,null,null,null,null,null,null,null,"",""]
[null,null,null,null,null,null,null,null,null,null,"",""]
[null,null,null,null,null,null,null,null,null,null,"",""]
[null,null,null,null,null,null,null,null,null,null,{"$f":"IF($C7223=\"\",\"\",YEAR($C7223))","v":""},{"$f":"IF($C7223=\"\",\"\",TEXT($C7223,\"MMMM\"))","v":""}]
[null,null,null,null,null,null,null,null,null,null,"",""]
[null,null,null,null,null,null,null,null,null,null,"",""]
[null,null,null,null,null,null,null,null,null,null,"",""]
[null,null,null,null,null,null,null,null,null,null,"",""]
[null,null,null,null,null,null,null,null,null,null,"",""]
[null,null,null,null,null,null,null,null,null,null,"",""]
[null,null,null,null,null,null,null,null,null,null,"",""]
[null,null,null,null,null,null,null,null,null,null,"",""]
[null,null,null,null,null,null,null,null,null,null,"",""]
[null,null,null,null,null,null,null,null,null,null,"",""]
[null,null,null,null,null,null,null,null,null,null,"",""]
[null,null,null,null,null,null,null,null,null,null,"",""]
[null,null,null,null,null,null,null,null,null,null,"",""]
[null,null,null,null,null,null,null,null,null,null,"",""]
[null,null,null,null,null,null,null,null,null,null,"",""]
[null,null,null,null,null,null,null,null,null,null,"",""]
[null,null,null,null,null,null,null,null,null,null,"",""]
[null,null,null,null,null,null,null,null,null,null,"",""]
[null,null,null,null,null,null,null,null,null,null,"",""]
[null,null,null,null,null,null,null,null,null,null,"",""]
[null,null,null,null,null,null,null,null,null,null,"",""]
[null,null,null,null,null,null,null,null,null,null,"",""]
[null,null,null,null,null,null,null,null,null,null,"",""]
[null,null,null,null,null,null,null,null,null,null,"",""]
[null,null,null,null,null,null,null,null,null,null,"",""]
[null,null,null,null,null,null,null,null,null,null,"",""]
[null,null,null,null,null,null,null,null,null,null,"",""]
[null,null,null,null,null,null,null,null,null,null,"",""]
[null,null,null,null,null,null,null,null,null,null,"",""]
[null,null,null,null,null,null,null,null,null,null,"",""]
[null,null,null,null,null,null,null,null,null,null,"",""]
[null,null,null,null,null,null,null,null,null,null,"",""]
[null,null,null,null,null,null,null,null,null,null,"",""]
[null,null,null,null,null,null,null,null,null,null,"",""]
[null,null,null,null,null,null,null,null,null,null,"",""]
[null,null,null,null,null,null,null,null,null,null,"",""]
[null,null,null,null,null,null,null,null,null,null,"",""]
[null,null,null,null,null,null,null,null,null,null,"",""]
[null,null,null,null,null,null,null,null,null,null,"",""]
[null,null,null,null,null,null,null,null,null,null,"",""]
[null,null,null,null,null,null,null,null,null,null,"",""]
[null,null,null,null,null,null,null,null,null,null,"",""]
[null,null,null,null,null,null,null,null,null,null,"",""]
[null,null,null,null,null,null,null,null,null,null,"",""]
[null,null,null,null,null,null,null,null,null,null,"",""]
[null,null,null,null,null,null,null,null,null,null,"",""]
[null,null,null,null,null,null,null,null,null,null,"",""]
[null,null,null,null,null,null,null,null,null,null,"",""]
[null,null,null,null,null,null,null,null,null,null,"",""]
[null,null,null,null,null,null,null,null,null,null,"",""]
[null,null,null,null,null,null,null,null,null,null,"",""]
[null,null,null,null,null,null,null,null,null,null,"",""]
[null,null,null,null,null,null,null,null,null,null,"",""]
[null,null,null,null,null,null,null,null,null,null,"",""]
[null,null,null,null,null,null,null,null,null,null,"",""]
[null,null,null,null,null,null,null,null,null,null,"",""]
[null,null,null,null,null,null,null,null,null,null,"",""]
[null,null,null,null,null,null,null,null,null,null,"",""]
[null,null,null,null,null,null,null,null,null,null,"",""]
[null,null,null,null,null,null,null,null,null,null,"",""]
[null,null,null,null,null,null,null,null,null,null,"",""]
[null,null,null,null,null,null,null,null,null,null,"",""]
[null,null,null,null,null,null,null,null,null,null,"",""]
[null,null,null,null,null,null,null,null,null,null,"",""]
[null,null,null,null,null,null,null,null,null,null,"",""]
[null,null,null,null,null,null,null,null,null,null,"",""]
[null,null,null,null,null,null,null,null,null,null,"",""]
[null,null,null,null,null,null,null,null,null,null,"",""]
[null,null,null,null,null,null,null,null,null,null,"",""]
[null,null,null,null,null,null,null,null,null,null,"",""]
[null,null,null,null,null,null,null,null,null,null,"",""]
[null,null,null,null,null,null,null,null,null,null,"",""]
[null,null,null,null,null,null,null,null,null,null,"",""]
[null,null,null,null,null,null,null,null,null,null,"",""]
[null,null,null,null,null,null,null,null,null,null,"",""]
[null,null,null,null,null,null,null,null,null,null,"",""]
[null,null,null,null,null,null,null,null,null,null,"",""]
[null,null,null,null,null,null,null,null,null,null,"",""]
[null,null,null,null,null,null,null,null,null,null,"",""]
[null,null,null,null,null,null,null,null,null,null,"",""]
[null,null,null,null,null,null,null,null,null,null,"",""]
[null,null,null,null,null,null,null,null,null,null,"",""]
[null,null,null,null,null,null,null,null,null,null,"",""]
[null,null,null,null,null,null,null,null,null,null,"",""]
[null,null,null,null,null,null,null,null,null,null,"",""]
[null,null,null,null,null,null,null,null,null,null,"",""]
[null,null,null,null,null,null,null,null,null,null,"",""]
[null,null,null,null,null,null,null,null,null,null,"",""]
[null,null,null,null,null,null,null,null,null,null,"",""]
[null,null,null,null,null,null,null,null,null,null,"",""]
[null,null,null,null,null,null,null,null,null,null,"",""]
[null,null,null,null,null,null,null,null,null,null,"",""]
[null,null,null,null,null,null,null,null,null,null,"",""]
[null,null,null,null,null,null,null,null,null,null,"",""]
[null,null,null,null,null,null,null,null,null,null,{"$f":"IF($C8055=\"\",\"\",YEAR($C8055))","v":""},{"$f":"IF($C8055=\"\",\"\",TEXT($C8055,\"MMMM\"))","v":""}]
[null,null,null,null,null,null,null,null,null,null,"",""]
[null,null,null,null,null,null,null,null,null,null,"",""]
[null,null,null,null,null,null,null,null,null,null,"",""]
[null,null,null,null,null,null,null,null,null,null,"",""]
[null,null,null,null,null,null,null,null,null,null,"",""]
[null,null,null,null,null,null,null,null,null,null,"",""]
[null,null,null,null,null,null,null,null,null,null,"",""]
[null,null,null,null,null,null,null,null,null,null,"",""]
[null,null,null,null,null,null,null,null,null,null,"",""]
[null,null,null,null,null,null,null,null,null,null,"",""]
[null,null,null,null,null,null,null,null,null,null,"",""]
[null,null,null,null,null,null,null,null,null,null,"",""]
[null,null,null,null,null,null,null,null,null,null,"",""]
[null,null,null,null,null,null,null,null,null,null,"",""]
[null,null,null,null,null,null,null,null,null,null,"",""]
[null,null,null,null,null,null,null,null,null,null,"",""]
[null,null,null,null,null,null,null,null,null,null,"",""]
[null,null,null,null,null,null,null,null,null,null,"",""]
[null,null,null,null,null,null,null,null,null,null,"",""]
[null,null,null,null,null,null,null,null,null,null,"",""]
[null,null,null,null,null,null,null,null,null,null,"",""]
[null,null,null,null,null,null,null,null,null,null,"",""]
[null,null,null,null,null,null,null,null,null,null,"",""]
[null,null,null,null,null,null,null,null,null,null,"",""]
[null,null,null,null,null,null,null,null,null,null,"",""]
[null,null,null,null,null,null,null,null,null,null,"",""]
[null,null,null,null,null,null,null,null,null,null,"",""]
[null,null,null,null,null,null,null,null,null,null,"",""]
[null,null,null,null,null,null,null,null,null,null,"",""]
[null,null,null,null,null,null,null,null,null,null,"",""]
[null,null,null,null,null,null,null,null,null,null,"",""]
[null,null,null,null,null,null,null,null,null,null,"",""]
[null,null,null,null,null,null,null,null,null,null,"",""]
[null,null,null,null,null,null,null,null,null,null,"",""]
[null,null,null,null,null,null,null,null,null,null,"",""]
[null,null,null,null,null,null,null,null,null,null,"",""]
[null,null,null,null,null,null,null,null,null,null,"",""]
[null,null,null,null,null,null,null,null,null,null,"",""]
[null,null,null,null,null,null,null,null,null,null,"",""]
[null,null,null,null,null,null,null,null,null,null,"",""]
[null,null,null,null,null,null,null,null,null,null,"",""]
[null,null,null,null,null,null,null,null,null,null,"",""]
[null,null,null,null,null,null,null,null,null,null,"",""]
[null,null,null,null,null,null,null,null,null,null,"",""]
[null,null,null,null,null,null,null,null,null,null,"",""]
[null,null,null,null,null,null,null,null,null,null,"",""]
[null,null,null,null,null,null,null,null,null,null,"",""]
[null,null,null,null,null,null,null,null,null,null,"",""]
[null,null,null,null,null,null,null,null,null,null,"",""]
[null,null,null,null,null,null,null,null,null,null,"",""]
[null,null,null,null,null,null,null,null,null,null,"",""]
[null,null,null,null,null,null,null,null,null,null,"",""]
[null,null,null,null,null,null,null,null,null,null,"",""]
[null,null,null,null,null,null,null,null,null,null,"",""]
[null,null,null,null,null,null,null,null,null,null,"",""]
[null,null,null,null,null,null,null,null,null,null,"",""]
[null,null,null,null,null,null,null,null,null,null,"",""]
[null,null,null,null,null,null,null,null,null,null,"",""]
[null,null,null,null,null,null,null,null,null,null,"",""]
[null,null,null,null,null,null,null,null,null,null,"",""]
[null,null,null,null,null,null,null,null,null,null,"",""]
[null,null,null,null,null,null,null,null,null,null,"",""]
[null,null,null,null,null,null,null,null,null,null,"",""]
[null,null,null,null,null,null,null,null,null,null,"",""]
[null,null,null,null,null,null,null,null,null,null,"",""]
[null,null,null,null,null,null,null,null,null,null,"",""]
[null,null,null,null,null,null,null,null,null,null,"",""]
[null,null,null,null,null,null,null,null,null,null,"",""]
[null,null,null,null,null,null,null,null,null,null,"",""]
[null,null,null,null,null,null,null,null,null,null,"",""]
[null,null,null,null,null,null,null,null,null,null,"",""]
[null,null,null,null,null,null,null,null,null,null,"",""]
[null,null,null,null,null,null,null,null,null,null,"",""]
[null,null,null,null,null,null,null,null,null,null,"",""]
[null,null,null,null,null,null,null,null,null,null,"",""]
[null,null,null,null,null,null,null,null,null,null,"",""]
[null,null,null,null,null,null,null,null,null,null,"",""]
[null,null,null,null,null,null,null,null,null,null,"",""]
[null,null,null,null,null,null,null,null,null,null,"",""]
[null,null,null,null,null,null,null,null,null,null,"",""]
[null,null,null,null,null,null,null,null,null,null,"",""]
[null,null,null,null,null,null,null,null,null,null,"",""]
[null,null,null,null,null,null,null,null,null,null,"",""]
[null,null,null,null,null,null,null,null,null,null,"",""]
[null,null,null,null,null,null,null,null,null,null,"",""]
[null,null,null,null,null,null,null,null,null,null,"",""]
[null,null,null,null,null,null,null,null,null,null,"",""]
[null,null,null,null,null,null,null,null,null,null,"",""]
[null,null,null,null,null,null,null,null,null,null,"",""]
[null,null,null,null,null,null,null,null,null,null,"",""]
[null,null,null,null,null,null,null,null,null,null,"",""]
[null,null,null,null,null,null,null,null,null,null,"",""]
[null,null,null,null,null,null,null,null,null,null,"",""]
[null,null,null,null,null,null,null,null,null,null,"",""]
[null,null,null,null,null,null,null,null,null,null,{"$f":"IF($C8887=\"\",\"\",YEAR($C8887))","v":""},{"$f":"IF($C8887=\"\",\"\",TEXT($C8887,\"MMMM\"))","v":""}]
[null,null,null,null,null,null,null,null,null,null,"",""]
[null,null,null,null,null,null,null,null,null,null,"",""]
[null,null,null,null,null,null,null,null,null,null,"",""]
[null,null,null,null,null,null,null,null,null,null,"",""]
[null,null,null,null,null,null,null,null,null,null,"",""]
[null,null,null,null,null,null,null,null,null,null,"",""]
[null,null,null,null,null,null,null,null,null,null,"",""]
[null,null,null,null,null,null,null,null,null,null,"",""]
[null,null,null,null,null,null,null,null,null,null,"",""]
[null,null,null,null,null,null,null,null,null,null,"",""]
[null,null,null,null,null,null,null,null,null,null,"",""]
[null,null,null,null,null,null,null,null,null,null,"",""]
[null,null,null,null,null,null,null,null,null,null,"",""]
[null,null,null,null,null,null,null,null,null,null,"",""]
[null,null,null,null,null,null,null,null,null,null,{"$f":"IF($C9015=\"\",\"\",YEAR($C9015))","v":""},{"$f":"IF($C9015=\"\",\"\",TEXT($C9015,\"MMMM\"))","v":""}]
[null,null,null,null,null,null,null,null,null,null,"",""]
[null,null,null,null,null,null,null,null,null,null,"",""]
[null,null,null,null,null,null,null,null,null,null,"",""]
[null,null,null,null,null,null,null,null,null,null,"",""]
[null,null,null,null,null,null,null,null,null,null,"",""]
[null,null,null,null,null,null,null,null,null,null,"",""]
[null,null,null,null,null,null,null,null,null,null,"",""]
[null,null,null,null,null,null,null,null,null,null,"",""]
[null,null,null,null,null,null,null,null,null,null,"",""]
[null,null,null,null,null,null,null,null,null,null,"",""]
[null,null,null,null,null,null,null,null,null,null,"",""]
[null,null,null,null,null,null,null,null,null,null,"",""]
[null,null,null,null,null,null,null,null,null,null,"",""]
[null,null,null,null,null,null,null,null,null,null,"",""]
[null,null,null,null,null,null,null,null,null,null,{"$f":"IF($C9143=\"\",\"\",YEAR($C9143))","v":""},{"$f":"IF($C9143=\"\",\"\",TEXT($C9143,\"MMMM\"))","v":""}]
[null,null,null,null,null,null,null,null,null,null,"",""]
[null,null,null,null,null,null,null,null,null,null,"",""]
[null,null,null,null,null,null,null,null,null,null,"",""]
[null,null,null,null,null,null,null,null,null,null,"",""]
[null,null,null,null,null,null,null,null,null,null,"",""]
[null,null,null,null,null,null,null,null,null,null,"",""]
[null,null,null,null,null,null,null,null,null,null,"",""]
[null,null,null,null,null,null,null,null,null,null,"",""]
[null,null,null,null,null,null,null,null,null,null,"",""]
[null,null,null,null,null,null,null,null,null,null,"",""]
[null,null,null,null,null,null,null,null,null,null,"",""]
[null,null,null,null,null,null,null,null,null,null,"",""]
[null,null,null,null,null,null,null,null,null,null,"",""]
[null,null,null,null,null,null,null,null,null,null,"",""]
[null,null,null,null,null,null,null,null,null,null,"",""]
[null,null,null,null,null,null,null,null,null,null,"",""]
[null,null,null,null,null,null,null,null,null,null,"",""]
[null,null,null,null,null,null,null,null,null,null,"",""]
[null,null,null,null,null,null,null,null,null,null,"",""]
[null,null,null,null,null,null,null,null,null,null,"",""]
[null,null,null,null,null,null,null,null,null,null,"",""]
[null,null,null,null,null,null,null,null,null,null,{"$f":"IF($C9335=\"\",\"\",YEAR($C9335))","v":""},{"$f":"IF($C9335=\"\",\"\",TEXT($C9335,\"MMMM\"))","v":""}]
[null,null,null,null,null,null,null,null,null,null,"",""]
[null,null,null,null,null,null,null,null,null,null,"",""]
[null,null,null,null,null,null,null,null,null,null,"",""]
[null,null,null,null,null,null,null,null,null,null,"",""]
[null,null,null,null,null,null,null,null,null,null,"",""]
[null,null,null,null,null,null,null,null,null,null,"",""]
[null,null,null,null,null,null,null,null,null,null,"",""]
[null,null,null,null,null,null,null,null,null,null,"",""]
[null,null,null,null,null,null,null,null,null,null,"",""]
[null,null,null,null,null,null,null,null,null,null,"",""]
[null,null,null,null,null,null,null,null,null,null,"",""]
[null,null,null,null,null,null,null,null,null,null,"",""]
[null,null,null,null,null,null,null,null,null,null,"",""]
[null,null,null,null,null,null,null,null,null,null,"",""]
[null,null,null,null,null,null,null,null,null,null,"",""]
[null,null,null,null,null,null,null,null,null,null,"",""]
[null,null,null,null,null,null,null,null,null,null,"",""]
[null,null,null,null,null,null,null,null,null,null,"",""]
[null,null,null,null,null,null,null,null,null,null,"",""]
[null,null,null,null,null,null,null,null,null,null,"",""]
[null,null,null,null,null,null,null,null,null,null,"",""]
[null,null,null,null,null,null,null,null,null,null,"",""]
[null,null,null,null,null,null,null,null,null,null,"",""]
[null,null,null,null,null,null,null,null,null,null,"",""]
[null,null,null,null,null,null,null,null,null,null,"",""]
[null,null,null,null,null,null,null,null,null,null,"",""]
[null,null,null,null,null,null,null,null,null,null,"",""]
[null,null,null,null,null,null,null,null,null,null,"",""]
[null,null,null,null,null,null,null,null,null,null,"",""]
[null,null,null,null,null,null,null,null,null,null,"",""]
[null,null,null,null,null,null,null,null,null,null,"",""]
[null,null,null,null,null,null,null,null,null,null,"",""]
[null,null,null,null,null,null,null,null,null,null,"",""]
[null,null,null,null,null,null,null,null,null,null,"",""]
[null,null,null,null,null,null,null,null,null,null,"",""]
[null,null,null,null,null,null,null,null,null,null,"",""]
[null,null,null,null,null,null,null,null,null,null,"",""]
[null,null,null,null,null,null,null,null,null,null,"",""]
[null,null,null,null,null,null,null,null,null,null,"",""]
[null,null,null,null,null,null,null,null,null,null,"",""]
[null,null,null,null,null,null,null,null,null,null,"",""]
[null,null,null,null,null,null,null,null,null,null,"",""]
[null,null,null,null,null,null,null,null,null,null,"",""]
[null,null,null,null,null,null,null,null,null,null,"",""]
[null,null,null,null,null,null,null,null,null,null,"",""]
[null,null,null,null,null,null,null,null,null,null,"",""]
[null,null,null,null,null,null,null,null,null,null,"",""]
[null,null,null,null,null,null,null,null,null,null,"",""]
[null,null,null,null,null,null,null,null,null,null,"",""]
[null,null,null,null,null,null,null,null,null,null,"",""]
[null,null,null,null,null,null,null,null,null,null,"",""]
[null,null,null,null,null,null,null,null,null,null,"",""]
[null,null,null,null,null,null,null,null,null,null,"",""]
[null,null,null,null,null,null,null,null,null,null,"",""]
[null,null,null,null,null,null,null,null,null,null,"",""]
[null,null,null,null,null,null,null,null,null,null,"",""]
[null,null,null,null,null,null,null,null,null,null,"",""]
[null,null,null,null,null,null,null,null,null,null,"",""]
[null,null,null,null,null,null,null,null,null,null,"",""]
[null,null,null,null,null,null,null,null,null,null,"",""]
[null,null,null,null,null,null,null,null,null,null,"",""]
[null,null,null,null,null,null,null,null,null,null,"",""]
[null,null,null,null,null,null,null,null,null,null,"",""]
[null,null,null,null,null,null,null,null,null,null,"",""]
[null,null,null,null,null,null,null,null,null,null,"",""]
[null,null,null,null,null,null,null,null,null,null,"",""]
[null,null,null,null,null,null,null,null,null,null,"",""]
[null,null,null,null,null,null,null,null,null,null,"",""]
[null,null,null,null,null,null,null,null,null,null,"",""]
[null,null,null,null,null,null,null,null,null,null,"",""]
[null,null,null,null,null,null,null,null,null,null,"",""]
[null,null,null,null,null,null,null,null,null,null,"",""]
[null,null,null,null,null,null,null,null,null,null,"",""]
[null,null,null,null,null,null,null,null,null,null,"",""]
[null,null,null,null,null,null,null,null,null,null,"",""]
[null,null,null,null,null,null,null,null,null,null,"",""]
[null,null,null,null,null,null,null,null,null,null,"",""]
[null,null,null,null,null,null,null,null,null,null,"",""]
[null,null,null,null,null,null,null,null,null,null,"",""]
[null,null,null,null,null,null,null,null,null,null,"",""]
[null,null,null,null,null,null,null,null,null,null,"",""]
[null,null,null,null,null,null,null,null,null,null,"",""]
[null,null,null,null,null,null,null,null,null,null,"",""]
[null,null,null,null,null,null,null,null,null,null,"",""]
[null,null,null,null,null,null,null,null,null,null,"",""]
[null,null,null,null,null,null,null,null,null,null,"",""]
[null,null,null,null,null,null,null,null,null,null,"",""]
[null,null,null,null,null,null,null,null,null,null,"",""]
[null,null,null,null,null,null,null,null,null,null,"",""]
[null,null,null,null,null,null,null,null,null,null,"",""]
[null,null,null,null,null,null,null,null,null,null,"",""]
[null,null,null,null,null,null,null,null,null,null,"",""]
[null,null,null,null,null,null,null,null,null,null,"",""]
[null,null,null,null,null,null,null,null,null,null,"",""]
[null,null,null,null,null,null,null,null,null,null,"",""]
[null,null,null,null,null,null,null,null,null,null,"",""]
[null,null,null,null,null,null,null,null,null,null,"",""]
[null,null,null,null,null,null,null,null,null,null,"",""]
[null,null,null,null,null,null,null,null,null,null,"",""]
[null,null,null,null,null,null,null,null,null,null,"",""]
[null,null,null,null,null,null,null,null,null,null,"",""]
[null,null,null,null,null,null,null,null,null,null,"",""]
[null,null,null,null,null,null,null,null,null,null,"",""]
[null,null,null,null,null,null,null,null,null,null,"",""]
[null,null,null,null,null,null,null,null,null,null,"",""]
[null,null,null,null,null,null,null,null,null,null,"",""]
[null,null,null,null,null,null,null,null,null,null,"",""]
[null,null,null,null,null,null,null,null,null,null,"",""]
[null,null,null,null,null,null,null,null,null,null,"",""]
[null,null,null,null,null,null,null,null,null,null,"",""]
[null,null,null,null,null,null,null,null,null,null,"",""]
[null,null,null,null,null,null,null,null,null,null,"",""]
[null,null,null,null,null,null,null,null,null,null,"",""]
[null,null,null,null,null,null,null,null,null,null,"",""]
[null,null,null,null,null,null,null,null,null,null,"",""]
[null,null,null,null,null,null,null,null,null,null,"",""]
[null,null,null,null,null,null,null,null,null,null,"",""]
[null,null,null,null,null,null,null,null,null,null,"",""]
[null,null,null,null,null,null,null,null,null,null,"",""]
[null,null,null,null,null,null,null,null,null,null,"",""]
[null,null,null,null,null,null,null,null,null,null,"",""]
[null,null,null,null,null,null,null,null,null,null,"",""]
[null,null,null,null,null,null,null,null,null,null,"",""]
[null,null,null,null,null,null,null,null,null,null,{"$f":"IF($C10423=\"\",\"\",YEAR($C10423))","v":""},{"$f":"IF($C10423=\"\",\"\",TEXT($C10423,\"MMMM\"))","v":""}]
[null,null,null,null,null,null,null,null,null,null,"",""]
[null,null,null,null,null,null,null,null,null,null,"",""]
[null,null,null,null,null,null,null,null,null,null,"",""]
[null,null,null,null,null,null,null,null,null,null,"",""]
[null,null,null,null,null,null,null,null,null,null,"",""]
[null,null,null,null,null,null,null,null,null,null,"",""]
[null,null,null,null,null,null,null,null,null,null,"",""]
[null,null,null,null,null,null,null,null,null,null,"",""]
[null,null,null,null,null,null,null,null,null,null,"",""]
[null,null,null,null,null,null,null,null,null,null,"",""]
[null,null,null,null,null,null,null,null,null,null,"",""]
[null,null,null,null,null,null,null,null,null,null,"",""]
[null,null,null,null,null,null,null,null,null,null,"",""]
[null,null,null,null,null,null,null,null,null,null,"",""]
[null,null,null,null,null,null,null,null,null,null,"",""]
[null,null,null,null,null,null,null,null,null,null,"",""]
[null,null,null,null,null,null,null,null,null,null,"",""]
[null,null,null,null,null,null,null,null,null,null,"",""]
[null,null,null,null,null,null,null,null,null,null,"",""]
[null,null,null,null,null,null,null,null,null,null,"",""]
[null,null,null,null,null,null,null,null,null,null,"",""]
[null,null,null,null,null,null,null,null,null,null,"",""]
[null,null,null,null,null,null,null,null,null,null,"",""]
[null,null,null,null,null,null,null,null,null,null,"",""]
[null,null,null,null,null,null,null,null,null,null,"",""]
[null,null,null,null,null,null,null,null,null,null,"",""]
[null,null,null,null,null,null,null,null,null,null,"",""]
[null,null,null,null,null,null,null,null,null,null,"",""]
[null,null,null,null,null,null,null,null,null,null,{"$f":"IF($C10679=\"\",\"\",YEAR($C10679))","v":""},{"$f":"IF($C10679=\"\",\"\",TEXT($C10679,\"MMMM\"))","v":""}]
[null,null,null,null,null,null,null,null,null,null,"",""]
[null,null,null,null,null,null,null,null,null,null,"",""]
[null,null,null,null,null,null,null,null,null,null,"",""]
[null,null,null,null,null,null,null,null,null,null,"",""]
[null,null,null,null,null,null,null,null,null,null,"",""]
[null,null,null,null,null,null,null,null,null,null,"",""]
[null,null,null,null,null,null,null,null,null,null,"",""]
[null,null,null,null,null,null,null,null,null,null,"",""]
[null,null,null,null,null,null,null,null,null,null,"",""]
[null,null,null,null,null,null,null,null,null,null,"",""]
[null,null,null,null,null,null,null,null,null,null,"",""]
[null,null,null,null,null,null,null,null,null,null,"",""]
[null,null,null,null,null,null,null,null,null,null,"",""]
[null,null,null,null,null,null,null,null,null,null,"",""]
[null,null,null,null,null,null,null,null,null,null,{"$f":"IF($C10807=\"\",\"\",YEAR($C10807))","v":""},{"$f":"IF($C10807=\"\",\"\",TEXT($C10807,\"MMMM\"))","v":""}]
[null,null,null,null,null,null,null,null,null,null,"",""]
[null,null,null,null,null,null,null,null,null,null,"",""]
[null,null,null,null,null,null,null,null,null,null,"",""]
[null,null,null,null,null,null,null,null,null,null,"",""]
[null,null,null,null,null,null,null,null,null,null,"",""]
[null,null,null,null,null,null,null,null,null,null,"",""]
[null,null,null,null,null,null,null,null,null,null,"",""]
[null,null,null,null,null,null,null,null,null,null,"",""]
[null,null,null,null,null,null,null,null,null,null,"",""]
[null,null,null,null,null,null,null,null,null,null,"",""]
[null,null,null,null,null,null,null,null,null,null,"",""]
[null,null,null,null,null,null,null,null,null,null,"",""]
[null,null,null,null,null,null,null,null,null,null,"",""]
[null,null,null,null,null,null,null,null,null,null,"",""]
[null,null,null,null,null,null,null,null,null,null,{"$f":"IF($C10935=\"\",\"\",YEAR($C10935))","v":""},{"$f":"IF($C10935=\"\",\"\",TEXT($C10935,\"MMMM\"))","v":""}]
[null,null,null,null,null,null,null,null,null,null,"",""]
[null,null,null,null,null,null,null,null,null,null,"",""]
[null,null,null,null,null,null,null,null,null,null,"",""]
[null,null,null,null,null,null,null,null,null,null,"",""]
[null,null,null,null,null,null,null,null,null,null,"",""]
[null,null,null,null,null,null,null,null,null,null,"",""]
[null,null,null,null,null,null,null,null,null,null,"",""]
[null,null,null,null,null,null,null,null,null,null,"",""]
[null,null,null,null,null,null,null,null,null,null,"",""]
[null,null,null,null,null,null,null,null,null,null,"",""]
[null,null,null,null,null,null,null,null,null,null,"",""]
[null,null,null,null,null,null,null,null,null,null,"",""]
[null,null,null,null,null,null,null,null,null,null,"",""]
[null,null,null,null,null,null,null,null,null,null,"",""]
[null,null,null,null,null,null,null,null,null,null,"",""]
[null,null,null,null,null,null,null,null,null,null,"",""]
[null,null,null,null,null,null,null,null,null,null,"",""]
[null,null,null,null,null,null,null,null,null,null,"",""]
[null,null,null,null,null,null,null,null,null,null,"",""]
[null,null,null,null,null,null,null,null,null,null,"",""]
[null,null,null,null,null,null,null,null,null,null,"",""]
[null,null,null,null,null,null,null,null,null,null,"",""]
[null,null,null,null,null,null,null,null,null,null,"",""]
[null,null,null,null,null,null,null,null,null,null,"",""]
[null,null,null,null,null,null,null,null,null,null,"",""]
[null,null,null,null,null,null,null,null,null,null,"",""]
[null,null,null,null,null,null,null,null,null,null,"",""]
[null,null,null,null,null,null,null,null,null,null,"",""]
[null,null,null,null,null,null,null,null,null,null,"",""]
[null,null,null,null,null,null,null,null,null,null,"",""]
[null,null,null,null,null,null,null,null,null,null,"",""]
[null,null,null,null,null,null,null,null,null,null,"",""]
[null,null,null,null,null,null,null,null,null,null,"",""]
[null,null,null,null,null,null,null,null,null,null,"",""]
[null,null,null,null,null,null,null,null,null,null,"",""]
[null,null,null,null,null,null,null,null,null,null,"",""]
[null,null,null,null,null,null,null,null,null,null,"",""]
[null,null,null,null,null,null,null,null,null,null,"",""]
[null,null,null,null,null,null,null,null,null,null,"",""]
[null,null,null,null,null,null,null,null,null,null,"",""]
[null,null,null,null,null,null,null,null,null,null,"",""]
[null,null,null,null,null,null,null,null,null,null,"",""]
[null,null,null,null,null,null,null,null,null,null,"",""]
[null,null,null,null,null,null,null,null,null,null,"",""]
[null,null,null,null,null,null,null,null,null,null,"",""]
[null,null,null,null,null,null,null,null,null,null,"",""]
[null,null,null,null,null,null,null,null,null,null,"",""]
[null,null,null,null,null,null,null,null,null,null,"",""]
[null,null,null,null,null,null,null,null,null,null,"",""]
[null,null,null,null,null,null,null,null,null,null,"",""]
[null,null,null,null,null,null,null,null,null,null,"",""]
[null,null,null,null,null,null,null,null,null,null,"",""]
[null,null,null,null,null,null,null,null,null,null,"",""]
[null,null,null,null,null,null,null,null,null,null,"",""]
[null,null,null,null,null,null,null,null,null,null,"",""]
[null,null,null,null,null,null,null,null,null,null,"",""]
[null,null,null,null,null,null,null,null,null,null,"",""]
[null,null,null,null,null,null,null,null,null,null,"",""]
[null,null,null,null,null,null,null,null,null,null,"",""]
[null,null,null,null,null,null,null,null,null,null,"",""]
[null,null,null,null,null,null,null,null,null,null,"",""]
[null,null,null,null,null,null,null,null,null,null,"",""]
[null,null,null,null,null,null,null,null,null,null,"",""]
[null,null,null,null,null,null,null,null,null,null,"",""]
[null,null,null,null,null,null,null,null,null,null,"",""]
[null,null,null,null,null,null,null,null,null,null,"",""]
[null,null,null,null,null,null,null,null,null,null,"",""]
[null,null,null,null,null,null,null,null,null,null,"",""]
[null,null,null,null,null,null,null,null,null,null,"",""]
[null,null,null,null,null,null,null,null,null,null,"",""]
[null,null,null,null,null,null,null,null,null,null,"",""]
[null,null,null,null,null,null,null,null,null,null,"",""]
[null,null,null,null,null,null,null,null,null,null,"",""]
[null,null,null,null,null,null,null,null,null,null,"",""]
[null,null,null,null,null,null,null,null,null,null,"",""]
[null,null,null,null,null,null,null,null,null,null,"",""]
[null,null,null,null,null,null,null,null,null,null,"",""]
[null,null,null,null,null,null,null,null,null,null,"",""]
[null,null,null,null,null,null,null,null,null,null,"",""]
[null,null,null,null,null,null,null,null,null,null,"",""]
[null,null,null,null,null,null,null,null,null,null,"",""]
[null,null,null,null,null,null,null,null,null,null,"",""]
[null,null,null,null,null,null,null,null,null,null,"",""]
[null,null,null,null,null,null,null,null,null,null,"",""]
[null,null,null,null,null,null,null,null,null,null,"",""]
[null,null,null,null,null,null,null,null,null,null,"",""]
[null,null,null,null,null,null,null,null,null,null,"",""]
[null,null,null,null,null,null,null,null,null,null,"",""]
[null,null,null,null,null,null,null,null,null,null,"",""]
[null,null,null,null,null,null,null,null,null,null,"",""]
[null,null,null,null,null,null,null,null,null,null,"",""]
[null,null,null,null,null,null,null,null,null,null,"",""]
[null,null,null,null,null,null,null,null,null,null,"",""]
[null,null,null,null,null,null,null,null,null,null,"",""]
[null,null,null,null,null,null,null,null,null,null,"",""]
[null,null,null,null,null,null,null,null,null,null,"",""]
[null,null,null,null,null,null,null,null,null,null,"",""]
[null,null,null,null,null,null,null,null,null,null,"",""]
[null,null,null,null,null,null,null,null,null,null,"",""]
[null,null,null,null,null,null,null,null,null,null,"",""]
[null,null,null,null,null,null,null,null,null,null,"",""]
[null,null,null,null,null,null,null,null,null,null,"",""]
[null,null,null,null,null,null,null,null,null,null,"",""]
[null,null,null,null,null,null,null,null,null,null,"",""]
[null,null,null,null,null,null,null,null,null,null,"",""]
[null,null,null,null,null,null,null,null,null,null,"",""]
[null,null,null,null,null,null,null,null,null,null,"",""]
[null,null,null,null,null,null,null,null,null,null,"",""]
[null,null,null,null,null,null,null,null,null,null,"",""]
[null,null,null,null,null,null,null,null,null,null,"",""]
[null,null,null,null,null,null,null,null,null,null,"",""]
[null,null,null,null,null,null,null,null,null,null,"",""]
[null,null,null,null,null,null,null,null,null,null,"",""]
[null,null,null,null,null,null,null,null,null,null,"",""]
[null,null,null,null,null,null,null,null,null,null,"",""]
[null,null,null,null,null,null,null,null,null,null,"",""]
[null,null,null,null,null,null,null,null,null,null,"",""]
[null,null,null,null,null,null,null,null,null,null,"",""]
[null,null,null,null,null,null,null,null,null,null,"",""]
[null,null,null,null,null,null,null,null,null,null,"",""]
[null,null,null,null,null,null,null,null,null,null,"",""]
[null,null,null,null,null,null,null,null,null,null,"",""]
[null,null,null,null,null,null,null,null,null,null,"",""]
[null,null,null,null,null,null,null,null,null,null,"",""]
[null,null,null,null,null,null,null,null,null,null,"",""]
[null,null,null,null,null,null,null,null,null,null,"",""]
[null,null,null,null,null,null,null,null,null,null,"",""]
[null,null,null,null,null,null,null,null,null,null,"",""]
[null,null,null,null,null,null,null,null,null,null,"",""]
[null,null,null,null,null,null,null,null,null,null,"",""]
[null,null,null,null,null,null,null,null,null,null,"",""]
[null,null,null,null,null,null,null,null,null,null,"",""]
[null,null,null,null,null,null,null,null,null,null,"",""]
[null,null,null,null,null,null,null,null,null,null,"",""]
[null,null,null,null,null,null,null,null,null,null,"",""]
[null,null,null,null,null,null,null,null,null,null,"",""]
[null,null,null,null,null,null,null,null,null,null,"",""]
[null,null,null,null,null,null,null,null,null,null,"",""]
[null,null,null,null,null,null,null,null,null,null,"",""]
[null,null,null,null,null,null,null,null,null,null,"",""]
[null,null,null,null,null,null,null,null,null,null,"",""]
[null,null,null,null,null,null,null,null,null,null,"",""]
[null,null,null,null,null,null,null,null,null,null,"",""]
[null,null,null,null,null,null,null,null,null,null,"",""]
[null,null,null,null,null,null,null,null,null,null,"",""]
[null,null,null,null,null,null,null,null,null,null,"",""]
[null,null,null,null,null,null,null,null,null,null,"",""]
[null,null,null,null,null,null,null,null,null,null,"",""]
[null,null,null,null,null,null,null,null,null,null,"",""]
[null,null,null,null,null,null,null,null,null,null,"",""]
[null,null,null,null,null,null,null,null,null,null,"",""]
[null,null,null,null,null,null,null,null,null,null,"",""]
[null,null,null,null,null,null,null,null,null,null,"",""]
[null,null,null,null,null,null,null,null,null,null,"",""]
[null,null,null,null,null,null,null,null,null,null,"",""]
[null,null,null,null,null,null,null,null,null,null,"",""]
[null,null,null,null,null,null,null,null,null,null,"",""]
[null,null,null,null,null,null,null,null,null,null,"",""]
[null,null,null,null,null,null,null,null,null,null,"",""]
[null,null,null,null,null,null,null,null,null,null,"",""]
[null,null,null,null,null,null,null,null,null,null,"",""]
[null,null,null,null,null,null,null,null,null,null,"",""]
[null,null,null,null,null,null,null,null,null,null,"",""]
[null,null,null,null,null,null,null,null,null,null,"",""]
[null,null,null,null,null,null,null,null,null,null,"",""]
[null,null,null,null,null,null,null,null,null,null,"",""]
[null,null,null,null,null,null,null,null,null,null,"",""]
[null,null,null,null,null,null,null,null,null,null,"",""]
[null,null,null,null,null,null,null,null,null,null,"",""]
[null,null,null,null,null,null,null,null,null,null,"",""]
[null,null,null,null,null,null,null,null,null,null,"",""]
[null,null,null,null,null,null,null,null,null,null,"",""]
[null,null,null,null,null,null,null,null,null,null,"",""]
[null,null,null,null,null,null,null,null,null,null,"",""]
[null,null,null,null,null,null,null,null,null,null,"",""]
[null,null,null,null,null,null,null,null,null,null,"",""]
[null,null,null,null,null,null,null,null,null,null,"",""]
[null,null,null,null,null,null,null,null,null,null,"",""]
[null,null,null,null,null,null,null,null,null,null,"",""]
[null,null,null,null,null,null,null,null,null,null,"",""]
[null,null,null,null,null,null,null,null,null,null,"",""]
[null,null,null,null,null,null,null,null,null,null,"",""]
[null,null,null,null,null,null,null,null,null,null,"",""]
[null,null,null,null,null,null,null,null,null,null,"",""]
[null,null,null,null,null,null,null,null,null,null,"",""]
[null,null,null,null,null,null,null,null,null,null,"",""]
[null,null,null,null,null,null,null,null,null,null,"",""]
[null,null,null,null,null,null,null,null,null,null,"",""]
[null,null,null,null,null,null,null,null,null,null,"",""]
[null,null,null,null,null,null,null,null,null,null,{"$f":"IF($C12599=\"\",\"\",YEAR($C12599))","v":""},{"$f":"IF($C12599=\"\",\"\",TEXT($C12599,\"MMMM\"))","v":""}]
[null,null,null,null,null,null,null,null,null,null,"",""]
[null,null,null,null,null,null,null,null,null,null,"",""]
[null,null,null,null,null,null,null,null,null,null,"",""]
[null,null,null,null,null,null,null,null,null,null,"",""]
[null,null,null,null,null,null,null,null,null,null,"",""]
[null,null,null,null,null,null,null,null,null,null,"",""]
[null,null,null,null,null,null,null,null,null,null,"",""]
[null,null,null,null,null,null,null,null,null,null,"",""]
[null,null,null,null,null,null,null,null,null,null,"",""]
[null,null,null,null,null,null,null,null,null,null,"",""]
[null,null,null,null,null,null,null,null,null,null,"",""]
[null,null,null,null,null,null,null,null,null,null,"",""]
[null,null,null,null,null,null,null,null,null,null,"",""]
[null,null,null,null,null,null,null,null,null,null,"",""]
[null,null,null,null,null,null,null,null,null,null,{"$f":"IF($C12727=\"\",\"\",YEAR($C12727))","v":""},{"$f":"IF($C12727=\"\",\"\",TEXT($C12727,\"MMMM\"))","v":""}]
[null,null,null,null,null,null,null,null,null,null,"",""]
[null,null,null,null,null,null,null,null,null,null,"",""]
[null,null,null,null,null,null,null,null,null,null,"",""]
[null,null,null,null,null,null,null,null,null,null,"",""]
[null,null,null,null,null,null,null,null,null,null,"",""]
[null,null,null,null,null,null,null,null,null,null,"",""]
[null,null,null,null,null,null,null,null,null,null,{"$f":"IF($C12791=\"\",\"\",YEAR($C12791))","v":""},{"$f":"IF($C12791=\"\",\"\",TEXT($C12791,\"MMMM\"))","v":""}]
[null,null,null,null,null,null,null,null,null,null,"",""]
[null,null,null,null,null,null,null,null,null,null,"",""]
[null,null,null,null,null,null,null,null,null,null,"",""]
[null,null,null,null,null,null,null,null,null,null,"",""]
[null,null,null,null,null,null,null,null,null,null,"",""]
[null,null,null,null,null,null,null,null,null,null,"",""]
[null,null,null,null,null,null,null,null,null,null,"",""]
[null,null,null,null,null,null,null,null,null,null,"",""]
[null,null,null,null,null,null,null,null,null,null,"",""]
[null,null,null,null,null,null,null,null,null,null,"",""]
[null,null,null,null,null,null,null,null,null,null,"",""]
[null,null,null,null,null,null,null,null,null,null,"",""]
[null,null,null,null,null,null,null,null,null,null,"",""]
[null,null,null,null,null,null,null,null,null,null,"",""]
[null,null,null,null,null,null,null,null,null,null,"",""]
[null,null,null,null,null,null,null,null,null,null,"",""]
[null,null,null,null,null,null,null,null,null,null,"",""]
[null,null,null,null,null,null,null,null,null,null,"",""]
[null,null,null,null,null,null,null,null,null,null,"",""]
[null,null,null,null,null,null,null,null,null,null,"",""]
[null,null,null,null,null,null,null,null,null,null,"",""]
[null,null,null,null,null,null,null,null,null,null,"",""]
[null,null,null,null,null,null,null,null,null,null,"",""]
[null,null,null,null,null,null,null,null,null,null,"",""]
[null,null,null,null,null,null,null,null,null,null,"",""]
[null,null,null,null,null,null,null,null,null,null,"",""]
[null,null,null,null,null,null,null,null,null,null,"",""]
[null,null,null,null,null,null,null,null,null,null,"",""]
[null,null,null,null,null,null,null,null,null,null,"",""]
[null,null,null,null,null,null,null,null,null,null,"",""]
[null,null,null,null,null,null,null,null,null,null,"",""]
[null,null,null,null,null,null,null,null,null,null,"",""]
[null,null,null,null,null,null,null,null,null,null,"",""]
[null,null,null,null,null,null,null,null,null,null,"",""]
[null,null,null,null,null,null,null,null,null,null,"",""]
[null,null,null,null,null,null,null,null,null,null,"",""]
[null,null,null,null,null,null,null,null,null,null,"",""]
[null,null,null,null,null,null,null,null,null,null,"",""]
[null,null,null,null,null,null,null,null,null,null,"",""]
[null,null,null,null,null,null,null,null,null,null,"",""]
[null,null,null,null,null,null,null,null,null,null,"",""]
[null,null,null,null,null,null,null,null,null,null,"",""]
[null,null,null,null,null,null,null,null,null,null,"",""]
[null,null,null,null,null,null,null,null,null,null,"",""]
[null,null,null,null,null,null,null,null,null,null,"",""]
[null,null,null,null,null,null,null,null,null,null,"",""]
[null,null,null,null,null,null,null,null,null,null,"",""]
[null,null,null,null,null,null,null,null,null,null,"",""]
[null,null,null,null,null,null,null,null,null,null,"",""]
[null,null,null,null,null,null,null,null,null,null,"",""]
[null,null,null,null,null,null,null,null,null,null,"",""]
[null,null,null,null,null,null,null,null,null,null,"",""]
[null,null,null,null,null,null,null,null,null,null,"",""]
[null,null,null,null,null,null,null,null,null,null,"",""]
[null,null,null,null,null,null,null,null,null,null,"",""]
[null,null,null,null,null,null,null,null,null,null,"",""]
[null,null,null,null,null,null,null,null,null,null,"",""]
[null,null,null,null,null,null,null,null,null,null,"",""]
[null,null,null,null,null,null,null,null,null,null,"",""]
[null,null,null,null,null,null,null,null,null,null,"",""]
[null,null,null,null,null,null,null,null,null,null,"",""]
[null,null,null,null,null,null,null,null,null,null,"",""]
[null,null,null,null,null,null,null,null,null,null,"",""]
[null,null,null,null,null,null,null,null,null,null,"",""]
[null,null,null,null,null,null,null,null,null,null,"",""]
[null,null,null,null,null,null,null,null,null,null,"",""]
[null,null,null,null,null,null,null,null,null,null,"",""]
[null,null,null,null,null,null,null,null,null,null,"",""]
[null,null,null,null,null,null,null,null,null,null,"",""]
[null,null,null,null,null,null,null,null,null,null,"",""]
[null,null,null,null,null,null,null,null,null,null,"",""]
[null,null,null,null,null,null,null,null,null,null,"",""]
[null,null,null,null,null,null,null,null,null,null,"",""]
[null,null,null,null,null,null,null,null,null,null,"",""]
[null,null,null,null,null,null,null,null,null,null,"",""]
[null,null,null,null,null,null,null,null,null,null,"",""]
[null,null,null,null,null,null,null,null,null,null,"",""]
[null,null,null,null,null,null,null,null,null,null,"",""]
[null,null,null,null,null,null,null,null,null,null,"",""]
[null,null,null,null,null,null,null,null,null,null,"",""]
[null,null,null,null,null,null,null,null,null,null,"",""]
[null,null,null,null,null,null,null,null,null,null,"",""]
[null,null,null,null,null,null,null,null,null,null,"",""]
[null,null,null,null,null,null,null,null,null,null,"",""]
[null,null,null,null,null,null,null,null,null,null,"",""]
[null,null,null,null,null,null,null,null,null,null,"",""]
[null,null,null,null,null,null,null,null,null,null,"",""]
[null,null,null,null,null,null,null,null,null,null,"",""]
[null,null,null,null,null,null,null,null,null,null,"",""]
[null,null,null,null,null,null,null,null,null,null,"",""]
[null,null,null,null,null,null,null,null,null,null,"",""]
[null,null,null,null,null,null,null,null,null,null,"",""]
[null,null,null,null,null,null,null,null,null,null,"",""]
[null,null,null,null,null,null,null,null,null,null,"",""]
[null,null,null,null,null,null,null,null,null,null,"",""]
[null,null,null,null,null,null,null,null,null,null,"",""]
[null,null,null,null,null,null,null,null,null,null,"",""]
[null,null,null,null,null,null,null,null,null,null,"",""]
[null,null,null,null,null,null,null,null,null,null,"",""]
[null,null,null,null,null,null,null,null,null,null,"",""]
[null,null,null,null,null,null,null,null,null,null,"",""]
[null,null,null,null,null,null,null,null,null,null,"",""]
[null,null,null,null,null,null,null,null,null,null,"",""]
[null,null,null,null,null,null,null,null,null,null,"",""]
[null,null,null,null,null,null,null,null,null,null,"",""]
[null,null,null,null,null,null,null,null,null,null,"",""]
[null,null,null,null,null,null,null,null,null,null,"",""]
[null,null,null,null,null,null,null,null,null,null,"",""]
[null,null,null,null,null,null,null,null,null,null,"",""]
[null,null,null,null,null,null,null,null,null,null,"",""]
[null,null,null,null,null,null,null,null,null,null,"",""]
[null,null,null,null,null,null,null,null,null,null,"",""]
[null,null,null,null,null,null,null,null,null,null,"",""]
[null,null,null,null,null,null,null,null,null,null,"",""]
[null,null,null,null,null,null,null,null,null,null,"",""]
[null,null,null,null,null,null,null,null,null,null,"",""]
[null,null,null,null,null,null,null,null,null,null,"",""]
[null,null,null,null,null,null,null,null,null,null,"",""]
[null,null,null,null,null,null,null,null,null,null,"",""]
[null,null,null,null,null,null,null,null,null,null,"",""]
[null,null,null,null,null,null,null,null,null,null,"",""]
[null,null,null,null,null,null,null,null,null,null,"",""]
[null,null,null,null,null,null,null,null,null,null,"",""]
[null,null,null,null,null,null,null,null,null,null,"",""]
[null,null,null,null,null,null,null,null,null,null,"",""]
[null,null,null,null,null,null,null,null,null,null,"",""]
[null,null,null,null,null,null,null,null,null,null,"",""]
[null,null,null,null,null,null,null,null,null,null,"",""]
[null,null,null,null,null,null,null,null,null,null,"",""]
[null,null,null,null,null,null,null,null,null,null,"",""]
[null,null,null,null,null,null,null,null,null,null,"",""]
[null,null,null,null,null,null,null,null,null,null,"",""]
[null,null,null,null,null,null,null,null,null,null,"",""]
[null,null,null,null,null,null,null,null,null,null,"",""]
[null,null,null,null,null,null,null,null,null,null,"",""]
[null,null,null,null,null,null,null,null,null,null,"",""]
[null,null,null,null,null,null,null,null,null,null,"",""]
[null,null,null,null,null,null,null,null,null,null,"",""]
[null,null,null,null,null,null,null,null,null,null,"",""]
[null,null,null,null,null,null,null,null,null,null,"",""]
[null,null,null,null,null,null,null,null,null,null,"",""]
[null,null,null,null,null,null,null,null,null,null,"",""]
[null,null,null,null,null,null,null,null,null,null,"",""]
[null,null,null,null,null,null,null,null,null,null,"",""]
[null,null,null,null,null,null,null,null,null,null,"",""]
[null,null,null,null,null,null,null,null,null,null,"",""]
[null,null,null,null,null,null,null,null,null,null,"",""]
[null,null,null,null,null,null,null,null,null,null,"",""]
[null,null,null,null,null,null,null,null,null,null,"",""]
[null,null,null,null,null,null,null,null,null,null,"",""]
[null,null,null,null,null,null,null,null,null,null,"",""]
[null,null,null,null,null,null,null,null,null,null,"",""]
[null,null,null,null,null,null,null,null,null,null,"",""]
[null,null,null,null,null,null,null,null,null,null,"",""]
[null,null,null,null,null,null,null,null,null,null,"",""]
[null,null,null,null,null,null,null,null,null,null,"",""]
[null,null,null,null,null,null,null,null,null,null,"",""]
[null,null,null,null,null,null,null,null,null,null,"",""]
[null,null,null,null,null,null,null,null,null,null,"",""]
[null,null,null,null,null,null,null,null,null,null,"",""]
[null,null,null,null,null,null,null,null,null,null,"",""]
[null,null,null,null,null,null,null,null,null,null,"",""]
[null,null,null,null,null,null,null,null,null,null,"",""]
[null,null,null,null,null,null,null,null,null,null,"",""]
[null,null,null,null,null,null,null,null,null,null,"",""]
[null,null,null,null,null,null,null,null,null,null,"",""]
[null,null,null,null,null,null,null,null,null,null,"",""]
[null,null,null,null,null,null,null,null,null,null,"",""]
[null,null,null,null,null,null,null,null,null,null,"",""]
[null,null,null,null,null,null,null,null,null,null,"",""]
[null,null,null,null,null,null,null,null,null,null,"",""]
[null,null,null,null,null,null,null,null,null,null,"",""]
[null,null,null,null,null,null,null,null,null,null,"",""]
[null,null,null,null,null,null,null,null,null,null,"",""]
[null,null,null,null,null,null,null,null,null,null,"",""]
[null,null,null,null,null,null,null,null,null,null,"",""]
[null,null,null,null,null,null,null,null,null,null,"",""]
[null,null,null,null,null,null,null,null,null,null,"",""]
[null,null,null,null,null,null,null,null,null,null,"",""]
[null,null,null,null,null,null,null,null,null,null,"",""]
[null,null,null,null,null,null,null,null,null,null,"",""]
[null,null,null,null,null,null,null,null,null,null,"",""]
[null,null,null,null,null,null,null,null,null,null,"",""]
[null,null,null,null,null,null,null,null,null,null,"",""]
[null,null,null,null,null,null,null,null,null,null,"",""]
[null,null,null,null,null,null,null,null,null,null,"",""]
[null,null,null,null,null,null,null,null,null,null,"",""]
[null,null,null,null,null,null,null,null,null,null,"",""]
[null,null,null,null,null,null,null,null,null,null,"",""]
[null,null,null,null,null,null,null,null,null,null,"",""]
[null,null,null,null,null,null,null,null,null,null,"",""]
[null,null,null,null,null,null,null,null,null,null,"",""]
[null,null,null,null,null,null,null,null,null,null,"",""]
[null,null,null,null,null,null,null,null,null,null,"",""]
[null,null,null,null,null,null,null,null,null,null,"",""]
[null,null,null,null,null,null,null,null,null,null,"",""]
[null,null,null,null,null,null,null,null,null,null,"",""]
[null,null,null,null,null,null,null,null,null,null,{"$f":"IF($C14519=\"\",\"\",YEAR($C14519))","v":""},{"$f":"IF($C14519=\"\",\"\",TEXT($C14519,\"MMMM\"))","v":""}]
[null,null,null,null,null,null,null,null,null,null,"",""]
[null,null,null,null,null,null,null,null,null,null,"",""]
[null,null,null,null,null,null,null,null,null,null,"",""]
[null,null,null,null,null,null,null,null,null,null,"",""]
[null,null,null,null,null,null,null,null,null,null,"",""]
[null,null,null,null,null,null,null,null,null,null,"",""]
[null,null,null,null,null,null,null,null,null,null,"",""]
[null,null,null,null,null,null,null,null,null,null,"",""]
[null,null,null,null,null,null,null,null,null,null,"",""]
[null,null,null,null,null,null,null,null,null,null,"",""]
[null,null,null,null,null,null,null,null,null,null,"",""]
[null,null,null,null,null,null,null,null,null,null,"",""]
[null,null,null,null,null,null,null,null,null,null,"",""]
[null,null,null,null,null,null,null,null,null,null,"",""]
[null,null,null,null,null,null,null,null,null,null,"",""]
[null,null,null,null,null,null,null,null,null,null,"",""]
[null,null,null,null,null,null,null,null,null,null,"",""]
[null,null,null,null,null,null,null,null,null,null,"",""]
[null,null,null,null,null,null,null,null,null,null,"",""]
[null,null,null,null,null,null,null,null,null,null,"",""]
[null,null,null,null,null,null,null,null,null,null,"",""]
[null,null,null,null,null,null,null,null,null,null,"",""]
[null,null,null,null,null,null,null,null,null,null,"",""]
[null,null,null,null,null,null,null,null,null,null,"",""]
[null,null,null,null,null,null,null,null,null,null,"",""]
[null,null,null,null,null,null,null,null,null,null,"",""]
[null,null,null,null,null,null,null,null,null,null,"",""]
[null,null,null,null,null,null,null,null,null,null,"",""]
[null,null,null,null,null,null,null,null,null,null,"",""]
[null,null,null,null,null,null,null,null,null,null,"",""]
[null,null,null,null,null,null,null,null,null,null,"",""]
[null,null,null,null,null,null,null,null,null,null,"",""]
[null,null,null,null,null,null,null,null,null,null,"",""]
[null,null,null,null,null,null,null,null,null,null,"",""]
[null,null,null,null,null,null,null,null,null,null,"",""]
[null,null,null,null,null,null,null,null,null,null,"",""]
[null,null,null,null,null,null,null,null,null,null,"",""]
[null,null,null,null,null,null,null,null,null,null,"",""]
[null,null,null,null,null,null,null,null,null,null,"",""]
[null,null,null,null,null,null,null,null,null,null,"",""]
[null,null,null,null,null,null,null,null,null,null,"",""]
[null,null,null,null,null,null,null,null,null,null,"",""]
[null,null,null,null,null,null,null,null,null,null,"",""]
[null,null,null,null,null,null,null,null,null,null,"",""]
[null,null,null,null,null,null,null,null,null,null,"",""]
[null,null,null,null,null,null,null,null,null,null,"",""]
[null,null,null,null,null,null,null,null,null,null,"",""]
[null,null,null,null,null,null,null,null,null,null,"",""]
[null,null,null,null,null,null,null,null,null,null,"",""]
[null,null,null,null,null,null,null,null,null,null,"",""]
[null,null,null,null,null,null,null,null,null,null,"",""]
[null,null,null,null,null,null,null,null,null,null,"",""]
[null,null,null,null,null,null,null,null,null,null,"",""]
[null,null,null,null,null,null,null,null,null,null,"",""]
[null,null,null,null,null,null,null,null,null,null,"",""]
[null,null,null,null,null,null,null,null,null,null,"",""]
[null,null,null,null,null,null,null,null,null,null,"",""]
[null,null,null,null,null,null,null,null,null,null,{"$f":"IF($C15031=\"\",\"\",YEAR($C15031))","v":""},{"$f":"IF($C15031=\"\",\"\",TEXT($C15031,\"MMMM\"))","v":""}]
[null,null,null,null,null,null,null,null,null,null,"",""]
[null,null,null,null,null,null,null,null,null,null,"",""]
[null,null,null,null,null,null,null,null,null,null,"",""]
[null,null,null,null,null,null,null,null,null,null,"",""]
[null,null,null,null,null,null,null,null,null,null,"",""]
[null,null,null,null,null,null,null,null,null,null,"",""]
[null,null,null,null,null,null,null,null,null,null,"",""]
[null,null,null,null,null,null,null,null,null,null,"",""]
[null,null,null,null,null,null,null,null,null,null,"",""]
[null,null,null,null,null,null,null,null,null,null,"",""]
[null,null,null,null,null,null,null,null,null,null,"",""]
[null,null,null,null,null,null,null,null,null,null,"",""]
[null,null,null,null,null,null,null,null,null,null,"",""]
[null,null,null,null,null,null,null,null,null,null,"",""]
[null,null,null,null,null,null,null,null,null,null,"",""]
[null,null,null,null,null,null,null,null,null,null,"",""]
[null,null,null,null,null,null,null,null,null,null,"",""]
[null,null,null,null,null,null,null,null,null,null,"",""]
[null,null,null,null,null,null,null,null,null,null,"",""]
[null,null,null,null,null,null,null,null,null,null,"",""]
[null,null,null,null,null,null,null,null,null,null,"",""]
[null,null,null,null,null,null,null,null,null,null,"",""]
[null,null,null,null,null,null,null,null,null,null,"",""]
[null,null,null,null,null,null,null,null,null,null,"",""]
[null,null,null,null,null,null,null,null,null,null,"",""]
[null,null,null,null,null,null,null,null,null,null,"",""]
[null,null,null,null,null,null,null,null,null,null,"",""]
[null,null,null,null,null,null,null,null,null,null,"",""]
[null,null,null,null,null,null,null,null,null,null,"",""]
[null,null,null,null,null,null,null,null,null,null,"",""]
[null,null,null,null,null,null,null,null,null,null,"",""]
[null,null,null,null,null,null,null,null,null,null,"",""]
[null,null,null,null,null,null,null,null,null,null,"",""]
[null,null,null,null,null,null,null,null,null,null,"",""]
[null,null,null,null,null,null,null,null,null,null,"",""]
[null,null,null,null,null,null,null,null,null,null,"",""]
[null,null,null,null,null,null,null,null,null,null,{"$f":"IF($C15351=\"\",\"\",YEAR($C15351))","v":""},{"$f":"IF($C15351=\"\",\"\",TEXT($C15351,\"MMMM\"))","v":""}]
[null,null,null,null,null,null,null,null,null,null,"",""]
[null,null,null,null,null,null,null,null,null,null,"",""]
[null,null,null,null,null,null,null,null,null,null,"",""]
[null,null,null,null,null,null,null,null,null,null,"",""]
[null,null,null,null,null,null,null,null,null,null,"",""]
[null,null,null,null,null,null,null,null,null,null,"",""]
[null,null,null,null,null,null,null,null,null,null,"",""]
[null,null,null,null,null,null,null,null,null,null,"",""]
[null,null,null,null,null,null,null,null,null,null,"",""]
[null,null,null,null,null,null,null,null,null,null,"",""]
[null,null,null,null,null,null,null,null,null,null,"",""]
[null,null,null,null,null,null,null,null,null,null,"",""]
[null,null,null,null,null,null,null,null,null,null,"",""]
[null,null,null,null,null,null,null,null,null,null,"",""]
[null,null,null,null,null,null,null,null,null,null,"",""]
[null,null,null,null,null,null,null,null,null,null,"",""]
[null,null,null,null,null,null,null,null,null,null,"",""]
[null,null,null,null,null,null,null,null,null,null,"",""]
[null,null,null,null,null,null,null,null,null,null,"",""]
[null,null,null,null,null,null,null,null,null,null,"",""]
[null,null,null,null,null,null,null,null,null,null,"",""]
[null,null,null,null,null,null,null,null,null,null,"",""]
[null,null,null,null,null,null,null,null,null,null,"",""]
[null,null,null,null,null,null,null,null,null,null,"",""]
[null,null,null,null,null,null,null,null,null,null,"",""]
[null,null,null,null,null,null,null,null,null,null,"",""]
[null,null,null,null,null,null,null,null,null,null,"",""]
[null,null,null,null,null,null,null,null,null,null,"",""]
[null,null,null,null,null,null,null,null,null,null,"",""]
[null,null,null,null,null,null,null,null,null,null,"",""]
[null,null,null,null,null,null,null,null,null,null,"",""]
[null,null,null,null,null,null,null,null,null,null,"",""]
[null,null,null,null,null,null,null,null,null,null,"",""]
[null,null,null,null,null,null,null,null,null,null,"",""]
[null,null,null,null,null,null,null,null,null,null,"",""]
[null,null,null,null,null,null,null,null,null,null,"",""]
[null,null,null,null,null,null,null,null,null,null,"",""]
[null,null,null,null,null,null,null,null,null,null,"",""]
[null,null,null,null,null,null,null,null,null,null,"",""]
[null,null,null,null,null,null,null,null,null,null,"",""]
[null,null,null,null,null,null,null,null,null,null,"",""]
[null,null,null,null,null,null,null,null,null,null,"",""]
[null,null,null,null,null,null,null,null,null,null,"",""]
[null,null,null,null,null,null,null,null,null,null,"",""]
[null,null,null,null,null,null,null,null,null,null,"",""]
[null,null,null,null,null,null,null,null,null,null,"",""]
[null,null,null,null,null,null,null,null,null,null,"",""]
[null,null,null,null,null,null,null,null,null,null,"",""]
[null,null,null,null,null,null,null,null,null,null,"",""]
[null,null,null,null,null,null,null,null,null,null,"",""]
[null,null,null,null,null,null,null,null,null,null,"",""]
[null,null,null,null,null,null,null,null,null,null,"",""]
[null,null,null,null,null,null,null,null,null,null,"",""]
[null,null,null,null,null,null,null,null,null,null,"",""]
[null,null,null,null,null,null,null,null,null,null,"",""]
[null,null,null,null,null,null,null,null,null,null,"",""]
[null,null,null,null,null,null,null,null,null,null,"",""]
[null,null,null,null,null,null,null,null,null,null,"",""]
[null,null,null,null,null,null,null,null,null,null,"",""]
[null,null,null,null,null,null,null,null,null,null,"",""]
[null,null,null,null,null,null,null,null,null,null,"",""]
[null,null,null,null,null,null,null,null,null,null,"",""]
[null,null,null,null,null,null,null,null,null,null,"",""]
[null,null,null,null,null,null,null,null,null,null,"",""]
[null,null,null,null,null,null,null,null,null,null,"",""]
[null,null,null,null,null,null,null,null,null,null,"",""]
[null,null,null,null,null,null,null,null,null,null,"",""]
[null,null,null,null,null,null,null,null,null,null,"",""]
[null,null,null,null,null,null,null,null,null,null,"",""]
[null,null,null,null,null,null,null,null,null,null,"",""]
[null,null,null,null,null,null,null,null,null,null,"",""]
[null,null,null,null,null,null,null,null,null,null,"",""]
[null,null,null,null,null,null,null,null,null,null,"",""]
[null,null,null,null,null,null,null,null,null,null,"",""]
[null,null,null,null,null,null,null,null,null,null,"",""]
[null,null,null,null,null,null,null,null,null,null,"",""]
[null,null,null,null,null,null,null,null,null,null,"",""]
[null,null,null,null,null,null,null,null,null,null,"",""]
[null,null,null,null,null,null,null,null,null,null,"",""]
[null,null,null,null,null,null,null,null,null,null,"",""]
[null,null,null,null,null,null,null,null,null,null,"",""]
[null,null,null,null,null,null,null,null,null,null,"",""]
[null,null,null,null,null,null,null,null,null,null,"",""]
[null,null,null,null,null,null,null,null,null,null,"",""]
[null,null,null,null,null,null,null,null,null,null,"",""]
[null,null,null,null,null,null,null,null,null,null,"",""]
[null,null,null,null,null,null,null,null,null,null,"",""]
[null,null,null,null,null,null,null,null,null,null,"",""]
[null,null,null,null,null,null,null,null,null,null,"",""]
[null,null,null,null,null,null,null,null,null,null,"",""]
[null,null,null,null,null,null,null,null,null,null,"",""]
[null,null,null,null,null,null,null,null,null,null,"",""]
[null,null,null,null,null,null,null,null,null,null,"",""]
[null,null,null,null,null,null,null,null,null,null,"",""]
[null,null,null,null,null,null,null,null,null,null,"",""]
[null,null,null,null,null,null,null,null,null,null,"",""]
[null,null,null,null,null,null,null,null,null,null,"",""]
[null,null,null,null,null,null,null,null,null,null,"",""]
[null,null,null,null,null,null,null,null,null,null,"",""]
[null,null,null,null,null,null,null,null,null,null,"",""]
[null,null,null,null,null,null,null,null,null,null,"",""]
[null,null,null,null,null,null,null,null,null,null,"",""]
[null,null,null,null,null,null,null,null,null,null,"",""]
[null,null,null,null,null,null,null,null,null,null,"",""]
[null,null,null,null,null,null,null,null,null,null,"",""]
[null,null,null,null,null,null,null,null,null,null,"",""]
[null,null,null,null,null,null,null,null,null,null,"",""]
[null,null,null,null,null,null,null,null,null,null,"",""]
[null,null,null,null,null,null,null,null,null,null,"",""]
[null,null,null,null,null,null,null,null,null,null,"",""]
[null,null,null,null,null,null,null,null,null,null,"",""]
[null,null,null,null,null,null,null,null,null,null,"",""]
[null,null,null,null,null,null,null,null,null,null,"",""]
[null,null,null,null,null,null,null,null,null,null,"",""]
[null,null,null,null,null,null,null,null,null,null,"",""]
[null,null,null,null,null,null,null,null,null,null,"",""]
[null,null,null,null,null,null,null,null,null,null,"",""]
[null,null,null,null,null,null,null,null,null,null,"",""]
[null,null,null,null,null,null,null,null,null,null,"",""]
[null,null,null,null,null,null,null,null,null,null,"",""]
[null,null,null,null,null,null,null,null,null,null,"",""]
[null,null,null,null,null,null,null,null,null,null,"",""]
[null,null,null,null,null,null,null,null,null,null,"",""]
[null,null,null,null,null,null,null,null,null,null,"",""]
[null,null,null,null,null,null,null,null,null,null,"",""]
[null,null,null,null,null,null,null,null,null,null,"",""]
[null,null,null,null,null,null,null,null,null,null,"",""]
[null,null,null,null,null,null,null,null,null,null,"",""]
[null,null,null,null,null,null,null,null,null,null,"",""]
[null,null,null,null,null,null,null,null,null,null,"",""]
[null,null,null,null,null,null,null,null,null,null,"",""]
[null,null,null,null,null,null,null,null,null,null,"",""]
[null,null,null,null,null,null,null,null,null,null,"",""]
[null,null,null,null,null,null,null,null,null,null,"",""]
[null,null,null,null,null,null,null,null,null,null,"",""]
[null,null,null,null,null,null,null,null,null,null,"",""]
[null,null,null,null,null,null,null,null,null,null,"",""]
[null,null,null,null,null,null,null,null,null,null,"",""]
[null,null,null,null,null,null,null,null,null,null,"",""]
[null,null,null,null,null,null,null,null,null,null,"",""]
[null,null,null,null,null,null,null,null,null,null,"",""]
[null,null,null,null,null,null,null,null,null,null,"",""]
[null,null,null,null,null,null,null,null,null,null,"",""]
[null,null,null,null,null,null,null,null,null,null,"",""]
[null,null,null,null,null,null,null,null,null,null,"",""]
[null,null,null,null,null,null,null,null,null,null,"",""]
[null,null,null,null,null,null,null,null,null,null,"",""]
[null,null,null,null,null,null,null,null,null,null,"",""]
[null,null,null,null,null,null,null,null,null,null,"",""]
[null,null,null,null,null,null,null,null,null,null,"",""]
[null,null,null,null,null,null,null,null,null,null,"",""]
[null,null,null,null,null,null,null,null,null,null,"",""]
[null,null,null,null,null,null,null,null,null,null,"",""]
[null,null,null,null,null,null,null,null,null,null,"",""]
[null,null,null,null,null,null,null,null,null,null,"",""]
[null,null,null,null,null,null,null,null,null,null,"",""]
[null,null,null,null,null,null,null,null,null,null,"",""]
[null,null,null,null,null,null,null,null,null,null,"",""]
[null,null,null,null,null,null,null,null,null,null,"",""]
[null,null,null,null,null,null,null,null,null,null,"",""]
[null,null,null,null,null,null,null,null,null,null,"",""]
[null,null,null,null,null,null,null,null,null,null,"",""]
[null,null,null,null,null,null,null,null,null,null,"",""]
[null,null,null,null,null,null,null,null,null,null,"",""]
[null,null,null,null,null,null,null,null,null,null,"",""]
[null,null,null,null,null,null,null,null,null,null,"",""]
[null,null,null,null,null,null,null,null,null,null,"",""]
[null,null,null,null,null,null,null,null,null,null,{"$f":"IF($C16823=\"\",\"\",YEAR($C16823))","v":""},{"$f":"IF($C16823=\"\",\"\",TEXT($C16823,\"MMMM\"))","v":""}]
[null,null,null,null,null,null,null,null,null,null,"",""]
[null,null,null,null,null,null,null,null,null,null,"",""]
[null,null,null,null,null,null,null,null,null,null,"",""]
[null,null,null,null,null,null,null,null,null,null,"",""]
[null,null,null,null,null,null,null,null,null,null,"",""]
[null,null,null,null,null,null,null,null,null,null,"",""]
[null,null,null,null,null,null,null,null,null,null,"",""]
[null,null,null,null,null,null,null,null,null,null,"",""]
[null,null,null,null,null,null,null,null,null,null,"",""]
[null,null,null,null,null,null,null,null,null,null,"",""]
[null,null,null,null,null,null,null,null,null,null,"",""]
[null,null,null,null,null,null,null,null,null,null,"",""]
[null,null,null,null,null,null,null,null,null,null,"",""]
[null,null,null,null,null,null,null,null,null,null,"",""]
[null,null,null,null,null,null,null,null,null,null,{"$f":"IF($C16951=\"\",\"\",YEAR($C16951))","v":""},{"$f":"IF($C16951=\"\",\"\",TEXT($C16951,\"MMMM\"))","v":""}]
[null,null,null,null,null,null,null,null,null,null,"",""]
[null,null,null,null,null,null,null,null,null,null,"",""]
[null,null,null,null,null,null,null,null,null,null,"",""]
[null,null,null,null,null,null,null,null,null,null,"",""]
[null,null,null,null,null,null,null,null,null,null,"",""]
[null,null,null,null,null,null,null,null,null,null,"",""]
[null,null,null,null,null,null,null,null,null,null,"",""]
[null,null,null,null,null,null,null,null,null,null,"",""]
[null,null,null,null,null,null,null,null,null,null,"",""]
[null,null,null,null,null,null,null,null,null,null,"",""]
[null,null,null,null,null,null,null,null,null,null,"",""]
[null,null,null,null,null,null,null,null,null,null,"",""]
[null,null,null,null,null,null,null,null,null,null,"",""]
[null,null,null,null,null,null,null,null,null,null,"",""]
[null,null,null,null,null,null,null,null,null,null,"",""]
[null,null,null,null,null,null,null,null,null,null,"",""]
[null,null,null,null,null,null,null,null,null,null,"",""]
[null,null,null,null,null,null,null,null,null,null,"",""]
[null,null,null,null,null,null,null,null,null,null,"",""]
[null,null,null,null,null,null,null,null,null,null,"",""]
[null,null,null,null,null,null,null,null,null,null,"",""]
[null,null,null,null,null,null,null,null,null,null,{"$f":"IF($C17143=\"\",\"\",YEAR($C17143))","v":""},{"$f":"IF($C17143=\"\",\"\",TEXT($C17143,\"MMMM\"))","v":""}]
[null,null,null,null,null,null,null,null,null,null,"",""]
[null,null,null,null,null,null,null,null,null,null,"",""]
[null,null,null,null,null,null,null,null,null,null,"",""]
[null,null,null,null,null,null,null,null,null,null,"",""]
[null,null,null,null,null,null,null,null,null,null,"",""]
[null,null,null,null,null,null,null,null,null,null,"",""]
[null,null,null,null,null,null,null,null,null,null,"",""]
[null,null,null,null,null,null,null,null,null,null,"",""]
[null,null,null,null,null,null,null,null,null,null,"",""]
[null,null,null,null,null,null,null,null,null,null,"",""]
[null,null,null,null,null,null,null,null,null,null,"",""]
[null,null,null,null,null,null,null,null,null,null,"",""]
[null,null,null,null,null,null,null,null,null,null,"",""]
[null,null,null,null,null,null,null,null,null,null,"",""]
[null,null,null,null,null,null,null,null,null,null,"",""]
[null,null,null,null,null,null,null,null,null,null,"",""]
[null,null,null,null,null,null,null,null,null,null,"",""]
[null,null,null,null,null,null,null,null,null,null,"",""]
[null,null,null,null,null,null,null,null,null,null,"",""]
[null,null,null,null,null,null,null,null,null,null,"",""]
[null,null,null,null,null,null,null,null,null,null,"",""]
[null,null,null,null,null,null,null,null,null,null,"",""]
[null,null,null,null,null,null,null,null,null,null,"",""]
[null,null,null,null,null,null,null,null,null,null,"",""]
[null,null,null,null,null,null,null,null,null,null,"",""]
[null,null,null,null,null,null,null,null,null,null,"",""]
[null,null,null,null,null,null,null,null,null,null,"",""]
[null,null,null,null,null,null,null,null,null,null,"",""]
[null,null,null,null,null,null,null,null,null,null,"",""]
[null,null,null,null,null,null,null,null,null,null,"",""]
[null,null,null,null,null,null,null,null,null,null,"",""]
[null,null,null,null,null,null,null,null,null,null,"",""]
[null,null,null,null,null,null,null,null,null,null,"",""]
[null,null,null,null,null,null,null,null,null,null,"",""]
[null,null,null,null,null,null,null,null,null,null,"",""]
[null,null,null,null,null,null,null,null,null,null,"",""]
[null,null,null,null,null,null,null,null,null,null,"",""]
[null,null,null,null,null,null,null,null,null,null,"",""]
[null,null,null,null,null,null,null,null,null,null,"",""]
[null,null,null,null,null,null,null,null,null,null,"",""]
[null,null,null,null,null,null,null,null,null,null,"",""]
[null,null,null,null,null,null,null,null,null,null,"",""]
[null,null,null,null,null,null,null,null,null,null,"",""]
[null,null,null,null,null,null,null,null,null,null,"",""]
[null,null,null,null,null,null,null,null,null,null,"",""]
[null,null,null,null,null,null,null,null,null,null,"",""]
[null,null,null,null,null,null,null,null,null,null,"",""]
[null,null,null,null,null,null,null,null,null,null,"",""]
[null,null,null,null,null,null,null,null,null,null,"",""]
[null,null,null,null,null,null,null,null,null,null,"",""]
[null,null,null,null,null,null,null,null,null,null,"",""]
[null,null,null,null,null,null,null,null,null,null,"",""]
[null,null,null,null,null,null,null,null,null,null,"",""]
[null,null,null,null,null,null,null,null,null,null,"",""]
[null,null,null,null,null,null,null,null,null,null,"",""]
[null,null,null,null,null,null,null,null,null,null,"",""]
[null,null,null,null,null,null,null,null,null,null,"",""]
[null,null,null,null,null,null,null,null,null,null,"",""]
[null,null,null,null,null,null,null,null,null,null,"",""]
[null,null,null,null,null,null,null,null,null,null,"",""]
[null,null,null,null,null,null,null,null,null,null,"",""]
[null,null,null,null,null,null,null,null,null,null,"",""]
[null,null,null,null,null,null,null,null,null,null,"",""]
[null,null,null,null,null,null,null,null,null,null,"",""]
[null,null,null,null,null,null,null,null,null,null,"",""]
[null,null,null,null,null,null,null,null,null,null,"",""]
[null,null,null,null,null,null,null,null,null,null,"",""]
[null,null,null,null,null,null,null,null,null,null,"",""]
[null,null,null,null,null,null,null,null,null,null,"",""]
[null,null,null,null,null,null,null,null,null,null,"",""]
[null,null,null,null,null,null,null,null,null,null,"",""]
[null,null,null,null,null,null,null,null,null,null,"",""]
[null,null,null,null,null,null,null,null,null,null,"",""]
[null,null,null,null,null,null,null,null,null,null,"",""]
[null,null,null,null,null,null,null,null,null,null,"",""]
[null,null,null,null,null,null,null,null,null,null,"",""]
[null,null,null,null,null,null,null,null,null,null,"",""]
[null,null,null,null,null,null,null,null,null,null,"",""]
[null,null,null,null,null,null,null,null,null,null,"",""]
[null,null,null,null,null,null,null,null,null,null,"",""]
[null,null,null,null,null,null,null,null,null,null,"",""]
[null,null,null,null,null,null,null,null,null,null,"",""]
[null,null,null,null,null,null,null,null,null,null,"",""]
[null,null,null,null,null,null,null,null,null,null,"",""]
[null,null,null,null,null,null,null,null,null,null,"",""]
[null,null,null,null,null,null,null,null,null,null,"",""]
[null,null,null,null,null,null,null,null,null,null,"",""]
[null,null,null,null,null,null,null,null,null,null,"",""]
[null,null,null,null,null,null,null,null,null,null,"",""]
[null,null,null,null,null,null,null,null,null,null,"",""]
[null,null,null,null,null,null,null,null,null,null,"",""]
[null,null,null,null,null,null,null,null,null,null,"",""]
[null,null,null,null,null,null,null,null,null,null,"",""]
[null,null,null,null,null,null,null,null,null,null,"",""]
[null,null,null,null,null,null,null,null,null,null,"",""]
[null,null,null,null,null,null,null,null,null,null,"",""]
[null,null,null,null,null,null,null,null,null,null,"",""]
[null,null,null,null,null,null,null,null,null,null,"",""]
[null,null,null,null,null,null,null,null,null,null,"",""]
[null,null,null,null,null,null,null,null,null,null,"",""]
[null,null,null,null,null,null,null,null,null,null,"",""]
[null,null,null,null,null,null,null,null,null,null,"",""]
[null,null,null,null,null,null,null,null,null,null,"",""]
[null,null,null,null,null,null,null,null,null,null,"",""]
[null,null,null,null,null,null,null,null,null,null,"",""]
[null,null,null,null,null,null,null,null,null,null,"",""]
[null,null,null,null,null,null,null,null,null,null,"",""]
[null,null,null,null,null,null,null,null,null,null,"",""]
[null,null,null,null,null,null,null,null,null,null,"",""]
[null,null,null,null,null,null,null,null,null,null,"",""]
[null,null,null,null,null,null,null,null,null,null,"",""]
[null,null,null,null,null,null,null,null,null,null,"",""]
[null,null,null,null,null,null,null,null,null,null,"",""]
[null,null,null,null,null,null,null,null,null,null,"",""]
[null,null,null,null,null,null,null,null,null,null,"",""]
[null,null,null,null,null,null,null,null,null,null,"",""]
[null,null,null,null,null,null,null,null,null,null,"",""]
[null,null,null,null,null,null,null,null,null,null,"",""]
[null,null,null,null,null,null,null,null,null,null,"",""]
[null,null,null,null,null,null,null,null,null,null,"",""]
[null,null,null,null,null,null,null,null,null,null,"",""]
[null,null,null,null,null,null,null,null,null,null,"",""]
[null,null,null,null,null,null,null,null,null,null,"",""]
[null,null,null,null,null,null,null,null,null,null,"",""]
[null,null,null,null,null,null,null,null,null,null,"",""]
[null,null,null,null,null,null,null,null,null,null,"",""]
[null,null,null,null,null,null,null,null,null,null,"",""]
[null,null,null,null,null,null,null,null,null,null,"",""]
[null,null,null,null,null,null,null,null,null,null,"",""]
[null,null,null,null,null,null,null,null,null,null,"",""]
[null,null,null,null,null,null,null,null,null,null,"",""]
[null,null,null,null,null,null,null,null,null,null,"",""]
[null,null,null,null,null,null,null,null,null,null,"",""]
[null,null,null,null,null,null,null,null,null,null,"",""]
[null,null,null,null,null,null,null,null,null,null,"",""]
[null,null,null,null,null,null,null,null,null,null,"",""]
[null,null,null,null,null,null,null,null,null,null,"",""]
[null,null,null,null,null,null,null,null,null,null,"",""]
[null,null,null,null,null,null,null,null,null,null,"",""]
[null,null,null,null,null,null,null,null,null,null,"",""]
[null,null,null,null,null,null,null,null,null,null,"",""]
[null,null,null,null,null,null,null,null,null,null,"",""]
[null,null,null,null,null,null,null,null,null,null,"",""]
[null,null,null,null,null,null,null,null,null,null,"",""]
[null,null,null,null,null,null,null,null,null,null,"",""]
[null,null,null,null,null,null,null,null,null,null,"",""]
[null,null,null,null,null,null,null,null,null,null,"",""]
[null,null,null,null,null,null,null,null,null,null,"",""]
[null,null,null,null,null,null,null,null,null,null,"",""]
[null,null,null,null,null,null,null,null,null,null,"",""]
[null,null,null,null,null,null,null,null,null,null,"",""]
[null,null,null,null,null,null,null,null,null,null,"",""]
[null,null,null,null,null,null,null,null,null,null,"",""]
[null,null,null,null,null,null,null,null,null,null,"",""]
[null,null,null,null,null,null,null,null,null,null,"",""]
[null,null,null,null,null,null,null,null,null,null,"",""]
[null,null,null,null,null,null,null,null,null,null,"",""]
[null,null,null,null,null,null,null,null,null,null,"",""]
[null,null,null,null,null,null,null,null,null,null,"",""]
[null,null,null,null,null,null,null,null,null,null,"",""]
[null,null,null,null,null,null,null,null,null,null,"",""]
[null,null,null,null,null,null,null,null,null,null,"",""]
[null,null,null,null,null,null,null,null,null,null,"",""]
[null,null,null,null,null,null,null,null,null,null,"",""]
[null,null,null,null,null,null,null,null,null,null,"",""]
[null,null,null,null,null,null,null,null,null,null,"",""]
[null,null,null,null,null,null,null,null,null,null,"",""]
[null,null,null,null,null,null,null,null,null,null,{"$f":"IF($C18615=\"\",\"\",YEAR($C18615))","v":""},{"$f":"IF($C18615=\"\",\"\",TEXT($C18615,\"MMMM\"))","v":""}]
[null,null,null,null,null,null,null,null,null,null,"",""]
[null,null,null,null,null,null,null,null,null,null,"",""]
[null,null,null,null,null,null,null,null,null,null,"",""]
[null,null,null,null,null,null,null,null,null,null,"",""]
[null,null,null,null,null,null,null,null,null,null,"",""]
[null,null,null,null,null,null,null,null,null,null,"",""]
[null,null,null,null,null,null,null,null,null,null,"",""]
[null,null,null,null,null,null,null,null,null,null,"",""]
[null,null,null,null,null,null,null,null,null,null,"",""]
[null,null,null,null,null,null,null,null,null,null,"",""]
[null,null,null,null,null,null,null,null,null,null,"",""]
[null,null,null,null,null,null,null,null,null,null,"",""]
[null,null,null,null,null,null,null,null,null,null,"",""]
[null,null,null,null,null,null,null,null,null,null,"",""]
[null,null,null,null,null,null,null,null,null,null,{"$f":"IF($C18743=\"\",\"\",YEAR($C18743))","v":""},{"$f":"IF($C18743=\"\",\"\",TEXT($C18743,\"MMMM\"))","v":""}]
[null,null,null,null,null,null,null,null,null,null,"",""]
[null,null,null,null,null,null,null,null,null,null,"",""]
[null,null,null,null,null,null,null,null,null,null,"",""]
[null,null,null,null,null,null,null,null,null,null,"",""]
[null,null,null,null,null,null,null,null,null,null,"",""]
[null,null,null,null,null,null,null,null,null,null,"",""]
[null,null,null,null,null,null,null,null,null,null,"",""]
[null,null,null,null,null,null,null,null,null,null,"",""]
[null,null,null,null,null,null,null,null,null,null,"",""]
[null,null,null,null,null,null,null,null,null,null,"",""]
[null,null,null,null,null,null,null,null,null,null,"",""]
[null,null,null,null,null,null,null,null,null,null,"",""]
[null,null,null,null,null,null,null,null,null,null,"",""]
[null,null,null,null,null,null,null,null,null,null,"",""]
[null,null,null,null,null,null,null,null,null,null,"",""]
[null,null,null,null,null,null,null,null,null,null,"",""]
[null,null,null,null,null,null,null,null,null,null,"",""]
[null,null,null,null,null,null,null,null,null,null,"",""]
[null,null,null,null,null,null,null,null,null,null,"",""]
[null,null,null,null,null,null,null,null,null,null,"",""]
[null,null,null,null,null,null,null,null,null,null,"",""]
[null,null,null,null,null,null,null,null,null,null,{"$f":"IF($C18935=\"\",\"\",YEAR($C18935))","v":""},{"$f":"IF($C18935=\"\",\"\",TEXT($C18935,\"MMMM\"))","v":""}]
[null,null,null,null,null,null,null,null,null,null,"",""]
[null,null,null,null,null,null,null,null,null,null,"",""]
[null,null,null,null,null,null,null,null,null,null,"",""]
[null,null,null,null,null,null,null,null,null,null,"",""]
[null,null,null,null,null,null,null,null,null,null,"",""]
[null,null,null,null,null,null,null,null,null,null,"",""]
[null,null,null,null,null,null,null,null,null,null,"",""]
[null,null,null,null,null,null,null,null,null,null,"",""]
[null,null,null,null,null,null,null,null,null,null,"",""]
[null,null,null,null,null,null,null,null,null,null,"",""]
[null,null,null,null,null,null,null,null,null,null,"",""]
[null,null,null,null,null,null,null,null,null,null,"",""]
[null,null,null,null,null,null,null,null,null,null,"",""]
[null,null,null,null,null,null,null,null,null,null,"",""]
[null,null,null,null,null,null,null,null,null,null,"",""]
[null,null,null,null,null,null,null,null,null,null,"",""]
[null,null,null,null,null,null,null,null,null,null,"",""]
[null,null,null,null,null,null,null,null,null,null,"",""]
[null,null,null,null,null,null,null,null,null,null,"",""]
[null,null,null,null,null,null,null,null,null,null,"",""]
[null,null,null,null,null,null,null,null,null,null,"",""]
[null,null,null,null,null,null,null,null,null,null,"",""]
[null,null,null,null,null,null,null,null,null,null,"",""]
[null,null,null,null,null,null,null,null,null,null,"",""]
[null,null,null,null,null,null,null,null,null,null,"",""]
[null,null,null,null,null,null,null,null,null,null,"",""]
[null,null,null,null,null,null,null,null,null,null,"",""]
[null,null,null,null,null,null,null,null,null,null,"",""]
[null,null,null,null,null,null,null,null,null,null,"",""]
[null,null,null,null,null,null,null,null,null,null,"",""]
[null,null,null,null,null,null,null,null,null,null,"",""]
[null,null,null,null,null,null,null,null,null,null,"",""]
[null,null,null,null,null,null,null,null,null,null,"",""]
[null,null,null,null,null,null,null,null,null,null,"",""]
[null,null,null,null,null,null,null,null,null,null,"",""]
[null,null,null,null,null,null,null,null,null,null,"",""]
[null,null,null,null,null,null,null,null,null,null,"",""]
[null,null,null,null,null,null,null,null,null,null,"",""]
[null,null,null,null,null,null,null,null,null,null,"",""]
[null,null,null,null,null,null,null,null,null,null,"",""]
[null,null,null,null,null,null,null,null,null,null,"",""]
[null,null,null,null,null,null,null,null,null,null,"",""]
[null,null,null,null,null,null,null,null,null,null,"",""]
[null,null,null,null,null,null,null,null,null,null,"",""]
[null,null,null,null,null,null,null,null,null,null,"",""]
[null,null,null,null,null,null,null,null,null,null,"",""]
[null,null,null,null,null,null,null,null,null,null,"",""]
[null,null,null,null,null,null,null,null,null,null,"",""]
[null,null,null,null,null,null,null,null,null,null,"",""]
[null,null,null,null,null,null,null,null,null,null,"",""]
[null,null,null,null,null,null,null,null,null,null,"",""]
[null,null,null,null,null,null,null,null,null,null,"",""]
[null,null,null,null,null,null,null,null,null,null,"",""]
[null,null,null,null,null,null,null,null,null,null,"",""]
[null,null,null,null,null,null,null,null,null,null,"",""]
[null,null,null,null,null,null,null,null,null,null,"",""]
[null,null,null,null,null,null,null,null,null,null,"",""]
[null,null,null,null,null,null,null,null,null,null,{"$f":"IF($C19447=\"\",\"\",YEAR($C19447))","v":""},{"$f":"IF($C19447=\"\",\"\",TEXT($C19447,\"MMMM\"))","v":""}]
[null,null,null,null,null,null,null,null,null,null,"",""]
[null,null,null,null,null,null,null,null,null,null,"",""]
[null,null,null,null,null,null,null,null,null,null,"",""]
[null,null,null,null,null,null,null,null,null,null,"",""]
[null,null,null,null,null,null,null,null,null,null,"",""]
[null,null,null,null,null,null,null,null,null,null,"",""]
[null,null,null,null,null,null,null,null,null,null,"",""]
[null,null,null,null,null,null,null,null,null,null,"",""]
[null,null,null,null,null,null,null,null,null,null,"",""]
[null,null,null,null,null,null,null,null,null,null,"",""]
[null,null,null,null,null,null,null,null,null,null,"",""]
[null,null,null,null,null,null,null,null,null,null,"",""]
[null,null,null,null,null,null,null,null,null,null,"",""]
[null,null,null,null,null,null,null,null,null,null,"",""]
[null,null,null,null,null,null,null,null,null,null,"",""]
[null,null,null,null,null,null,null,null,null,null,"",""]
[null,null,null,null,null,null,null,null,null,null,"",""]
[null,null,null,null,null,null,null,null,null,null,"",""]
[null,null,null,null,null,null,null,null,null,null,"",""]
[null,null,null,null,null,null,null,null,null,null,"",""]
[null,null,null,null,null,null,null,null,null,null,"",""]
[null,null,null,null,null,null,null,null,null,null,"",""]
[null,null,null,null,null,null,null,null,null,null,"",""]
[null,null,null,null,null,null,null,null,null,null,"",""]
[null,null,null,null,null,null,null,null,null,null,"",""]
[null,null,null,null,null,null,null,null,null,null,"",""]
[null,null,null,null,null,null,null,null,null,null,"",""]
[null,null,null,null,null,null,null,null,null,null,"",""]
[null,null,null,null,null,null,null,null,null,null,"",""]
[null,null,null,null,null,null,null,null,null,null,"",""]
[null,null,null,null,null,null,null,null,null,null,"",""]
[null,null,null,null,null,null,null,null,null,null,{"$f":"IF($C19511=\"\",\"\",YEAR($C19511))","v":""},{"$f":"IF($C19511=\"\",\"\",TEXT($C19511,\"MMMM\"))","v":""}]
[null,null,null,null,null,null,null,null,null,null,"",""]
[null,null,null,null,null,null,null,null,null,null,"",""]
[null,null,null,null,null,null,null,null,null,null,"",""]
[null,null,null,null,null,null,null,null,null,null,"",""]
[null,null,null,null,null,null,null,null,null,null,"",""]
[null,null,null,null,null,null,null,null,null,null,"",""]
[null,null,null,null,null,null,null,null,null,null,"",""]
[null,null,null,null,null,null,null,null,null,null,"",""]
[null,null,null,null,null,null,null,null,null,null,"",""]
[null,null,null,null,null,null,null,null,null,null,"",""]
[null,null,null,null,null,null,null,null,null,null,"",""]
[null,null,null,null,null,null,null,null,null,null,"",""]
[null,null,null,null,null,null,null,null,null,null,"",""]
[null,null,null,null,null,null,null,null,null,null,"",""]
[null,null,null,null,null,null,null,null,null,null,"",""]
[null,null,null,null,null,null,null,null,null,null,"",""]
[null,null,null,null,null,null,null,null,null,null,"",""]
[null,null,null,null,null,null,null,null,null,null,"",""]
[null,null,null,null,null,null,null,null,null,null,"",""]
[null,null,null,null,null,null,null,null,null,null,"",""]
[null,null,null,null,null,null,null,null,null,null,"",""]
[null,null,null,null,null,null,null,null,null,null,"",""]
[null,null,null,null,null,null,null,null,null,null,"",""]
[null,null,null,null,null,null,null,null,null,null,"",""]
[null,null,null,null,null,null,null,null,null,null,"",""]
[null,null,null,null,null,null,null,null,null,null,"",""]
[null,null,null,null,null,null,null,null,null,null,"",""]
[null,null,null,null,null,null,null,null,null,null,"",""]
[null,null,null,null,null,null,null,null,null,null,"",""]
[null,null,null,null,null,null,null,null,null,null,"",""]
[null,null,null,null,null,null,null,null,null,null,"",""]
[null,null,null,null,null,null,null,null,null,null,"",""]
[null,null,null,null,null,null,null,null,null,null,"",""]
[null,null,null,null,null,null,null,null,null,null,"",""]
[null,null,null,null,null,null,null,null,null,null,"",""]
[null,null,null,null,null,null,null,null,null,null,"",""]
[null,null,null,null,null,null,null,null,null,null,"",""]
[null,null,null,null,null,null,null,null,null,null,"",""]
[null,null,null,null,null,null,null,null,null,null,"",""]
[null,null,null,null,null,null,null,null,null,null,"",""]
[null,null,null,null,null,null,null,null,null,null,"",""]
[null,null,null,null,null,null,null,null,null,null,"",""]
[null,null,null,null,null,null,null,null,null,null,"",""]
[null,null,null,null,null,null,null,null,null,null,"",""]
[null,null,null,null,null,null,null,null,null,null,"",""]
[null,null,null,null,null,null,null,null,null,null,"",""]
[null,null,null,null,null,null,null,null,null,null,"",""]
[null,null,null,null,null,null,null,null,null,null,"",""]
[null,null,null,null,null,null,null,null,null,null,"",""]
[null,null,null,null,null,null,null,null,null,null,"",""]
[null,null,null,null,null,null,null,null,null,null,"",""]
[null,null,null,null,null,null,null,null,null,null,"",""]
[null,null,null,null,null,null,null,null,null,null,"",""]
[null,null,null,null,null,null,null,null,null,null,"",""]
[null,null,null,null,null,null,null,null,null,null,"",""]
[null,null,null,null,null,null,null,null,null,null,"",""]
[null,null,null,null,null,null,null,null,null,null,"",""]
[null,null,null,null,null,null,null,null,null,null,"",""]
[null,null,null,null,null,null,null,null,null,null,"",""]
[null,null,null,null,null,null,null,null,null,null,"",""]
[null,null,null,null,null,null,null,null,null,null,"",""]
[null,null,null,null,null,null,null,null,null,null,"",""]
[null,null,null,null,null,null,null,null,null,null,"",""]
[null,null,null,null,null,null,null,null,null,null,{"$f":"IF($C19575=\"\",\"\",YEAR($C19575))","v":""},{"$f":"IF($C19575=\"\",\"\",TEXT($C19575,\"MMMM\"))","v":""}]
[null,null,null,null,null,null,null,null,null,null,"",""]
[null,null,null,null,null,null,null,null,null,null,"",""]
[null,null,null,null,null,null,null,null,null,null,"",""]
[null,null,null,null,null,null,null,null,null,null,"",""]
[null,null,null,null,null,null,null,null,null,null,"",""]
[null,null,null,null,null,null,null,null,null,null,"",""]
[null,null,null,null,null,null,null,null,null,null,"",""]
[null,null,null,null,null,null,null,null,null,null,"",""]
[null,null,null,null,null,null,null,null,null,null,"",""]
[null,null,null,null,null,null,null,null,null,null,"",""]
[null,null,null,null,null,null,null,null,null,null,"",""]
[null,null,null,null,null,null,null,null,null,null,"",""]
[null,null,null,null,null,null,null,null,null,null,"",""]
[null,null,null,null,null,null,null,null,null,null,"",""]
[null,null,null,null,null,null,null,null,null,null,"",""]
[null,null,null,null,null,null,null,null,null,null,"",""]
[null,null,null,null,null,null,null,null,null,null,"",""]
[null,null,null,null,null,null,null,null,null,null,"",""]
[null,null,null,null,null,null,null,null,null,null,"",""]
[null,null,null,null,null,null,null,null,null,null,"",""]
[null,null,null,null,null,null,null,null,null,null,"",""]
[null,null,null,null,null,null,null,null,null,null,"",""]
[null,null,null,null,null,null,null,null,null,null,"",""]
[null,null,null,null,null,null,null,null,null,null,"",""]
[null,null,null,null,null,null,null,null,null,null,"",""]
[null,null,null,null,null,null,null,null,null,null,"",""]
[null,null,null,null,null,null,null,null,null,null,"",""]
[null,null,null,null,null,null,null,null,null,null,"",""]
[null,null,null,null,null,null,null,null,null,null,"",""]
[null,null,null,null,null,null,null,null,null,null,"",""]
[null,null,null,null,null,null,null,null,null,null,"",""]
[null,null,null,null,null,null,null,null,null,null,"",""]
[null,null,null,null,null,null,null,null,null,null,"",""]
[null,null,null,null,null,null,null,null,null,null,"",""]
[null,null,null,null,null,null,null,null,null,null,"",""]
[null,null,null,null,null,null,null,null,null,null,"",""]
[null,null,null,null,null,null,null,null,null,null,"",""]
[null,null,null,null,null,null,null,null,null,null,"",""]
[null,null,null,null,null,null,null,null,null,null,"",""]
[null,null,null,null,null,null,null,null,null,null,"",""]
[null,null,null,null,null,null,null,null,null,null,"",""]
[null,null,null,null,null,null,null,null,null,null,"",""]
[null,null,null,null,null,null,null,null,null,null,"",""]
[null,null,null,null,null,null,null,null,null,null,"",""]
[null,null,null,null,null,null,null,null,null,null,"",""]
[null,null,null,null,null,null,null,null,null,null,"",""]
[null,null,null,null,null,null,null,null,null,null,"",""]
[null,null,null,null,null,null,null,null,null,null,"",""]
[null,null,null,null,null,null,null,null,null,null,"",""]
[null,null,null,null,null,null,null,null,null,null,"",""]
[null,null,null,null,null,null,null,null,null,null,"",""]
[null,null,null,null,null,null,null,null,null,null,"",""]
[null,null,null,null,null,null,null,null,null,null,"",""]
[null,null,null,null,null,null,null,null,null,null,"",""]
[null,null,null,null,null,null,null,null,null,null,"",""]
[null,null,null,null,null,null,null,null,null,null,"",""]
[null,null,null,null,null,null,null,null,null,null,"",""]
[null,null,null,null,null,null,null,null,null,null,"",""]
[null,null,null,null,null,null,null,null,null,null,"",""]
[null,null,null,null,null,null,null,null,null,null,"",""]
[null,null,null,null,null,null,null,null,null,null,"",""]
[null,null,null,null,null,null,null,null,null,null,"",""]
[null,null,null,null,null,null,null,null,null,null,"",""]
[null,null,null,null,null,null,null,null,null,null,{"$f":"IF($C19639=\"\",\"\",YEAR($C19639))","v":""},{"$f":"IF($C19639=\"\",\"\",TEXT($C19639,\"MMMM\"))","v":""}]
[null,null,null,null,null,null,null,null,null,null,"",""]
[null,null,null,null,null,null,null,null,null,null,"",""]
[null,null,null,null,null,null,null,null,null,null,"",""]
[null,null,null,null,null,null,null,null,null,null,"",""]
[null,null,null,null,null,null,null,null,null,null,"",""]
[null,null,null,null,null,null,null,null,null,null,"",""]
[null,null,null,null,null,null,null,null,null,null,"",""]
[null,null,null,null,null,null,null,null,null,null,"",""]
[null,null,null,null,null,null,null,null,null,null,"",""]
[null,null,null,null,null,null,null,null,null,null,"",""]
[null,null,null,null,null,null,null,null,null,null,"",""]
[null,null,null,null,null,null,null,null,null,null,"",""]
[null,null,null,null,null,null,null,null,null,null,"",""]
[null,null,null,null,null,null,null,null,null,null,"",""]
[null,null,null,null,null,null,null,null,null,null,"",""]
[null,null,null,null,null,null,null,null,null,null,"",""]
[null,null,null,null,null,null,null,null,null,null,"",""]
[null,null,null,null,null,null,null,null,null,null,"",""]
[null,null,null,null,null,null,null,null,null,null,"",""]
[null,null,null,null,null,null,null,null,null,null,"",""]
[null,null,null,null,null,null,null,null,null,null,"",""]
[null,null,null,null,null,null,null,null,null,null,"",""]
[null,null,null,null,null,null,null,null,null,null,"",""]
[null,null,null,null,null,null,null,null,null,null,"",""]
[null,null,null,null,null,null,null,null,null,null,"",""]
[null,null,null,null,null,null,null,null,null,null,"",""]
[null,null,null,null,null,null,null,null,null,null,"",""]
[null,null,null,null,null,null,null,null,null,null,"",""]
[null,null,null,null,null,null,null,null,null,null,"",""]
[null,null,null,null,null,null,null,null,null,null,"",""]
[null,null,null,null,null,null,null,null,null,null,"",""]
[null,null,null,null,null,null,null,null,null,null,"",""]
[null,null,null,null,null,null,null,null,null,null,"",""]
[null,null,null,null,null,null,null,null,null,null,"",""]
[null,null,null,null,null,null,null,null,null,null,"",""]
[null,null,null,null,null,null,null,null,null,null,"",""]
[null,null,null,null,null,null,null,null,null,null,"",""]
[null,null,null,null,null,null,null,null,null,null,"",""]
[null,null,null,null,null,null,null,null,null,null,"",""]
[null,null,null,null,null,null,null,null,null,null,"",""]
[null,null,null,null,null,null,null,null,null,null,"",""]
[null,null,null,null,null,null,null,null,null,null,"",""]
[null,null,null,null,null,null,null,null,null,null,"",""]
[null,null,null,null,null,null,null,null,null,null,"",""]
[null,null,null,null,null,null,null,null,null,null,"",""]
[null,null,null,null,null,null,null,null,null,null,"",""]
[null,null,null,null,null,null,null,null,null,null,"",""]
[null,null,null,null,null,null,null,null,null,null,"",""]
[null,null,null,null,null,null,null,null,null,null,"",""]
[null,null,null,null,null,null,null,null,null,null,"",""]
[null,null,null,null,null,null,null,null,null,null,"",""]
[null,null,null,null,null,null,null,null,null,null,"",""]
[null,null,null,null,null,null,null,null,null,null,"",""]
[null,null,null,null,null,null,null,null,null,null,"",""]
[null,null,null,null,null,null,null,null,null,null,"",""]
[null,null,null,null,null,null,null,null,null,null,"",""]
[null,null,null,null,null,null,null,null,null,null,"",""]
[null,null,null,null,null,null,null,null,null,null,"",""]
[null,null,null,null,null,null,null,null,null,null,"",""]
[null,null,null,null,null,null,null,null,null,null,"",""]
[null,null,null,null,null,null,null,null,null,null,"",""]
[null,null,null,null,null,null,null,null,null,null,"",""]
[null,null,null,null,null,null,null,null,null,null,"",""]
[null,null,null,null,null,null,null,null,null,null,{"$f":"IF($C19703=\"\",\"\",YEAR($C19703))","v":""},{"$f":"IF($C19703=\"\",\"\",TEXT($C19703,\"MMMM\"))","v":""}]
[null,null,null,null,null,null,null,null,null,null,"",""]
[null,null,null,null,null,null,null,null,null,null,"",""]
[null,null,null,null,null,null,null,null,null,null,"",""]
[null,null,null,null,null,null,null,null,null,null,"",""]
[null,null,null,null,null,null,null,null,null,null,"",""]
[null,null,null,null,null,null,null,null,null,null,"",""]
[null,null,null,null,null,null,null,null,null,null,"",""]
[null,null,null,null,null,null,null,null,null,null,"",""]
[null,null,null,null,null,null,null,null,null,null,"",""]
[null,null,null,null,null,null,null,null,null,null,"",""]
[null,null,null,null,null,null,null,null,null,null,"",""]
[null,null,null,null,null,null,null,null,null,null,"",""]
[null,null,null,null,null,null,null,null,null,null,"",""]
[null,null,null,null,null,null,null,null,null,null,"",""]
[null,null,null,null,null,null,null,null,null,null,"",""]
[null,null,null,null,null,null,null,null,null,null,"",""]
[null,null,null,null,null,null,null,null,null,null,"",""]
[null,null,null,null,null,null,null,null,null,null,"",""]
[null,null,null,null,null,null,null,null,null,null,"",""]
[null,null,null,null,null,null,null,null,null,null,"",""]
[null,null,null,null,null,null,null,null,null,null,"",""]
[null,null,null,null,null,null,null,null,null,null,"",""]
[null,null,null,null,null,null,null,null,null,null,"",""]
[null,null,null,null,null,null,null,null,null,null,"",""]
[null,null,null,null,null,null,null,null,null,null,"",""]
[null,null,null,null,null,null,null,null,null,null,"",""]
[null,null,null,null,null,null,null,null,null,null,"",""]
[null,null,null,null,null,null,null,null,null,null,"",""]
[null,null,null,null,null,null,null,null,null,null,"",""]
[null,null,null,null,null,null,null,null,null,null,"",""]
[null,null,null,null,null,null,null,null,null,null,"",""]
[null,null,null,null,null,null,null,null,null,null,"",""]
[null,null,null,null,null,null,null,null,null,null,"",""]
[null,null,null,null,null,null,null,null,null,null,"",""]
[null,null,null,null,null,null,null,null,null,null,"",""]
[null,null,null,null,null,null,null,null,null,null,"",""]
[null,null,null,null,null,null,null,null,null,null,"",""]
[null,null,null,null,null,null,null,null,null,null,"",""]
[null,null,null,null,null,null,null,null,null,null,"",""]
[null,null,null,null,null,null,null,null,null,null,"",""]
[null,null,null,null,null,null,null,null,null,null,"",""]
[null,null,null,null,null,null,null,null,null,null,"",""]
[null,null,null,null,null,null,null,null,null,null,"",""]
[null,null,null,null,null,null,null,null,null,null,"",""]
[null,null,null,null,null,null,null,null,null,null,"",""]
[null,null,null,null,null,null,null,null,null,null,"",""]
[null,null,null,null,null,null,null,null,null,null,"",""]
[null,null,null,null,null,null,null,null,null,null,"",""]
[null,null,null,null,null,null,null,null,null,null,"",""]
[null,null,null,null,null,null,null,null,null,null,"",""]
[null,null,null,null,null,null,null,null,null,null,"",""]
[null,null,null,null,null,null,null,null,null,null,"",""]
[null,null,null,null,null,null,null,null,null,null,"",""]
[null,null,null,null,null,null,null,null,null,null,"",""]
[null,null,null,null,null,null,null,null,null,null,"",""]
[null,null,null,null,null,null,null,null,null,null,"",""]
[null,null,null,null,null,null,null,null,null,null,"",""]
[null,null,null,null,null,null,null,null,null,null,"",""]
[null,null,null,null,null,null,null,null,null,null,"",""]
[null,null,null,null,null,null,null,null,null,null,"",""]
[null,null,null,null,null,null,null,null,null,null,"",""]
[null,null,null,null,null,null,null,null,null,null,"",""]
[null,null,null,null,null,null,null,null,null,null,"",""]
[null,null,null,null,null,null,null,null,null,null,{"$f":"IF($C19767=\"\",\"\",YEAR($C19767))","v":""},{"$f":"IF($C19767=\"\",\"\",TEXT($C19767,\"MMMM\"))","v":""}]
[null,null,null,null,null,null,null,null,null,null,"",""]
[null,null,null,null,null,null,null,null,null,null,"",""]
[null,null,null,null,null,null,null,null,null,null,"",""]
[null,null,null,null,null,null,null,null,null,null,"",""]
[null,null,null,null,null,null,null,null,null,null,"",""]
[null,null,null,null,null,null,null,null,null,null,"",""]
[null,null,null,null,null,null,null,null,null,null,"",""]
[null,null,null,null,null,null,null,null,null,null,"",""]
[null,null,null,null,null,null,null,null,null,null,"",""]
[null,null,null,null,null,null,null,null,null,null,"",""]
[null,null,null,null,null,null,null,null,null,null,"",""]
[null,null,null,null,null,null,null,null,null,null,"",""]
[null,null,null,null,null,null,null,null,null,null,"",""]
[null,null,null,null,null,null,null,null,null,null,"",""]
[null,null,null,null,null,null,null,null,null,null,"",""]
[null,null,null,null,null,null,null,null,null,null,"",""]
[null,null,null,null,null,null,null,null,null,null,"",""]
[null,null,null,null,null,null,null,null,null,null,"",""]
[null,null,null,null,null,null,null,null,null,null,"",""]
[null,null,null,null,null,null,null,null,null,null,"",""]
[null,null,null,null,null,null,null,null,null,null,"",""]
[null,null,null,null,null,null,null,null,null,null,"",""]
[null,null,null,null,null,null,null,null,null,null,"",""]
[null,null,null,null,null,null,null,null,null,null,"",""]
[null,null,null,null,null,null,null,null,null,null,"",""]
[null,null,null,null,null,null,null,null,null,null,"",""]
[null,null,null,null,null,null,null,null,null,null,"",""]
[null,null,null,null,null,null,null,null,null,null,"",""]
[null,null,null,null,null,null,null,null,null,null,"",""]
[null,null,null,null,null,null,null,null,null,null,"",""]
[null,null,null,null,null,null,null,null,null,null,"",""]
[null,null,null,null,null,null,null,null,null,null,"",""]
[null,null,null,null,null,null,null,null,null,null,"",""]
[null,null,null,null,null,null,null,null,null,null,"",""]
[null,null,null,null,null,null,null,null,null,null,"",""]
[null,null,null,null,null,null,null,null,null,null,"",""]
[null,null,null,null,null,null,null,null,null,null,"",""]
[null,null,null,null,null,null,null,null,null,null,"",""]
[null,null,null,null,null,null,null,null,null,null,"",""]
[null,null,null,null,null,null,null,null,null,null,"",""]
[null,null,null,null,null,null,null,null,null,null,"",""]
[null,null,null,null,null,null,null,null,null,null,"",""]
[null,null,null,null,null,null,null,null,null,null,"",""]
[null,null,null,null,null,null,null,null,null,null,"",""]
[null,null,null,null,null,null,null,null,null,null,"",""]
[null,null,null,null,null,null,null,null,null,null,"",""]
[null,null,null,null,null,null,null,null,null,null,"",""]
[null,null,null,null,null,null,null,null,null,null,"",""]
[null,null,null,null,null,null,null,null,null,null,"",""]
[null,null,null,null,null,null,null,null,null,null,"",""]
[null,null,null,null,null,null,null,null,null,null,"",""]
[null,null,null,null,null,null,null,null,null,null,"",""]
[null,null,null,null,null,null,null,null,null,null,"",""]
[null,null,null,null,null,null,null,null,null,null,"",""]
[null,null,null,null,null,null,null,null,null,null,"",""]
[null,null,null,null,null,null,null,null,null,null,"",""]
[null,null,null,null,null,null,null,null,null,null,"",""]
[null,null,null,null,null,null,null,null,null,null,"",""]
[null,null,null,null,null,null,null,null,null,null,"",""]
[null,null,null,null,null,null,null,null,null,null,"",""]
[null,null,null,null,null,null,null,null,null,null,"",""]
[null,null,null,null,null,null,null,null,null,null,"",""]
[null,null,null,null,null,null,null,null,null,null,"",""]
[null,null,null,null,null,null,null,null,null,null,{"$f":"IF($C19831=\"\",\"\",YEAR($C19831))","v":""},{"$f":"IF($C19831=\"\",\"\",TEXT($C19831,\"MMMM\"))","v":""}]
[null,null,null,null,null,null,null,null,null,null,"",""]
[null,null,null,null,null,null,null,null,null,null,"",""]
[null,null,null,null,null,null,null,null,null,null,"",""]
[null,null,null,null,null,null,null,null,null,null,"",""]
[null,null,null,null,null,null,null,null,null,null,"",""]
[null,null,null,null,null,null,null,null,null,null,"",""]
[null,null,null,null,null,null,null,null,null,null,"",""]
[null,null,null,null,null,null,null,null,null,null,"",""]
[null,null,null,null,null,null,null,null,null,null,"",""]
[null,null,null,null,null,null,null,null,null,null,"",""]
[null,null,null,null,null,null,null,null,null,null,"",""]
[null,null,null,null,null,null,null,null,null,null,"",""]
[null,null,null,null,null,null,null,null,null,null,"",""]
[null,null,null,null,null,null,null,null,null,null,"",""]
[null,null,null,null,null,null,null,null,null,null,"",""]
[null,null,null,null,null,null,null,null,null,null,"",""]
[null,null,null,null,null,null,null,null,null,null,"",""]
[null,null,null,null,null,null,null,null,null,null,"",""]
[null,null,null,null,null,null,null,null,null,null,"",""]
[null,null,null,null,null,null,null,null,null,null,"",""]
[null,null,null,null,null,null,null,null,null,null,"",""]
[null,null,null,null,null,null,null,null,null,null,"",""]
[null,null,null,null,null,null,null,null,null,null,"",""]
[null,null,null,null,null,null,null,null,null,null,"",""]
[null,null,null,null,null,null,null,null,null,null,"",""]
[null,null,null,null,null,null,null,null,null,null,"",""]
[null,null,null,null,null,null,null,null,null,null,"",""]
[null,null,null,null,null,null,null,null,null,null,"",""]
[null,null,null,null,null,null,null,null,null,null,"",""]
[null,null,null,null,null,null,null,null,null,null,"",""]
[null,null,null,null,null,null,null,null,null,null,"",""]
[null,null,null,null,null,null,null,null,null,null,"",""]
[null,null,null,null,null,null,null,null,null,null,"",""]
[null,null,null,null,null,null,null,null,null,null,"",""]
[null,null,null,null,null,null,null,null,null,null,"",""]
[null,null,null,null,null,null,null,null,null,null,"",""]
[null,null,null,null,null,null,null,null,null,null,"",""]
[null,null,null,null,null,null,null,null,null,null,"",""]
[null,null,null,null,null,null,null,null,null,null,"",""]
[null,null,null,null,null,null,null,null,null,null,"",""]
[null,null,null,null,null,null,null,null,null,null,"",""]
[null,null,null,null,null,null,null,null,null,null,"",""]
[null,null,null,null,null,null,null,null,null,null,"",""]
[null,null,null,null,null,null,null,null,null,null,"",""]
[null,null,null,null,null,null,null,null,null,null,"",""]
[null,null,null,null,null,null,null,null,null,null,"",""]
[null,null,null,null,null,null,null,null,null,null,"",""]
[null,null,null,null,null,null,null,null,null,null,"",""]
[null,null,null,null,null,null,null,null,null,null,"",""]
[null,null,null,null,null,null,null,null,null,null,"",""]
[null,null,null,null,null,null,null,null,null,null,"",""]
[null,null,null,null,null,null,null,null,null,null,"",""]
[null,null,null,null,null,null,null,null,null,null,"",""]
[null,null,null,null,null,null,null,null,null,null,"",""]
[null,null,null,null,null,null,null,null,null,null,"",""]
[null,null,null,null,null,null,null,null,null,null,"",""]
[null,null,null,null,null,null,null,null,null,null,"",""]
[null,null,null,null,null,null,null,null,null,null,"",""]
[null,null,null,null,null,null,null,null,null,null,"",""]
[null,null,null,null,null,null,null,null,null,null,"",""]
[null,null,null,null,null,null,null,null,null,null,"",""]
[null,null,null,null,null,null,null,null,null,null,"",""]
[null,null,null,null,null,null,null,null,null,null,"",""]
[null,null,null,null,null,null,null,null,null,null,{"$f":"IF($C19895=\"\",\"\",YEAR($C19895))","v":""},{"$f":"IF($C19895=\"\",\"\",TEXT($C19895,\"MMMM\"))","v":""}]
[null,null,null,null,null,null,null,null,null,null,"",""]
[null,null,null,null,null,null,null,null,null,null,"",""]
[null,null,null,null,null,null,null,null,null,null,"",""]
[null,null,null,null,null,null,null,null,null,null,"",""]
[null,null,null,null,null,null,null,null,null,null,"",""]
[null,null,null,null,null,null,null,null,null,null,"",""]
[null,null,null,null,null,null,null,null,null,null,"",""]
[null,null,null,null,null,null,null,null,null,null,"",""]
[null,null,null,null,null,null,null,null,null,null,"",""]
[null,null,null,null,null,null,null,null,null,null,"",""]
[null,null,null,null,null,null,null,null,null,null,"",""]
[null,null,null,null,null,null,null,null,null,null,"",""]
[null,null,null,null,null,null,null,null,null,null,"",""]
[null,null,null,null,null,null,null,null,null,null,"",""]
[null,null,null,null,null,null,null,null,null,null,"",""]
[null,null,null,null,null,null,null,null,null,null,"",""]
[null,null,null,null,null,null,null,null,null,null,"",""]
[null,null,null,null,null,null,null,null,null,null,"",""]
[null,null,null,null,null,null,null,null,null,null,"",""]
[null,null,null,null,null,null,null,null,null,null,"",""]
[null,null,null,null,null,null,null,null,null,null,"",""]
[null,null,null,null,null,null,null,null,null,null,"",""]
[null,null,null,null,null,null,null,null,null,null,"",""]
[null,null,null,null,null,null,null,null,null,null,"",""]
[null,null,null,null,null,null,null,null,null,null,"",""]
[null,null,null,null,null,null,null,null,null,null,"",""]
[null,null,null,null,null,null,null,null,null,null,"",""]
[null,null,null,null,null,null,null,null,null,null,"",""]
[null,null,null,null,null,null,null,null,null,null,"",""]
[null,null,null,null,null,null,null,null,null,null,"",""]
[null,null,null,null,null,null,null,null,null,null,"",""]
[null,null,null,null,null,null,null,null,null,null,"",""]
[null,null,null,null,null,null,null,null,null,null,"",""]
[null,null,null,null,null,null,null,null,null,null,"",""]
[null,null,null,null,null,null,null,null,null,null,"",""]
[null,null,null,null,null,null,null,null,null,null,"",""]
[null,null,null,null,null,null,null,null,null,null,"",""]
[null,null,null,null,null,null,null,null,null,null,"",""]
[null,null,null,null,null,null,null,null,null,null,"",""]
[null,null,null,null,null,null,null,null,null,null,"",""]
[null,null,null,null,null,null,null,null,null,null,"",""]
[null,null,null,null,null,null,null,null,null,null,"",""]
[null,null,null,null,null,null,null,null,null,null,"",""]
[null,null,null,null,null,null,null,null,null,null,"",""]
[null,null,null,null,null,null,null,null,null,null,"",""]
[null,null,null,null,null,null,null,null,null,null,"",""]
[null,null,null,null,null,null,null,null,null,null,"",""]
[null,null,null,null,null,null,null,null,null,null,"",""]
[null,null,null,null,null,null,null,null,null,null,"",""]
[null,null,null,null,null,null,null,null,null,null,"",""]
[null,null,null,null,null,null,null,null,null,null,"",""]
[null,null,null,null,null,null,null,null,null,null,"",""]
[null,null,null,null,null,null,null,null,null,null,"",""]
[null,null,null,null,null,null,null,null,null,null,"",""]
[null,null,null,null,null,null,null,null,null,null,"",""]
[null,null,null,null,null,null,null,null,null,null,"",""]
[null,null,null,null,null,null,null,null,null,null,"",""]
[null,null,null,null,null,null,null,null,null,null,"",""]
[null,null,null,null,null,null,null,null,null,null,"",""]
[null,null,null,null,null,null,null,null,null,null,"",""]
[null,null,null,null,null,null,null,null,null,null,"",""]
[null,null,null,null,null,null,null,null,null,null,"",""]
[null,null,null,null,null,null,null,null,null,null,"",""]
[null,null,null,null,null,null,null,null,null,null,{"$f":"IF($C19959=\"\",\"\",YEAR($C19959))","v":""},{"$f":"IF($C19959=\"\",\"\",TEXT($C19959,\"MMMM\"))","v":""}]
[null,null,null,null,null,null,null,null,null,null,"",""]
[null,null,null,null,null,null,null,null,null,null,"",""]
[null,null,null,null,null,null,null,null,null,null,"",""]
[null,null,null,null,null,null,null,null,null,null,"",""]
[null,null,null,null,null,null,null,null,null,null,"",""]
[null,null,null,null,null,null,null,null,null,null,"",""]
[null,null,null,null,null,null,null,null,null,null,"",""]
[null,null,null,null,null,null,null,null,null,null,"",""]
[null,null,null,null,null,null,null,null,null,null,"",""]
[null,null,null,null,null,null,null,null,null,null,"",""]
[null,null,null,null,null,null,null,null,null,null,"",""]
[null,null,null,null,null,null,null,null,null,null,"",""]
[null,null,null,null,null,null,null,null,null,null,"",""]
[null,null,null,null,null,null,null,null,null,null,"",""]
[null,null,null,null,null,null,null,null,null,null,"",""]
[null,null,null,null,null,null,null,null,null,null,"",""]
[null,null,null,null,null,null,null,null,null,null,"",""]
[null,null,null,null,null,null,null,null,null,null,"",""]
[null,null,null,null,null,null,null,null,null,null,"",""]
[null,null,null,null,null,null,null,null,null,null,"",""]
[null,null,null,null,null,null,null,null,null,null,"",""]
[null,null,null,null,null,null,null,null,null,null,"",""]
[null,null,null,null,null,null,null,null,null,null,"",""]
[null,null,null,null,null,null,null,null,null,null,"",""]

{"sheet":"Filter & Druck","index":2,"n_rows":14,"n_cols":12,"rows_kept":14,"cut":false,"hidden":false,"merged":[]}
[{"$f":"\"A4:H\"&COUNTA(C:C)+10","v":"A4:H14"}]
[null,null,"Jahr:",2025]
[null,null,"Monat:","komplettes Jahr"]
[]
[null,{"$f":"IF(AND(D2=\"\",D3=\"\"),\"Kassenbuch: Jahr und Monat auswählen\",IF(OR(D3=\"\",D3=\"komplettes Jahr\"),\"Kassenbuch für das Jahr \"&D2&\" (01.01. bis 31.12.\"&D2&\")\",\"Kassenbuch vom \"&TEXT(DATE(D2,VLOOKUP(D3,Setup!$J$10:$K$21,2,FALSE),1),\"TT.MM.JJJJ\")&\" bis \"&TEXT(EOMONTH(DATE(D2,VLOOKUP(D3,Setup!$J$10:$K$21,2,FALSE),1),0),\"TT.MM.JJJJ\")))","v":"Kassenbuch für das Jahr 2025 (01.01. bis 31.12.2025)"}]
[]
[null,null,null,"Anfangsbestand:",{"$f":"IF(AND($D$2=\"\",$D$3<>\"\"),0,IF(AND($D$2=\"\",$D$3=\"\"),0,IF(AND($D$2<>\"\",OR($D$3=\"komplettes Jahr\",$D$3=\"\")),VLOOKUP(DATE($D$2,1,31),Bestände!$C$7:$I$139,4,FALSE),VLOOKUP(EOMONTH(DATE(D2,VLOOKUP(D3,Setup!$J$10:$K$21,2,FALSE),1),0),Bestände!$C$7:$I$139,4,FALSE))))","v":1E-4},null,{"$f":"IF(Setup!D11=\"\",\"\",Setup!D11)","v":"Firma und / oder Name:"},{"$f":"IF(Setup!E11=\"\",\"\",Setup!E11)","v":"Name"}]
[null,null,null,"Einnahmen:",{"$f":"IF(AND($D$2<>\"\",OR($D$3=\"komplettes Jahr\",$D$3=\"\")),SUMIF(Kassenbuch!$K$7:$K$19983,$D$2,Kassenbuch!$E$7:$E$19983),SUMIFS(Kassenbuch!$E$7:$E$19983,Kassenbuch!$K$7:$K$19983,$D$2,Kassenbuch!$L$7:$L$19983,$D$3))","v":22},null,{"$f":"IF(Setup!D12=\"\",\"\",Setup!D12)","v":""},{"$f":"IF(Setup!E12=\"\",\"\",Setup!E12)","v":"Geschäft"}]
[null,null,null,"Ausgaben:",{"$f":"IF(AND($D$2<>\"\",OR($D$3=\"komplettes Jahr\",$D$3=\"\")),SUMIF(Kassenbuch!$K$7:$K$19983,$D$2,Kassenbuch!$F$7:$F$19983),SUMIFS(Kassenbuch!$F$7:$F$19983,Kassenbuch!$K$7:$K$19983,$D$2,Kassenbuch!$L$7:$L$19983,$D$3))","v":22},null,{"$f":"IF(Setup!D13=\"\",\"\",Setup!D13)","v":"Adresse:"},{"$f":"IF(Setup!E13=\"\",\"\",Setup!E13)","v":"Strasse"}]
[null,null,null,"Endbestand:",{"$f":"IF($E$7=0,0,$E$7+$E$8-$E$9)","v":9.9999999999766942E-5},null,{"$f":"IF(Setup!D14=\"\",\"\",Setup!D14)","v":"PLZ & Ort:"},{"$f":"IF(Setup!E14=\"\",\"\",Setup!E14)","v":"PLZ Ort"}]
[]
[]
[null,null,"Datum","Name Vorname","Einnahme","Ausgabe","Kategorie","Steuer","Anmerkungen"]
[null,null,{"$f":"IF(AND($D$2=\"\",$D$3=\"\"),\"keine Werte\",IF(AND($D$2<>\"\",OR($D$3=\"komplettes Jahr\",$D$3=\"\")),IF(_xlfn._xlws.FILTER(Kassenbuch!$C$7:$L$19983,(Kassenbuch!$K$7:$K$19983=$D$2),\"keine Werte\")=0,\"\",_xlfn._xlws.SORT(_xlfn._xlws.FILTER(Kassenbuch!$C$7:$L$19983,(Kassenbuch!$K$7:$K$19983=$D$2),\"keine Werte\"),1,1)),IF(_xlfn._xlws.FILTER(Kassenbuch!$C$7:$L$19983,(Kassenbuch!$K$7:$K$19983=$D$2)*(Kassenbuch!$L$7:$L$19983=$D$3),\"keine Werte\")=0,\"\",_xlfn._xlws.SORT(_xlfn._xlws.FILTER(Kassenbuch!$C$7:$L$19983,(Kassenbuch!$K$7:$K$19983=$D$2)*(Kassenbuch!$L$7:$L$19983=$D$3),\"keine Werte\"),1,1))))","v":"2025-01-27"},"Muster Karl",22,22,"PC Zubehör","","An und Verkauf","",2025,"Januar"]

{"sheet":"Bestände","index":3,"n_rows":377,"n_cols":9,"rows_kept":377,"cut":false,"hidden":false,"merged":[]}
[]
[null,"Bestandsübersicht"]
[]
[null,null,null,"Anfangsdatum:",{"$f":"IF(Setup!$E$6=\"\",\"\",Setup!$E$6)","v":"2024-01-01"},null,"Bestand Aktuell:",{"$f":"NOW()","v":"2025-12-28T19:42:00.240"}]
[null,null,null,"Anfangsbestand:",{"$f":"IF(Setup!$E$7=\"\",\"\",Setup!$E$7)","v":1E-4}]
[]
[null,null,"Monatsende","Monat","Jahr","Anfangsbestand","Einnahmen","Ausgaben","Endbestand"]
[null,null,{"$f":"IF(E4=\"\",\"-\",EOMONTH(E4,0))","v":"2024-01-31"},{"$f":"TEXT(C8,\"MMMM\")","v":"Januar"},{"$f":"IF(C8=\"-\",\"-\",YEAR(C8))","v":2024},{"$f":"IF(E5=\"\",0,E5)","v":1E-4},{"$f":"SUMIFS(Kassenbuch!$E$7:$E$19983,Kassenbuch!$K$7:$K$19983,Bestände!$E8,Kassenbuch!$L$7:$L$19983,Bestände!$D8)","v":0},{"$f":"SUMIFS(Kassenbuch!$F$7:$F$19983,Kassenbuch!$K$7:$K$19983,Bestände!$E8,Kassenbuch!$L$7:$L$19983,Bestände!$D8)","v":0},{"$f":"F8+G8-H8","v":1E-4}]
[null,null,{"$f":"IF(C8=\"-\",\"-\",EOMONTH(C8,1))","v":"2024-02-29"},{"$f":"TEXT(C9,\"MMMM\")","v":"Februar"},{"$f":"IF(C9=\"-\",\"-\",YEAR(C9))","v":2024},{"$f":"IF(C8>=TODAY(),0,I8)","v":1E-4},{"$f":"SUMIFS(Kassenbuch!$E$7:$E$19983,Kassenbuch!$K$7:$K$19983,Bestände!$E9,Kassenbuch!$L$7:$L$19983,Bestände!$D9)","v":0},{"$f":"SUMIFS(Kassenbuch!$F$7:$F$19983,Kassenbuch!$K$7:$K$19983,Bestände!$E9,Kassenbuch!$L$7:$L$19983,Bestände!$D9)","v":0},{"$f":"IF(F9=0,0,F9+G9-H9)","v":1E-4}]
[null,null,{"$f":"IF(C9=\"-\",\"-\",EOMONTH(C9,1))","v":"2024-03-31"},"März",2024,{"$f":"IF(C9>=TODAY(),0,I9)","v":1E-4},{"$f":"SUMIFS(Kassenbuch!$E$7:$E$19983,Kassenbuch!$K$7:$K$19983,Bestände!$E10,Kassenbuch!$L$7:$L$19983,Bestände!$D10)","v":0},{"$f":"SUMIFS(Kassenbuch!$F$7:$F$19983,Kassenbuch!$K$7:$K$19983,Bestände!$E10,Kassenbuch!$L$7:$L$19983,Bestände!$D10)","v":0},{"$f":"IF(F10=0,0,F10+G10-H10)","v":1E-4}]
[null,null,"2024-04-30","April",2024,1E-4,{"$f":"SUMIFS(Kassenbuch!$E$7:$E$19983,Kassenbuch!$K$7:$K$19983,Bestände!$E11,Kassenbuch!$L$7:$L$19983,Bestände!$D11)","v":0},{"$f":"SUMIFS(Kassenbuch!$F$7:$F$19983,Kassenbuch!$K$7:$K$19983,Bestände!$E11,Kassenbuch!$L$7:$L$19983,Bestände!$D11)","v":0},1E-4]
[null,null,"2024-05-31","Mai",2024,1E-4,{"$f":"SUMIFS(Kassenbuch!$E$7:$E$19983,Kassenbuch!$K$7:$K$19983,Bestände!$E12,Kassenbuch!$L$7:$L$19983,Bestände!$D12)","v":0},{"$f":"SUMIFS(Kassenbuch!$F$7:$F$19983,Kassenbuch!$K$7:$K$19983,Bestände!$E12,Kassenbuch!$L$7:$L$19983,Bestände!$D12)","v":0},1E-4]
[null,null,"2024-06-30","Juni",2024,1E-4,{"$f":"SUMIFS(Kassenbuch!$E$7:$E$19983,Kassenbuch!$K$7:$K$19983,Bestände!$E13,Kassenbuch!$L$7:$L$19983,Bestände!$D13)","v":0},{"$f":"SUMIFS(Kassenbuch!$F$7:$F$19983,Kassenbuch!$K$7:$K$19983,Bestände!$E13,Kassenbuch!$L$7:$L$19983,Bestände!$D13)","v":0},1E-4]
[null,null,"2024-07-31","Juli",2024,1E-4,{"$f":"SUMIFS(Kassenbuch!$E$7:$E$19983,Kassenbuch!$K$7:$K$19983,Bestände!$E14,Kassenbuch!$L$7:$L$19983,Bestände!$D14)","v":0},{"$f":"SUMIFS(Kassenbuch!$F$7:$F$19983,Kassenbuch!$K$7:$K$19983,Bestände!$E14,Kassenbuch!$L$7:$L$19983,Bestände!$D14)","v":0},1E-4]
[null,null,"2024-08-31","August",2024,1E-4,{"$f":"SUMIFS(Kassenbuch!$E$7:$E$19983,Kassenbuch!$K$7:$K$19983,Bestände!$E15,Kassenbuch!$L$7:$L$19983,Bestände!$D15)","v":0},{"$f":"SUMIFS(Kassenbuch!$F$7:$F$19983,Kassenbuch!$K$7:$K$19983,Bestände!$E15,Kassenbuch!$L$7:$L$19983,Bestände!$D15)","v":0},1E-4]
[null,null,"2024-09-30","September",2024,1E-4,{"$f":"SUMIFS(Kassenbuch!$E$7:$E$19983,Kassenbuch!$K$7:$K$19983,Bestände!$E16,Kassenbuch!$L$7:$L$19983,Bestände!$D16)","v":0},{"$f":"SUMIFS(Kassenbuch!$F$7:$F$19983,Kassenbuch!$K$7:$K$19983,Bestände!$E16,Kassenbuch!$L$7:$L$19983,Bestände!$D16)","v":0},1E-4]
[null,null,"2024-10-31","Oktober",2024,1E-4,{"$f":"SUMIFS(Kassenbuch!$E$7:$E$19983,Kassenbuch!$K$7:$K$19983,Bestände!$E17,Kassenbuch!$L$7:$L$19983,Bestände!$D17)","v":0},{"$f":"SUMIFS(Kassenbuch!$F$7:$F$19983,Kassenbuch!$K$7:$K$19983,Bestände!$E17,Kassenbuch!$L$7:$L$19983,Bestände!$D17)","v":0},1E-4]
[null,null,"2024-11-30","November",2024,1E-4,{"$f":"SUMIFS(Kassenbuch!$E$7:$E$19983,Kassenbuch!$K$7:$K$19983,Bestände!$E18,Kassenbuch!$L$7:$L$19983,Bestände!$D18)","v":0},{"$f":"SUMIFS(Kassenbuch!$F$7:$F$19983,Kassenbuch!$K$7:$K$19983,Bestände!$E18,Kassenbuch!$L$7:$L$19983,Bestände!$D18)","v":0},1E-4]
[null,null,"2024-12-31","Dezember",2024,1E-4,{"$f":"SUMIFS(Kassenbuch!$E$7:$E$19983,Kassenbuch!$K$7:$K$19983,Bestände!$E19,Kassenbuch!$L$7:$L$19983,Bestände!$D19)","v":0},{"$f":"SUMIFS(Kassenbuch!$F$7:$F$19983,Kassenbuch!$K$7:$K$19983,Bestände!$E19,Kassenbuch!$L$7:$L$19983,Bestände!$D19)","v":0},1E-4]
[null,null,"2025-01-31","Januar",2025,1E-4,{"$f":"SUMIFS(Kassenbuch!$E$7:$E$19983,Kassenbuch!$K$7:$K$19983,Bestände!$E20,Kassenbuch!$L$7:$L$19983,Bestände!$D20)","v":22},{"$f":"SUMIFS(Kassenbuch!$F$7:$F$19983,Kassenbuch!$K$7:$K$19983,Bestände!$E20,Kassenbuch!$L$7:$L$19983,Bestände!$D20)","v":22},9.9999999999766942E-5]
[null,null,"2025-02-28","Februar",2025,9.9999999999766942E-5,{"$f":"SUMIFS(Kassenbuch!$E$7:$E$19983,Kassenbuch!$K$7:$K$19983,Bestände!$E21,Kassenbuch!$L$7:$L$19983,Bestände!$D21)","v":0},{"$f":"SUMIFS(Kassenbuch!$F$7:$F$19983,Kassenbuch!$K$7:$K$19983,Bestände!$E21,Kassenbuch!$L$7:$L$19983,Bestände!$D21)","v":0},9.9999999999766942E-5]
[null,null,"2025-03-31","März",2025,9.9999999999766942E-5,{"$f":"SUMIFS(Kassenbuch!$E$7:$E$19983,Kassenbuch!$K$7:$K$19983,Bestände!$E22,Kassenbuch!$L$7:$L$19983,Bestände!$D22)","v":0},{"$f":"SUMIFS(Kassenbuch!$F$7:$F$19983,Kassenbuch!$K$7:$K$19983,Bestände!$E22,Kassenbuch!$L$7:$L$19983,Bestände!$D22)","v":0},9.9999999999766942E-5]
[null,null,"2025-04-30","April",2025,9.9999999999766942E-5,{"$f":"SUMIFS(Kassenbuch!$E$7:$E$19983,Kassenbuch!$K$7:$K$19983,Bestände!$E23,Kassenbuch!$L$7:$L$19983,Bestände!$D23)","v":0},{"$f":"SUMIFS(Kassenbuch!$F$7:$F$19983,Kassenbuch!$K$7:$K$19983,Bestände!$E23,Kassenbuch!$L$7:$L$19983,Bestände!$D23)","v":0},9.9999999999766942E-5]
[null,null,"2025-05-31","Mai",2025,9.9999999999766942E-5,{"$f":"SUMIFS(Kassenbuch!$E$7:$E$19983,Kassenbuch!$K$7:$K$19983,Bestände!$E24,Kassenbuch!$L$7:$L$19983,Bestände!$D24)","v":0},{"$f":"SUMIFS(Kassenbuch!$F$7:$F$19983,Kassenbuch!$K$7:$K$19983,Bestände!$E24,Kassenbuch!$L$7:$L$19983,Bestände!$D24)","v":0},9.9999999999766942E-5]
[null,null,"2025-06-30","Juni",2025,9.9999999999766942E-5,{"$f":"SUMIFS(Kassenbuch!$E$7:$E$19983,Kassenbuch!$K$7:$K$19983,Bestände!$E25,Kassenbuch!$L$7:$L$19983,Bestände!$D25)","v":0},{"$f":"SUMIFS(Kassenbuch!$F$7:$F$19983,Kassenbuch!$K$7:$K$19983,Bestände!$E25,Kassenbuch!$L$7:$L$19983,Bestände!$D25)","v":0},9.9999999999766942E-5]
[null,null,"2025-07-31","Juli",2025,9.9999999999766942E-5,{"$f":"SUMIFS(Kassenbuch!$E$7:$E$19983,Kassenbuch!$K$7:$K$19983,Bestände!$E26,Kassenbuch!$L$7:$L$19983,Bestände!$D26)","v":0},{"$f":"SUMIFS(Kassenbuch!$F$7:$F$19983,Kassenbuch!$K$7:$K$19983,Bestände!$E26,Kassenbuch!$L$7:$L$19983,Bestände!$D26)","v":0},9.9999999999766942E-5]
[null,null,"2025-08-31","August",2025,9.9999999999766942E-5,{"$f":"SUMIFS(Kassenbuch!$E$7:$E$19983,Kassenbuch!$K$7:$K$19983,Bestände!$E27,Kassenbuch!$L$7:$L$19983,Bestände!$D27)","v":0},{"$f":"SUMIFS(Kassenbuch!$F$7:$F$19983,Kassenbuch!$K$7:$K$19983,Bestände!$E27,Kassenbuch!$L$7:$L$19983,Bestände!$D27)","v":0},9.9999999999766942E-5]
[null,null,"2025-09-30","September",2025,9.9999999999766942E-5,{"$f":"SUMIFS(Kassenbuch!$E$7:$E$19983,Kassenbuch!$K$7:$K$19983,Bestände!$E28,Kassenbuch!$L$7:$L$19983,Bestände!$D28)","v":0},{"$f":"SUMIFS(Kassenbuch!$F$7:$F$19983,Kassenbuch!$K$7:$K$19983,Bestände!$E28,Kassenbuch!$L$7:$L$19983,Bestände!$D28)","v":0},9.9999999999766942E-5]
[null,null,"2025-10-31","Oktober",2025,9.9999999999766942E-5,{"$f":"SUMIFS(Kassenbuch!$E$7:$E$19983,Kassenbuch!$K$7:$K$19983,Bestände!$E29,Kassenbuch!$L$7:$L$19983,Bestände!$D29)","v":0},{"$f":"SUMIFS(Kassenbuch!$F$7:$F$19983,Kassenbuch!$K$7:$K$19983,Bestände!$E29,Kassenbuch!$L$7:$L$19983,Bestände!$D29)","v":0},9.9999999999766942E-5]
[null,null,"2025-11-30","November",2025,9.9999999999766942E-5,{"$f":"SUMIFS(Kassenbuch!$E$7:$E$19983,Kassenbuch!$K$7:$K$19983,Bestände!$E30,Kassenbuch!$L$7:$L$19983,Bestände!$D30)","v":0},{"$f":"SUMIFS(Kassenbuch!$F$7:$F$19983,Kassenbuch!$K$7:$K$19983,Bestände!$E30,Kassenbuch!$L$7:$L$19983,Bestände!$D30)","v":0},9.9999999999766942E-5]
[null,null,"2025-12-31","Dezember",2025,9.9999999999766942E-5,{"$f":"SUMIFS(Kassenbuch!$E$7:$E$19983,Kassenbuch!$K$7:$K$19983,Bestände!$E31,Kassenbuch!$L$7:$L$19983,Bestände!$D31)","v":0},{"$f":"SUMIFS(Kassenbuch!$F$7:$F$19983,Kassenbuch!$K$7:$K$19983,Bestände!$E31,Kassenbuch!$L$7:$L$19983,Bestände!$D31)","v":0},9.9999999999766942E-5]
[null,null,"2026-01-31","Januar",2026,0,{"$f":"SUMIFS(Kassenbuch!$E$7:$E$19983,Kassenbuch!$K$7:$K$19983,Bestände!$E32,Kassenbuch!$L$7:$L$19983,Bestände!$D32)","v":0},{"$f":"SUMIFS(Kassenbuch!$F$7:$F$19983,Kassenbuch!$K$7:$K$19983,Bestände!$E32,Kassenbuch!$L$7:$L$19983,Bestände!$D32)","v":0},0]
[null,null,"2026-02-28","Februar",2026,0,{"$f":"SUMIFS(Kassenbuch!$E$7:$E$19983,Kassenbuch!$K$7:$K$19983,Bestände!$E33,Kassenbuch!$L$7:$L$19983,Bestände!$D33)","v":0},{"$f":"SUMIFS(Kassenbuch!$F$7:$F$19983,Kassenbuch!$K$7:$K$19983,Bestände!$E33,Kassenbuch!$L$7:$L$19983,Bestände!$D33)","v":0},0]
[null,null,"2026-03-31","März",2026,0,{"$f":"SUMIFS(Kassenbuch!$E$7:$E$19983,Kassenbuch!$K$7:$K$19983,Bestände!$E34,Kassenbuch!$L$7:$L$19983,Bestände!$D34)","v":0},{"$f":"SUMIFS(Kassenbuch!$F$7:$F$19983,Kassenbuch!$K$7:$K$19983,Bestände!$E34,Kassenbuch!$L$7:$L$19983,Bestände!$D34)","v":0},0]
[null,null,"2026-04-30","April",2026,0,{"$f":"SUMIFS(Kassenbuch!$E$7:$E$19983,Kassenbuch!$K$7:$K$19983,Bestände!$E35,Kassenbuch!$L$7:$L$19983,Bestände!$D35)","v":0},{"$f":"SUMIFS(Kassenbuch!$F$7:$F$19983,Kassenbuch!$K$7:$K$19983,Bestände!$E35,Kassenbuch!$L$7:$L$19983,Bestände!$D35)","v":0},0]
[null,null,"2026-05-31","Mai",2026,0,{"$f":"SUMIFS(Kassenbuch!$E$7:$E$19983,Kassenbuch!$K$7:$K$19983,Bestände!$E36,Kassenbuch!$L$7:$L$19983,Bestände!$D36)","v":0},{"$f":"SUMIFS(Kassenbuch!$F$7:$F$19983,Kassenbuch!$K$7:$K$19983,Bestände!$E36,Kassenbuch!$L$7:$L$19983,Bestände!$D36)","v":0},0]
[null,null,"2026-06-30","Juni",2026,0,{"$f":"SUMIFS(Kassenbuch!$E$7:$E$19983,Kassenbuch!$K$7:$K$19983,Bestände!$E37,Kassenbuch!$L$7:$L$19983,Bestände!$D37)","v":0},{"$f":"SUMIFS(Kassenbuch!$F$7:$F$19983,Kassenbuch!$K$7:$K$19983,Bestände!$E37,Kassenbuch!$L$7:$L$19983,Bestände!$D37)","v":0},0]
[null,null,"2026-07-31","Juli",2026,0,{"$f":"SUMIFS(Kassenbuch!$E$7:$E$19983,Kassenbuch!$K$7:$K$19983,Bestände!$E38,Kassenbuch!$L$7:$L$19983,Bestände!$D38)","v":0},{"$f":"SUMIFS(Kassenbuch!$F$7:$F$19983,Kassenbuch!$K$7:$K$19983,Bestände!$E38,Kassenbuch!$L$7:$L$19983,Bestände!$D38)","v":0},0]
[null,null,"2026-08-31","August",2026,0,{"$f":"SUMIFS(Kassenbuch!$E$7:$E$19983,Kassenbuch!$K$7:$K$19983,Bestände!$E39,Kassenbuch!$L$7:$L$19983,Bestände!$D39)","v":0},{"$f":"SUMIFS(Kassenbuch!$F$7:$F$19983,Kassenbuch!$K$7:$K$19983,Bestände!$E39,Kassenbuch!$L$7:$L$19983,Bestände!$D39)","v":0},0]
[null,null,"2026-09-30","September",2026,0,{"$f":"SUMIFS(Kassenbuch!$E$7:$E$19983,Kassenbuch!$K$7:$K$19983,Bestände!$E40,Kassenbuch!$L$7:$L$19983,Bestände!$D40)","v":0},{"$f":"SUMIFS(Kassenbuch!$F$7:$F$19983,Kassenbuch!$K$7:$K$19983,Bestände!$E40,Kassenbuch!$L$7:$L$19983,Bestände!$D40)","v":0},0]
[null,null,"2026-10-31","Oktober",2026,0,{"$f":"SUMIFS(Kassenbuch!$E$7:$E$19983,Kassenbuch!$K$7:$K$19983,Bestände!$E41,Kassenbuch!$L$7:$L$19983,Bestände!$D41)","v":0},{"$f":"SUMIFS(Kassenbuch!$F$7:$F$19983,Kassenbuch!$K$7:$K$19983,Bestände!$E41,Kassenbuch!$L$7:$L$19983,Bestände!$D41)","v":0},0]
[null,null,"2026-11-30","November",2026,0,{"$f":"SUMIFS(Kassenbuch!$E$7:$E$19983,Kassenbuch!$K$7:$K$19983,Bestände!$E42,Kassenbuch!$L$7:$L$19983,Bestände!$D42)","v":0},{"$f":"SUMIFS(Kassenbuch!$F$7:$F$19983,Kassenbuch!$K$7:$K$19983,Bestände!$E42,Kassenbuch!$L$7:$L$19983,Bestände!$D42)","v":0},0]
[null,null,"2026-12-31","Dezember",2026,0,{"$f":"SUMIFS(Kassenbuch!$E$7:$E$19983,Kassenbuch!$K$7:$K$19983,Bestände!$E43,Kassenbuch!$L$7:$L$19983,Bestände!$D43)","v":0},{"$f":"SUMIFS(Kassenbuch!$F$7:$F$19983,Kassenbuch!$K$7:$K$19983,Bestände!$E43,Kassenbuch!$L$7:$L$19983,Bestände!$D43)","v":0},0]
[null,null,"2027-01-31","Januar",2027,0,{"$f":"SUMIFS(Kassenbuch!$E$7:$E$19983,Kassenbuch!$K$7:$K$19983,Bestände!$E44,Kassenbuch!$L$7:$L$19983,Bestände!$D44)","v":0},{"$f":"SUMIFS(Kassenbuch!$F$7:$F$19983,Kassenbuch!$K$7:$K$19983,Bestände!$E44,Kassenbuch!$L$7:$L$19983,Bestände!$D44)","v":0},0]
[null,null,"2027-02-28","Februar",2027,0,{"$f":"SUMIFS(Kassenbuch!$E$7:$E$19983,Kassenbuch!$K$7:$K$19983,Bestände!$E45,Kassenbuch!$L$7:$L$19983,Bestände!$D45)","v":0},{"$f":"SUMIFS(Kassenbuch!$F$7:$F$19983,Kassenbuch!$K$7:$K$19983,Bestände!$E45,Kassenbuch!$L$7:$L$19983,Bestände!$D45)","v":0},0]
[null,null,"2027-03-31","März",2027,0,{"$f":"SUMIFS(Kassenbuch!$E$7:$E$19983,Kassenbuch!$K$7:$K$19983,Bestände!$E46,Kassenbuch!$L$7:$L$19983,Bestände!$D46)","v":0},{"$f":"SUMIFS(Kassenbuch!$F$7:$F$19983,Kassenbuch!$K$7:$K$19983,Bestände!$E46,Kassenbuch!$L$7:$L$19983,Bestände!$D46)","v":0},0]
[null,null,"2027-04-30","April",2027,0,{"$f":"SUMIFS(Kassenbuch!$E$7:$E$19983,Kassenbuch!$K$7:$K$19983,Bestände!$E47,Kassenbuch!$L$7:$L$19983,Bestände!$D47)","v":0},{"$f":"SUMIFS(Kassenbuch!$F$7:$F$19983,Kassenbuch!$K$7:$K$19983,Bestände!$E47,Kassenbuch!$L$7:$L$19983,Bestände!$D47)","v":0},0]
[null,null,"2027-05-31","Mai",2027,0,{"$f":"SUMIFS(Kassenbuch!$E$7:$E$19983,Kassenbuch!$K$7:$K$19983,Bestände!$E48,Kassenbuch!$L$7:$L$19983,Bestände!$D48)","v":0},{"$f":"SUMIFS(Kassenbuch!$F$7:$F$19983,Kassenbuch!$K$7:$K$19983,Bestände!$E48,Kassenbuch!$L$7:$L$19983,Bestände!$D48)","v":0},0]
[null,null,"2027-06-30","Juni",2027,0,{"$f":"SUMIFS(Kassenbuch!$E$7:$E$19983,Kassenbuch!$K$7:$K$19983,Bestände!$E49,Kassenbuch!$L$7:$L$19983,Bestände!$D49)","v":0},{"$f":"SUMIFS(Kassenbuch!$F$7:$F$19983,Kassenbuch!$K$7:$K$19983,Bestände!$E49,Kassenbuch!$L$7:$L$19983,Bestände!$D49)","v":0},0]
[null,null,"2027-07-31","Juli",2027,0,{"$f":"SUMIFS(Kassenbuch!$E$7:$E$19983,Kassenbuch!$K$7:$K$19983,Bestände!$E50,Kassenbuch!$L$7:$L$19983,Bestände!$D50)","v":0},{"$f":"SUMIFS(Kassenbuch!$F$7:$F$19983,Kassenbuch!$K$7:$K$19983,Bestände!$E50,Kassenbuch!$L$7:$L$19983,Bestände!$D50)","v":0},0]
[null,null,"2027-08-31","August",2027,0,{"$f":"SUMIFS(Kassenbuch!$E$7:$E$19983,Kassenbuch!$K$7:$K$19983,Bestände!$E51,Kassenbuch!$L$7:$L$19983,Bestände!$D51)","v":0},{"$f":"SUMIFS(Kassenbuch!$F$7:$F$19983,Kassenbuch!$K$7:$K$19983,Bestände!$E51,Kassenbuch!$L$7:$L$19983,Bestände!$D51)","v":0},0]
[null,null,"2027-09-30","September",2027,0,{"$f":"SUMIFS(Kassenbuch!$E$7:$E$19983,Kassenbuch!$K$7:$K$19983,Bestände!$E52,Kassenbuch!$L$7:$L$19983,Bestände!$D52)","v":0},{"$f":"SUMIFS(Kassenbuch!$F$7:$F$19983,Kassenbuch!$K$7:$K$19983,Bestände!$E52,Kassenbuch!$L$7:$L$19983,Bestände!$D52)","v":0},0]
[null,null,"2027-10-31","Oktober",2027,0,{"$f":"SUMIFS(Kassenbuch!$E$7:$E$19983,Kassenbuch!$K$7:$K$19983,Bestände!$E53,Kassenbuch!$L$7:$L$19983,Bestände!$D53)","v":0},{"$f":"SUMIFS(Kassenbuch!$F$7:$F$19983,Kassenbuch!$K$7:$K$19983,Bestände!$E53,Kassenbuch!$L$7:$L$19983,Bestände!$D53)","v":0},0]
[null,null,"2027-11-30","November",2027,0,{"$f":"SUMIFS(Kassenbuch!$E$7:$E$19983,Kassenbuch!$K$7:$K$19983,Bestände!$E54,Kassenbuch!$L$7:$L$19983,Bestände!$D54)","v":0},{"$f":"SUMIFS(Kassenbuch!$F$7:$F$19983,Kassenbuch!$K$7:$K$19983,Bestände!$E54,Kassenbuch!$L$7:$L$19983,Bestände!$D54)","v":0},0]
[null,null,"2027-12-31","Dezember",2027,0,{"$f":"SUMIFS(Kassenbuch!$E$7:$E$19983,Kassenbuch!$K$7:$K$19983,Bestände!$E55,Kassenbuch!$L$7:$L$19983,Bestände!$D55)","v":0},{"$f":"SUMIFS(Kassenbuch!$F$7:$F$19983,Kassenbuch!$K$7:$K$19983,Bestände!$E55,Kassenbuch!$L$7:$L$19983,Bestände!$D55)","v":0},0]
[null,null,"2028-01-31","Januar",2028,0,{"$f":"SUMIFS(Kassenbuch!$E$7:$E$19983,Kassenbuch!$K$7:$K$19983,Bestände!$E56,Kassenbuch!$L$7:$L$19983,Bestände!$D56)","v":0},{"$f":"SUMIFS(Kassenbuch!$F$7:$F$19983,Kassenbuch!$K$7:$K$19983,Bestände!$E56,Kassenbuch!$L$7:$L$19983,Bestände!$D56)","v":0},0]
[null,null,"2028-02-29","Februar",2028,0,{"$f":"SUMIFS(Kassenbuch!$E$7:$E$19983,Kassenbuch!$K$7:$K$19983,Bestände!$E57,Kassenbuch!$L$7:$L$19983,Bestände!$D57)","v":0},{"$f":"SUMIFS(Kassenbuch!$F$7:$F$19983,Kassenbuch!$K$7:$K$19983,Bestände!$E57,Kassenbuch!$L$7:$L$19983,Bestände!$D57)","v":0},0]
[null,null,"2028-03-31","März",2028,0,{"$f":"SUMIFS(Kassenbuch!$E$7:$E$19983,Kassenbuch!$K$7:$K$19983,Bestände!$E58,Kassenbuch!$L$7:$L$19983,Bestände!$D58)","v":0},{"$f":"SUMIFS(Kassenbuch!$F$7:$F$19983,Kassenbuch!$K$7:$K$19983,Bestände!$E58,Kassenbuch!$L$7:$L$19983,Bestände!$D58)","v":0},0]
[null,null,"2028-04-30","April",2028,0,{"$f":"SUMIFS(Kassenbuch!$E$7:$E$19983,Kassenbuch!$K$7:$K$19983,Bestände!$E59,Kassenbuch!$L$7:$L$19983,Bestände!$D59)","v":0},{"$f":"SUMIFS(Kassenbuch!$F$7:$F$19983,Kassenbuch!$K$7:$K$19983,Bestände!$E59,Kassenbuch!$L$7:$L$19983,Bestände!$D59)","v":0},0]
[null,null,"2028-05-31","Mai",2028,0,{"$f":"SUMIFS(Kassenbuch!$E$7:$E$19983,Kassenbuch!$K$7:$K$19983,Bestände!$E60,Kassenbuch!$L$7:$L$19983,Bestände!$D60)","v":0},{"$f":"SUMIFS(Kassenbuch!$F$7:$F$19983,Kassenbuch!$K$7:$K$19983,Bestände!$E60,Kassenbuch!$L$7:$L$19983,Bestände!$D60)","v":0},0]
[null,null,"2028-06-30","Juni",2028,0,{"$f":"SUMIFS(Kassenbuch!$E$7:$E$19983,Kassenbuch!$K$7:$K$19983,Bestände!$E61,Kassenbuch!$L$7:$L$19983,Bestände!$D61)","v":0},{"$f":"SUMIFS(Kassenbuch!$F$7:$F$19983,Kassenbuch!$K$7:$K$19983,Bestände!$E61,Kassenbuch!$L$7:$L$19983,Bestände!$D61)","v":0},0]
[null,null,"2028-07-31","Juli",2028,0,{"$f":"SUMIFS(Kassenbuch!$E$7:$E$19983,Kassenbuch!$K$7:$K$19983,Bestände!$E62,Kassenbuch!$L$7:$L$19983,Bestände!$D62)","v":0},{"$f":"SUMIFS(Kassenbuch!$F$7:$F$19983,Kassenbuch!$K$7:$K$19983,Bestände!$E62,Kassenbuch!$L$7:$L$19983,Bestände!$D62)","v":0},0]
[null,null,"2028-08-31","August",2028,0,{"$f":"SUMIFS(Kassenbuch!$E$7:$E$19983,Kassenbuch!$K$7:$K$19983,Bestände!$E63,Kassenbuch!$L$7:$L$19983,Bestände!$D63)","v":0},{"$f":"SUMIFS(Kassenbuch!$F$7:$F$19983,Kassenbuch!$K$7:$K$19983,Bestände!$E63,Kassenbuch!$L$7:$L$19983,Bestände!$D63)","v":0},0]
[null,null,"2028-09-30","September",2028,0,{"$f":"SUMIFS(Kassenbuch!$E$7:$E$19983,Kassenbuch!$K$7:$K$19983,Bestände!$E64,Kassenbuch!$L$7:$L$19983,Bestände!$D64)","v":0},{"$f":"SUMIFS(Kassenbuch!$F$7:$F$19983,Kassenbuch!$K$7:$K$19983,Bestände!$E64,Kassenbuch!$L$7:$L$19983,Bestände!$D64)","v":0},0]
[null,null,"2028-10-31","Oktober",2028,0,{"$f":"SUMIFS(Kassenbuch!$E$7:$E$19983,Kassenbuch!$K$7:$K$19983,Bestände!$E65,Kassenbuch!$L$7:$L$19983,Bestände!$D65)","v":0},{"$f":"SUMIFS(Kassenbuch!$F$7:$F$19983,Kassenbuch!$K$7:$K$19983,Bestände!$E65,Kassenbuch!$L$7:$L$19983,Bestände!$D65)","v":0},0]
[null,null,"2028-11-30","November",2028,0,{"$f":"SUMIFS(Kassenbuch!$E$7:$E$19983,Kassenbuch!$K$7:$K$19983,Bestände!$E66,Kassenbuch!$L$7:$L$19983,Bestände!$D66)","v":0},{"$f":"SUMIFS(Kassenbuch!$F$7:$F$19983,Kassenbuch!$K$7:$K$19983,Bestände!$E66,Kassenbuch!$L$7:$L$19983,Bestände!$D66)","v":0},0]
[null,null,"2028-12-31","Dezember",2028,0,{"$f":"SUMIFS(Kassenbuch!$E$7:$E$19983,Kassenbuch!$K$7:$K$19983,Bestände!$E67,Kassenbuch!$L$7:$L$19983,Bestände!$D67)","v":0},{"$f":"SUMIFS(Kassenbuch!$F$7:$F$19983,Kassenbuch!$K$7:$K$19983,Bestände!$E67,Kassenbuch!$L$7:$L$19983,Bestände!$D67)","v":0},0]
[null,null,"2029-01-31","Januar",2029,0,{"$f":"SUMIFS(Kassenbuch!$E$7:$E$19983,Kassenbuch!$K$7:$K$19983,Bestände!$E68,Kassenbuch!$L$7:$L$19983,Bestände!$D68)","v":0},{"$f":"SUMIFS(Kassenbuch!$F$7:$F$19983,Kassenbuch!$K$7:$K$19983,Bestände!$E68,Kassenbuch!$L$7:$L$19983,Bestände!$D68)","v":0},0]
[null,null,"2029-02-28","Februar",2029,0,{"$f":"SUMIFS(Kassenbuch!$E$7:$E$19983,Kassenbuch!$K$7:$K$19983,Bestände!$E69,Kassenbuch!$L$7:$L$19983,Bestände!$D69)","v":0},{"$f":"SUMIFS(Kassenbuch!$F$7:$F$19983,Kassenbuch!$K$7:$K$19983,Bestände!$E69,Kassenbuch!$L$7:$L$19983,Bestände!$D69)","v":0},0]
[null,null,"2029-03-31","März",2029,0,{"$f":"SUMIFS(Kassenbuch!$E$7:$E$19983,Kassenbuch!$K$7:$K$19983,Bestände!$E70,Kassenbuch!$L$7:$L$19983,Bestände!$D70)","v":0},{"$f":"SUMIFS(Kassenbuch!$F$7:$F$19983,Kassenbuch!$K$7:$K$19983,Bestände!$E70,Kassenbuch!$L$7:$L$19983,Bestände!$D70)","v":0},0]
[null,null,"2029-04-30","April",2029,0,{"$f":"SUMIFS(Kassenbuch!$E$7:$E$19983,Kassenbuch!$K$7:$K$19983,Bestände!$E71,Kassenbuch!$L$7:$L$19983,Bestände!$D71)","v":0},{"$f":"SUMIFS(Kassenbuch!$F$7:$F$19983,Kassenbuch!$K$7:$K$19983,Bestände!$E71,Kassenbuch!$L$7:$L$19983,Bestände!$D71)","v":0},0]
[null,null,"2029-05-31","Mai",2029,0,{"$f":"SUMIFS(Kassenbuch!$E$7:$E$19983,Kassenbuch!$K$7:$K$19983,Bestände!$E72,Kassenbuch!$L$7:$L$19983,Bestände!$D72)","v":0},{"$f":"SUMIFS(Kassenbuch!$F$7:$F$19983,Kassenbuch!$K$7:$K$19983,Bestände!$E72,Kassenbuch!$L$7:$L$19983,Bestände!$D72)","v":0},0]
[null,null,"2029-06-30",{"$f":"TEXT(C73,\"MMMM\")","v":"Juni"},{"$f":"IF(C73=\"-\",\"-\",YEAR(C73))","v":2029},0,{"$f":"SUMIFS(Kassenbuch!$E$7:$E$19983,Kassenbuch!$K$7:$K$19983,Bestände!$E73,Kassenbuch!$L$7:$L$19983,Bestände!$D73)","v":0},{"$f":"SUMIFS(Kassenbuch!$F$7:$F$19983,Kassenbuch!$K$7:$K$19983,Bestände!$E73,Kassenbuch!$L$7:$L$19983,Bestände!$D73)","v":0},0]
[null,null,{"$f":"IF(C73=\"-\",\"-\",EOMONTH(C73,1))","v":"2029-07-31"},"Juli",2029,{"$f":"IF(C73>=TODAY(),0,I73)","v":0},{"$f":"SUMIFS(Kassenbuch!$E$7:$E$19983,Kassenbuch!$K$7:$K$19983,Bestände!$E74,Kassenbuch!$L$7:$L$19983,Bestände!$D74)","v":0},{"$f":"SUMIFS(Kassenbuch!$F$7:$F$19983,Kassenbuch!$K$7:$K$19983,Bestände!$E74,Kassenbuch!$L$7:$L$19983,Bestände!$D74)","v":0},{"$f":"IF(F74=0,0,F74+G74-H74)","v":0}]
[null,null,"2029-08-31","August",2029,0,{"$f":"SUMIFS(Kassenbuch!$E$7:$E$19983,Kassenbuch!$K$7:$K$19983,Bestände!$E75,Kassenbuch!$L$7:$L$19983,Bestände!$D75)","v":0},{"$f":"SUMIFS(Kassenbuch!$F$7:$F$19983,Kassenbuch!$K$7:$K$19983,Bestände!$E75,Kassenbuch!$L$7:$L$19983,Bestände!$D75)","v":0},0]
[null,null,"2029-09-30","September",2029,0,{"$f":"SUMIFS(Kassenbuch!$E$7:$E$19983,Kassenbuch!$K$7:$K$19983,Bestände!$E76,Kassenbuch!$L$7:$L$19983,Bestände!$D76)","v":0},{"$f":"SUMIFS(Kassenbuch!$F$7:$F$19983,Kassenbuch!$K$7:$K$19983,Bestände!$E76,Kassenbuch!$L$7:$L$19983,Bestände!$D76)","v":0},0]
[null,null,"2029-10-31","Oktober",2029,0,{"$f":"SUMIFS(Kassenbuch!$E$7:$E$19983,Kassenbuch!$K$7:$K$19983,Bestände!$E77,Kassenbuch!$L$7:$L$19983,Bestände!$D77)","v":0},{"$f":"SUMIFS(Kassenbuch!$F$7:$F$19983,Kassenbuch!$K$7:$K$19983,Bestände!$E77,Kassenbuch!$L$7:$L$19983,Bestände!$D77)","v":0},0]
[null,null,"2029-11-30","November",2029,0,{"$f":"SUMIFS(Kassenbuch!$E$7:$E$19983,Kassenbuch!$K$7:$K$19983,Bestände!$E78,Kassenbuch!$L$7:$L$19983,Bestände!$D78)","v":0},{"$f":"SUMIFS(Kassenbuch!$F$7:$F$19983,Kassenbuch!$K$7:$K$19983,Bestände!$E78,Kassenbuch!$L$7:$L$19983,Bestände!$D78)","v":0},0]
[null,null,"2029-12-31","Dezember",2029,0,{"$f":"SUMIFS(Kassenbuch!$E$7:$E$19983,Kassenbuch!$K$7:$K$19983,Bestände!$E79,Kassenbuch!$L$7:$L$19983,Bestände!$D79)","v":0},{"$f":"SUMIFS(Kassenbuch!$F$7:$F$19983,Kassenbuch!$K$7:$K$19983,Bestände!$E79,Kassenbuch!$L$7:$L$19983,Bestände!$D79)","v":0},0]
[null,null,"2030-01-31","Januar",2030,0,{"$f":"SUMIFS(Kassenbuch!$E$7:$E$19983,Kassenbuch!$K$7:$K$19983,Bestände!$E80,Kassenbuch!$L$7:$L$19983,Bestände!$D80)","v":0},{"$f":"SUMIFS(Kassenbuch!$F$7:$F$19983,Kassenbuch!$K$7:$K$19983,Bestände!$E80,Kassenbuch!$L$7:$L$19983,Bestände!$D80)","v":0},0]
[null,null,"2030-02-28","Februar",2030,0,{"$f":"SUMIFS(Kassenbuch!$E$7:$E$19983,Kassenbuch!$K$7:$K$19983,Bestände!$E81,Kassenbuch!$L$7:$L$19983,Bestände!$D81)","v":0},{"$f":"SUMIFS(Kassenbuch!$F$7:$F$19983,Kassenbuch!$K$7:$K$19983,Bestände!$E81,Kassenbuch!$L$7:$L$19983,Bestände!$D81)","v":0},0]
[null,null,"2030-03-31","März",2030,0,{"$f":"SUMIFS(Kassenbuch!$E$7:$E$19983,Kassenbuch!$K$7:$K$19983,Bestände!$E82,Kassenbuch!$L$7:$L$19983,Bestände!$D82)","v":0},{"$f":"SUMIFS(Kassenbuch!$F$7:$F$19983,Kassenbuch!$K$7:$K$19983,Bestände!$E82,Kassenbuch!$L$7:$L$19983,Bestände!$D82)","v":0},0]
[null,null,"2030-04-30","April",2030,0,{"$f":"SUMIFS(Kassenbuch!$E$7:$E$19983,Kassenbuch!$K$7:$K$19983,Bestände!$E83,Kassenbuch!$L$7:$L$19983,Bestände!$D83)","v":0},{"$f":"SUMIFS(Kassenbuch!$F$7:$F$19983,Kassenbuch!$K$7:$K$19983,Bestände!$E83,Kassenbuch!$L$7:$L$19983,Bestände!$D83)","v":0},0]
[null,null,"2030-05-31","Mai",2030,0,{"$f":"SUMIFS(Kassenbuch!$E$7:$E$19983,Kassenbuch!$K$7:$K$19983,Bestände!$E84,Kassenbuch!$L$7:$L$19983,Bestände!$D84)","v":0},{"$f":"SUMIFS(Kassenbuch!$F$7:$F$19983,Kassenbuch!$K$7:$K$19983,Bestände!$E84,Kassenbuch!$L$7:$L$19983,Bestände!$D84)","v":0},0]
[null,null,"2030-06-30","Juni",2030,0,{"$f":"SUMIFS(Kassenbuch!$E$7:$E$19983,Kassenbuch!$K$7:$K$19983,Bestände!$E85,Kassenbuch!$L$7:$L$19983,Bestände!$D85)","v":0},{"$f":"SUMIFS(Kassenbuch!$F$7:$F$19983,Kassenbuch!$K$7:$K$19983,Bestände!$E85,Kassenbuch!$L$7:$L$19983,Bestände!$D85)","v":0},0]
[null,null,"2030-07-31","Juli",2030,0,{"$f":"SUMIFS(Kassenbuch!$E$7:$E$19983,Kassenbuch!$K$7:$K$19983,Bestände!$E86,Kassenbuch!$L$7:$L$19983,Bestände!$D86)","v":0},{"$f":"SUMIFS(Kassenbuch!$F$7:$F$19983,Kassenbuch!$K$7:$K$19983,Bestände!$E86,Kassenbuch!$L$7:$L$19983,Bestände!$D86)","v":0},0]
[null,null,"2030-08-31","August",2030,0,{"$f":"SUMIFS(Kassenbuch!$E$7:$E$19983,Kassenbuch!$K$7:$K$19983,Bestände!$E87,Kassenbuch!$L$7:$L$19983,Bestände!$D87)","v":0},{"$f":"SUMIFS(Kassenbuch!$F$7:$F$19983,Kassenbuch!$K$7:$K$19983,Bestände!$E87,Kassenbuch!$L$7:$L$19983,Bestände!$D87)","v":0},0]
[null,null,"2030-09-30","September",2030,0,{"$f":"SUMIFS(Kassenbuch!$E$7:$E$19983,Kassenbuch!$K$7:$K$19983,Bestände!$E88,Kassenbuch!$L$7:$L$19983,Bestände!$D88)","v":0},{"$f":"SUMIFS(Kassenbuch!$F$7:$F$19983,Kassenbuch!$K$7:$K$19983,Bestände!$E88,Kassenbuch!$L$7:$L$19983,Bestände!$D88)","v":0},0]
[null,null,"2030-10-31","Oktober",2030,0,{"$f":"SUMIFS(Kassenbuch!$E$7:$E$19983,Kassenbuch!$K$7:$K$19983,Bestände!$E89,Kassenbuch!$L$7:$L$19983,Bestände!$D89)","v":0},{"$f":"SUMIFS(Kassenbuch!$F$7:$F$19983,Kassenbuch!$K$7:$K$19983,Bestände!$E89,Kassenbuch!$L$7:$L$19983,Bestände!$D89)","v":0},0]
[null,null,"2030-11-30","November",2030,0,{"$f":"SUMIFS(Kassenbuch!$E$7:$E$19983,Kassenbuch!$K$7:$K$19983,Bestände!$E90,Kassenbuch!$L$7:$L$19983,Bestände!$D90)","v":0},{"$f":"SUMIFS(Kassenbuch!$F$7:$F$19983,Kassenbuch!$K$7:$K$19983,Bestände!$E90,Kassenbuch!$L$7:$L$19983,Bestände!$D90)","v":0},0]
[null,null,"2030-12-31","Dezember",2030,0,{"$f":"SUMIFS(Kassenbuch!$E$7:$E$19983,Kassenbuch!$K$7:$K$19983,Bestände!$E91,Kassenbuch!$L$7:$L$19983,Bestände!$D91)","v":0},{"$f":"SUMIFS(Kassenbuch!$F$7:$F$19983,Kassenbuch!$K$7:$K$19983,Bestände!$E91,Kassenbuch!$L$7:$L$19983,Bestände!$D91)","v":0},0]
[null,null,"2031-01-31","Januar",2031,0,{"$f":"SUMIFS(Kassenbuch!$E$7:$E$19983,Kassenbuch!$K$7:$K$19983,Bestände!$E92,Kassenbuch!$L$7:$L$19983,Bestände!$D92)","v":0},{"$f":"SUMIFS(Kassenbuch!$F$7:$F$19983,Kassenbuch!$K$7:$K$19983,Bestände!$E92,Kassenbuch!$L$7:$L$19983,Bestände!$D92)","v":0},0]
[null,null,"2031-02-28","Februar",2031,0,{"$f":"SUMIFS(Kassenbuch!$E$7:$E$19983,Kassenbuch!$K$7:$K$19983,Bestände!$E93,Kassenbuch!$L$7:$L$19983,Bestände!$D93)","v":0},{"$f":"SUMIFS(Kassenbuch!$F$7:$F$19983,Kassenbuch!$K$7:$K$19983,Bestände!$E93,Kassenbuch!$L$7:$L$19983,Bestände!$D93)","v":0},0]
[null,null,"2031-03-31","März",2031,0,{"$f":"SUMIFS(Kassenbuch!$E$7:$E$19983,Kassenbuch!$K$7:$K$19983,Bestände!$E94,Kassenbuch!$L$7:$L$19983,Bestände!$D94)","v":0},{"$f":"SUMIFS(Kassenbuch!$F$7:$F$19983,Kassenbuch!$K$7:$K$19983,Bestände!$E94,Kassenbuch!$L$7:$L$19983,Bestände!$D94)","v":0},0]
[null,null,"2031-04-30","April",2031,0,{"$f":"SUMIFS(Kassenbuch!$E$7:$E$19983,Kassenbuch!$K$7:$K$19983,Bestände!$E95,Kassenbuch!$L$7:$L$19983,Bestände!$D95)","v":0},{"$f":"SUMIFS(Kassenbuch!$F$7:$F$19983,Kassenbuch!$K$7:$K$19983,Bestände!$E95,Kassenbuch!$L$7:$L$19983,Bestände!$D95)","v":0},0]
[null,null,"2031-05-31","Mai",2031,0,{"$f":"SUMIFS(Kassenbuch!$E$7:$E$19983,Kassenbuch!$K$7:$K$19983,Bestände!$E96,Kassenbuch!$L$7:$L$19983,Bestände!$D96)","v":0},{"$f":"SUMIFS(Kassenbuch!$F$7:$F$19983,Kassenbuch!$K$7:$K$19983,Bestände!$E96,Kassenbuch!$L$7:$L$19983,Bestände!$D96)","v":0},0]
[null,null,"2031-06-30","Juni",2031,0,{"$f":"SUMIFS(Kassenbuch!$E$7:$E$19983,Kassenbuch!$K$7:$K$19983,Bestände!$E97,Kassenbuch!$L$7:$L$19983,Bestände!$D97)","v":0},{"$f":"SUMIFS(Kassenbuch!$F$7:$F$19983,Kassenbuch!$K$7:$K$19983,Bestände!$E97,Kassenbuch!$L$7:$L$19983,Bestände!$D97)","v":0},0]
[null,null,"2031-07-31","Juli",2031,0,{"$f":"SUMIFS(Kassenbuch!$E$7:$E$19983,Kassenbuch!$K$7:$K$19983,Bestände!$E98,Kassenbuch!$L$7:$L$19983,Bestände!$D98)","v":0},{"$f":"SUMIFS(Kassenbuch!$F$7:$F$19983,Kassenbuch!$K$7:$K$19983,Bestände!$E98,Kassenbuch!$L$7:$L$19983,Bestände!$D98)","v":0},0]
[null,null,"2031-08-31","August",2031,0,{"$f":"SUMIFS(Kassenbuch!$E$7:$E$19983,Kassenbuch!$K$7:$K$19983,Bestände!$E99,Kassenbuch!$L$7:$L$19983,Bestände!$D99)","v":0},{"$f":"SUMIFS(Kassenbuch!$F$7:$F$19983,Kassenbuch!$K$7:$K$19983,Bestände!$E99,Kassenbuch!$L$7:$L$19983,Bestände!$D99)","v":0},0]
[null,null,"2031-09-30","September",2031,0,{"$f":"SUMIFS(Kassenbuch!$E$7:$E$19983,Kassenbuch!$K$7:$K$19983,Bestände!$E100,Kassenbuch!$L$7:$L$19983,Bestände!$D100)","v":0},{"$f":"SUMIFS(Kassenbuch!$F$7:$F$19983,Kassenbuch!$K$7:$K$19983,Bestände!$E100,Kassenbuch!$L$7:$L$19983,Bestände!$D100)","v":0},0]
[null,null,"2031-10-31","Oktober",2031,0,{"$f":"SUMIFS(Kassenbuch!$E$7:$E$19983,Kassenbuch!$K$7:$K$19983,Bestände!$E101,Kassenbuch!$L$7:$L$19983,Bestände!$D101)","v":0},{"$f":"SUMIFS(Kassenbuch!$F$7:$F$19983,Kassenbuch!$K$7:$K$19983,Bestände!$E101,Kassenbuch!$L$7:$L$19983,Bestände!$D101)","v":0},0]
[null,null,"2031-11-30","November",2031,0,{"$f":"SUMIFS(Kassenbuch!$E$7:$E$19983,Kassenbuch!$K$7:$K$19983,Bestände!$E102,Kassenbuch!$L$7:$L$19983,Bestände!$D102)","v":0},{"$f":"SUMIFS(Kassenbuch!$F$7:$F$19983,Kassenbuch!$K$7:$K$19983,Bestände!$E102,Kassenbuch!$L$7:$L$19983,Bestände!$D102)","v":0},0]
[null,null,"2031-12-31","Dezember",2031,0,{"$f":"SUMIFS(Kassenbuch!$E$7:$E$19983,Kassenbuch!$K$7:$K$19983,Bestände!$E103,Kassenbuch!$L$7:$L$19983,Bestände!$D103)","v":0},{"$f":"SUMIFS(Kassenbuch!$F$7:$F$19983,Kassenbuch!$K$7:$K$19983,Bestände!$E103,Kassenbuch!$L$7:$L$19983,Bestände!$D103)","v":0},0]
[null,null,"2032-01-31","Januar",2032,0,{"$f":"SUMIFS(Kassenbuch!$E$7:$E$19983,Kassenbuch!$K$7:$K$19983,Bestände!$E104,Kassenbuch!$L$7:$L$19983,Bestände!$D104)","v":0},{"$f":"SUMIFS(Kassenbuch!$F$7:$F$19983,Kassenbuch!$K$7:$K$19983,Bestände!$E104,Kassenbuch!$L$7:$L$19983,Bestände!$D104)","v":0},0]
[null,null,"2032-02-29","Februar",2032,0,{"$f":"SUMIFS(Kassenbuch!$E$7:$E$19983,Kassenbuch!$K$7:$K$19983,Bestände!$E105,Kassenbuch!$L$7:$L$19983,Bestände!$D105)","v":0},{"$f":"SUMIFS(Kassenbuch!$F$7:$F$19983,Kassenbuch!$K$7:$K$19983,Bestände!$E105,Kassenbuch!$L$7:$L$19983,Bestände!$D105)","v":0},0]
[null,null,"2032-03-31","März",2032,0,{"$f":"SUMIFS(Kassenbuch!$E$7:$E$19983,Kassenbuch!$K$7:$K$19983,Bestände!$E106,Kassenbuch!$L$7:$L$19983,Bestände!$D106)","v":0},{"$f":"SUMIFS(Kassenbuch!$F$7:$F$19983,Kassenbuch!$K$7:$K$19983,Bestände!$E106,Kassenbuch!$L$7:$L$19983,Bestände!$D106)","v":0},0]
[null,null,"2032-04-30","April",2032,0,{"$f":"SUMIFS(Kassenbuch!$E$7:$E$19983,Kassenbuch!$K$7:$K$19983,Bestände!$E107,Kassenbuch!$L$7:$L$19983,Bestände!$D107)","v":0},{"$f":"SUMIFS(Kassenbuch!$F$7:$F$19983,Kassenbuch!$K$7:$K$19983,Bestände!$E107,Kassenbuch!$L$7:$L$19983,Bestände!$D107)","v":0},0]
[null,null,"2032-05-31","Mai",2032,0,{"$f":"SUMIFS(Kassenbuch!$E$7:$E$19983,Kassenbuch!$K$7:$K$19983,Bestände!$E108,Kassenbuch!$L$7:$L$19983,Bestände!$D108)","v":0},{"$f":"SUMIFS(Kassenbuch!$F$7:$F$19983,Kassenbuch!$K$7:$K$19983,Bestände!$E108,Kassenbuch!$L$7:$L$19983,Bestände!$D108)","v":0},0]
[null,null,"2032-06-30","Juni",2032,0,{"$f":"SUMIFS(Kassenbuch!$E$7:$E$19983,Kassenbuch!$K$7:$K$19983,Bestände!$E109,Kassenbuch!$L$7:$L$19983,Bestände!$D109)","v":0},{"$f":"SUMIFS(Kassenbuch!$F$7:$F$19983,Kassenbuch!$K$7:$K$19983,Bestände!$E109,Kassenbuch!$L$7:$L$19983,Bestände!$D109)","v":0},0]
[null,null,"2032-07-31","Juli",2032,0,{"$f":"SUMIFS(Kassenbuch!$E$7:$E$19983,Kassenbuch!$K$7:$K$19983,Bestände!$E110,Kassenbuch!$L$7:$L$19983,Bestände!$D110)","v":0},{"$f":"SUMIFS(Kassenbuch!$F$7:$F$19983,Kassenbuch!$K$7:$K$19983,Bestände!$E110,Kassenbuch!$L$7:$L$19983,Bestände!$D110)","v":0},0]
[null,null,"2032-08-31","August",2032,0,{"$f":"SUMIFS(Kassenbuch!$E$7:$E$19983,Kassenbuch!$K$7:$K$19983,Bestände!$E111,Kassenbuch!$L$7:$L$19983,Bestände!$D111)","v":0},{"$f":"SUMIFS(Kassenbuch!$F$7:$F$19983,Kassenbuch!$K$7:$K$19983,Bestände!$E111,Kassenbuch!$L$7:$L$19983,Bestände!$D111)","v":0},0]
[null,null,"2032-09-30","September",2032,0,{"$f":"SUMIFS(Kassenbuch!$E$7:$E$19983,Kassenbuch!$K$7:$K$19983,Bestände!$E112,Kassenbuch!$L$7:$L$19983,Bestände!$D112)","v":0},{"$f":"SUMIFS(Kassenbuch!$F$7:$F$19983,Kassenbuch!$K$7:$K$19983,Bestände!$E112,Kassenbuch!$L$7:$L$19983,Bestände!$D112)","v":0},0]
[null,null,"2032-10-31","Oktober",2032,0,{"$f":"SUMIFS(Kassenbuch!$E$7:$E$19983,Kassenbuch!$K$7:$K$19983,Bestände!$E113,Kassenbuch!$L$7:$L$19983,Bestände!$D113)","v":0},{"$f":"SUMIFS(Kassenbuch!$F$7:$F$19983,Kassenbuch!$K$7:$K$19983,Bestände!$E113,Kassenbuch!$L$7:$L$19983,Bestände!$D113)","v":0},0]
[null,null,"2032-11-30","November",2032,0,{"$f":"SUMIFS(Kassenbuch!$E$7:$E$19983,Kassenbuch!$K$7:$K$19983,Bestände!$E114,Kassenbuch!$L$7:$L$19983,Bestände!$D114)","v":0},{"$f":"SUMIFS(Kassenbuch!$F$7:$F$19983,Kassenbuch!$K$7:$K$19983,Bestände!$E114,Kassenbuch!$L$7:$L$19983,Bestände!$D114)","v":0},0]
[null,null,"2032-12-31","Dezember",2032,0,{"$f":"SUMIFS(Kassenbuch!$E$7:$E$19983,Kassenbuch!$K$7:$K$19983,Bestände!$E115,Kassenbuch!$L$7:$L$19983,Bestände!$D115)","v":0},{"$f":"SUMIFS(Kassenbuch!$F$7:$F$19983,Kassenbuch!$K$7:$K$19983,Bestände!$E115,Kassenbuch!$L$7:$L$19983,Bestände!$D115)","v":0},0]
[null,null,"2033-01-31","Januar",2033,0,{"$f":"SUMIFS(Kassenbuch!$E$7:$E$19983,Kassenbuch!$K$7:$K$19983,Bestände!$E116,Kassenbuch!$L$7:$L$19983,Bestände!$D116)","v":0},{"$f":"SUMIFS(Kassenbuch!$F$7:$F$19983,Kassenbuch!$K$7:$K$19983,Bestände!$E116,Kassenbuch!$L$7:$L$19983,Bestände!$D116)","v":0},0]
[null,null,"2033-02-28","Februar",2033,0,{"$f":"SUMIFS(Kassenbuch!$E$7:$E$19983,Kassenbuch!$K$7:$K$19983,Bestände!$E117,Kassenbuch!$L$7:$L$19983,Bestände!$D117)","v":0},{"$f":"SUMIFS(Kassenbuch!$F$7:$F$19983,Kassenbuch!$K$7:$K$19983,Bestände!$E117,Kassenbuch!$L$7:$L$19983,Bestände!$D117)","v":0},0]
[null,null,"2033-03-31","März",2033,0,{"$f":"SUMIFS(Kassenbuch!$E$7:$E$19983,Kassenbuch!$K$7:$K$19983,Bestände!$E118,Kassenbuch!$L$7:$L$19983,Bestände!$D118)","v":0},{"$f":"SUMIFS(Kassenbuch!$F$7:$F$19983,Kassenbuch!$K$7:$K$19983,Bestände!$E118,Kassenbuch!$L$7:$L$19983,Bestände!$D118)","v":0},0]
[null,null,"2033-04-30","April",2033,0,{"$f":"SUMIFS(Kassenbuch!$E$7:$E$19983,Kassenbuch!$K$7:$K$19983,Bestände!$E119,Kassenbuch!$L$7:$L$19983,Bestände!$D119)","v":0},{"$f":"SUMIFS(Kassenbuch!$F$7:$F$19983,Kassenbuch!$K$7:$K$19983,Bestände!$E119,Kassenbuch!$L$7:$L$19983,Bestände!$D119)","v":0},0]
[null,null,"2033-05-31","Mai",2033,0,{"$f":"SUMIFS(Kassenbuch!$E$7:$E$19983,Kassenbuch!$K$7:$K$19983,Bestände!$E120,Kassenbuch!$L$7:$L$19983,Bestände!$D120)","v":0},{"$f":"SUMIFS(Kassenbuch!$F$7:$F$19983,Kassenbuch!$K$7:$K$19983,Bestände!$E120,Kassenbuch!$L$7:$L$19983,Bestände!$D120)","v":0},0]
[null,null,"2033-06-30","Juni",2033,0,{"$f":"SUMIFS(Kassenbuch!$E$7:$E$19983,Kassenbuch!$K$7:$K$19983,Bestände!$E121,Kassenbuch!$L$7:$L$19983,Bestände!$D121)","v":0},{"$f":"SUMIFS(Kassenbuch!$F$7:$F$19983,Kassenbuch!$K$7:$K$19983,Bestände!$E121,Kassenbuch!$L$7:$L$19983,Bestände!$D121)","v":0},0]
[null,null,"2033-07-31","Juli",2033,0,{"$f":"SUMIFS(Kassenbuch!$E$7:$E$19983,Kassenbuch!$K$7:$K$19983,Bestände!$E122,Kassenbuch!$L$7:$L$19983,Bestände!$D122)","v":0},{"$f":"SUMIFS(Kassenbuch!$F$7:$F$19983,Kassenbuch!$K$7:$K$19983,Bestände!$E122,Kassenbuch!$L$7:$L$19983,Bestände!$D122)","v":0},0]
[null,null,"2033-08-31","August",2033,0,{"$f":"SUMIFS(Kassenbuch!$E$7:$E$19983,Kassenbuch!$K$7:$K$19983,Bestände!$E123,Kassenbuch!$L$7:$L$19983,Bestände!$D123)","v":0},{"$f":"SUMIFS(Kassenbuch!$F$7:$F$19983,Kassenbuch!$K$7:$K$19983,Bestände!$E123,Kassenbuch!$L$7:$L$19983,Bestände!$D123)","v":0},0]
[null,null,"2033-09-30","September",2033,0,{"$f":"SUMIFS(Kassenbuch!$E$7:$E$19983,Kassenbuch!$K$7:$K$19983,Bestände!$E124,Kassenbuch!$L$7:$L$19983,Bestände!$D124)","v":0},{"$f":"SUMIFS(Kassenbuch!$F$7:$F$19983,Kassenbuch!$K$7:$K$19983,Bestände!$E124,Kassenbuch!$L$7:$L$19983,Bestände!$D124)","v":0},0]
[null,null,"2033-10-31","Oktober",2033,0,{"$f":"SUMIFS(Kassenbuch!$E$7:$E$19983,Kassenbuch!$K$7:$K$19983,Bestände!$E125,Kassenbuch!$L$7:$L$19983,Bestände!$D125)","v":0},{"$f":"SUMIFS(Kassenbuch!$F$7:$F$19983,Kassenbuch!$K$7:$K$19983,Bestände!$E125,Kassenbuch!$L$7:$L$19983,Bestände!$D125)","v":0},0]
[null,null,"2033-11-30","November",2033,0,{"$f":"SUMIFS(Kassenbuch!$E$7:$E$19983,Kassenbuch!$K$7:$K$19983,Bestände!$E126,Kassenbuch!$L$7:$L$19983,Bestände!$D126)","v":0},{"$f":"SUMIFS(Kassenbuch!$F$7:$F$19983,Kassenbuch!$K$7:$K$19983,Bestände!$E126,Kassenbuch!$L$7:$L$19983,Bestände!$D126)","v":0},0]
[null,null,"2033-12-31","Dezember",2033,0,{"$f":"SUMIFS(Kassenbuch!$E$7:$E$19983,Kassenbuch!$K$7:$K$19983,Bestände!$E127,Kassenbuch!$L$7:$L$19983,Bestände!$D127)","v":0},{"$f":"SUMIFS(Kassenbuch!$F$7:$F$19983,Kassenbuch!$K$7:$K$19983,Bestände!$E127,Kassenbuch!$L$7:$L$19983,Bestände!$D127)","v":0},0]
[null,null,"2034-01-31","Januar",2034,0,{"$f":"SUMIFS(Kassenbuch!$E$7:$E$19983,Kassenbuch!$K$7:$K$19983,Bestände!$E128,Kassenbuch!$L$7:$L$19983,Bestände!$D128)","v":0},{"$f":"SUMIFS(Kassenbuch!$F$7:$F$19983,Kassenbuch!$K$7:$K$19983,Bestände!$E128,Kassenbuch!$L$7:$L$19983,Bestände!$D128)","v":0},0]
[null,null,"2034-02-28","Februar",2034,0,{"$f":"SUMIFS(Kassenbuch!$E$7:$E$19983,Kassenbuch!$K$7:$K$19983,Bestände!$E129,Kassenbuch!$L$7:$L$19983,Bestände!$D129)","v":0},{"$f":"SUMIFS(Kassenbuch!$F$7:$F$19983,Kassenbuch!$K$7:$K$19983,Bestände!$E129,Kassenbuch!$L$7:$L$19983,Bestände!$D129)","v":0},0]
[null,null,"2034-03-31","März",2034,0,{"$f":"SUMIFS(Kassenbuch!$E$7:$E$19983,Kassenbuch!$K$7:$K$19983,Bestände!$E130,Kassenbuch!$L$7:$L$19983,Bestände!$D130)","v":0},{"$f":"SUMIFS(Kassenbuch!$F$7:$F$19983,Kassenbuch!$K$7:$K$19983,Bestände!$E130,Kassenbuch!$L$7:$L$19983,Bestände!$D130)","v":0},0]
[null,null,"2034-04-30","April",2034,0,{"$f":"SUMIFS(Kassenbuch!$E$7:$E$19983,Kassenbuch!$K$7:$K$19983,Bestände!$E131,Kassenbuch!$L$7:$L$19983,Bestände!$D131)","v":0},{"$f":"SUMIFS(Kassenbuch!$F$7:$F$19983,Kassenbuch!$K$7:$K$19983,Bestände!$E131,Kassenbuch!$L$7:$L$19983,Bestände!$D131)","v":0},0]
[null,null,"2034-05-31","Mai",2034,0,{"$f":"SUMIFS(Kassenbuch!$E$7:$E$19983,Kassenbuch!$K$7:$K$19983,Bestände!$E132,Kassenbuch!$L$7:$L$19983,Bestände!$D132)","v":0},{"$f":"SUMIFS(Kassenbuch!$F$7:$F$19983,Kassenbuch!$K$7:$K$19983,Bestände!$E132,Kassenbuch!$L$7:$L$19983,Bestände!$D132)","v":0},0]
[null,null,"2034-06-30","Juni",2034,0,{"$f":"SUMIFS(Kassenbuch!$E$7:$E$19983,Kassenbuch!$K$7:$K$19983,Bestände!$E133,Kassenbuch!$L$7:$L$19983,Bestände!$D133)","v":0},{"$f":"SUMIFS(Kassenbuch!$F$7:$F$19983,Kassenbuch!$K$7:$K$19983,Bestände!$E133,Kassenbuch!$L$7:$L$19983,Bestände!$D133)","v":0},0]
[null,null,"2034-07-31","Juli",2034,0,{"$f":"SUMIFS(Kassenbuch!$E$7:$E$19983,Kassenbuch!$K$7:$K$19983,Bestände!$E134,Kassenbuch!$L$7:$L$19983,Bestände!$D134)","v":0},{"$f":"SUMIFS(Kassenbuch!$F$7:$F$19983,Kassenbuch!$K$7:$K$19983,Bestände!$E134,Kassenbuch!$L$7:$L$19983,Bestände!$D134)","v":0},0]
[null,null,"2034-08-31","August",2034,0,{"$f":"SUMIFS(Kassenbuch!$E$7:$E$19983,Kassenbuch!$K$7:$K$19983,Bestände!$E135,Kassenbuch!$L$7:$L$19983,Bestände!$D135)","v":0},{"$f":"SUMIFS(Kassenbuch!$F$7:$F$19983,Kassenbuch!$K$7:$K$19983,Bestände!$E135,Kassenbuch!$L$7:$L$19983,Bestände!$D135)","v":0},0]
[null,null,"2034-09-30","September",2034,0,{"$f":"SUMIFS(Kassenbuch!$E$7:$E$19983,Kassenbuch!$K$7:$K$19983,Bestände!$E136,Kassenbuch!$L$7:$L$19983,Bestände!$D136)","v":0},{"$f":"SUMIFS(Kassenbuch!$F$7:$F$19983,Kassenbuch!$K$7:$K$19983,Bestände!$E136,Kassenbuch!$L$7:$L$19983,Bestände!$D136)","v":0},0]
[null,null,"2034-10-31",{"$f":"TEXT(C137,\"MMMM\")","v":"Oktober"},{"$f":"IF(C137=\"-\",\"-\",YEAR(C137))","v":2034},0,{"$f":"SUMIFS(Kassenbuch!$E$7:$E$19983,Kassenbuch!$K$7:$K$19983,Bestände!$E137,Kassenbuch!$L$7:$L$19983,Bestände!$D137)","v":0},{"$f":"SUMIFS(Kassenbuch!$F$7:$F$19983,Kassenbuch!$K$7:$K$19983,Bestände!$E137,Kassenbuch!$L$7:$L$19983,Bestände!$D137)","v":0},0]
[null,null,{"$f":"IF(C137=\"-\",\"-\",EOMONTH(C137,1))","v":"2034-11-30"},"November",2034,{"$f":"IF(C137>=TODAY(),0,I137)","v":0},{"$f":"SUMIFS(Kassenbuch!$E$7:$E$19983,Kassenbuch!$K$7:$K$19983,Bestände!$E138,Kassenbuch!$L$7:$L$19983,Bestände!$D138)","v":0},{"$f":"SUMIFS(Kassenbuch!$F$7:$F$19983,Kassenbuch!$K$7:$K$19983,Bestände!$E138,Kassenbuch!$L$7:$L$19983,Bestände!$D138)","v":0},{"$f":"IF(F138=0,0,F138+G138-H138)","v":0}]
[null,null,"2034-12-31","Dezember",2034,0,{"$f":"SUMIFS(Kassenbuch!$E$7:$E$19983,Kassenbuch!$K$7:$K$19983,Bestände!$E139,Kassenbuch!$L$7:$L$19983,Bestände!$D139)","v":0},{"$f":"SUMIFS(Kassenbuch!$F$7:$F$19983,Kassenbuch!$K$7:$K$19983,Bestände!$E139,Kassenbuch!$L$7:$L$19983,Bestände!$D139)","v":0},0]
[null,null,"2035-01-31",{"$f":"TEXT(C140,\"MMMM\")","v":"Januar"},{"$f":"IF(C140=\"-\",\"-\",YEAR(C140))","v":2035},{"$f":"IF(C139>=TODAY(),0,I139)","v":0},{"$f":"SUMIFS(Kassenbuch!$E$7:$E$19983,Kassenbuch!$K$7:$K$19983,Bestände!$E140,Kassenbuch!$L$7:$L$19983,Bestände!$D140)","v":0},{"$f":"SUMIFS(Kassenbuch!$F$7:$F$19983,Kassenbuch!$K$7:$K$19983,Bestände!$E140,Kassenbuch!$L$7:$L$19983,Bestände!$D140)","v":0},{"$f":"IF(F140=0,0,F140+G140-H140)","v":0}]
[null,null,"2035-02-28","Februar",2035,0,{"$f":"SUMIFS(Kassenbuch!$E$7:$E$19983,Kassenbuch!$K$7:$K$19983,Bestände!$E141,Kassenbuch!$L$7:$L$19983,Bestände!$D141)","v":0},{"$f":"SUMIFS(Kassenbuch!$F$7:$F$19983,Kassenbuch!$K$7:$K$19983,Bestände!$E141,Kassenbuch!$L$7:$L$19983,Bestände!$D141)","v":0},0]
[null,null,"2035-03-31","März",2035,0,{"$f":"SUMIFS(Kassenbuch!$E$7:$E$19983,Kassenbuch!$K$7:$K$19983,Bestände!$E142,Kassenbuch!$L$7:$L$19983,Bestände!$D142)","v":0},{"$f":"SUMIFS(Kassenbuch!$F$7:$F$19983,Kassenbuch!$K$7:$K$19983,Bestände!$E142,Kassenbuch!$L$7:$L$19983,Bestände!$D142)","v":0},0]
[null,null,"2035-04-30","April",2035,0,{"$f":"SUMIFS(Kassenbuch!$E$7:$E$19983,Kassenbuch!$K$7:$K$19983,Bestände!$E143,Kassenbuch!$L$7:$L$19983,Bestände!$D143)","v":0},{"$f":"SUMIFS(Kassenbuch!$F$7:$F$19983,Kassenbuch!$K$7:$K$19983,Bestände!$E143,Kassenbuch!$L$7:$L$19983,Bestände!$D143)","v":0},0]
[null,null,"2035-05-31","Mai",2035,0,{"$f":"SUMIFS(Kassenbuch!$E$7:$E$19983,Kassenbuch!$K$7:$K$19983,Bestände!$E144,Kassenbuch!$L$7:$L$19983,Bestände!$D144)","v":0},{"$f":"SUMIFS(Kassenbuch!$F$7:$F$19983,Kassenbuch!$K$7:$K$19983,Bestände!$E144,Kassenbuch!$L$7:$L$19983,Bestände!$D144)","v":0},0]
[null,null,"2035-06-30","Juni",2035,0,{"$f":"SUMIFS(Kassenbuch!$E$7:$E$19983,Kassenbuch!$K$7:$K$19983,Bestände!$E145,Kassenbuch!$L$7:$L$19983,Bestände!$D145)","v":0},{"$f":"SUMIFS(Kassenbuch!$F$7:$F$19983,Kassenbuch!$K$7:$K$19983,Bestände!$E145,Kassenbuch!$L$7:$L$19983,Bestände!$D145)","v":0},0]
[null,null,"2035-07-31","Juli",2035,0,{"$f":"SUMIFS(Kassenbuch!$E$7:$E$19983,Kassenbuch!$K$7:$K$19983,Bestände!$E146,Kassenbuch!$L$7:$L$19983,Bestände!$D146)","v":0},{"$f":"SUMIFS(Kassenbuch!$F$7:$F$19983,Kassenbuch!$K$7:$K$19983,Bestände!$E146,Kassenbuch!$L$7:$L$19983,Bestände!$D146)","v":0},0]
[null,null,"2035-08-31","August",2035,0,{"$f":"SUMIFS(Kassenbuch!$E$7:$E$19983,Kassenbuch!$K$7:$K$19983,Bestände!$E147,Kassenbuch!$L$7:$L$19983,Bestände!$D147)","v":0},{"$f":"SUMIFS(Kassenbuch!$F$7:$F$19983,Kassenbuch!$K$7:$K$19983,Bestände!$E147,Kassenbuch!$L$7:$L$19983,Bestände!$D147)","v":0},0]
[null,null,"2035-09-30","September",2035,0,{"$f":"SUMIFS(Kassenbuch!$E$7:$E$19983,Kassenbuch!$K$7:$K$19983,Bestände!$E148,Kassenbuch!$L$7:$L$19983,Bestände!$D148)","v":0},{"$f":"SUMIFS(Kassenbuch!$F$7:$F$19983,Kassenbuch!$K$7:$K$19983,Bestände!$E148,Kassenbuch!$L$7:$L$19983,Bestände!$D148)","v":0},0]
[null,null,"2035-10-31","Oktober",2035,0,{"$f":"SUMIFS(Kassenbuch!$E$7:$E$19983,Kassenbuch!$K$7:$K$19983,Bestände!$E149,Kassenbuch!$L$7:$L$19983,Bestände!$D149)","v":0},{"$f":"SUMIFS(Kassenbuch!$F$7:$F$19983,Kassenbuch!$K$7:$K$19983,Bestände!$E149,Kassenbuch!$L$7:$L$19983,Bestände!$D149)","v":0},0]
[null,null,"2035-11-30","November",2035,0,{"$f":"SUMIFS(Kassenbuch!$E$7:$E$19983,Kassenbuch!$K$7:$K$19983,Bestände!$E150,Kassenbuch!$L$7:$L$19983,Bestände!$D150)","v":0},{"$f":"SUMIFS(Kassenbuch!$F$7:$F$19983,Kassenbuch!$K$7:$K$19983,Bestände!$E150,Kassenbuch!$L$7:$L$19983,Bestände!$D150)","v":0},0]
[null,null,"2035-12-31","Dezember",2035,0,{"$f":"SUMIFS(Kassenbuch!$E$7:$E$19983,Kassenbuch!$K$7:$K$19983,Bestände!$E151,Kassenbuch!$L$7:$L$19983,Bestände!$D151)","v":0},{"$f":"SUMIFS(Kassenbuch!$F$7:$F$19983,Kassenbuch!$K$7:$K$19983,Bestände!$E151,Kassenbuch!$L$7:$L$19983,Bestände!$D151)","v":0},0]
[null,null,"2036-01-31","Januar",2036,0,{"$f":"SUMIFS(Kassenbuch!$E$7:$E$19983,Kassenbuch!$K$7:$K$19983,Bestände!$E152,Kassenbuch!$L$7:$L$19983,Bestände!$D152)","v":0},{"$f":"SUMIFS(Kassenbuch!$F$7:$F$19983,Kassenbuch!$K$7:$K$19983,Bestände!$E152,Kassenbuch!$L$7:$L$19983,Bestände!$D152)","v":0},0]
[null,null,"2036-02-29","Februar",2036,0,{"$f":"SUMIFS(Kassenbuch!$E$7:$E$19983,Kassenbuch!$K$7:$K$19983,Bestände!$E153,Kassenbuch!$L$7:$L$19983,Bestände!$D153)","v":0},{"$f":"SUMIFS(Kassenbuch!$F$7:$F$19983,Kassenbuch!$K$7:$K$19983,Bestände!$E153,Kassenbuch!$L$7:$L$19983,Bestände!$D153)","v":0},0]
[null,null,"2036-03-31","März",2036,0,{"$f":"SUMIFS(Kassenbuch!$E$7:$E$19983,Kassenbuch!$K$7:$K$19983,Bestände!$E154,Kassenbuch!$L$7:$L$19983,Bestände!$D154)","v":0},{"$f":"SUMIFS(Kassenbuch!$F$7:$F$19983,Kassenbuch!$K$7:$K$19983,Bestände!$E154,Kassenbuch!$L$7:$L$19983,Bestände!$D154)","v":0},0]
[null,null,"2036-04-30","April",2036,0,{"$f":"SUMIFS(Kassenbuch!$E$7:$E$19983,Kassenbuch!$K$7:$K$19983,Bestände!$E155,Kassenbuch!$L$7:$L$19983,Bestände!$D155)","v":0},{"$f":"SUMIFS(Kassenbuch!$F$7:$F$19983,Kassenbuch!$K$7:$K$19983,Bestände!$E155,Kassenbuch!$L$7:$L$19983,Bestände!$D155)","v":0},0]
[null,null,"2036-05-31","Mai",2036,0,{"$f":"SUMIFS(Kassenbuch!$E$7:$E$19983,Kassenbuch!$K$7:$K$19983,Bestände!$E156,Kassenbuch!$L$7:$L$19983,Bestände!$D156)","v":0},{"$f":"SUMIFS(Kassenbuch!$F$7:$F$19983,Kassenbuch!$K$7:$K$19983,Bestände!$E156,Kassenbuch!$L$7:$L$19983,Bestände!$D156)","v":0},0]
[null,null,"2036-06-30","Juni",2036,0,{"$f":"SUMIFS(Kassenbuch!$E$7:$E$19983,Kassenbuch!$K$7:$K$19983,Bestände!$E157,Kassenbuch!$L$7:$L$19983,Bestände!$D157)","v":0},{"$f":"SUMIFS(Kassenbuch!$F$7:$F$19983,Kassenbuch!$K$7:$K$19983,Bestände!$E157,Kassenbuch!$L$7:$L$19983,Bestände!$D157)","v":0},0]
[null,null,"2036-07-31","Juli",2036,0,{"$f":"SUMIFS(Kassenbuch!$E$7:$E$19983,Kassenbuch!$K$7:$K$19983,Bestände!$E158,Kassenbuch!$L$7:$L$19983,Bestände!$D158)","v":0},{"$f":"SUMIFS(Kassenbuch!$F$7:$F$19983,Kassenbuch!$K$7:$K$19983,Bestände!$E158,Kassenbuch!$L$7:$L$19983,Bestände!$D158)","v":0},0]
[null,null,"2036-08-31","August",2036,0,{"$f":"SUMIFS(Kassenbuch!$E$7:$E$19983,Kassenbuch!$K$7:$K$19983,Bestände!$E159,Kassenbuch!$L$7:$L$19983,Bestände!$D159)","v":0},{"$f":"SUMIFS(Kassenbuch!$F$7:$F$19983,Kassenbuch!$K$7:$K$19983,Bestände!$E159,Kassenbuch!$L$7:$L$19983,Bestände!$D159)","v":0},0]
[null,null,"2036-09-30","September",2036,0,{"$f":"SUMIFS(Kassenbuch!$E$7:$E$19983,Kassenbuch!$K$7:$K$19983,Bestände!$E160,Kassenbuch!$L$7:$L$19983,Bestände!$D160)","v":0},{"$f":"SUMIFS(Kassenbuch!$F$7:$F$19983,Kassenbuch!$K$7:$K$19983,Bestände!$E160,Kassenbuch!$L$7:$L$19983,Bestände!$D160)","v":0},0]
[null,null,"2036-10-31","Oktober",2036,0,{"$f":"SUMIFS(Kassenbuch!$E$7:$E$19983,Kassenbuch!$K$7:$K$19983,Bestände!$E161,Kassenbuch!$L$7:$L$19983,Bestände!$D161)","v":0},{"$f":"SUMIFS(Kassenbuch!$F$7:$F$19983,Kassenbuch!$K$7:$K$19983,Bestände!$E161,Kassenbuch!$L$7:$L$19983,Bestände!$D161)","v":0},0]
[null,null,"2036-11-30","November",2036,0,{"$f":"SUMIFS(Kassenbuch!$E$7:$E$19983,Kassenbuch!$K$7:$K$19983,Bestände!$E162,Kassenbuch!$L$7:$L$19983,Bestände!$D162)","v":0},{"$f":"SUMIFS(Kassenbuch!$F$7:$F$19983,Kassenbuch!$K$7:$K$19983,Bestände!$E162,Kassenbuch!$L$7:$L$19983,Bestände!$D162)","v":0},0]
[null,null,"2036-12-31","Dezember",2036,0,{"$f":"SUMIFS(Kassenbuch!$E$7:$E$19983,Kassenbuch!$K$7:$K$19983,Bestände!$E163,Kassenbuch!$L$7:$L$19983,Bestände!$D163)","v":0},{"$f":"SUMIFS(Kassenbuch!$F$7:$F$19983,Kassenbuch!$K$7:$K$19983,Bestände!$E163,Kassenbuch!$L$7:$L$19983,Bestände!$D163)","v":0},0]
[null,null,"2037-01-31","Januar",2037,0,{"$f":"SUMIFS(Kassenbuch!$E$7:$E$19983,Kassenbuch!$K$7:$K$19983,Bestände!$E164,Kassenbuch!$L$7:$L$19983,Bestände!$D164)","v":0},{"$f":"SUMIFS(Kassenbuch!$F$7:$F$19983,Kassenbuch!$K$7:$K$19983,Bestände!$E164,Kassenbuch!$L$7:$L$19983,Bestände!$D164)","v":0},0]
[null,null,"2037-02-28","Februar",2037,0,{"$f":"SUMIFS(Kassenbuch!$E$7:$E$19983,Kassenbuch!$K$7:$K$19983,Bestände!$E165,Kassenbuch!$L$7:$L$19983,Bestände!$D165)","v":0},{"$f":"SUMIFS(Kassenbuch!$F$7:$F$19983,Kassenbuch!$K$7:$K$19983,Bestände!$E165,Kassenbuch!$L$7:$L$19983,Bestände!$D165)","v":0},0]
[null,null,"2037-03-31","März",2037,0,{"$f":"SUMIFS(Kassenbuch!$E$7:$E$19983,Kassenbuch!$K$7:$K$19983,Bestände!$E166,Kassenbuch!$L$7:$L$19983,Bestände!$D166)","v":0},{"$f":"SUMIFS(Kassenbuch!$F$7:$F$19983,Kassenbuch!$K$7:$K$19983,Bestände!$E166,Kassenbuch!$L$7:$L$19983,Bestände!$D166)","v":0},0]
[null,null,"2037-04-30","April",2037,0,{"$f":"SUMIFS(Kassenbuch!$E$7:$E$19983,Kassenbuch!$K$7:$K$19983,Bestände!$E167,Kassenbuch!$L$7:$L$19983,Bestände!$D167)","v":0},{"$f":"SUMIFS(Kassenbuch!$F$7:$F$19983,Kassenbuch!$K$7:$K$19983,Bestände!$E167,Kassenbuch!$L$7:$L$19983,Bestände!$D167)","v":0},0]
[null,null,"2037-05-31","Mai",2037,0,{"$f":"SUMIFS(Kassenbuch!$E$7:$E$19983,Kassenbuch!$K$7:$K$19983,Bestände!$E168,Kassenbuch!$L$7:$L$19983,Bestände!$D168)","v":0},{"$f":"SUMIFS(Kassenbuch!$F$7:$F$19983,Kassenbuch!$K$7:$K$19983,Bestände!$E168,Kassenbuch!$L$7:$L$19983,Bestände!$D168)","v":0},0]
[null,null,"2037-06-30","Juni",2037,0,{"$f":"SUMIFS(Kassenbuch!$E$7:$E$19983,Kassenbuch!$K$7:$K$19983,Bestände!$E169,Kassenbuch!$L$7:$L$19983,Bestände!$D169)","v":0},{"$f":"SUMIFS(Kassenbuch!$F$7:$F$19983,Kassenbuch!$K$7:$K$19983,Bestände!$E169,Kassenbuch!$L$7:$L$19983,Bestände!$D169)","v":0},0]
[null,null,"2037-07-31","Juli",2037,0,{"$f":"SUMIFS(Kassenbuch!$E$7:$E$19983,Kassenbuch!$K$7:$K$19983,Bestände!$E170,Kassenbuch!$L$7:$L$19983,Bestände!$D170)","v":0},{"$f":"SUMIFS(Kassenbuch!$F$7:$F$19983,Kassenbuch!$K$7:$K$19983,Bestände!$E170,Kassenbuch!$L$7:$L$19983,Bestände!$D170)","v":0},0]
[null,null,"2037-08-31","August",2037,0,{"$f":"SUMIFS(Kassenbuch!$E$7:$E$19983,Kassenbuch!$K$7:$K$19983,Bestände!$E171,Kassenbuch!$L$7:$L$19983,Bestände!$D171)","v":0},{"$f":"SUMIFS(Kassenbuch!$F$7:$F$19983,Kassenbuch!$K$7:$K$19983,Bestände!$E171,Kassenbuch!$L$7:$L$19983,Bestände!$D171)","v":0},0]
[null,null,"2037-09-30","September",2037,0,{"$f":"SUMIFS(Kassenbuch!$E$7:$E$19983,Kassenbuch!$K$7:$K$19983,Bestände!$E172,Kassenbuch!$L$7:$L$19983,Bestände!$D172)","v":0},{"$f":"SUMIFS(Kassenbuch!$F$7:$F$19983,Kassenbuch!$K$7:$K$19983,Bestände!$E172,Kassenbuch!$L$7:$L$19983,Bestände!$D172)","v":0},0]
[null,null,"2037-10-31","Oktober",2037,0,{"$f":"SUMIFS(Kassenbuch!$E$7:$E$19983,Kassenbuch!$K$7:$K$19983,Bestände!$E173,Kassenbuch!$L$7:$L$19983,Bestände!$D173)","v":0},{"$f":"SUMIFS(Kassenbuch!$F$7:$F$19983,Kassenbuch!$K$7:$K$19983,Bestände!$E173,Kassenbuch!$L$7:$L$19983,Bestände!$D173)","v":0},0]
[null,null,"2037-11-30","November",2037,0,{"$f":"SUMIFS(Kassenbuch!$E$7:$E$19983,Kassenbuch!$K$7:$K$19983,Bestände!$E174,Kassenbuch!$L$7:$L$19983,Bestände!$D174)","v":0},{"$f":"SUMIFS(Kassenbuch!$F$7:$F$19983,Kassenbuch!$K$7:$K$19983,Bestände!$E174,Kassenbuch!$L$7:$L$19983,Bestände!$D174)","v":0},0]
[null,null,"2037-12-31","Dezember",2037,0,{"$f":"SUMIFS(Kassenbuch!$E$7:$E$19983,Kassenbuch!$K$7:$K$19983,Bestände!$E175,Kassenbuch!$L$7:$L$19983,Bestände!$D175)","v":0},{"$f":"SUMIFS(Kassenbuch!$F$7:$F$19983,Kassenbuch!$K$7:$K$19983,Bestände!$E175,Kassenbuch!$L$7:$L$19983,Bestände!$D175)","v":0},0]
[null,null,"2038-01-31","Januar",2038,0,{"$f":"SUMIFS(Kassenbuch!$E$7:$E$19983,Kassenbuch!$K$7:$K$19983,Bestände!$E176,Kassenbuch!$L$7:$L$19983,Bestände!$D176)","v":0},{"$f":"SUMIFS(Kassenbuch!$F$7:$F$19983,Kassenbuch!$K$7:$K$19983,Bestände!$E176,Kassenbuch!$L$7:$L$19983,Bestände!$D176)","v":0},0]
[null,null,"2038-02-28","Februar",2038,0,{"$f":"SUMIFS(Kassenbuch!$E$7:$E$19983,Kassenbuch!$K$7:$K$19983,Bestände!$E177,Kassenbuch!$L$7:$L$19983,Bestände!$D177)","v":0},{"$f":"SUMIFS(Kassenbuch!$F$7:$F$19983,Kassenbuch!$K$7:$K$19983,Bestände!$E177,Kassenbuch!$L$7:$L$19983,Bestände!$D177)","v":0},0]
[null,null,"2038-03-31","März",2038,0,{"$f":"SUMIFS(Kassenbuch!$E$7:$E$19983,Kassenbuch!$K$7:$K$19983,Bestände!$E178,Kassenbuch!$L$7:$L$19983,Bestände!$D178)","v":0},{"$f":"SUMIFS(Kassenbuch!$F$7:$F$19983,Kassenbuch!$K$7:$K$19983,Bestände!$E178,Kassenbuch!$L$7:$L$19983,Bestände!$D178)","v":0},0]
[null,null,"2038-04-30","April",2038,0,{"$f":"SUMIFS(Kassenbuch!$E$7:$E$19983,Kassenbuch!$K$7:$K$19983,Bestände!$E179,Kassenbuch!$L$7:$L$19983,Bestände!$D179)","v":0},{"$f":"SUMIFS(Kassenbuch!$F$7:$F$19983,Kassenbuch!$K$7:$K$19983,Bestände!$E179,Kassenbuch!$L$7:$L$19983,Bestände!$D179)","v":0},0]
[null,null,"2038-05-31","Mai",2038,0,{"$f":"SUMIFS(Kassenbuch!$E$7:$E$19983,Kassenbuch!$K$7:$K$19983,Bestände!$E180,Kassenbuch!$L$7:$L$19983,Bestände!$D180)","v":0},{"$f":"SUMIFS(Kassenbuch!$F$7:$F$19983,Kassenbuch!$K$7:$K$19983,Bestände!$E180,Kassenbuch!$L$7:$L$19983,Bestände!$D180)","v":0},0]
[null,null,"2038-06-30","Juni",2038,0,{"$f":"SUMIFS(Kassenbuch!$E$7:$E$19983,Kassenbuch!$K$7:$K$19983,Bestände!$E181,Kassenbuch!$L$7:$L$19983,Bestände!$D181)","v":0},{"$f":"SUMIFS(Kassenbuch!$F$7:$F$19983,Kassenbuch!$K$7:$K$19983,Bestände!$E181,Kassenbuch!$L$7:$L$19983,Bestände!$D181)","v":0},0]
[null,null,"2038-07-31","Juli",2038,0,{"$f":"SUMIFS(Kassenbuch!$E$7:$E$19983,Kassenbuch!$K$7:$K$19983,Bestände!$E182,Kassenbuch!$L$7:$L$19983,Bestände!$D182)","v":0},{"$f":"SUMIFS(Kassenbuch!$F$7:$F$19983,Kassenbuch!$K$7:$K$19983,Bestände!$E182,Kassenbuch!$L$7:$L$19983,Bestände!$D182)","v":0},0]
[null,null,"2038-08-31","August",2038,0,{"$f":"SUMIFS(Kassenbuch!$E$7:$E$19983,Kassenbuch!$K$7:$K$19983,Bestände!$E183,Kassenbuch!$L$7:$L$19983,Bestände!$D183)","v":0},{"$f":"SUMIFS(Kassenbuch!$F$7:$F$19983,Kassenbuch!$K$7:$K$19983,Bestände!$E183,Kassenbuch!$L$7:$L$19983,Bestände!$D183)","v":0},0]
[null,null,"2038-09-30","September",2038,0,{"$f":"SUMIFS(Kassenbuch!$E$7:$E$19983,Kassenbuch!$K$7:$K$19983,Bestände!$E184,Kassenbuch!$L$7:$L$19983,Bestände!$D184)","v":0},{"$f":"SUMIFS(Kassenbuch!$F$7:$F$19983,Kassenbuch!$K$7:$K$19983,Bestände!$E184,Kassenbuch!$L$7:$L$19983,Bestände!$D184)","v":0},0]
[null,null,"2038-10-31","Oktober",2038,0,{"$f":"SUMIFS(Kassenbuch!$E$7:$E$19983,Kassenbuch!$K$7:$K$19983,Bestände!$E185,Kassenbuch!$L$7:$L$19983,Bestände!$D185)","v":0},{"$f":"SUMIFS(Kassenbuch!$F$7:$F$19983,Kassenbuch!$K$7:$K$19983,Bestände!$E185,Kassenbuch!$L$7:$L$19983,Bestände!$D185)","v":0},0]
[null,null,"2038-11-30","November",2038,0,{"$f":"SUMIFS(Kassenbuch!$E$7:$E$19983,Kassenbuch!$K$7:$K$19983,Bestände!$E186,Kassenbuch!$L$7:$L$19983,Bestände!$D186)","v":0},{"$f":"SUMIFS(Kassenbuch!$F$7:$F$19983,Kassenbuch!$K$7:$K$19983,Bestände!$E186,Kassenbuch!$L$7:$L$19983,Bestände!$D186)","v":0},0]
[null,null,"2038-12-31","Dezember",2038,0,{"$f":"SUMIFS(Kassenbuch!$E$7:$E$19983,Kassenbuch!$K$7:$K$19983,Bestände!$E187,Kassenbuch!$L$7:$L$19983,Bestände!$D187)","v":0},{"$f":"SUMIFS(Kassenbuch!$F$7:$F$19983,Kassenbuch!$K$7:$K$19983,Bestände!$E187,Kassenbuch!$L$7:$L$19983,Bestände!$D187)","v":0},0]
[null,null,"2039-01-31","Januar",2039,0,{"$f":"SUMIFS(Kassenbuch!$E$7:$E$19983,Kassenbuch!$K$7:$K$19983,Bestände!$E188,Kassenbuch!$L$7:$L$19983,Bestände!$D188)","v":0},{"$f":"SUMIFS(Kassenbuch!$F$7:$F$19983,Kassenbuch!$K$7:$K$19983,Bestände!$E188,Kassenbuch!$L$7:$L$19983,Bestände!$D188)","v":0},0]
[null,null,"2039-02-28","Februar",2039,0,{"$f":"SUMIFS(Kassenbuch!$E$7:$E$19983,Kassenbuch!$K$7:$K$19983,Bestände!$E189,Kassenbuch!$L$7:$L$19983,Bestände!$D189)","v":0},{"$f":"SUMIFS(Kassenbuch!$F$7:$F$19983,Kassenbuch!$K$7:$K$19983,Bestände!$E189,Kassenbuch!$L$7:$L$19983,Bestände!$D189)","v":0},0]
[null,null,"2039-03-31","März",2039,0,{"$f":"SUMIFS(Kassenbuch!$E$7:$E$19983,Kassenbuch!$K$7:$K$19983,Bestände!$E190,Kassenbuch!$L$7:$L$19983,Bestände!$D190)","v":0},{"$f":"SUMIFS(Kassenbuch!$F$7:$F$19983,Kassenbuch!$K$7:$K$19983,Bestände!$E190,Kassenbuch!$L$7:$L$19983,Bestände!$D190)","v":0},0]
[null,null,"2039-04-30","April",2039,0,{"$f":"SUMIFS(Kassenbuch!$E$7:$E$19983,Kassenbuch!$K$7:$K$19983,Bestände!$E191,Kassenbuch!$L$7:$L$19983,Bestände!$D191)","v":0},{"$f":"SUMIFS(Kassenbuch!$F$7:$F$19983,Kassenbuch!$K$7:$K$19983,Bestände!$E191,Kassenbuch!$L$7:$L$19983,Bestände!$D191)","v":0},0]
[null,null,"2039-05-31","Mai",2039,0,{"$f":"SUMIFS(Kassenbuch!$E$7:$E$19983,Kassenbuch!$K$7:$K$19983,Bestände!$E192,Kassenbuch!$L$7:$L$19983,Bestände!$D192)","v":0},{"$f":"SUMIFS(Kassenbuch!$F$7:$F$19983,Kassenbuch!$K$7:$K$19983,Bestände!$E192,Kassenbuch!$L$7:$L$19983,Bestände!$D192)","v":0},0]
[null,null,"2039-06-30","Juni",2039,0,{"$f":"SUMIFS(Kassenbuch!$E$7:$E$19983,Kassenbuch!$K$7:$K$19983,Bestände!$E193,Kassenbuch!$L$7:$L$19983,Bestände!$D193)","v":0},{"$f":"SUMIFS(Kassenbuch!$F$7:$F$19983,Kassenbuch!$K$7:$K$19983,Bestände!$E193,Kassenbuch!$L$7:$L$19983,Bestände!$D193)","v":0},0]
[null,null,"2039-07-31","Juli",2039,0,{"$f":"SUMIFS(Kassenbuch!$E$7:$E$19983,Kassenbuch!$K$7:$K$19983,Bestände!$E194,Kassenbuch!$L$7:$L$19983,Bestände!$D194)","v":0},{"$f":"SUMIFS(Kassenbuch!$F$7:$F$19983,Kassenbuch!$K$7:$K$19983,Bestände!$E194,Kassenbuch!$L$7:$L$19983,Bestände!$D194)","v":0},0]
[null,null,"2039-08-31","August",2039,0,{"$f":"SUMIFS(Kassenbuch!$E$7:$E$19983,Kassenbuch!$K$7:$K$19983,Bestände!$E195,Kassenbuch!$L$7:$L$19983,Bestände!$D195)","v":0},{"$f":"SUMIFS(Kassenbuch!$F$7:$F$19983,Kassenbuch!$K$7:$K$19983,Bestände!$E195,Kassenbuch!$L$7:$L$19983,Bestände!$D195)","v":0},0]
[null,null,"2039-09-30","September",2039,0,{"$f":"SUMIFS(Kassenbuch!$E$7:$E$19983,Kassenbuch!$K$7:$K$19983,Bestände!$E196,Kassenbuch!$L$7:$L$19983,Bestände!$D196)","v":0},{"$f":"SUMIFS(Kassenbuch!$F$7:$F$19983,Kassenbuch!$K$7:$K$19983,Bestände!$E196,Kassenbuch!$L$7:$L$19983,Bestände!$D196)","v":0},0]
[null,null,"2039-10-31","Oktober",2039,0,{"$f":"SUMIFS(Kassenbuch!$E$7:$E$19983,Kassenbuch!$K$7:$K$19983,Bestände!$E197,Kassenbuch!$L$7:$L$19983,Bestände!$D197)","v":0},{"$f":"SUMIFS(Kassenbuch!$F$7:$F$19983,Kassenbuch!$K$7:$K$19983,Bestände!$E197,Kassenbuch!$L$7:$L$19983,Bestände!$D197)","v":0},0]
[null,null,"2039-11-30","November",2039,0,{"$f":"SUMIFS(Kassenbuch!$E$7:$E$19983,Kassenbuch!$K$7:$K$19983,Bestände!$E198,Kassenbuch!$L$7:$L$19983,Bestände!$D198)","v":0},{"$f":"SUMIFS(Kassenbuch!$F$7:$F$19983,Kassenbuch!$K$7:$K$19983,Bestände!$E198,Kassenbuch!$L$7:$L$19983,Bestände!$D198)","v":0},0]
[null,null,"2039-12-31","Dezember",2039,0,{"$f":"SUMIFS(Kassenbuch!$E$7:$E$19983,Kassenbuch!$K$7:$K$19983,Bestände!$E199,Kassenbuch!$L$7:$L$19983,Bestände!$D199)","v":0},{"$f":"SUMIFS(Kassenbuch!$F$7:$F$19983,Kassenbuch!$K$7:$K$19983,Bestände!$E199,Kassenbuch!$L$7:$L$19983,Bestände!$D199)","v":0},0]
[null,null,"2040-01-31","Januar",2040,0,{"$f":"SUMIFS(Kassenbuch!$E$7:$E$19983,Kassenbuch!$K$7:$K$19983,Bestände!$E200,Kassenbuch!$L$7:$L$19983,Bestände!$D200)","v":0},{"$f":"SUMIFS(Kassenbuch!$F$7:$F$19983,Kassenbuch!$K$7:$K$19983,Bestände!$E200,Kassenbuch!$L$7:$L$19983,Bestände!$D200)","v":0},0]
[null,null,"2040-02-29","Februar",2040,0,{"$f":"SUMIFS(Kassenbuch!$E$7:$E$19983,Kassenbuch!$K$7:$K$19983,Bestände!$E201,Kassenbuch!$L$7:$L$19983,Bestände!$D201)","v":0},{"$f":"SUMIFS(Kassenbuch!$F$7:$F$19983,Kassenbuch!$K$7:$K$19983,Bestände!$E201,Kassenbuch!$L$7:$L$19983,Bestände!$D201)","v":0},0]
[null,null,{"$f":"IF(C201=\"-\",\"-\",EOMONTH(C201,1))","v":"2040-03-31"},"März",2040,0,{"$f":"SUMIFS(Kassenbuch!$E$7:$E$19983,Kassenbuch!$K$7:$K$19983,Bestände!$E202,Kassenbuch!$L$7:$L$19983,Bestände!$D202)","v":0},{"$f":"SUMIFS(Kassenbuch!$F$7:$F$19983,Kassenbuch!$K$7:$K$19983,Bestände!$E202,Kassenbuch!$L$7:$L$19983,Bestände!$D202)","v":0},0]
[null,null,"2040-04-30","April",2040,0,{"$f":"SUMIFS(Kassenbuch!$E$7:$E$19983,Kassenbuch!$K$7:$K$19983,Bestände!$E203,Kassenbuch!$L$7:$L$19983,Bestände!$D203)","v":0},{"$f":"SUMIFS(Kassenbuch!$F$7:$F$19983,Kassenbuch!$K$7:$K$19983,Bestände!$E203,Kassenbuch!$L$7:$L$19983,Bestände!$D203)","v":0},0]
[null,null,"2040-05-31",{"$f":"TEXT(C204,\"MMMM\")","v":"Mai"},{"$f":"IF(C204=\"-\",\"-\",YEAR(C204))","v":2040},{"$f":"IF(C203>=TODAY(),0,I203)","v":0},{"$f":"SUMIFS(Kassenbuch!$E$7:$E$19983,Kassenbuch!$K$7:$K$19983,Bestände!$E204,Kassenbuch!$L$7:$L$19983,Bestände!$D204)","v":0},{"$f":"SUMIFS(Kassenbuch!$F$7:$F$19983,Kassenbuch!$K$7:$K$19983,Bestände!$E204,Kassenbuch!$L$7:$L$19983,Bestände!$D204)","v":0},{"$f":"IF(F204=0,0,F204+G204-H204)","v":0}]
[null,null,"2040-06-30","Juni",2040,0,{"$f":"SUMIFS(Kassenbuch!$E$7:$E$19983,Kassenbuch!$K$7:$K$19983,Bestände!$E205,Kassenbuch!$L$7:$L$19983,Bestände!$D205)","v":0},{"$f":"SUMIFS(Kassenbuch!$F$7:$F$19983,Kassenbuch!$K$7:$K$19983,Bestände!$E205,Kassenbuch!$L$7:$L$19983,Bestände!$D205)","v":0},0]
[null,null,"2040-07-31","Juli",2040,0,{"$f":"SUMIFS(Kassenbuch!$E$7:$E$19983,Kassenbuch!$K$7:$K$19983,Bestände!$E206,Kassenbuch!$L$7:$L$19983,Bestände!$D206)","v":0},{"$f":"SUMIFS(Kassenbuch!$F$7:$F$19983,Kassenbuch!$K$7:$K$19983,Bestände!$E206,Kassenbuch!$L$7:$L$19983,Bestände!$D206)","v":0},0]
[null,null,"2040-08-31","August",2040,0,{"$f":"SUMIFS(Kassenbuch!$E$7:$E$19983,Kassenbuch!$K$7:$K$19983,Bestände!$E207,Kassenbuch!$L$7:$L$19983,Bestände!$D207)","v":0},{"$f":"SUMIFS(Kassenbuch!$F$7:$F$19983,Kassenbuch!$K$7:$K$19983,Bestände!$E207,Kassenbuch!$L$7:$L$19983,Bestände!$D207)","v":0},0]
[null,null,"2040-09-30","September",2040,0,{"$f":"SUMIFS(Kassenbuch!$E$7:$E$19983,Kassenbuch!$K$7:$K$19983,Bestände!$E208,Kassenbuch!$L$7:$L$19983,Bestände!$D208)","v":0},{"$f":"SUMIFS(Kassenbuch!$F$7:$F$19983,Kassenbuch!$K$7:$K$19983,Bestände!$E208,Kassenbuch!$L$7:$L$19983,Bestände!$D208)","v":0},0]
[null,null,"2040-10-31","Oktober",2040,0,{"$f":"SUMIFS(Kassenbuch!$E$7:$E$19983,Kassenbuch!$K$7:$K$19983,Bestände!$E209,Kassenbuch!$L$7:$L$19983,Bestände!$D209)","v":0},{"$f":"SUMIFS(Kassenbuch!$F$7:$F$19983,Kassenbuch!$K$7:$K$19983,Bestände!$E209,Kassenbuch!$L$7:$L$19983,Bestände!$D209)","v":0},0]
[null,null,"2040-11-30","November",2040,0,{"$f":"SUMIFS(Kassenbuch!$E$7:$E$19983,Kassenbuch!$K$7:$K$19983,Bestände!$E210,Kassenbuch!$L$7:$L$19983,Bestände!$D210)","v":0},{"$f":"SUMIFS(Kassenbuch!$F$7:$F$19983,Kassenbuch!$K$7:$K$19983,Bestände!$E210,Kassenbuch!$L$7:$L$19983,Bestände!$D210)","v":0},0]
[null,null,"2040-12-31","Dezember",2040,0,{"$f":"SUMIFS(Kassenbuch!$E$7:$E$19983,Kassenbuch!$K$7:$K$19983,Bestände!$E211,Kassenbuch!$L$7:$L$19983,Bestände!$D211)","v":0},{"$f":"SUMIFS(Kassenbuch!$F$7:$F$19983,Kassenbuch!$K$7:$K$19983,Bestände!$E211,Kassenbuch!$L$7:$L$19983,Bestände!$D211)","v":0},0]
[null,null,"2041-01-31","Januar",2041,0,{"$f":"SUMIFS(Kassenbuch!$E$7:$E$19983,Kassenbuch!$K$7:$K$19983,Bestände!$E212,Kassenbuch!$L$7:$L$19983,Bestände!$D212)","v":0},{"$f":"SUMIFS(Kassenbuch!$F$7:$F$19983,Kassenbuch!$K$7:$K$19983,Bestände!$E212,Kassenbuch!$L$7:$L$19983,Bestände!$D212)","v":0},0]
[null,null,"2041-02-28","Februar",2041,0,{"$f":"SUMIFS(Kassenbuch!$E$7:$E$19983,Kassenbuch!$K$7:$K$19983,Bestände!$E213,Kassenbuch!$L$7:$L$19983,Bestände!$D213)","v":0},{"$f":"SUMIFS(Kassenbuch!$F$7:$F$19983,Kassenbuch!$K$7:$K$19983,Bestände!$E213,Kassenbuch!$L$7:$L$19983,Bestände!$D213)","v":0},0]
[null,null,"2041-03-31","März",2041,0,{"$f":"SUMIFS(Kassenbuch!$E$7:$E$19983,Kassenbuch!$K$7:$K$19983,Bestände!$E214,Kassenbuch!$L$7:$L$19983,Bestände!$D214)","v":0},{"$f":"SUMIFS(Kassenbuch!$F$7:$F$19983,Kassenbuch!$K$7:$K$19983,Bestände!$E214,Kassenbuch!$L$7:$L$19983,Bestände!$D214)","v":0},0]
[null,null,"2041-04-30","April",2041,0,{"$f":"SUMIFS(Kassenbuch!$E$7:$E$19983,Kassenbuch!$K$7:$K$19983,Bestände!$E215,Kassenbuch!$L$7:$L$19983,Bestände!$D215)","v":0},{"$f":"SUMIFS(Kassenbuch!$F$7:$F$19983,Kassenbuch!$K$7:$K$19983,Bestände!$E215,Kassenbuch!$L$7:$L$19983,Bestände!$D215)","v":0},0]
[null,null,"2041-05-31","Mai",2041,0,{"$f":"SUMIFS(Kassenbuch!$E$7:$E$19983,Kassenbuch!$K$7:$K$19983,Bestände!$E216,Kassenbuch!$L$7:$L$19983,Bestände!$D216)","v":0},{"$f":"SUMIFS(Kassenbuch!$F$7:$F$19983,Kassenbuch!$K$7:$K$19983,Bestände!$E216,Kassenbuch!$L$7:$L$19983,Bestände!$D216)","v":0},0]
[null,null,"2041-06-30","Juni",2041,0,{"$f":"SUMIFS(Kassenbuch!$E$7:$E$19983,Kassenbuch!$K$7:$K$19983,Bestände!$E217,Kassenbuch!$L$7:$L$19983,Bestände!$D217)","v":0},{"$f":"SUMIFS(Kassenbuch!$F$7:$F$19983,Kassenbuch!$K$7:$K$19983,Bestände!$E217,Kassenbuch!$L$7:$L$19983,Bestände!$D217)","v":0},0]
[null,null,"2041-07-31","Juli",2041,0,{"$f":"SUMIFS(Kassenbuch!$E$7:$E$19983,Kassenbuch!$K$7:$K$19983,Bestände!$E218,Kassenbuch!$L$7:$L$19983,Bestände!$D218)","v":0},{"$f":"SUMIFS(Kassenbuch!$F$7:$F$19983,Kassenbuch!$K$7:$K$19983,Bestände!$E218,Kassenbuch!$L$7:$L$19983,Bestände!$D218)","v":0},0]
[null,null,"2041-08-31","August",2041,0,{"$f":"SUMIFS(Kassenbuch!$E$7:$E$19983,Kassenbuch!$K$7:$K$19983,Bestände!$E219,Kassenbuch!$L$7:$L$19983,Bestände!$D219)","v":0},{"$f":"SUMIFS(Kassenbuch!$F$7:$F$19983,Kassenbuch!$K$7:$K$19983,Bestände!$E219,Kassenbuch!$L$7:$L$19983,Bestände!$D219)","v":0},0]
[null,null,"2041-09-30","September",2041,0,{"$f":"SUMIFS(Kassenbuch!$E$7:$E$19983,Kassenbuch!$K$7:$K$19983,Bestände!$E220,Kassenbuch!$L$7:$L$19983,Bestände!$D220)","v":0},{"$f":"SUMIFS(Kassenbuch!$F$7:$F$19983,Kassenbuch!$K$7:$K$19983,Bestände!$E220,Kassenbuch!$L$7:$L$19983,Bestände!$D220)","v":0},0]
[null,null,"2041-10-31","Oktober",2041,0,{"$f":"SUMIFS(Kassenbuch!$E$7:$E$19983,Kassenbuch!$K$7:$K$19983,Bestände!$E221,Kassenbuch!$L$7:$L$19983,Bestände!$D221)","v":0},{"$f":"SUMIFS(Kassenbuch!$F$7:$F$19983,Kassenbuch!$K$7:$K$19983,Bestände!$E221,Kassenbuch!$L$7:$L$19983,Bestände!$D221)","v":0},0]
[null,null,"2041-11-30","November",2041,0,{"$f":"SUMIFS(Kassenbuch!$E$7:$E$19983,Kassenbuch!$K$7:$K$19983,Bestände!$E222,Kassenbuch!$L$7:$L$19983,Bestände!$D222)","v":0},{"$f":"SUMIFS(Kassenbuch!$F$7:$F$19983,Kassenbuch!$K$7:$K$19983,Bestände!$E222,Kassenbuch!$L$7:$L$19983,Bestände!$D222)","v":0},0]
[null,null,"2041-12-31","Dezember",2041,0,{"$f":"SUMIFS(Kassenbuch!$E$7:$E$19983,Kassenbuch!$K$7:$K$19983,Bestände!$E223,Kassenbuch!$L$7:$L$19983,Bestände!$D223)","v":0},{"$f":"SUMIFS(Kassenbuch!$F$7:$F$19983,Kassenbuch!$K$7:$K$19983,Bestände!$E223,Kassenbuch!$L$7:$L$19983,Bestände!$D223)","v":0},0]
[null,null,"2042-01-31","Januar",2042,0,{"$f":"SUMIFS(Kassenbuch!$E$7:$E$19983,Kassenbuch!$K$7:$K$19983,Bestände!$E224,Kassenbuch!$L$7:$L$19983,Bestände!$D224)","v":0},{"$f":"SUMIFS(Kassenbuch!$F$7:$F$19983,Kassenbuch!$K$7:$K$19983,Bestände!$E224,Kassenbuch!$L$7:$L$19983,Bestände!$D224)","v":0},0]
[null,null,"2042-02-28","Februar",2042,0,{"$f":"SUMIFS(Kassenbuch!$E$7:$E$19983,Kassenbuch!$K$7:$K$19983,Bestände!$E225,Kassenbuch!$L$7:$L$19983,Bestände!$D225)","v":0},{"$f":"SUMIFS(Kassenbuch!$F$7:$F$19983,Kassenbuch!$K$7:$K$19983,Bestände!$E225,Kassenbuch!$L$7:$L$19983,Bestände!$D225)","v":0},0]
[null,null,"2042-03-31","März",2042,0,{"$f":"SUMIFS(Kassenbuch!$E$7:$E$19983,Kassenbuch!$K$7:$K$19983,Bestände!$E226,Kassenbuch!$L$7:$L$19983,Bestände!$D226)","v":0},{"$f":"SUMIFS(Kassenbuch!$F$7:$F$19983,Kassenbuch!$K$7:$K$19983,Bestände!$E226,Kassenbuch!$L$7:$L$19983,Bestände!$D226)","v":0},0]
[null,null,"2042-04-30","April",2042,0,{"$f":"SUMIFS(Kassenbuch!$E$7:$E$19983,Kassenbuch!$K$7:$K$19983,Bestände!$E227,Kassenbuch!$L$7:$L$19983,Bestände!$D227)","v":0},{"$f":"SUMIFS(Kassenbuch!$F$7:$F$19983,Kassenbuch!$K$7:$K$19983,Bestände!$E227,Kassenbuch!$L$7:$L$19983,Bestände!$D227)","v":0},0]
[null,null,"2042-05-31","Mai",2042,0,{"$f":"SUMIFS(Kassenbuch!$E$7:$E$19983,Kassenbuch!$K$7:$K$19983,Bestände!$E228,Kassenbuch!$L$7:$L$19983,Bestände!$D228)","v":0},{"$f":"SUMIFS(Kassenbuch!$F$7:$F$19983,Kassenbuch!$K$7:$K$19983,Bestände!$E228,Kassenbuch!$L$7:$L$19983,Bestände!$D228)","v":0},0]
[null,null,"2042-06-30","Juni",2042,0,{"$f":"SUMIFS(Kassenbuch!$E$7:$E$19983,Kassenbuch!$K$7:$K$19983,Bestände!$E229,Kassenbuch!$L$7:$L$19983,Bestände!$D229)","v":0},{"$f":"SUMIFS(Kassenbuch!$F$7:$F$19983,Kassenbuch!$K$7:$K$19983,Bestände!$E229,Kassenbuch!$L$7:$L$19983,Bestände!$D229)","v":0},0]
[null,null,"2042-07-31","Juli",2042,0,{"$f":"SUMIFS(Kassenbuch!$E$7:$E$19983,Kassenbuch!$K$7:$K$19983,Bestände!$E230,Kassenbuch!$L$7:$L$19983,Bestände!$D230)","v":0},{"$f":"SUMIFS(Kassenbuch!$F$7:$F$19983,Kassenbuch!$K$7:$K$19983,Bestände!$E230,Kassenbuch!$L$7:$L$19983,Bestände!$D230)","v":0},0]
[null,null,"2042-08-31","August",2042,0,{"$f":"SUMIFS(Kassenbuch!$E$7:$E$19983,Kassenbuch!$K$7:$K$19983,Bestände!$E231,Kassenbuch!$L$7:$L$19983,Bestände!$D231)","v":0},{"$f":"SUMIFS(Kassenbuch!$F$7:$F$19983,Kassenbuch!$K$7:$K$19983,Bestände!$E231,Kassenbuch!$L$7:$L$19983,Bestände!$D231)","v":0},0]
[null,null,"2042-09-30","September",2042,0,{"$f":"SUMIFS(Kassenbuch!$E$7:$E$19983,Kassenbuch!$K$7:$K$19983,Bestände!$E232,Kassenbuch!$L$7:$L$19983,Bestände!$D232)","v":0},{"$f":"SUMIFS(Kassenbuch!$F$7:$F$19983,Kassenbuch!$K$7:$K$19983,Bestände!$E232,Kassenbuch!$L$7:$L$19983,Bestände!$D232)","v":0},0]
[null,null,"2042-10-31","Oktober",2042,0,{"$f":"SUMIFS(Kassenbuch!$E$7:$E$19983,Kassenbuch!$K$7:$K$19983,Bestände!$E233,Kassenbuch!$L$7:$L$19983,Bestände!$D233)","v":0},{"$f":"SUMIFS(Kassenbuch!$F$7:$F$19983,Kassenbuch!$K$7:$K$19983,Bestände!$E233,Kassenbuch!$L$7:$L$19983,Bestände!$D233)","v":0},0]
[null,null,"2042-11-30","November",2042,0,{"$f":"SUMIFS(Kassenbuch!$E$7:$E$19983,Kassenbuch!$K$7:$K$19983,Bestände!$E234,Kassenbuch!$L$7:$L$19983,Bestände!$D234)","v":0},{"$f":"SUMIFS(Kassenbuch!$F$7:$F$19983,Kassenbuch!$K$7:$K$19983,Bestände!$E234,Kassenbuch!$L$7:$L$19983,Bestände!$D234)","v":0},0]
[null,null,"2042-12-31","Dezember",2042,0,{"$f":"SUMIFS(Kassenbuch!$E$7:$E$19983,Kassenbuch!$K$7:$K$19983,Bestände!$E235,Kassenbuch!$L$7:$L$19983,Bestände!$D235)","v":0},{"$f":"SUMIFS(Kassenbuch!$F$7:$F$19983,Kassenbuch!$K$7:$K$19983,Bestände!$E235,Kassenbuch!$L$7:$L$19983,Bestände!$D235)","v":0},0]
[null,null,"2043-01-31","Januar",2043,0,{"$f":"SUMIFS(Kassenbuch!$E$7:$E$19983,Kassenbuch!$K$7:$K$19983,Bestände!$E236,Kassenbuch!$L$7:$L$19983,Bestände!$D236)","v":0},{"$f":"SUMIFS(Kassenbuch!$F$7:$F$19983,Kassenbuch!$K$7:$K$19983,Bestände!$E236,Kassenbuch!$L$7:$L$19983,Bestände!$D236)","v":0},0]
[null,null,"2043-02-28","Februar",2043,0,{"$f":"SUMIFS(Kassenbuch!$E$7:$E$19983,Kassenbuch!$K$7:$K$19983,Bestände!$E237,Kassenbuch!$L$7:$L$19983,Bestände!$D237)","v":0},{"$f":"SUMIFS(Kassenbuch!$F$7:$F$19983,Kassenbuch!$K$7:$K$19983,Bestände!$E237,Kassenbuch!$L$7:$L$19983,Bestände!$D237)","v":0},0]
[null,null,"2043-03-31","März",2043,0,{"$f":"SUMIFS(Kassenbuch!$E$7:$E$19983,Kassenbuch!$K$7:$K$19983,Bestände!$E238,Kassenbuch!$L$7:$L$19983,Bestände!$D238)","v":0},{"$f":"SUMIFS(Kassenbuch!$F$7:$F$19983,Kassenbuch!$K$7:$K$19983,Bestände!$E238,Kassenbuch!$L$7:$L$19983,Bestände!$D238)","v":0},0]
[null,null,"2043-04-30","April",2043,0,{"$f":"SUMIFS(Kassenbuch!$E$7:$E$19983,Kassenbuch!$K$7:$K$19983,Bestände!$E239,Kassenbuch!$L$7:$L$19983,Bestände!$D239)","v":0},{"$f":"SUMIFS(Kassenbuch!$F$7:$F$19983,Kassenbuch!$K$7:$K$19983,Bestände!$E239,Kassenbuch!$L$7:$L$19983,Bestände!$D239)","v":0},0]
[null,null,"2043-05-31","Mai",2043,0,{"$f":"SUMIFS(Kassenbuch!$E$7:$E$19983,Kassenbuch!$K$7:$K$19983,Bestände!$E240,Kassenbuch!$L$7:$L$19983,Bestände!$D240)","v":0},{"$f":"SUMIFS(Kassenbuch!$F$7:$F$19983,Kassenbuch!$K$7:$K$19983,Bestände!$E240,Kassenbuch!$L$7:$L$19983,Bestände!$D240)","v":0},0]
[null,null,"2043-06-30","Juni",2043,0,{"$f":"SUMIFS(Kassenbuch!$E$7:$E$19983,Kassenbuch!$K$7:$K$19983,Bestände!$E241,Kassenbuch!$L$7:$L$19983,Bestände!$D241)","v":0},{"$f":"SUMIFS(Kassenbuch!$F$7:$F$19983,Kassenbuch!$K$7:$K$19983,Bestände!$E241,Kassenbuch!$L$7:$L$19983,Bestände!$D241)","v":0},0]
[null,null,"2043-07-31","Juli",2043,0,{"$f":"SUMIFS(Kassenbuch!$E$7:$E$19983,Kassenbuch!$K$7:$K$19983,Bestände!$E242,Kassenbuch!$L$7:$L$19983,Bestände!$D242)","v":0},{"$f":"SUMIFS(Kassenbuch!$F$7:$F$19983,Kassenbuch!$K$7:$K$19983,Bestände!$E242,Kassenbuch!$L$7:$L$19983,Bestände!$D242)","v":0},0]
[null,null,"2043-08-31","August",2043,0,{"$f":"SUMIFS(Kassenbuch!$E$7:$E$19983,Kassenbuch!$K$7:$K$19983,Bestände!$E243,Kassenbuch!$L$7:$L$19983,Bestände!$D243)","v":0},{"$f":"SUMIFS(Kassenbuch!$F$7:$F$19983,Kassenbuch!$K$7:$K$19983,Bestände!$E243,Kassenbuch!$L$7:$L$19983,Bestände!$D243)","v":0},0]
[null,null,"2043-09-30","September",2043,0,{"$f":"SUMIFS(Kassenbuch!$E$7:$E$19983,Kassenbuch!$K$7:$K$19983,Bestände!$E244,Kassenbuch!$L$7:$L$19983,Bestände!$D244)","v":0},{"$f":"SUMIFS(Kassenbuch!$F$7:$F$19983,Kassenbuch!$K$7:$K$19983,Bestände!$E244,Kassenbuch!$L$7:$L$19983,Bestände!$D244)","v":0},0]
[null,null,"2043-10-31","Oktober",2043,0,{"$f":"SUMIFS(Kassenbuch!$E$7:$E$19983,Kassenbuch!$K$7:$K$19983,Bestände!$E245,Kassenbuch!$L$7:$L$19983,Bestände!$D245)","v":0},{"$f":"SUMIFS(Kassenbuch!$F$7:$F$19983,Kassenbuch!$K$7:$K$19983,Bestände!$E245,Kassenbuch!$L$7:$L$19983,Bestände!$D245)","v":0},0]
[null,null,"2043-11-30","November",2043,0,{"$f":"SUMIFS(Kassenbuch!$E$7:$E$19983,Kassenbuch!$K$7:$K$19983,Bestände!$E246,Kassenbuch!$L$7:$L$19983,Bestände!$D246)","v":0},{"$f":"SUMIFS(Kassenbuch!$F$7:$F$19983,Kassenbuch!$K$7:$K$19983,Bestände!$E246,Kassenbuch!$L$7:$L$19983,Bestände!$D246)","v":0},0]
[null,null,"2043-12-31","Dezember",2043,0,{"$f":"SUMIFS(Kassenbuch!$E$7:$E$19983,Kassenbuch!$K$7:$K$19983,Bestände!$E247,Kassenbuch!$L$7:$L$19983,Bestände!$D247)","v":0},{"$f":"SUMIFS(Kassenbuch!$F$7:$F$19983,Kassenbuch!$K$7:$K$19983,Bestände!$E247,Kassenbuch!$L$7:$L$19983,Bestände!$D247)","v":0},0]
[null,null,"2044-01-31","Januar",2044,0,{"$f":"SUMIFS(Kassenbuch!$E$7:$E$19983,Kassenbuch!$K$7:$K$19983,Bestände!$E248,Kassenbuch!$L$7:$L$19983,Bestände!$D248)","v":0},{"$f":"SUMIFS(Kassenbuch!$F$7:$F$19983,Kassenbuch!$K$7:$K$19983,Bestände!$E248,Kassenbuch!$L$7:$L$19983,Bestände!$D248)","v":0},0]
[null,null,"2044-02-29","Februar",2044,0,{"$f":"SUMIFS(Kassenbuch!$E$7:$E$19983,Kassenbuch!$K$7:$K$19983,Bestände!$E249,Kassenbuch!$L$7:$L$19983,Bestände!$D249)","v":0},{"$f":"SUMIFS(Kassenbuch!$F$7:$F$19983,Kassenbuch!$K$7:$K$19983,Bestände!$E249,Kassenbuch!$L$7:$L$19983,Bestände!$D249)","v":0},0]
[null,null,"2044-03-31","März",2044,0,{"$f":"SUMIFS(Kassenbuch!$E$7:$E$19983,Kassenbuch!$K$7:$K$19983,Bestände!$E250,Kassenbuch!$L$7:$L$19983,Bestände!$D250)","v":0},{"$f":"SUMIFS(Kassenbuch!$F$7:$F$19983,Kassenbuch!$K$7:$K$19983,Bestände!$E250,Kassenbuch!$L$7:$L$19983,Bestände!$D250)","v":0},0]
[null,null,"2044-04-30","April",2044,0,{"$f":"SUMIFS(Kassenbuch!$E$7:$E$19983,Kassenbuch!$K$7:$K$19983,Bestände!$E251,Kassenbuch!$L$7:$L$19983,Bestände!$D251)","v":0},{"$f":"SUMIFS(Kassenbuch!$F$7:$F$19983,Kassenbuch!$K$7:$K$19983,Bestände!$E251,Kassenbuch!$L$7:$L$19983,Bestände!$D251)","v":0},0]
[null,null,"2044-05-31","Mai",2044,0,{"$f":"SUMIFS(Kassenbuch!$E$7:$E$19983,Kassenbuch!$K$7:$K$19983,Bestände!$E252,Kassenbuch!$L$7:$L$19983,Bestände!$D252)","v":0},{"$f":"SUMIFS(Kassenbuch!$F$7:$F$19983,Kassenbuch!$K$7:$K$19983,Bestände!$E252,Kassenbuch!$L$7:$L$19983,Bestände!$D252)","v":0},0]
[null,null,"2044-06-30","Juni",2044,0,{"$f":"SUMIFS(Kassenbuch!$E$7:$E$19983,Kassenbuch!$K$7:$K$19983,Bestände!$E253,Kassenbuch!$L$7:$L$19983,Bestände!$D253)","v":0},{"$f":"SUMIFS(Kassenbuch!$F$7:$F$19983,Kassenbuch!$K$7:$K$19983,Bestände!$E253,Kassenbuch!$L$7:$L$19983,Bestände!$D253)","v":0},0]
[null,null,"2044-07-31","Juli",2044,0,{"$f":"SUMIFS(Kassenbuch!$E$7:$E$19983,Kassenbuch!$K$7:$K$19983,Bestände!$E254,Kassenbuch!$L$7:$L$19983,Bestände!$D254)","v":0},{"$f":"SUMIFS(Kassenbuch!$F$7:$F$19983,Kassenbuch!$K$7:$K$19983,Bestände!$E254,Kassenbuch!$L$7:$L$19983,Bestände!$D254)","v":0},0]
[null,null,"2044-08-31","August",2044,0,{"$f":"SUMIFS(Kassenbuch!$E$7:$E$19983,Kassenbuch!$K$7:$K$19983,Bestände!$E255,Kassenbuch!$L$7:$L$19983,Bestände!$D255)","v":0},{"$f":"SUMIFS(Kassenbuch!$F$7:$F$19983,Kassenbuch!$K$7:$K$19983,Bestände!$E255,Kassenbuch!$L$7:$L$19983,Bestände!$D255)","v":0},0]
[null,null,"2044-09-30","September",2044,0,{"$f":"SUMIFS(Kassenbuch!$E$7:$E$19983,Kassenbuch!$K$7:$K$19983,Bestände!$E256,Kassenbuch!$L$7:$L$19983,Bestände!$D256)","v":0},{"$f":"SUMIFS(Kassenbuch!$F$7:$F$19983,Kassenbuch!$K$7:$K$19983,Bestände!$E256,Kassenbuch!$L$7:$L$19983,Bestände!$D256)","v":0},0]
[null,null,"2044-10-31","Oktober",2044,0,{"$f":"SUMIFS(Kassenbuch!$E$7:$E$19983,Kassenbuch!$K$7:$K$19983,Bestände!$E257,Kassenbuch!$L$7:$L$19983,Bestände!$D257)","v":0},{"$f":"SUMIFS(Kassenbuch!$F$7:$F$19983,Kassenbuch!$K$7:$K$19983,Bestände!$E257,Kassenbuch!$L$7:$L$19983,Bestände!$D257)","v":0},0]
[null,null,"2044-11-30","November",2044,0,{"$f":"SUMIFS(Kassenbuch!$E$7:$E$19983,Kassenbuch!$K$7:$K$19983,Bestände!$E258,Kassenbuch!$L$7:$L$19983,Bestände!$D258)","v":0},{"$f":"SUMIFS(Kassenbuch!$F$7:$F$19983,Kassenbuch!$K$7:$K$19983,Bestände!$E258,Kassenbuch!$L$7:$L$19983,Bestände!$D258)","v":0},0]
[null,null,"2044-12-31","Dezember",2044,0,{"$f":"SUMIFS(Kassenbuch!$E$7:$E$19983,Kassenbuch!$K$7:$K$19983,Bestände!$E259,Kassenbuch!$L$7:$L$19983,Bestände!$D259)","v":0},{"$f":"SUMIFS(Kassenbuch!$F$7:$F$19983,Kassenbuch!$K$7:$K$19983,Bestände!$E259,Kassenbuch!$L$7:$L$19983,Bestände!$D259)","v":0},0]
[null,null,"2045-01-31","Januar",2045,0,{"$f":"SUMIFS(Kassenbuch!$E$7:$E$19983,Kassenbuch!$K$7:$K$19983,Bestände!$E260,Kassenbuch!$L$7:$L$19983,Bestände!$D260)","v":0},{"$f":"SUMIFS(Kassenbuch!$F$7:$F$19983,Kassenbuch!$K$7:$K$19983,Bestände!$E260,Kassenbuch!$L$7:$L$19983,Bestände!$D260)","v":0},0]
[null,null,"2045-02-28","Februar",2045,0,{"$f":"SUMIFS(Kassenbuch!$E$7:$E$19983,Kassenbuch!$K$7:$K$19983,Bestände!$E261,Kassenbuch!$L$7:$L$19983,Bestände!$D261)","v":0},{"$f":"SUMIFS(Kassenbuch!$F$7:$F$19983,Kassenbuch!$K$7:$K$19983,Bestände!$E261,Kassenbuch!$L$7:$L$19983,Bestände!$D261)","v":0},0]
[null,null,"2045-03-31","März",2045,0,{"$f":"SUMIFS(Kassenbuch!$E$7:$E$19983,Kassenbuch!$K$7:$K$19983,Bestände!$E262,Kassenbuch!$L$7:$L$19983,Bestände!$D262)","v":0},{"$f":"SUMIFS(Kassenbuch!$F$7:$F$19983,Kassenbuch!$K$7:$K$19983,Bestände!$E262,Kassenbuch!$L$7:$L$19983,Bestände!$D262)","v":0},0]
[null,null,"2045-04-30","April",2045,0,{"$f":"SUMIFS(Kassenbuch!$E$7:$E$19983,Kassenbuch!$K$7:$K$19983,Bestände!$E263,Kassenbuch!$L$7:$L$19983,Bestände!$D263)","v":0},{"$f":"SUMIFS(Kassenbuch!$F$7:$F$19983,Kassenbuch!$K$7:$K$19983,Bestände!$E263,Kassenbuch!$L$7:$L$19983,Bestände!$D263)","v":0},0]
[null,null,"2045-05-31","Mai",2045,0,{"$f":"SUMIFS(Kassenbuch!$E$7:$E$19983,Kassenbuch!$K$7:$K$19983,Bestände!$E264,Kassenbuch!$L$7:$L$19983,Bestände!$D264)","v":0},{"$f":"SUMIFS(Kassenbuch!$F$7:$F$19983,Kassenbuch!$K$7:$K$19983,Bestände!$E264,Kassenbuch!$L$7:$L$19983,Bestände!$D264)","v":0},0]
[null,null,"2045-06-30","Juni",2045,0,{"$f":"SUMIFS(Kassenbuch!$E$7:$E$19983,Kassenbuch!$K$7:$K$19983,Bestände!$E265,Kassenbuch!$L$7:$L$19983,Bestände!$D265)","v":0},{"$f":"SUMIFS(Kassenbuch!$F$7:$F$19983,Kassenbuch!$K$7:$K$19983,Bestände!$E265,Kassenbuch!$L$7:$L$19983,Bestände!$D265)","v":0},0]
[null,null,{"$f":"IF(C265=\"-\",\"-\",EOMONTH(C265,1))","v":"2045-07-31"},"Juli",2045,0,{"$f":"SUMIFS(Kassenbuch!$E$7:$E$19983,Kassenbuch!$K$7:$K$19983,Bestände!$E266,Kassenbuch!$L$7:$L$19983,Bestände!$D266)","v":0},{"$f":"SUMIFS(Kassenbuch!$F$7:$F$19983,Kassenbuch!$K$7:$K$19983,Bestände!$E266,Kassenbuch!$L$7:$L$19983,Bestände!$D266)","v":0},0]
[null,null,"2045-08-31","August",2045,0,{"$f":"SUMIFS(Kassenbuch!$E$7:$E$19983,Kassenbuch!$K$7:$K$19983,Bestände!$E267,Kassenbuch!$L$7:$L$19983,Bestände!$D267)","v":0},{"$f":"SUMIFS(Kassenbuch!$F$7:$F$19983,Kassenbuch!$K$7:$K$19983,Bestände!$E267,Kassenbuch!$L$7:$L$19983,Bestände!$D267)","v":0},0]
[null,null,"2045-09-30",{"$f":"TEXT(C268,\"MMMM\")","v":"September"},{"$f":"IF(C268=\"-\",\"-\",YEAR(C268))","v":2045},{"$f":"IF(C267>=TODAY(),0,I267)","v":0},{"$f":"SUMIFS(Kassenbuch!$E$7:$E$19983,Kassenbuch!$K$7:$K$19983,Bestände!$E268,Kassenbuch!$L$7:$L$19983,Bestände!$D268)","v":0},{"$f":"SUMIFS(Kassenbuch!$F$7:$F$19983,Kassenbuch!$K$7:$K$19983,Bestände!$E268,Kassenbuch!$L$7:$L$19983,Bestände!$D268)","v":0},{"$f":"IF(F268=0,0,F268+G268-H268)","v":0}]
[null,null,"2045-10-31","Oktober",2045,0,{"$f":"SUMIFS(Kassenbuch!$E$7:$E$19983,Kassenbuch!$K$7:$K$19983,Bestände!$E269,Kassenbuch!$L$7:$L$19983,Bestände!$D269)","v":0},{"$f":"SUMIFS(Kassenbuch!$F$7:$F$19983,Kassenbuch!$K$7:$K$19983,Bestände!$E269,Kassenbuch!$L$7:$L$19983,Bestände!$D269)","v":0},0]
[null,null,"2045-11-30","November",2045,0,{"$f":"SUMIFS(Kassenbuch!$E$7:$E$19983,Kassenbuch!$K$7:$K$19983,Bestände!$E270,Kassenbuch!$L$7:$L$19983,Bestände!$D270)","v":0},{"$f":"SUMIFS(Kassenbuch!$F$7:$F$19983,Kassenbuch!$K$7:$K$19983,Bestände!$E270,Kassenbuch!$L$7:$L$19983,Bestände!$D270)","v":0},0]
[null,null,"2045-12-31","Dezember",2045,0,{"$f":"SUMIFS(Kassenbuch!$E$7:$E$19983,Kassenbuch!$K$7:$K$19983,Bestände!$E271,Kassenbuch!$L$7:$L$19983,Bestände!$D271)","v":0},{"$f":"SUMIFS(Kassenbuch!$F$7:$F$19983,Kassenbuch!$K$7:$K$19983,Bestände!$E271,Kassenbuch!$L$7:$L$19983,Bestände!$D271)","v":0},0]
[null,null,"2046-01-31","Januar",2046,0,{"$f":"SUMIFS(Kassenbuch!$E$7:$E$19983,Kassenbuch!$K$7:$K$19983,Bestände!$E272,Kassenbuch!$L$7:$L$19983,Bestände!$D272)","v":0},{"$f":"SUMIFS(Kassenbuch!$F$7:$F$19983,Kassenbuch!$K$7:$K$19983,Bestände!$E272,Kassenbuch!$L$7:$L$19983,Bestände!$D272)","v":0},0]
[null,null,"2046-02-28","Februar",2046,0,{"$f":"SUMIFS(Kassenbuch!$E$7:$E$19983,Kassenbuch!$K$7:$K$19983,Bestände!$E273,Kassenbuch!$L$7:$L$19983,Bestände!$D273)","v":0},{"$f":"SUMIFS(Kassenbuch!$F$7:$F$19983,Kassenbuch!$K$7:$K$19983,Bestände!$E273,Kassenbuch!$L$7:$L$19983,Bestände!$D273)","v":0},0]
[null,null,"2046-03-31","März",2046,0,{"$f":"SUMIFS(Kassenbuch!$E$7:$E$19983,Kassenbuch!$K$7:$K$19983,Bestände!$E274,Kassenbuch!$L$7:$L$19983,Bestände!$D274)","v":0},{"$f":"SUMIFS(Kassenbuch!$F$7:$F$19983,Kassenbuch!$K$7:$K$19983,Bestände!$E274,Kassenbuch!$L$7:$L$19983,Bestände!$D274)","v":0},0]
[null,null,"2046-04-30","April",2046,0,{"$f":"SUMIFS(Kassenbuch!$E$7:$E$19983,Kassenbuch!$K$7:$K$19983,Bestände!$E275,Kassenbuch!$L$7:$L$19983,Bestände!$D275)","v":0},{"$f":"SUMIFS(Kassenbuch!$F$7:$F$19983,Kassenbuch!$K$7:$K$19983,Bestände!$E275,Kassenbuch!$L$7:$L$19983,Bestände!$D275)","v":0},0]
[null,null,"2046-05-31","Mai",2046,0,{"$f":"SUMIFS(Kassenbuch!$E$7:$E$19983,Kassenbuch!$K$7:$K$19983,Bestände!$E276,Kassenbuch!$L$7:$L$19983,Bestände!$D276)","v":0},{"$f":"SUMIFS(Kassenbuch!$F$7:$F$19983,Kassenbuch!$K$7:$K$19983,Bestände!$E276,Kassenbuch!$L$7:$L$19983,Bestände!$D276)","v":0},0]
[null,null,"2046-06-30","Juni",2046,0,{"$f":"SUMIFS(Kassenbuch!$E$7:$E$19983,Kassenbuch!$K$7:$K$19983,Bestände!$E277,Kassenbuch!$L$7:$L$19983,Bestände!$D277)","v":0},{"$f":"SUMIFS(Kassenbuch!$F$7:$F$19983,Kassenbuch!$K$7:$K$19983,Bestände!$E277,Kassenbuch!$L$7:$L$19983,Bestände!$D277)","v":0},0]
[null,null,"2046-07-31","Juli",2046,0,{"$f":"SUMIFS(Kassenbuch!$E$7:$E$19983,Kassenbuch!$K$7:$K$19983,Bestände!$E278,Kassenbuch!$L$7:$L$19983,Bestände!$D278)","v":0},{"$f":"SUMIFS(Kassenbuch!$F$7:$F$19983,Kassenbuch!$K$7:$K$19983,Bestände!$E278,Kassenbuch!$L$7:$L$19983,Bestände!$D278)","v":0},0]
[null,null,"2046-08-31","August",2046,0,{"$f":"SUMIFS(Kassenbuch!$E$7:$E$19983,Kassenbuch!$K$7:$K$19983,Bestände!$E279,Kassenbuch!$L$7:$L$19983,Bestände!$D279)","v":0},{"$f":"SUMIFS(Kassenbuch!$F$7:$F$19983,Kassenbuch!$K$7:$K$19983,Bestände!$E279,Kassenbuch!$L$7:$L$19983,Bestände!$D279)","v":0},0]
[null,null,"2046-09-30","September",2046,0,{"$f":"SUMIFS(Kassenbuch!$E$7:$E$19983,Kassenbuch!$K$7:$K$19983,Bestände!$E280,Kassenbuch!$L$7:$L$19983,Bestände!$D280)","v":0},{"$f":"SUMIFS(Kassenbuch!$F$7:$F$19983,Kassenbuch!$K$7:$K$19983,Bestände!$E280,Kassenbuch!$L$7:$L$19983,Bestände!$D280)","v":0},0]
[null,null,"2046-10-31","Oktober",2046,0,{"$f":"SUMIFS(Kassenbuch!$E$7:$E$19983,Kassenbuch!$K$7:$K$19983,Bestände!$E281,Kassenbuch!$L$7:$L$19983,Bestände!$D281)","v":0},{"$f":"SUMIFS(Kassenbuch!$F$7:$F$19983,Kassenbuch!$K$7:$K$19983,Bestände!$E281,Kassenbuch!$L$7:$L$19983,Bestände!$D281)","v":0},0]
[null,null,"2046-11-30","November",2046,0,{"$f":"SUMIFS(Kassenbuch!$E$7:$E$19983,Kassenbuch!$K$7:$K$19983,Bestände!$E282,Kassenbuch!$L$7:$L$19983,Bestände!$D282)","v":0},{"$f":"SUMIFS(Kassenbuch!$F$7:$F$19983,Kassenbuch!$K$7:$K$19983,Bestände!$E282,Kassenbuch!$L$7:$L$19983,Bestände!$D282)","v":0},0]
[null,null,"2046-12-31","Dezember",2046,0,{"$f":"SUMIFS(Kassenbuch!$E$7:$E$19983,Kassenbuch!$K$7:$K$19983,Bestände!$E283,Kassenbuch!$L$7:$L$19983,Bestände!$D283)","v":0},{"$f":"SUMIFS(Kassenbuch!$F$7:$F$19983,Kassenbuch!$K$7:$K$19983,Bestände!$E283,Kassenbuch!$L$7:$L$19983,Bestände!$D283)","v":0},0]
[null,null,"2047-01-31","Januar",2047,0,{"$f":"SUMIFS(Kassenbuch!$E$7:$E$19983,Kassenbuch!$K$7:$K$19983,Bestände!$E284,Kassenbuch!$L$7:$L$19983,Bestände!$D284)","v":0},{"$f":"SUMIFS(Kassenbuch!$F$7:$F$19983,Kassenbuch!$K$7:$K$19983,Bestände!$E284,Kassenbuch!$L$7:$L$19983,Bestände!$D284)","v":0},0]
[null,null,"2047-02-28","Februar",2047,0,{"$f":"SUMIFS(Kassenbuch!$E$7:$E$19983,Kassenbuch!$K$7:$K$19983,Bestände!$E285,Kassenbuch!$L$7:$L$19983,Bestände!$D285)","v":0},{"$f":"SUMIFS(Kassenbuch!$F$7:$F$19983,Kassenbuch!$K$7:$K$19983,Bestände!$E285,Kassenbuch!$L$7:$L$19983,Bestände!$D285)","v":0},0]
[null,null,"2047-03-31","März",2047,0,{"$f":"SUMIFS(Kassenbuch!$E$7:$E$19983,Kassenbuch!$K$7:$K$19983,Bestände!$E286,Kassenbuch!$L$7:$L$19983,Bestände!$D286)","v":0},{"$f":"SUMIFS(Kassenbuch!$F$7:$F$19983,Kassenbuch!$K$7:$K$19983,Bestände!$E286,Kassenbuch!$L$7:$L$19983,Bestände!$D286)","v":0},0]
[null,null,"2047-04-30","April",2047,0,{"$f":"SUMIFS(Kassenbuch!$E$7:$E$19983,Kassenbuch!$K$7:$K$19983,Bestände!$E287,Kassenbuch!$L$7:$L$19983,Bestände!$D287)","v":0},{"$f":"SUMIFS(Kassenbuch!$F$7:$F$19983,Kassenbuch!$K$7:$K$19983,Bestände!$E287,Kassenbuch!$L$7:$L$19983,Bestände!$D287)","v":0},0]
[null,null,"2047-05-31","Mai",2047,0,{"$f":"SUMIFS(Kassenbuch!$E$7:$E$19983,Kassenbuch!$K$7:$K$19983,Bestände!$E288,Kassenbuch!$L$7:$L$19983,Bestände!$D288)","v":0},{"$f":"SUMIFS(Kassenbuch!$F$7:$F$19983,Kassenbuch!$K$7:$K$19983,Bestände!$E288,Kassenbuch!$L$7:$L$19983,Bestände!$D288)","v":0},0]
[null,null,"2047-06-30","Juni",2047,0,{"$f":"SUMIFS(Kassenbuch!$E$7:$E$19983,Kassenbuch!$K$7:$K$19983,Bestände!$E289,Kassenbuch!$L$7:$L$19983,Bestände!$D289)","v":0},{"$f":"SUMIFS(Kassenbuch!$F$7:$F$19983,Kassenbuch!$K$7:$K$19983,Bestände!$E289,Kassenbuch!$L$7:$L$19983,Bestände!$D289)","v":0},0]
[null,null,"2047-07-31","Juli",2047,0,{"$f":"SUMIFS(Kassenbuch!$E$7:$E$19983,Kassenbuch!$K$7:$K$19983,Bestände!$E290,Kassenbuch!$L$7:$L$19983,Bestände!$D290)","v":0},{"$f":"SUMIFS(Kassenbuch!$F$7:$F$19983,Kassenbuch!$K$7:$K$19983,Bestände!$E290,Kassenbuch!$L$7:$L$19983,Bestände!$D290)","v":0},0]
[null,null,"2047-08-31","August",2047,0,{"$f":"SUMIFS(Kassenbuch!$E$7:$E$19983,Kassenbuch!$K$7:$K$19983,Bestände!$E291,Kassenbuch!$L$7:$L$19983,Bestände!$D291)","v":0},{"$f":"SUMIFS(Kassenbuch!$F$7:$F$19983,Kassenbuch!$K$7:$K$19983,Bestände!$E291,Kassenbuch!$L$7:$L$19983,Bestände!$D291)","v":0},0]
[null,null,"2047-09-30","September",2047,0,{"$f":"SUMIFS(Kassenbuch!$E$7:$E$19983,Kassenbuch!$K$7:$K$19983,Bestände!$E292,Kassenbuch!$L$7:$L$19983,Bestände!$D292)","v":0},{"$f":"SUMIFS(Kassenbuch!$F$7:$F$19983,Kassenbuch!$K$7:$K$19983,Bestände!$E292,Kassenbuch!$L$7:$L$19983,Bestände!$D292)","v":0},0]
[null,null,"2047-10-31","Oktober",2047,0,{"$f":"SUMIFS(Kassenbuch!$E$7:$E$19983,Kassenbuch!$K$7:$K$19983,Bestände!$E293,Kassenbuch!$L$7:$L$19983,Bestände!$D293)","v":0},{"$f":"SUMIFS(Kassenbuch!$F$7:$F$19983,Kassenbuch!$K$7:$K$19983,Bestände!$E293,Kassenbuch!$L$7:$L$19983,Bestände!$D293)","v":0},0]
[null,null,"2047-11-30","November",2047,0,{"$f":"SUMIFS(Kassenbuch!$E$7:$E$19983,Kassenbuch!$K$7:$K$19983,Bestände!$E294,Kassenbuch!$L$7:$L$19983,Bestände!$D294)","v":0},{"$f":"SUMIFS(Kassenbuch!$F$7:$F$19983,Kassenbuch!$K$7:$K$19983,Bestände!$E294,Kassenbuch!$L$7:$L$19983,Bestände!$D294)","v":0},0]
[null,null,"2047-12-31","Dezember",2047,0,{"$f":"SUMIFS(Kassenbuch!$E$7:$E$19983,Kassenbuch!$K$7:$K$19983,Bestände!$E295,Kassenbuch!$L$7:$L$19983,Bestände!$D295)","v":0},{"$f":"SUMIFS(Kassenbuch!$F$7:$F$19983,Kassenbuch!$K$7:$K$19983,Bestände!$E295,Kassenbuch!$L$7:$L$19983,Bestände!$D295)","v":0},0]
[null,null,"2048-01-31","Januar",2048,0,{"$f":"SUMIFS(Kassenbuch!$E$7:$E$19983,Kassenbuch!$K$7:$K$19983,Bestände!$E296,Kassenbuch!$L$7:$L$19983,Bestände!$D296)","v":0},{"$f":"SUMIFS(Kassenbuch!$F$7:$F$19983,Kassenbuch!$K$7:$K$19983,Bestände!$E296,Kassenbuch!$L$7:$L$19983,Bestände!$D296)","v":0},0]
[null,null,"2048-02-29","Februar",2048,0,{"$f":"SUMIFS(Kassenbuch!$E$7:$E$19983,Kassenbuch!$K$7:$K$19983,Bestände!$E297,Kassenbuch!$L$7:$L$19983,Bestände!$D297)","v":0},{"$f":"SUMIFS(Kassenbuch!$F$7:$F$19983,Kassenbuch!$K$7:$K$19983,Bestände!$E297,Kassenbuch!$L$7:$L$19983,Bestände!$D297)","v":0},0]
[null,null,"2048-03-31","März",2048,0,{"$f":"SUMIFS(Kassenbuch!$E$7:$E$19983,Kassenbuch!$K$7:$K$19983,Bestände!$E298,Kassenbuch!$L$7:$L$19983,Bestände!$D298)","v":0},{"$f":"SUMIFS(Kassenbuch!$F$7:$F$19983,Kassenbuch!$K$7:$K$19983,Bestände!$E298,Kassenbuch!$L$7:$L$19983,Bestände!$D298)","v":0},0]
[null,null,"2048-04-30","April",2048,0,{"$f":"SUMIFS(Kassenbuch!$E$7:$E$19983,Kassenbuch!$K$7:$K$19983,Bestände!$E299,Kassenbuch!$L$7:$L$19983,Bestände!$D299)","v":0},{"$f":"SUMIFS(Kassenbuch!$F$7:$F$19983,Kassenbuch!$K$7:$K$19983,Bestände!$E299,Kassenbuch!$L$7:$L$19983,Bestände!$D299)","v":0},0]
[null,null,"2048-05-31","Mai",2048,0,{"$f":"SUMIFS(Kassenbuch!$E$7:$E$19983,Kassenbuch!$K$7:$K$19983,Bestände!$E300,Kassenbuch!$L$7:$L$19983,Bestände!$D300)","v":0},{"$f":"SUMIFS(Kassenbuch!$F$7:$F$19983,Kassenbuch!$K$7:$K$19983,Bestände!$E300,Kassenbuch!$L$7:$L$19983,Bestände!$D300)","v":0},0]
[null,null,"2048-06-30","Juni",2048,0,{"$f":"SUMIFS(Kassenbuch!$E$7:$E$19983,Kassenbuch!$K$7:$K$19983,Bestände!$E301,Kassenbuch!$L$7:$L$19983,Bestände!$D301)","v":0},{"$f":"SUMIFS(Kassenbuch!$F$7:$F$19983,Kassenbuch!$K$7:$K$19983,Bestände!$E301,Kassenbuch!$L$7:$L$19983,Bestände!$D301)","v":0},0]
[null,null,"2048-07-31","Juli",2048,0,{"$f":"SUMIFS(Kassenbuch!$E$7:$E$19983,Kassenbuch!$K$7:$K$19983,Bestände!$E302,Kassenbuch!$L$7:$L$19983,Bestände!$D302)","v":0},{"$f":"SUMIFS(Kassenbuch!$F$7:$F$19983,Kassenbuch!$K$7:$K$19983,Bestände!$E302,Kassenbuch!$L$7:$L$19983,Bestände!$D302)","v":0},0]
[null,null,"2048-08-31","August",2048,0,{"$f":"SUMIFS(Kassenbuch!$E$7:$E$19983,Kassenbuch!$K$7:$K$19983,Bestände!$E303,Kassenbuch!$L$7:$L$19983,Bestände!$D303)","v":0},{"$f":"SUMIFS(Kassenbuch!$F$7:$F$19983,Kassenbuch!$K$7:$K$19983,Bestände!$E303,Kassenbuch!$L$7:$L$19983,Bestände!$D303)","v":0},0]
[null,null,"2048-09-30","September",2048,0,{"$f":"SUMIFS(Kassenbuch!$E$7:$E$19983,Kassenbuch!$K$7:$K$19983,Bestände!$E304,Kassenbuch!$L$7:$L$19983,Bestände!$D304)","v":0},{"$f":"SUMIFS(Kassenbuch!$F$7:$F$19983,Kassenbuch!$K$7:$K$19983,Bestände!$E304,Kassenbuch!$L$7:$L$19983,Bestände!$D304)","v":0},0]
[null,null,"2048-10-31","Oktober",2048,0,{"$f":"SUMIFS(Kassenbuch!$E$7:$E$19983,Kassenbuch!$K$7:$K$19983,Bestände!$E305,Kassenbuch!$L$7:$L$19983,Bestände!$D305)","v":0},{"$f":"SUMIFS(Kassenbuch!$F$7:$F$19983,Kassenbuch!$K$7:$K$19983,Bestände!$E305,Kassenbuch!$L$7:$L$19983,Bestände!$D305)","v":0},0]
[null,null,"2048-11-30","November",2048,0,{"$f":"SUMIFS(Kassenbuch!$E$7:$E$19983,Kassenbuch!$K$7:$K$19983,Bestände!$E306,Kassenbuch!$L$7:$L$19983,Bestände!$D306)","v":0},{"$f":"SUMIFS(Kassenbuch!$F$7:$F$19983,Kassenbuch!$K$7:$K$19983,Bestände!$E306,Kassenbuch!$L$7:$L$19983,Bestände!$D306)","v":0},0]
[null,null,"2048-12-31","Dezember",2048,0,{"$f":"SUMIFS(Kassenbuch!$E$7:$E$19983,Kassenbuch!$K$7:$K$19983,Bestände!$E307,Kassenbuch!$L$7:$L$19983,Bestände!$D307)","v":0},{"$f":"SUMIFS(Kassenbuch!$F$7:$F$19983,Kassenbuch!$K$7:$K$19983,Bestände!$E307,Kassenbuch!$L$7:$L$19983,Bestände!$D307)","v":0},0]
[null,null,"2049-01-31","Januar",2049,0,{"$f":"SUMIFS(Kassenbuch!$E$7:$E$19983,Kassenbuch!$K$7:$K$19983,Bestände!$E308,Kassenbuch!$L$7:$L$19983,Bestände!$D308)","v":0},{"$f":"SUMIFS(Kassenbuch!$F$7:$F$19983,Kassenbuch!$K$7:$K$19983,Bestände!$E308,Kassenbuch!$L$7:$L$19983,Bestände!$D308)","v":0},0]
[null,null,"2049-02-28","Februar",2049,0,{"$f":"SUMIFS(Kassenbuch!$E$7:$E$19983,Kassenbuch!$K$7:$K$19983,Bestände!$E309,Kassenbuch!$L$7:$L$19983,Bestände!$D309)","v":0},{"$f":"SUMIFS(Kassenbuch!$F$7:$F$19983,Kassenbuch!$K$7:$K$19983,Bestände!$E309,Kassenbuch!$L$7:$L$19983,Bestände!$D309)","v":0},0]
[null,null,"2049-03-31","März",2049,0,{"$f":"SUMIFS(Kassenbuch!$E$7:$E$19983,Kassenbuch!$K$7:$K$19983,Bestände!$E310,Kassenbuch!$L$7:$L$19983,Bestände!$D310)","v":0},{"$f":"SUMIFS(Kassenbuch!$F$7:$F$19983,Kassenbuch!$K$7:$K$19983,Bestände!$E310,Kassenbuch!$L$7:$L$19983,Bestände!$D310)","v":0},0]
[null,null,"2049-04-30","April",2049,0,{"$f":"SUMIFS(Kassenbuch!$E$7:$E$19983,Kassenbuch!$K$7:$K$19983,Bestände!$E311,Kassenbuch!$L$7:$L$19983,Bestände!$D311)","v":0},{"$f":"SUMIFS(Kassenbuch!$F$7:$F$19983,Kassenbuch!$K$7:$K$19983,Bestände!$E311,Kassenbuch!$L$7:$L$19983,Bestände!$D311)","v":0},0]
[null,null,"2049-05-31","Mai",2049,0,{"$f":"SUMIFS(Kassenbuch!$E$7:$E$19983,Kassenbuch!$K$7:$K$19983,Bestände!$E312,Kassenbuch!$L$7:$L$19983,Bestände!$D312)","v":0},{"$f":"SUMIFS(Kassenbuch!$F$7:$F$19983,Kassenbuch!$K$7:$K$19983,Bestände!$E312,Kassenbuch!$L$7:$L$19983,Bestände!$D312)","v":0},0]
[null,null,"2049-06-30","Juni",2049,0,{"$f":"SUMIFS(Kassenbuch!$E$7:$E$19983,Kassenbuch!$K$7:$K$19983,Bestände!$E313,Kassenbuch!$L$7:$L$19983,Bestände!$D313)","v":0},{"$f":"SUMIFS(Kassenbuch!$F$7:$F$19983,Kassenbuch!$K$7:$K$19983,Bestände!$E313,Kassenbuch!$L$7:$L$19983,Bestände!$D313)","v":0},0]
[null,null,"2049-07-31","Juli",2049,0,{"$f":"SUMIFS(Kassenbuch!$E$7:$E$19983,Kassenbuch!$K$7:$K$19983,Bestände!$E314,Kassenbuch!$L$7:$L$19983,Bestände!$D314)","v":0},{"$f":"SUMIFS(Kassenbuch!$F$7:$F$19983,Kassenbuch!$K$7:$K$19983,Bestände!$E314,Kassenbuch!$L$7:$L$19983,Bestände!$D314)","v":0},0]
[null,null,"2049-08-31","August",2049,0,{"$f":"SUMIFS(Kassenbuch!$E$7:$E$19983,Kassenbuch!$K$7:$K$19983,Bestände!$E315,Kassenbuch!$L$7:$L$19983,Bestände!$D315)","v":0},{"$f":"SUMIFS(Kassenbuch!$F$7:$F$19983,Kassenbuch!$K$7:$K$19983,Bestände!$E315,Kassenbuch!$L$7:$L$19983,Bestände!$D315)","v":0},0]
[null,null,"2049-09-30","September",2049,0,{"$f":"SUMIFS(Kassenbuch!$E$7:$E$19983,Kassenbuch!$K$7:$K$19983,Bestände!$E316,Kassenbuch!$L$7:$L$19983,Bestände!$D316)","v":0},{"$f":"SUMIFS(Kassenbuch!$F$7:$F$19983,Kassenbuch!$K$7:$K$19983,Bestände!$E316,Kassenbuch!$L$7:$L$19983,Bestände!$D316)","v":0},0]
[null,null,"2049-10-31","Oktober",2049,0,{"$f":"SUMIFS(Kassenbuch!$E$7:$E$19983,Kassenbuch!$K$7:$K$19983,Bestände!$E317,Kassenbuch!$L$7:$L$19983,Bestände!$D317)","v":0},{"$f":"SUMIFS(Kassenbuch!$F$7:$F$19983,Kassenbuch!$K$7:$K$19983,Bestände!$E317,Kassenbuch!$L$7:$L$19983,Bestände!$D317)","v":0},0]
[null,null,"2049-11-30","November",2049,0,{"$f":"SUMIFS(Kassenbuch!$E$7:$E$19983,Kassenbuch!$K$7:$K$19983,Bestände!$E318,Kassenbuch!$L$7:$L$19983,Bestände!$D318)","v":0},{"$f":"SUMIFS(Kassenbuch!$F$7:$F$19983,Kassenbuch!$K$7:$K$19983,Bestände!$E318,Kassenbuch!$L$7:$L$19983,Bestände!$D318)","v":0},0]
[null,null,"2049-12-31","Dezember",2049,0,{"$f":"SUMIFS(Kassenbuch!$E$7:$E$19983,Kassenbuch!$K$7:$K$19983,Bestände!$E319,Kassenbuch!$L$7:$L$19983,Bestände!$D319)","v":0},{"$f":"SUMIFS(Kassenbuch!$F$7:$F$19983,Kassenbuch!$K$7:$K$19983,Bestände!$E319,Kassenbuch!$L$7:$L$19983,Bestände!$D319)","v":0},0]
[null,null,"2050-01-31","Januar",2050,0,{"$f":"SUMIFS(Kassenbuch!$E$7:$E$19983,Kassenbuch!$K$7:$K$19983,Bestände!$E320,Kassenbuch!$L$7:$L$19983,Bestände!$D320)","v":0},{"$f":"SUMIFS(Kassenbuch!$F$7:$F$19983,Kassenbuch!$K$7:$K$19983,Bestände!$E320,Kassenbuch!$L$7:$L$19983,Bestände!$D320)","v":0},0]
[null,null,"2050-02-28","Februar",2050,0,{"$f":"SUMIFS(Kassenbuch!$E$7:$E$19983,Kassenbuch!$K$7:$K$19983,Bestände!$E321,Kassenbuch!$L$7:$L$19983,Bestände!$D321)","v":0},{"$f":"SUMIFS(Kassenbuch!$F$7:$F$19983,Kassenbuch!$K$7:$K$19983,Bestände!$E321,Kassenbuch!$L$7:$L$19983,Bestände!$D321)","v":0},0]
[null,null,"2050-03-31","März",2050,0,{"$f":"SUMIFS(Kassenbuch!$E$7:$E$19983,Kassenbuch!$K$7:$K$19983,Bestände!$E322,Kassenbuch!$L$7:$L$19983,Bestände!$D322)","v":0},{"$f":"SUMIFS(Kassenbuch!$F$7:$F$19983,Kassenbuch!$K$7:$K$19983,Bestände!$E322,Kassenbuch!$L$7:$L$19983,Bestände!$D322)","v":0},0]
[null,null,"2050-04-30","April",2050,0,{"$f":"SUMIFS(Kassenbuch!$E$7:$E$19983,Kassenbuch!$K$7:$K$19983,Bestände!$E323,Kassenbuch!$L$7:$L$19983,Bestände!$D323)","v":0},{"$f":"SUMIFS(Kassenbuch!$F$7:$F$19983,Kassenbuch!$K$7:$K$19983,Bestände!$E323,Kassenbuch!$L$7:$L$19983,Bestände!$D323)","v":0},0]
[null,null,"2050-05-31","Mai",2050,0,{"$f":"SUMIFS(Kassenbuch!$E$7:$E$19983,Kassenbuch!$K$7:$K$19983,Bestände!$E324,Kassenbuch!$L$7:$L$19983,Bestände!$D324)","v":0},{"$f":"SUMIFS(Kassenbuch!$F$7:$F$19983,Kassenbuch!$K$7:$K$19983,Bestände!$E324,Kassenbuch!$L$7:$L$19983,Bestände!$D324)","v":0},0]
[null,null,"2050-06-30","Juni",2050,0,{"$f":"SUMIFS(Kassenbuch!$E$7:$E$19983,Kassenbuch!$K$7:$K$19983,Bestände!$E325,Kassenbuch!$L$7:$L$19983,Bestände!$D325)","v":0},{"$f":"SUMIFS(Kassenbuch!$F$7:$F$19983,Kassenbuch!$K$7:$K$19983,Bestände!$E325,Kassenbuch!$L$7:$L$19983,Bestände!$D325)","v":0},0]
[null,null,"2050-07-31","Juli",2050,0,{"$f":"SUMIFS(Kassenbuch!$E$7:$E$19983,Kassenbuch!$K$7:$K$19983,Bestände!$E326,Kassenbuch!$L$7:$L$19983,Bestände!$D326)","v":0},{"$f":"SUMIFS(Kassenbuch!$F$7:$F$19983,Kassenbuch!$K$7:$K$19983,Bestände!$E326,Kassenbuch!$L$7:$L$19983,Bestände!$D326)","v":0},0]
[null,null,"2050-08-31","August",2050,0,{"$f":"SUMIFS(Kassenbuch!$E$7:$E$19983,Kassenbuch!$K$7:$K$19983,Bestände!$E327,Kassenbuch!$L$7:$L$19983,Bestände!$D327)","v":0},{"$f":"SUMIFS(Kassenbuch!$F$7:$F$19983,Kassenbuch!$K$7:$K$19983,Bestände!$E327,Kassenbuch!$L$7:$L$19983,Bestände!$D327)","v":0},0]
[null,null,"2050-09-30","September",2050,0,{"$f":"SUMIFS(Kassenbuch!$E$7:$E$19983,Kassenbuch!$K$7:$K$19983,Bestände!$E328,Kassenbuch!$L$7:$L$19983,Bestände!$D328)","v":0},{"$f":"SUMIFS(Kassenbuch!$F$7:$F$19983,Kassenbuch!$K$7:$K$19983,Bestände!$E328,Kassenbuch!$L$7:$L$19983,Bestände!$D328)","v":0},0]
[null,null,"2050-10-31","Oktober",2050,0,{"$f":"SUMIFS(Kassenbuch!$E$7:$E$19983,Kassenbuch!$K$7:$K$19983,Bestände!$E329,Kassenbuch!$L$7:$L$19983,Bestände!$D329)","v":0},{"$f":"SUMIFS(Kassenbuch!$F$7:$F$19983,Kassenbuch!$K$7:$K$19983,Bestände!$E329,Kassenbuch!$L$7:$L$19983,Bestände!$D329)","v":0},0]
[null,null,{"$f":"IF(C329=\"-\",\"-\",EOMONTH(C329,1))","v":"2050-11-30"},"November",2050,0,{"$f":"SUMIFS(Kassenbuch!$E$7:$E$19983,Kassenbuch!$K$7:$K$19983,Bestände!$E330,Kassenbuch!$L$7:$L$19983,Bestände!$D330)","v":0},{"$f":"SUMIFS(Kassenbuch!$F$7:$F$19983,Kassenbuch!$K$7:$K$19983,Bestände!$E330,Kassenbuch!$L$7:$L$19983,Bestände!$D330)","v":0},0]
[null,null,"2050-12-31","Dezember",2050,0,{"$f":"SUMIFS(Kassenbuch!$E$7:$E$19983,Kassenbuch!$K$7:$K$19983,Bestände!$E331,Kassenbuch!$L$7:$L$19983,Bestände!$D331)","v":0},{"$f":"SUMIFS(Kassenbuch!$F$7:$F$19983,Kassenbuch!$K$7:$K$19983,Bestände!$E331,Kassenbuch!$L$7:$L$19983,Bestände!$D331)","v":0},0]
[null,null,"2051-01-31",{"$f":"TEXT(C332,\"MMMM\")","v":"Januar"},{"$f":"IF(C332=\"-\",\"-\",YEAR(C332))","v":2051},{"$f":"IF(C331>=TODAY(),0,I331)","v":0},{"$f":"SUMIFS(Kassenbuch!$E$7:$E$19983,Kassenbuch!$K$7:$K$19983,Bestände!$E332,Kassenbuch!$L$7:$L$19983,Bestände!$D332)","v":0},{"$f":"SUMIFS(Kassenbuch!$F$7:$F$19983,Kassenbuch!$K$7:$K$19983,Bestände!$E332,Kassenbuch!$L$7:$L$19983,Bestände!$D332)","v":0},{"$f":"IF(F332=0,0,F332+G332-H332)","v":0}]
[null,null,"2051-02-28","Februar",2051,0,{"$f":"SUMIFS(Kassenbuch!$E$7:$E$19983,Kassenbuch!$K$7:$K$19983,Bestände!$E333,Kassenbuch!$L$7:$L$19983,Bestände!$D333)","v":0},{"$f":"SUMIFS(Kassenbuch!$F$7:$F$19983,Kassenbuch!$K$7:$K$19983,Bestände!$E333,Kassenbuch!$L$7:$L$19983,Bestände!$D333)","v":0},0]
[null,null,"2051-03-31","März",2051,0,{"$f":"SUMIFS(Kassenbuch!$E$7:$E$19983,Kassenbuch!$K$7:$K$19983,Bestände!$E334,Kassenbuch!$L$7:$L$19983,Bestände!$D334)","v":0},{"$f":"SUMIFS(Kassenbuch!$F$7:$F$19983,Kassenbuch!$K$7:$K$19983,Bestände!$E334,Kassenbuch!$L$7:$L$19983,Bestände!$D334)","v":0},0]
[null,null,"2051-04-30","April",2051,0,{"$f":"SUMIFS(Kassenbuch!$E$7:$E$19983,Kassenbuch!$K$7:$K$19983,Bestände!$E335,Kassenbuch!$L$7:$L$19983,Bestände!$D335)","v":0},{"$f":"SUMIFS(Kassenbuch!$F$7:$F$19983,Kassenbuch!$K$7:$K$19983,Bestände!$E335,Kassenbuch!$L$7:$L$19983,Bestände!$D335)","v":0},0]
[null,null,"2051-05-31","Mai",2051,0,{"$f":"SUMIFS(Kassenbuch!$E$7:$E$19983,Kassenbuch!$K$7:$K$19983,Bestände!$E336,Kassenbuch!$L$7:$L$19983,Bestände!$D336)","v":0},{"$f":"SUMIFS(Kassenbuch!$F$7:$F$19983,Kassenbuch!$K$7:$K$19983,Bestände!$E336,Kassenbuch!$L$7:$L$19983,Bestände!$D336)","v":0},0]
[null,null,"2051-06-30","Juni",2051,0,{"$f":"SUMIFS(Kassenbuch!$E$7:$E$19983,Kassenbuch!$K$7:$K$19983,Bestände!$E337,Kassenbuch!$L$7:$L$19983,Bestände!$D337)","v":0},{"$f":"SUMIFS(Kassenbuch!$F$7:$F$19983,Kassenbuch!$K$7:$K$19983,Bestände!$E337,Kassenbuch!$L$7:$L$19983,Bestände!$D337)","v":0},0]
[null,null,"2051-07-31","Juli",2051,0,{"$f":"SUMIFS(Kassenbuch!$E$7:$E$19983,Kassenbuch!$K$7:$K$19983,Bestände!$E338,Kassenbuch!$L$7:$L$19983,Bestände!$D338)","v":0},{"$f":"SUMIFS(Kassenbuch!$F$7:$F$19983,Kassenbuch!$K$7:$K$19983,Bestände!$E338,Kassenbuch!$L$7:$L$19983,Bestände!$D338)","v":0},0]
[null,null,"2051-08-31","August",2051,0,{"$f":"SUMIFS(Kassenbuch!$E$7:$E$19983,Kassenbuch!$K$7:$K$19983,Bestände!$E339,Kassenbuch!$L$7:$L$19983,Bestände!$D339)","v":0},{"$f":"SUMIFS(Kassenbuch!$F$7:$F$19983,Kassenbuch!$K$7:$K$19983,Bestände!$E339,Kassenbuch!$L$7:$L$19983,Bestände!$D339)","v":0},0]
[null,null,"2051-09-30","September",2051,0,{"$f":"SUMIFS(Kassenbuch!$E$7:$E$19983,Kassenbuch!$K$7:$K$19983,Bestände!$E340,Kassenbuch!$L$7:$L$19983,Bestände!$D340)","v":0},{"$f":"SUMIFS(Kassenbuch!$F$7:$F$19983,Kassenbuch!$K$7:$K$19983,Bestände!$E340,Kassenbuch!$L$7:$L$19983,Bestände!$D340)","v":0},0]
[null,null,"2051-10-31","Oktober",2051,0,{"$f":"SUMIFS(Kassenbuch!$E$7:$E$19983,Kassenbuch!$K$7:$K$19983,Bestände!$E341,Kassenbuch!$L$7:$L$19983,Bestände!$D341)","v":0},{"$f":"SUMIFS(Kassenbuch!$F$7:$F$19983,Kassenbuch!$K$7:$K$19983,Bestände!$E341,Kassenbuch!$L$7:$L$19983,Bestände!$D341)","v":0},0]
[null,null,"2051-11-30","November",2051,0,{"$f":"SUMIFS(Kassenbuch!$E$7:$E$19983,Kassenbuch!$K$7:$K$19983,Bestände!$E342,Kassenbuch!$L$7:$L$19983,Bestände!$D342)","v":0},{"$f":"SUMIFS(Kassenbuch!$F$7:$F$19983,Kassenbuch!$K$7:$K$19983,Bestände!$E342,Kassenbuch!$L$7:$L$19983,Bestände!$D342)","v":0},0]
[null,null,"2051-12-31","Dezember",2051,0,{"$f":"SUMIFS(Kassenbuch!$E$7:$E$19983,Kassenbuch!$K$7:$K$19983,Bestände!$E343,Kassenbuch!$L$7:$L$19983,Bestände!$D343)","v":0},{"$f":"SUMIFS(Kassenbuch!$F$7:$F$19983,Kassenbuch!$K$7:$K$19983,Bestände!$E343,Kassenbuch!$L$7:$L$19983,Bestände!$D343)","v":0},0]
[null,null,"2052-01-31","Januar",2052,0,{"$f":"SUMIFS(Kassenbuch!$E$7:$E$19983,Kassenbuch!$K$7:$K$19983,Bestände!$E344,Kassenbuch!$L$7:$L$19983,Bestände!$D344)","v":0},{"$f":"SUMIFS(Kassenbuch!$F$7:$F$19983,Kassenbuch!$K$7:$K$19983,Bestände!$E344,Kassenbuch!$L$7:$L$19983,Bestände!$D344)","v":0},0]
[null,null,"2052-02-29","Februar",2052,0,{"$f":"SUMIFS(Kassenbuch!$E$7:$E$19983,Kassenbuch!$K$7:$K$19983,Bestände!$E345,Kassenbuch!$L$7:$L$19983,Bestände!$D345)","v":0},{"$f":"SUMIFS(Kassenbuch!$F$7:$F$19983,Kassenbuch!$K$7:$K$19983,Bestände!$E345,Kassenbuch!$L$7:$L$19983,Bestände!$D345)","v":0},0]
[null,null,"2052-03-31","März",2052,0,{"$f":"SUMIFS(Kassenbuch!$E$7:$E$19983,Kassenbuch!$K$7:$K$19983,Bestände!$E346,Kassenbuch!$L$7:$L$19983,Bestände!$D346)","v":0},{"$f":"SUMIFS(Kassenbuch!$F$7:$F$19983,Kassenbuch!$K$7:$K$19983,Bestände!$E346,Kassenbuch!$L$7:$L$19983,Bestände!$D346)","v":0},0]
[null,null,"2052-04-30","April",2052,0,{"$f":"SUMIFS(Kassenbuch!$E$7:$E$19983,Kassenbuch!$K$7:$K$19983,Bestände!$E347,Kassenbuch!$L$7:$L$19983,Bestände!$D347)","v":0},{"$f":"SUMIFS(Kassenbuch!$F$7:$F$19983,Kassenbuch!$K$7:$K$19983,Bestände!$E347,Kassenbuch!$L$7:$L$19983,Bestände!$D347)","v":0},0]
[null,null,"2052-05-31","Mai",2052,0,{"$f":"SUMIFS(Kassenbuch!$E$7:$E$19983,Kassenbuch!$K$7:$K$19983,Bestände!$E348,Kassenbuch!$L$7:$L$19983,Bestände!$D348)","v":0},{"$f":"SUMIFS(Kassenbuch!$F$7:$F$19983,Kassenbuch!$K$7:$K$19983,Bestände!$E348,Kassenbuch!$L$7:$L$19983,Bestände!$D348)","v":0},0]
[null,null,"2052-06-30","Juni",2052,0,{"$f":"SUMIFS(Kassenbuch!$E$7:$E$19983,Kassenbuch!$K$7:$K$19983,Bestände!$E349,Kassenbuch!$L$7:$L$19983,Bestände!$D349)","v":0},{"$f":"SUMIFS(Kassenbuch!$F$7:$F$19983,Kassenbuch!$K$7:$K$19983,Bestände!$E349,Kassenbuch!$L$7:$L$19983,Bestände!$D349)","v":0},0]
[null,null,"2052-07-31","Juli",2052,0,{"$f":"SUMIFS(Kassenbuch!$E$7:$E$19983,Kassenbuch!$K$7:$K$19983,Bestände!$E350,Kassenbuch!$L$7:$L$19983,Bestände!$D350)","v":0},{"$f":"SUMIFS(Kassenbuch!$F$7:$F$19983,Kassenbuch!$K$7:$K$19983,Bestände!$E350,Kassenbuch!$L$7:$L$19983,Bestände!$D350)","v":0},0]
[null,null,"2052-08-31","August",2052,0,{"$f":"SUMIFS(Kassenbuch!$E$7:$E$19983,Kassenbuch!$K$7:$K$19983,Bestände!$E351,Kassenbuch!$L$7:$L$19983,Bestände!$D351)","v":0},{"$f":"SUMIFS(Kassenbuch!$F$7:$F$19983,Kassenbuch!$K$7:$K$19983,Bestände!$E351,Kassenbuch!$L$7:$L$19983,Bestände!$D351)","v":0},0]
[null,null,"2052-09-30","September",2052,0,{"$f":"SUMIFS(Kassenbuch!$E$7:$E$19983,Kassenbuch!$K$7:$K$19983,Bestände!$E352,Kassenbuch!$L$7:$L$19983,Bestände!$D352)","v":0},{"$f":"SUMIFS(Kassenbuch!$F$7:$F$19983,Kassenbuch!$K$7:$K$19983,Bestände!$E352,Kassenbuch!$L$7:$L$19983,Bestände!$D352)","v":0},0]
[null,null,"2052-10-31","Oktober",2052,0,{"$f":"SUMIFS(Kassenbuch!$E$7:$E$19983,Kassenbuch!$K$7:$K$19983,Bestände!$E353,Kassenbuch!$L$7:$L$19983,Bestände!$D353)","v":0},{"$f":"SUMIFS(Kassenbuch!$F$7:$F$19983,Kassenbuch!$K$7:$K$19983,Bestände!$E353,Kassenbuch!$L$7:$L$19983,Bestände!$D353)","v":0},0]
[null,null,"2052-11-30","November",2052,0,{"$f":"SUMIFS(Kassenbuch!$E$7:$E$19983,Kassenbuch!$K$7:$K$19983,Bestände!$E354,Kassenbuch!$L$7:$L$19983,Bestände!$D354)","v":0},{"$f":"SUMIFS(Kassenbuch!$F$7:$F$19983,Kassenbuch!$K$7:$K$19983,Bestände!$E354,Kassenbuch!$L$7:$L$19983,Bestände!$D354)","v":0},0]
[null,null,"2052-12-31","Dezember",2052,0,{"$f":"SUMIFS(Kassenbuch!$E$7:$E$19983,Kassenbuch!$K$7:$K$19983,Bestände!$E355,Kassenbuch!$L$7:$L$19983,Bestände!$D355)","v":0},{"$f":"SUMIFS(Kassenbuch!$F$7:$F$19983,Kassenbuch!$K$7:$K$19983,Bestände!$E355,Kassenbuch!$L$7:$L$19983,Bestände!$D355)","v":0},0]
[null,null,"2053-01-31","Januar",2053,0,{"$f":"SUMIFS(Kassenbuch!$E$7:$E$19983,Kassenbuch!$K$7:$K$19983,Bestände!$E356,Kassenbuch!$L$7:$L$19983,Bestände!$D356)","v":0},{"$f":"SUMIFS(Kassenbuch!$F$7:$F$19983,Kassenbuch!$K$7:$K$19983,Bestände!$E356,Kassenbuch!$L$7:$L$19983,Bestände!$D356)","v":0},0]
[null,null,"2053-02-28","Februar",2053,0,{"$f":"SUMIFS(Kassenbuch!$E$7:$E$19983,Kassenbuch!$K$7:$K$19983,Bestände!$E357,Kassenbuch!$L$7:$L$19983,Bestände!$D357)","v":0},{"$f":"SUMIFS(Kassenbuch!$F$7:$F$19983,Kassenbuch!$K$7:$K$19983,Bestände!$E357,Kassenbuch!$L$7:$L$19983,Bestände!$D357)","v":0},0]
[null,null,"2053-03-31","März",2053,0,{"$f":"SUMIFS(Kassenbuch!$E$7:$E$19983,Kassenbuch!$K$7:$K$19983,Bestände!$E358,Kassenbuch!$L$7:$L$19983,Bestände!$D358)","v":0},{"$f":"SUMIFS(Kassenbuch!$F$7:$F$19983,Kassenbuch!$K$7:$K$19983,Bestände!$E358,Kassenbuch!$L$7:$L$19983,Bestände!$D358)","v":0},0]
[null,null,"2053-04-30","April",2053,0,{"$f":"SUMIFS(Kassenbuch!$E$7:$E$19983,Kassenbuch!$K$7:$K$19983,Bestände!$E359,Kassenbuch!$L$7:$L$19983,Bestände!$D359)","v":0},{"$f":"SUMIFS(Kassenbuch!$F$7:$F$19983,Kassenbuch!$K$7:$K$19983,Bestände!$E359,Kassenbuch!$L$7:$L$19983,Bestände!$D359)","v":0},0]
[null,null,"2053-05-31","Mai",2053,0,{"$f":"SUMIFS(Kassenbuch!$E$7:$E$19983,Kassenbuch!$K$7:$K$19983,Bestände!$E360,Kassenbuch!$L$7:$L$19983,Bestände!$D360)","v":0},{"$f":"SUMIFS(Kassenbuch!$F$7:$F$19983,Kassenbuch!$K$7:$K$19983,Bestände!$E360,Kassenbuch!$L$7:$L$19983,Bestände!$D360)","v":0},0]
[null,null,"2053-06-30","Juni",2053,0,{"$f":"SUMIFS(Kassenbuch!$E$7:$E$19983,Kassenbuch!$K$7:$K$19983,Bestände!$E361,Kassenbuch!$L$7:$L$19983,Bestände!$D361)","v":0},{"$f":"SUMIFS(Kassenbuch!$F$7:$F$19983,Kassenbuch!$K$7:$K$19983,Bestände!$E361,Kassenbuch!$L$7:$L$19983,Bestände!$D361)","v":0},0]
[null,null,"2053-07-31","Juli",2053,0,{"$f":"SUMIFS(Kassenbuch!$E$7:$E$19983,Kassenbuch!$K$7:$K$19983,Bestände!$E362,Kassenbuch!$L$7:$L$19983,Bestände!$D362)","v":0},{"$f":"SUMIFS(Kassenbuch!$F$7:$F$19983,Kassenbuch!$K$7:$K$19983,Bestände!$E362,Kassenbuch!$L$7:$L$19983,Bestände!$D362)","v":0},0]
[null,null,"2053-08-31","August",2053,0,{"$f":"SUMIFS(Kassenbuch!$E$7:$E$19983,Kassenbuch!$K$7:$K$19983,Bestände!$E363,Kassenbuch!$L$7:$L$19983,Bestände!$D363)","v":0},{"$f":"SUMIFS(Kassenbuch!$F$7:$F$19983,Kassenbuch!$K$7:$K$19983,Bestände!$E363,Kassenbuch!$L$7:$L$19983,Bestände!$D363)","v":0},0]
[null,null,"2053-09-30","September",2053,0,{"$f":"SUMIFS(Kassenbuch!$E$7:$E$19983,Kassenbuch!$K$7:$K$19983,Bestände!$E364,Kassenbuch!$L$7:$L$19983,Bestände!$D364)","v":0},{"$f":"SUMIFS(Kassenbuch!$F$7:$F$19983,Kassenbuch!$K$7:$K$19983,Bestände!$E364,Kassenbuch!$L$7:$L$19983,Bestände!$D364)","v":0},0]
[null,null,"2053-10-31","Oktober",2053,0,{"$f":"SUMIFS(Kassenbuch!$E$7:$E$19983,Kassenbuch!$K$7:$K$19983,Bestände!$E365,Kassenbuch!$L$7:$L$19983,Bestände!$D365)","v":0},{"$f":"SUMIFS(Kassenbuch!$F$7:$F$19983,Kassenbuch!$K$7:$K$19983,Bestände!$E365,Kassenbuch!$L$7:$L$19983,Bestände!$D365)","v":0},0]
[null,null,"2053-11-30","November",2053,0,{"$f":"SUMIFS(Kassenbuch!$E$7:$E$19983,Kassenbuch!$K$7:$K$19983,Bestände!$E366,Kassenbuch!$L$7:$L$19983,Bestände!$D366)","v":0},{"$f":"SUMIFS(Kassenbuch!$F$7:$F$19983,Kassenbuch!$K$7:$K$19983,Bestände!$E366,Kassenbuch!$L$7:$L$19983,Bestände!$D366)","v":0},0]
[null,null,"2053-12-31","Dezember",2053,0,{"$f":"SUMIFS(Kassenbuch!$E$7:$E$19983,Kassenbuch!$K$7:$K$19983,Bestände!$E367,Kassenbuch!$L$7:$L$19983,Bestände!$D367)","v":0},{"$f":"SUMIFS(Kassenbuch!$F$7:$F$19983,Kassenbuch!$K$7:$K$19983,Bestände!$E367,Kassenbuch!$L$7:$L$19983,Bestände!$D367)","v":0},0]
[null,null,"2054-01-31","Januar",2054,0,{"$f":"SUMIFS(Kassenbuch!$E$7:$E$19983,Kassenbuch!$K$7:$K$19983,Bestände!$E368,Kassenbuch!$L$7:$L$19983,Bestände!$D368)","v":0},{"$f":"SUMIFS(Kassenbuch!$F$7:$F$19983,Kassenbuch!$K$7:$K$19983,Bestände!$E368,Kassenbuch!$L$7:$L$19983,Bestände!$D368)","v":0},0]
[null,null,"2054-02-28","Februar",2054,0,{"$f":"SUMIFS(Kassenbuch!$E$7:$E$19983,Kassenbuch!$K$7:$K$19983,Bestände!$E369,Kassenbuch!$L$7:$L$19983,Bestände!$D369)","v":0},{"$f":"SUMIFS(Kassenbuch!$F$7:$F$19983,Kassenbuch!$K$7:$K$19983,Bestände!$E369,Kassenbuch!$L$7:$L$19983,Bestände!$D369)","v":0},0]
[null,null,"2054-03-31","März",2054,0,{"$f":"SUMIFS(Kassenbuch!$E$7:$E$19983,Kassenbuch!$K$7:$K$19983,Bestände!$E370,Kassenbuch!$L$7:$L$19983,Bestände!$D370)","v":0},{"$f":"SUMIFS(Kassenbuch!$F$7:$F$19983,Kassenbuch!$K$7:$K$19983,Bestände!$E370,Kassenbuch!$L$7:$L$19983,Bestände!$D370)","v":0},0]
[null,null,"2054-04-30","April",2054,0,{"$f":"SUMIFS(Kassenbuch!$E$7:$E$19983,Kassenbuch!$K$7:$K$19983,Bestände!$E371,Kassenbuch!$L$7:$L$19983,Bestände!$D371)","v":0},{"$f":"SUMIFS(Kassenbuch!$F$7:$F$19983,Kassenbuch!$K$7:$K$19983,Bestände!$E371,Kassenbuch!$L$7:$L$19983,Bestände!$D371)","v":0},0]
[null,null,"2054-05-31","Mai",2054,0,{"$f":"SUMIFS(Kassenbuch!$E$7:$E$19983,Kassenbuch!$K$7:$K$19983,Bestände!$E372,Kassenbuch!$L$7:$L$19983,Bestände!$D372)","v":0},{"$f":"SUMIFS(Kassenbuch!$F$7:$F$19983,Kassenbuch!$K$7:$K$19983,Bestände!$E372,Kassenbuch!$L$7:$L$19983,Bestände!$D372)","v":0},0]
[null,null,"2054-06-30","Juni",2054,0,{"$f":"SUMIFS(Kassenbuch!$E$7:$E$19983,Kassenbuch!$K$7:$K$19983,Bestände!$E373,Kassenbuch!$L$7:$L$19983,Bestände!$D373)","v":0},{"$f":"SUMIFS(Kassenbuch!$F$7:$F$19983,Kassenbuch!$K$7:$K$19983,Bestände!$E373,Kassenbuch!$L$7:$L$19983,Bestände!$D373)","v":0},0]
[null,null,"2054-07-31","Juli",2054,0,{"$f":"SUMIFS(Kassenbuch!$E$7:$E$19983,Kassenbuch!$K$7:$K$19983,Bestände!$E374,Kassenbuch!$L$7:$L$19983,Bestände!$D374)","v":0},{"$f":"SUMIFS(Kassenbuch!$F$7:$F$19983,Kassenbuch!$K$7:$K$19983,Bestände!$E374,Kassenbuch!$L$7:$L$19983,Bestände!$D374)","v":0},0]
[null,null,"2054-08-31","August",2054,0,{"$f":"SUMIFS(Kassenbuch!$E$7:$E$19983,Kassenbuch!$K$7:$K$19983,Bestände!$E375,Kassenbuch!$L$7:$L$19983,Bestände!$D375)","v":0},{"$f":"SUMIFS(Kassenbuch!$F$7:$F$19983,Kassenbuch!$K$7:$K$19983,Bestände!$E375,Kassenbuch!$L$7:$L$19983,Bestände!$D375)","v":0},0]
[null,null,"2054-09-30","September",2054,0,{"$f":"SUMIFS(Kassenbuch!$E$7:$E$19983,Kassenbuch!$K$7:$K$19983,Bestände!$E376,Kassenbuch!$L$7:$L$19983,Bestände!$D376)","v":0},{"$f":"SUMIFS(Kassenbuch!$F$7:$F$19983,Kassenbuch!$K$7:$K$19983,Bestände!$E376,Kassenbuch!$L$7:$L$19983,Bestände!$D376)","v":0},0]
[null,null,"2054-10-31","Oktober",2054,0,{"$f":"SUMIFS(Kassenbuch!$E$7:$E$19983,Kassenbuch!$K$7:$K$19983,Bestände!$E377,Kassenbuch!$L$7:$L$19983,Bestände!$D377)","v":0},{"$f":"SUMIFS(Kassenbuch!$F$7:$F$19983,Kassenbuch!$K$7:$K$19983,Bestände!$E377,Kassenbuch!$L$7:$L$19983,Bestände!$D377)","v":0},{"$f":"IF(F377=0,0,F377+G377-H377)","v":0}]

{"sheet":"HL","index":4,"n_rows":5,"n_cols":8,"rows_kept":5,"cut":false,"hidden":true,"merged":[[0,1,0,7]]}
[null,"Hilfsliste"]
[]
[]
[null,{"$f":"DB[#Headers]","v":"Datum"},"Name Vorname","Einnahme","Ausgabe","Kategorie","Steuer","Anmerkungen"]
[null,{"$f":"_xlfn._xlws.SORT(_xlfn.UNIQUE(DB[Datum]))","v":"2025-01-27"},{"$f":"_xlfn._xlws.SORT(_xlfn.UNIQUE(DB[Name Vorname]))","v":"Muster Karl"},{"$f":"_xlfn._xlws.SORT(_xlfn.UNIQUE(DB[Einnahme]))","v":22},{"$f":"_xlfn._xlws.SORT(_xlfn.UNIQUE(DB[Ausgabe]))","v":22},{"$f":"_xlfn._xlws.SORT(_xlfn.UNIQUE(DB[Kategorie]))","v":"PC Zubehör"},{"$f":"_xlfn._xlws.SORT(_xlfn.UNIQUE(DB[Steuer]))","v":0},{"$f":"_xlfn._xlws.SORT(_xlfn.UNIQUE(DB[Anmerkungen]))","v":"An und Verkauf"}]